Workbook

Sheet الرئيسية
A12: مدرسة
A13: الصف | B13: خامس
A14: المحافظة | B14: الحديدة
A15: المديرية | B15: الحالي
A16: العام الدراسي | B16: 2026 / 2027
B17: 1448

Sheet B

Sheet C

Sheet G

Sheet A
I2: اسم المدرسة: | L2: =الرئيسية!B12 -> 0
I3: الصف: | L3: =الرئيسية!B13 -> خامس
A4: م | B4: اسم الطالب | C4: الديانة | D4: الرقم المدرسي | E4: محـل وتــاريخ الميـــلاد | N4: ملاحظة
E5: الجنـس | F5: المحافظة | G5: المديرية | H5: محل الميلاد | I5: اليوم | J5: الشهر | K5: السنــة | L5: التاريخ | M5: الجنسية
A6: =IF(B6="","",ROW()-5) ->  | L6: =K6&"/"&J6&"/"&I6 -> //
L7: //
L8: //
L9: //
L10: //
L11: //
L12: //
L13: //
L14: //
I15: 1 | J15: 2 | K15: 1998 | L15: 1998/2/1
L16: //
L17: //
L18: //
L19: //
L20: //
L21: //
L22: //
L23: //
L24: //
L25: //
L26: //
L27: //
L28: //
I29: 5 | J29: 4 | K29: 1999 | L29: 1999/4/5
L30: //
L31: //
L32: //
L33: //
L34: //
L35: //
L36: //
L37: //
A38: =IF(B38="","",ROW()-5) ->  | L38: =K38&"/"&J38&"/"&I38 -> //
L39: //
L40: //
L41: //
L42: //
L43: //
L44: //
L45: //
L46: //
L47: //
L48: //
L49: //
L50: //
L51: //
L52: //
L53: //
L54: //
L55: //
L56: //
L57: //

Sheet D1
C3: وزارة التربية والتعليم
C4: مكتب التربية والتعليم بمحافظة | D4: =الرئيسية!B14 -> الحديدة | V4: اسم المدرسة: | Y4: =الرئيسية!B12 -> 0 | AC4: =الرئيسية!AA14 -> 0 | AU4: اسم المدرسة: | AX4: =Y4 -> 0
C5: مكتب التربية بمديرية : | D5: =الرئيسية!B15 -> الحالي | V5: الصف: | Y5: =الرئيسية!B13 -> خامس | AC5: =الرئيسية!AA15 -> 0 | AU5: الصف: | AX5: =Y5 -> خامس
D6: كشـف بدرجات أعـمال السنة الفـصل الدراسي الأول للعام الدراسي | Q6: =الرئيسية!B16 -> 2026 / 2027 | V6: المــادة : | Y6: قرآن كريم | AC6: كشـف بدرجات أعـمال السنة الفـصل الدراسي الثاني للعام الدراسي | AP6: =Q6 -> 2026 / 2027 | AU6: المــادة : | AX6: قرآن كريم
B7: م | C7: اسم الـطــالـب | D7: شهر يوليو 2026م | K7: شهر اغسطس 2026م | R7: شهر سبتمبر 2026م | Y7: الفصل الدراسي الأول | AC7: شهر نوفمبر 2026م | AJ7: شهر ديسمبر 2026م | AQ7: شهر يناير 2027م | AX7: الفصل الدراسي الثاني
D8: الواجبات | E8: الشفوي | F8: المواظبة | G8: السلوك | H8: التحريري | I8: المجموع | J8: المحصلة | K8: الواجبات | L8: الشفوي | M8: المواظبة | N8: السلوك | O8: التحريري | P8: المجموع | Q8: المحصلة | R8: الواجبات | S8: الشفوي | T8: المواظبة | U8: السلوك | V8: التحريري | W8: المجموع | X8: المحصلة | Y8: محصلة ( 1 ) | Z8: الفصل الأول | AA8: المجموع | AC8: الواجبات | AD8: الشفوي | AE8: المواظبة | AF8: السلوك | AG8: التحريري | AH8: المجموع | AI8: المحصلة | AJ8: الواجبات | AK8: الشفوي | AL8: المواظبة | AM8: السلوك | AN8: التحريري | AO8: المجموع | AP8: المحصلة | AQ8: الواجبات | AR8: الشفوي | AS8: المواظبة | AT8: السلوك | AU8: التحريري | AV8: المجموع | AW8: المحصلة | AX8: محصلة ( 1 ) | AY8: الفصل الأول | AZ8: المجموع
D9: 20 | E9: 20 | F9: 10 | G9: 10 | H9: 40 | I9: 100 | J9: 20 | K9: 20 | L9: 20 | M9: 10 | N9: 10 | O9: 40 | P9: 100 | Q9: 20 | R9: 20 | S9: 20 | T9: 10 | U9: 10 | V9: 40 | W9: 100 | X9: 20 | Y9: 20 | Z9: 30 | AA9: 50 | AC9: 20 | AD9: 20 | AE9: 10 | AF9: 10 | AG9: 40 | AH9: 100 | AI9: 20 | AJ9: 20 | AK9: 20 | AL9: 10 | AM9: 10 | AN9: 40 | AO9: 100 | AP9: 20 | AQ9: 20 | AR9: 20 | AS9: 10 | AT9: 10 | AU9: 40 | AV9: 100 | AW9: 20 | AX9: 20 | AY9: 30 | AZ9: 50
B10: 1 | C10: =IFERROR(VLOOKUP(B10,A!A6:M73,2,FALSE),"") ->  | D10: 10 | E10: 10 | F10: 5 | G10: 5 | H10: 20 | I10: =H10+G10+F10+E10+D10 -> 50 | J10: =IFERROR(AVERAGE(D10:H10),"") -> 10 | K10: 10 | L10: 10 | M10: 5 | N10: 5 | O10: 20 | P10: =O10+N10+M10+L10+K10 -> 50 | Q10: =IFERROR(AVERAGE(K10:O10),"") -> 10 | R10: 20 | S10: 20 | T10: 10 | U10: 10 | V10: 40 | W10: =V10+U10+T10+S10+R10 -> 100 | X10: =IFERROR(AVERAGE(R10:V10),"") -> 20 | Y10: =SUM(J10, Q10, X10) / 3 -> 13.33333333 | AA10: =_xlfn.AGGREGATE(9,6,Y10:Z10) -> 13.33333333 | AC10: 20 | AD10: 20 | AE10: 20 | AF10: 20 | AG10: 20 | AH10: =AG10+AF10+AE10+AD10+AC10 -> 100 | AI10: =IFERROR(AVERAGE(AC10:AG10),"") -> 20 | AO10: =AN10+AM10+AL10+AK10+AJ10 -> 0 | AP10: =IFERROR(AVERAGE(AJ10:AN10),"") ->  | AV10: =AU10+AT10+AS10+AR10+AQ10 -> 0 | AW10: =IFERROR(AVERAGE(AQ10:AU10),"") ->  | AX10: =SUM(AI10, AP10, AW10) / 3 -> 6.666666667 | AZ10: =_xlfn.AGGREGATE(9,6,AX10:AY10) -> 6.666666667
B11: 2 | C11: =IFERROR(VLOOKUP(B11,A!A7:M74,2,FALSE),"") ->  | I11: =H11+G11+F11+E11+D11 -> 0 | J11: =IFERROR(AVERAGE(D11:H11),"") ->  | P11: =O11+N11+M11+L11+K11 -> 0 | Q11: =IFERROR(AVERAGE(K11:O11),"") ->  | W11: =V11+U11+T11+S11+R11 -> 0 | X11: =IFERROR(AVERAGE(R11:V11),"") ->  | Y11: =SUM(J11, Q11, X11) / 3 -> 0 | AA11: =_xlfn.AGGREGATE(9,6,Y11:Z11) -> 0 | AH11: =AG11+AF11+AE11+AD11+AC11 -> 0 | AI11: =IFERROR(AVERAGE(AC11:AG11),"") ->  | AO11: =AN11+AM11+AL11+AK11+AJ11 -> 0 | AP11: =IFERROR(AVERAGE(AJ11:AN11),"") ->  | AV11: =AU11+AT11+AS11+AR11+AQ11 -> 0 | AW11: =IFERROR(AVERAGE(AQ11:AU11),"") ->  | AX11: =SUM(AI11, AP11, AW11) / 3 -> 0 | AZ11: =_xlfn.AGGREGATE(9,6,AX11:AY11) -> 0
B12: 3 | C12: =IFERROR(VLOOKUP(B12,A!A8:M75,2,FALSE),"") ->  | I12: 0 | P12: 0 | W12: 0 | Y12: 0 | AA12: 0 | AH12: 0 | AO12: 0 | AV12: 0 | AX12: 0 | AZ12: 0
B13: 4 | C13: =IFERROR(VLOOKUP(B13,A!A9:M76,2,FALSE),"") ->  | I13: 0 | P13: 0 | W13: 0 | Y13: 0 | AA13: 0 | AH13: 0 | AO13: 0 | AV13: 0 | AX13: 0 | AZ13: 0
B14: 5 | C14: =IFERROR(VLOOKUP(B14,A!A10:M77,2,FALSE),"") ->  | I14: 0 | P14: 0 | W14: 0 | Y14: 0 | AA14: 0 | AH14: 0 | AO14: 0 | AV14: 0 | AX14: 0 | AZ14: 0
B15: 6 | C15: =IFERROR(VLOOKUP(B15,A!A11:M78,2,FALSE),"") ->  | I15: 0 | P15: 0 | W15: 0 | Y15: 0 | AA15: 0 | AH15: 0 | AO15: 0 | AV15: 0 | AX15: 0 | AZ15: 0
B16: 7 | C16: =IFERROR(VLOOKUP(B16,A!A12:M79,2,FALSE),"") ->  | I16: 0 | P16: 0 | W16: 0 | Y16: 0 | AA16: 0 | AH16: 0 | AO16: 0 | AV16: 0 | AX16: 0 | AZ16: 0
B17: 8 | C17: =IFERROR(VLOOKUP(B17,A!A13:M80,2,FALSE),"") ->  | I17: 0 | P17: 0 | W17: 0 | Y17: 0 | AA17: 0 | AH17: 0 | AO17: 0 | AV17: 0 | AX17: 0 | AZ17: 0
B18: 9 | C18: =IFERROR(VLOOKUP(B18,A!A14:M81,2,FALSE),"") ->  | I18: 0 | P18: 0 | W18: 0 | Y18: 0 | AA18: 0 | AH18: 0 | AO18: 0 | AV18: 0 | AX18: 0 | AZ18: 0
B19: 10 | C19: =IFERROR(VLOOKUP(B19,A!A15:M82,2,FALSE),"") ->  | I19: 0 | P19: 0 | W19: 0 | Y19: 0 | AA19: 0 | AH19: 0 | AO19: 0 | AV19: 0 | AX19: 0 | AZ19: 0
B20: 11 | C20: =IFERROR(VLOOKUP(B20,A!A16:M83,2,FALSE),"") ->  | I20: 0 | P20: 0 | W20: 0 | Y20: 0 | AA20: 0 | AH20: 0 | AO20: 0 | AV20: 0 | AX20: 0 | AZ20: 0
B21: 12 | C21: =IFERROR(VLOOKUP(B21,A!A17:M84,2,FALSE),"") ->  | I21: 0 | P21: 0 | W21: 0 | Y21: 0 | AA21: 0 | AH21: 0 | AO21: 0 | AV21: 0 | AX21: 0 | AZ21: 0
B22: 13 | C22: =IFERROR(VLOOKUP(B22,A!A18:M85,2,FALSE),"") ->  | I22: 0 | P22: 0 | W22: 0 | Y22: 0 | AA22: 0 | AH22: 0 | AO22: 0 | AV22: 0 | AX22: 0 | AZ22: 0
B23: 14 | C23: =IFERROR(VLOOKUP(B23,A!A19:M86,2,FALSE),"") ->  | I23: 0 | P23: 0 | W23: 0 | Y23: 0 | AA23: 0 | AH23: 0 | AO23: 0 | AV23: 0 | AX23: 0 | AZ23: 0
B24: 15 | C24: =IFERROR(VLOOKUP(B24,A!A20:M87,2,FALSE),"") ->  | I24: 0 | P24: 0 | W24: 0 | Y24: 0 | AA24: 0 | AH24: 0 | AO24: 0 | AV24: 0 | AX24: 0 | AZ24: 0
B25: 16 | C25: =IFERROR(VLOOKUP(B25,A!A21:M88,2,FALSE),"") ->  | I25: 0 | P25: 0 | W25: 0 | Y25: 0 | AA25: 0 | AH25: 0 | AO25: 0 | AV25: 0 | AX25: 0 | AZ25: 0
B26: 17 | C26: =IFERROR(VLOOKUP(B26,A!A22:M89,2,FALSE),"") ->  | I26: 0 | P26: 0 | W26: 0 | Y26: 0 | AA26: 0 | AH26: 0 | AO26: 0 | AV26: 0 | AX26: 0 | AZ26: 0
B27: 18 | C27: =IFERROR(VLOOKUP(B27,A!A23:M90,2,FALSE),"") ->  | I27: 0 | P27: 0 | W27: 0 | Y27: 0 | AA27: 0 | AH27: 0 | AO27: 0 | AV27: 0 | AX27: 0 | AZ27: 0
B28: 19 | C28: =IFERROR(VLOOKUP(B28,A!A24:M91,2,FALSE),"") ->  | I28: 0 | P28: 0 | W28: 0 | Y28: 0 | AA28: 0 | AH28: 0 | AO28: 0 | AV28: 0 | AX28: 0 | AZ28: 0
B29: 20 | C29: =IFERROR(VLOOKUP(B29,A!A25:M92,2,FALSE),"") ->  | I29: 0 | P29: 0 | W29: 0 | Y29: 0 | AA29: 0 | AH29: 0 | AO29: 0 | AV29: 0 | AX29: 0 | AZ29: 0
B30: 21 | C30: =IFERROR(VLOOKUP(B30,A!A26:M93,2,FALSE),"") ->  | I30: 0 | P30: 0 | W30: 0 | Y30: 0 | AA30: 0 | AH30: 0 | AO30: 0 | AV30: 0 | AX30: 0 | AZ30: 0
B31: 22 | C31: =IFERROR(VLOOKUP(B31,A!A27:M94,2,FALSE),"") ->  | I31: 0 | P31: 0 | W31: 0 | Y31: 0 | AA31: 0 | AH31: 0 | AO31: 0 | AV31: 0 | AX31: 0 | AZ31: 0
B32: 23 | C32: =IFERROR(VLOOKUP(B32,A!A28:M95,2,FALSE),"") ->  | I32: 0 | P32: 0 | W32: 0 | Y32: 0 | AA32: 0 | AH32: 0 | AO32: 0 | AV32: 0 | AX32: 0 | AZ32: 0
B33: 24 | C33: =IFERROR(VLOOKUP(B33,A!A29:M96,2,FALSE),"") ->  | I33: 0 | P33: 0 | W33: 0 | Y33: 0 | AA33: 0 | AH33: 0 | AO33: 0 | AV33: 0 | AX33: 0 | AZ33: 0
B34: 25 | C34: =IFERROR(VLOOKUP(B34,A!A30:M97,2,FALSE),"") ->  | I34: 0 | P34: 0 | W34: 0 | Y34: 0 | AA34: 0 | AH34: 0 | AO34: 0 | AV34: 0 | AX34: 0 | AZ34: 0
B35: 26 | C35: =IFERROR(VLOOKUP(B35,A!A31:M98,2,FALSE),"") ->  | I35: 0 | P35: 0 | W35: 0 | Y35: 0 | AA35: 0 | AH35: 0 | AO35: 0 | AV35: 0 | AX35: 0 | AZ35: 0
B36: 27 | C36: =IFERROR(VLOOKUP(B36,A!A32:M99,2,FALSE),"") ->  | I36: 0 | P36: 0 | W36: 0 | Y36: 0 | AA36: 0 | AH36: 0 | AO36: 0 | AV36: 0 | AX36: 0 | AZ36: 0
B37: 28 | C37: =IFERROR(VLOOKUP(B37,A!A33:M100,2,FALSE),"") ->  | I37: 0 | P37: 0 | W37: 0 | Y37: 0 | AA37: 0 | AH37: 0 | AO37: 0 | AV37: 0 | AX37: 0 | AZ37: 0
B38: 29 | C38: =IFERROR(VLOOKUP(B38,A!A34:M101,2,FALSE),"") ->  | I38: 0 | P38: 0 | W38: 0 | Y38: 0 | AA38: 0 | AH38: 0 | AO38: 0 | AV38: 0 | AX38: 0 | AZ38: 0
B39: 30 | C39: =IFERROR(VLOOKUP(B39,A!A35:M102,2,FALSE),"") ->  | I39: 0 | P39: 0 | W39: 0 | Y39: 0 | AA39: 0 | AH39: 0 | AO39: 0 | AV39: 0 | AX39: 0 | AZ39: 0
B40: 31 | C40: =IFERROR(VLOOKUP(B40,A!A36:M103,2,FALSE),"") ->  | I40: 0 | P40: 0 | W40: 0 | Y40: 0 | AA40: 0 | AH40: 0 | AO40: 0 | AV40: 0 | AX40: 0 | AZ40: 0
B41: 32 | C41: =IFERROR(VLOOKUP(B41,A!A37:M104,2,FALSE),"") ->  | I41: 0 | P41: 0 | W41: 0 | Y41: 0 | AA41: 0 | AH41: 0 | AO41: 0 | AV41: 0 | AX41: 0 | AZ41: 0
B42: 33 | C42: =IFERROR(VLOOKUP(B42,A!A38:M105,2,FALSE),"") ->  | I42: 0 | P42: 0 | W42: 0 | Y42: 0 | AA42: 0 | AH42: 0 | AO42: 0 | AV42: 0 | AX42: 0 | AZ42: 0
B43: 34 | C43: =IFERROR(VLOOKUP(B43,A!A39:M106,2,FALSE),"") ->  | I43: 0 | P43: 0 | W43: 0 | Y43: 0 | AA43: 0 | AH43: 0 | AO43: 0 | AV43: 0 | AX43: 0 | AZ43: 0
B44: 35 | C44: =IFERROR(VLOOKUP(B44,A!A40:M107,2,FALSE),"") ->  | I44: 0 | P44: 0 | W44: 0 | Y44: 0 | AA44: 0 | AH44: 0 | AO44: 0 | AV44: 0 | AX44: 0 | AZ44: 0
B45: 36 | C45: =IFERROR(VLOOKUP(B45,A!A41:M108,2,FALSE),"") ->  | I45: 0 | P45: 0 | W45: 0 | Y45: 0 | AA45: 0 | AH45: 0 | AO45: 0 | AV45: 0 | AX45: 0 | AZ45: 0
B46: 37 | C46: =IFERROR(VLOOKUP(B46,A!A42:M109,2,FALSE),"") ->  | I46: 0 | P46: 0 | W46: 0 | Y46: 0 | AA46: 0 | AH46: 0 | AO46: 0 | AV46: 0 | AX46: 0 | AZ46: 0
B47: 38 | C47: =IFERROR(VLOOKUP(B47,A!A43:M110,2,FALSE),"") ->  | I47: 0 | P47: 0 | W47: 0 | Y47: 0 | AA47: 0 | AH47: 0 | AO47: 0 | AV47: 0 | AX47: 0 | AZ47: 0
B48: 39 | C48: =IFERROR(VLOOKUP(B48,A!A44:M111,2,FALSE),"") ->  | I48: 0 | P48: 0 | W48: 0 | Y48: 0 | AA48: 0 | AH48: 0 | AO48: 0 | AV48: 0 | AX48: 0 | AZ48: 0
B49: 40 | C49: =IFERROR(VLOOKUP(B49,A!A45:M112,2,FALSE),"") ->  | I49: 0 | P49: 0 | W49: 0 | Y49: 0 | AA49: 0 | AH49: 0 | AO49: 0 | AV49: 0 | AX49: 0 | AZ49: 0
B50: 41 | C50: =IFERROR(VLOOKUP(B50,A!A46:M113,2,FALSE),"") ->  | I50: 0 | P50: 0 | W50: 0 | Y50: 0 | AA50: 0 | AH50: 0 | AO50: 0 | AV50: 0 | AX50: 0 | AZ50: 0
B51: 42 | C51: =IFERROR(VLOOKUP(B51,A!A47:M114,2,FALSE),"") ->  | I51: 0 | P51: 0 | W51: 0 | Y51: 0 | AA51: 0 | AH51: 0 | AO51: 0 | AV51: 0 | AX51: 0 | AZ51: 0
B52: 43 | C52: =IFERROR(VLOOKUP(B52,A!A48:M115,2,FALSE),"") ->  | I52: 0 | P52: 0 | W52: 0 | Y52: 0 | AA52: 0 | AH52: 0 | AO52: 0 | AV52: 0 | AX52: 0 | AZ52: 0
B53: 44 | C53: =IFERROR(VLOOKUP(B53,A!A49:M116,2,FALSE),"") ->  | I53: 0 | P53: 0 | W53: 0 | Y53: 0 | AA53: 0 | AH53: 0 | AO53: 0 | AV53: 0 | AX53: 0 | AZ53: 0
B54: 45 | C54: =IFERROR(VLOOKUP(B54,A!A50:M117,2,FALSE),"") ->  | I54: 0 | P54: 0 | W54: 0 | Y54: 0 | AA54: 0 | AH54: 0 | AO54: 0 | AV54: 0 | AX54: 0 | AZ54: 0
B55: 46 | C55: =IFERROR(VLOOKUP(B55,A!A51:M118,2,FALSE),"") ->  | I55: 0 | P55: 0 | W55: 0 | Y55: 0 | AA55: 0 | AH55: 0 | AO55: 0 | AV55: 0 | AX55: 0 | AZ55: 0
B56: 47 | C56: =IFERROR(VLOOKUP(B56,A!A52:M119,2,FALSE),"") ->  | I56: 0 | P56: 0 | W56: 0 | Y56: 0 | AA56: 0 | AH56: 0 | AO56: 0 | AV56: 0 | AX56: 0 | AZ56: 0
B57: 48 | C57: =IFERROR(VLOOKUP(B57,A!A53:M120,2,FALSE),"") ->  | I57: 0 | P57: 0 | W57: 0 | Y57: 0 | AA57: 0 | AH57: 0 | AO57: 0 | AV57: 0 | AX57: 0 | AZ57: 0
B58: 49 | C58: =IFERROR(VLOOKUP(B58,A!A54:M121,2,FALSE),"") ->  | I58: 0 | P58: 0 | W58: 0 | Y58: 0 | AA58: 0 | AH58: 0 | AO58: 0 | AV58: 0 | AX58: 0 | AZ58: 0
B59: 50 | C59: =IFERROR(VLOOKUP(B59,A!A55:M122,2,FALSE),"") ->  | I59: 0 | P59: 0 | W59: 0 | Y59: 0 | AA59: 0 | AH59: 0 | AO59: 0 | AV59: 0 | AX59: 0 | AZ59: 0
B60: 51 | C60: =IFERROR(VLOOKUP(B60,A!A56:M123,2,FALSE),"") ->  | I60: =H60+G60+F60+E60+D60 -> 0 | J60: =IFERROR(AVERAGE(D60:H60),"") ->  | P60: =O60+N60+M60+L60+K60 -> 0 | Q60: =IFERROR(AVERAGE(K60:O60),"") ->  | W60: =V60+U60+T60+S60+R60 -> 0 | X60: =IFERROR(AVERAGE(R60:V60),"") ->  | Y60: 0 | AA60: 0 | AH60: 0 | AO60: 0 | AV60: 0 | AX60: 0 | AZ60: 0
B61: 52 | C61: =IFERROR(VLOOKUP(B61,A!A57:M124,2,FALSE),"") ->  | I61: 0 | P61: 0 | W61: 0 | Y61: 0 | AA61: 0 | AH61: 0 | AO61: 0 | AV61: 0 | AX61: 0 | AZ61: 0

Sheet D2
B1: 1 | C1: 2 | D1: 3 | E1: 4 | F1: 5 | G1: 6 | H1: 7 | I1: 8 | J1: 9 | K1: 10 | L1: 11 | M1: 12 | N1: 13 | O1: 14 | P1: 15 | Q1: 16 | R1: 17 | S1: 18 | T1: 19 | U1: 20 | V1: 21 | W1: 22 | X1: 23 | Y1: 24 | Z1: 25 | AA1: 26 | AB1: 27 | AC1: 28 | AD1: 29 | AE1: 30 | AF1: 31 | AG1: 32 | AH1: 33 | AI1: 34 | AJ1: 35 | AK1: 36 | AL1: 37 | AM1: 38 | AN1: 39 | AO1: 40 | AP1: 41 | AQ1: 42 | AR1: 43 | AS1: 44 | AT1: 45 | AU1: 46 | AV1: 47 | AW1: 48 | AX1: 49 | AY1: 50 | AZ1: 51
C3: وزارة التربية والتعليم
C4: مكتب التربية والتعليم بمحافظة | D4: =الرئيسية!B14 -> الحديدة | V4: اسم المدرسة: | Y4: =الرئيسية!B12 -> 0 | AC4: =الرئيسية!AA14 -> 0 | AU4: اسم المدرسة: | AX4: =Y4 -> 0
C5: مكتب التربية بمديرية : | D5: =الرئيسية!B15 -> الحالي | V5: الصف: | Y5: =الرئيسية!B13 -> خامس | AC5: =الرئيسية!AA15 -> 0 | AU5: الصف: | AX5: =Y5 -> خامس
D6: كشـف بدرجات أعـمال السنة الفـصل الدراسي الأول للعام الدراسي | Q6: =الرئيسية!B16 -> 2026 / 2027 | V6: المــادة : | Y6: تربية إسلامية | AC6: كشـف بدرجات أعـمال السنة الفـصل الدراسي الثاني للعام الدراسي | AP6: =الرئيسية!AA16 -> 0 | AU6: المــادة : | AX6: =Y6 -> تربية إسلامية
B7: م | C7: اسم الـطــالـب | D7: شهر يوليو 2026م | K7: شهر اغسطس 2026م | R7: شهر سبتمبر 2026م | Y7: الفصل الدراسي الأول | AC7: شهر نوفمبر 2026م | AJ7: شهر ديسمبر 2026م | AQ7: شهر يناير 2027م | AX7: الفصل الدراسي الثاني
D8: الواجبات | E8: الشفوي | F8: المواظبة | G8: السلوك | H8: التحريري | I8: المجموع | J8: المحصلة | K8: الواجبات | L8: الشفوي | M8: المواظبة | N8: السلوك | O8: التحريري | P8: المجموع | Q8: المحصلة | R8: الواجبات | S8: الشفوي | T8: المواظبة | U8: السلوك | V8: التحريري | W8: المجموع | X8: المحصلة | Y8: محصلة ( 1 ) | Z8: الفصل الأول | AA8: المجموع | AC8: الواجبات | AD8: الشفوي | AE8: المواظبة | AF8: السلوك | AG8: التحريري | AH8: المجموع | AI8: المحصلة | AJ8: الواجبات | AK8: الشفوي | AL8: المواظبة | AM8: السلوك | AN8: التحريري | AO8: المجموع | AP8: المحصلة | AQ8: الواجبات | AR8: الشفوي | AS8: المواظبة | AT8: السلوك | AU8: التحريري | AV8: المجموع | AW8: المحصلة | AX8: محصلة ( 1 ) | AY8: الفصل الأول | AZ8: المجموع
D9: 20 | E9: 20 | F9: 10 | G9: 10 | H9: 40 | I9: 100 | J9: 20 | K9: 20 | L9: 20 | M9: 10 | N9: 10 | O9: 40 | P9: 100 | Q9: 20 | R9: 20 | S9: 20 | T9: 10 | U9: 10 | V9: 40 | W9: 100 | X9: 20 | Y9: 20 | Z9: 30 | AA9: 50 | AC9: 20 | AD9: 20 | AE9: 10 | AF9: 10 | AG9: 40 | AH9: 100 | AI9: 20 | AJ9: 20 | AK9: 20 | AL9: 10 | AM9: 10 | AN9: 40 | AO9: 100 | AP9: 20 | AQ9: 20 | AR9: 20 | AS9: 10 | AT9: 10 | AU9: 40 | AV9: 100 | AW9: 20 | AX9: 20 | AY9: 30 | AZ9: 50
B10: 1 | C10: =IFERROR(VLOOKUP(B10,A!A6:M73,2,FALSE),"") ->  | D10: 31 | E10: 32 | F10: 33 | G10: 34 | H10: 35 | I10: =H10+G10+F10+E10+D10 -> 165 | J10: =IFERROR(AVERAGE(D10:H10),"") -> 33 | K10: 36 | L10: 37 | M10: 38 | N10: 39 | O10: 40 | P10: =O10+N10+M10+L10+K10 -> 190 | Q10: =IFERROR(AVERAGE(K10:O10),"") -> 38 | R10: 41 | S10: 42 | T10: 43 | U10: 44 | V10: 45 | W10: =V10+U10+T10+S10+R10 -> 215 | X10: =IFERROR(AVERAGE(R10:V10),"") -> 43 | Y10: =IFERROR(AVERAGE(J10,Q10,X10),"") -> 38 | AA10: =_xlfn.AGGREGATE(9,6,Y10:Z10) -> 38 | AC10: 46 | AD10: 47 | AE10: 48 | AF10: 49 | AG10: 50 | AH10: =AG10+AF10+AE10+AD10+AC10 -> 240 | AI10: =IFERROR(AVERAGE(AC10:AG10),"") -> 48 | AJ10: 51 | AK10: 52 | AL10: 53 | AM10: 54 | AN10: 55 | AO10: =AN10+AM10+AL10+AK10+AJ10 -> 265 | AP10: =IFERROR(AVERAGE(AJ10:AN10),"") -> 53 | AQ10: 56 | AR10: 57 | AS10: 58 | AT10: 59 | AU10: 60 | AV10: =AU10+AT10+AS10+AR10+AQ10 -> 290 | AW10: =IFERROR(AVERAGE(AQ10:AU10),"") -> 58 | AX10: =IFERROR(AVERAGE(AI10,AP10,AW10),"") -> 53 | AZ10: =_xlfn.AGGREGATE(9,6,AX10:AY10) -> 53
B11: 2 | C11: =IFERROR(VLOOKUP(B11,A!A7:M74,2,FALSE),"") ->  | I11: =H11+G11+F11+E11+D11 -> 0 | J11: =IFERROR(AVERAGE(D11:H11),"") ->  | P11: =O11+N11+M11+L11+K11 -> 0 | Q11: =IFERROR(AVERAGE(K11:O11),"") ->  | W11: =V11+U11+T11+S11+R11 -> 0 | X11: =IFERROR(AVERAGE(R11:V11),"") ->  | Y11: =IFERROR(AVERAGE(J11,Q11,X11),"") ->  | AA11: =_xlfn.AGGREGATE(9,6,Y11:Z11) -> 0 | AH11: =AG11+AF11+AE11+AD11+AC11 -> 0 | AI11: =IFERROR(AVERAGE(AC11:AG11),"") ->  | AO11: =AN11+AM11+AL11+AK11+AJ11 -> 0 | AP11: =IFERROR(AVERAGE(AJ11:AN11),"") ->  | AV11: =AU11+AT11+AS11+AR11+AQ11 -> 0 | AW11: =IFERROR(AVERAGE(AQ11:AU11),"") ->  | AX11: =IFERROR(AVERAGE(AI11,AP11,AW11),"") ->  | AZ11: =_xlfn.AGGREGATE(9,6,AX11:AY11) -> 0
B12: 3 | C12: =IFERROR(VLOOKUP(B12,A!A8:M75,2,FALSE),"") ->  | I12: 0 | P12: 0 | W12: 0 | AA12: 0 | AH12: 0 | AO12: 0 | AV12: 0 | AZ12: 0
B13: 4 | C13: =IFERROR(VLOOKUP(B13,A!A9:M76,2,FALSE),"") ->  | I13: 0 | P13: 0 | W13: 0 | AA13: 0 | AH13: 0 | AO13: 0 | AV13: 0 | AZ13: 0
B14: 5 | C14: =IFERROR(VLOOKUP(B14,A!A10:M77,2,FALSE),"") ->  | I14: 0 | P14: 0 | W14: 0 | AA14: 0 | AH14: 0 | AO14: 0 | AV14: 0 | AZ14: 0
B15: 6 | C15: =IFERROR(VLOOKUP(B15,A!A11:M78,2,FALSE),"") ->  | I15: 0 | P15: 0 | W15: 0 | AA15: 0 | AH15: 0 | AO15: 0 | AV15: 0 | AZ15: 0
B16: 7 | C16: =IFERROR(VLOOKUP(B16,A!A12:M79,2,FALSE),"") ->  | I16: 0 | P16: 0 | W16: 0 | AA16: 0 | AH16: 0 | AO16: 0 | AV16: 0 | AZ16: 0
B17: 8 | C17: =IFERROR(VLOOKUP(B17,A!A13:M80,2,FALSE),"") ->  | I17: 0 | P17: 0 | W17: 0 | AA17: 0 | AH17: 0 | AO17: 0 | AV17: 0 | AZ17: 0
B18: 9 | C18: =IFERROR(VLOOKUP(B18,A!A14:M81,2,FALSE),"") ->  | I18: 0 | P18: 0 | W18: 0 | AA18: 0 | AH18: 0 | AO18: 0 | AV18: 0 | AZ18: 0
B19: 10 | C19: =IFERROR(VLOOKUP(B19,A!A15:M82,2,FALSE),"") ->  | I19: 0 | P19: 0 | W19: 0 | AA19: 0 | AH19: 0 | AO19: 0 | AV19: 0 | AZ19: 0
B20: 11 | C20: =IFERROR(VLOOKUP(B20,A!A16:M83,2,FALSE),"") ->  | I20: 0 | P20: 0 | W20: 0 | AA20: 0 | AH20: 0 | AO20: 0 | AV20: 0 | AZ20: 0
B21: 12 | C21: =IFERROR(VLOOKUP(B21,A!A17:M84,2,FALSE),"") ->  | I21: 0 | P21: 0 | W21: 0 | AA21: 0 | AH21: 0 | AO21: 0 | AV21: 0 | AZ21: 0
B22: 13 | C22: =IFERROR(VLOOKUP(B22,A!A18:M85,2,FALSE),"") ->  | I22: 0 | P22: 0 | W22: 0 | AA22: 0 | AH22: 0 | AO22: 0 | AV22: 0 | AZ22: 0
B23: 14 | C23: =IFERROR(VLOOKUP(B23,A!A19:M86,2,FALSE),"") ->  | I23: 0 | P23: 0 | W23: 0 | AA23: 0 | AH23: 0 | AO23: 0 | AV23: 0 | AZ23: 0
B24: 15 | C24: =IFERROR(VLOOKUP(B24,A!A20:M87,2,FALSE),"") ->  | I24: 0 | P24: 0 | W24: 0 | AA24: 0 | AH24: 0 | AO24: 0 | AV24: 0 | AZ24: 0
B25: 16 | C25: =IFERROR(VLOOKUP(B25,A!A21:M88,2,FALSE),"") ->  | I25: 0 | P25: 0 | W25: 0 | AA25: 0 | AH25: 0 | AO25: 0 | AV25: 0 | AZ25: 0
B26: 17 | C26: =IFERROR(VLOOKUP(B26,A!A22:M89,2,FALSE),"") ->  | I26: 0 | P26: 0 | W26: 0 | AA26: 0 | AH26: 0 | AO26: 0 | AV26: 0 | AZ26: 0
B27: 18 | C27: =IFERROR(VLOOKUP(B27,A!A23:M90,2,FALSE),"") ->  | I27: 0 | P27: 0 | W27: 0 | AA27: 0 | AH27: 0 | AO27: 0 | AV27: 0 | AZ27: 0
B28: 19 | C28: =IFERROR(VLOOKUP(B28,A!A24:M91,2,FALSE),"") ->  | I28: 0 | P28: 0 | W28: 0 | AA28: 0 | AH28: 0 | AO28: 0 | AV28: 0 | AZ28: 0
B29: 20 | C29: =IFERROR(VLOOKUP(B29,A!A25:M92,2,FALSE),"") ->  | I29: 0 | P29: 0 | W29: 0 | AA29: 0 | AH29: 0 | AO29: 0 | AV29: 0 | AZ29: 0
B30: 21 | C30: =IFERROR(VLOOKUP(B30,A!A26:M93,2,FALSE),"") ->  | I30: 0 | P30: 0 | W30: 0 | AA30: 0 | AH30: 0 | AO30: 0 | AV30: 0 | AZ30: 0
B31: 22 | C31: =IFERROR(VLOOKUP(B31,A!A27:M94,2,FALSE),"") ->  | I31: 0 | P31: 0 | W31: 0 | AA31: 0 | AH31: 0 | AO31: 0 | AV31: 0 | AZ31: 0
B32: 23 | C32: =IFERROR(VLOOKUP(B32,A!A28:M95,2,FALSE),"") ->  | I32: 0 | P32: 0 | W32: 0 | AA32: 0 | AH32: 0 | AO32: 0 | AV32: 0 | AZ32: 0
B33: 24 | C33: =IFERROR(VLOOKUP(B33,A!A29:M96,2,FALSE),"") ->  | I33: 0 | P33: 0 | W33: 0 | AA33: 0 | AH33: 0 | AO33: 0 | AV33: 0 | AZ33: 0
B34: 25 | C34: =IFERROR(VLOOKUP(B34,A!A30:M97,2,FALSE),"") ->  | I34: 0 | P34: 0 | W34: 0 | AA34: 0 | AH34: 0 | AO34: 0 | AV34: 0 | AZ34: 0
B35: 26 | C35: =IFERROR(VLOOKUP(B35,A!A31:M98,2,FALSE),"") ->  | I35: 0 | P35: 0 | W35: 0 | AA35: 0 | AH35: 0 | AO35: 0 | AV35: 0 | AZ35: 0
B36: 27 | C36: =IFERROR(VLOOKUP(B36,A!A32:M99,2,FALSE),"") ->  | I36: 0 | P36: 0 | W36: 0 | AA36: 0 | AH36: 0 | AO36: 0 | AV36: 0 | AZ36: 0
B37: 28 | C37: =IFERROR(VLOOKUP(B37,A!A33:M100,2,FALSE),"") ->  | I37: 0 | P37: 0 | W37: 0 | AA37: 0 | AH37: 0 | AO37: 0 | AV37: 0 | AZ37: 0
B38: 29 | C38: =IFERROR(VLOOKUP(B38,A!A34:M101,2,FALSE),"") ->  | I38: 0 | P38: 0 | W38: 0 | AA38: 0 | AH38: 0 | AO38: 0 | AV38: 0 | AZ38: 0
B39: 30 | C39: =IFERROR(VLOOKUP(B39,A!A35:M102,2,FALSE),"") ->  | I39: 0 | P39: 0 | W39: 0 | AA39: 0 | AH39: 0 | AO39: 0 | AV39: 0 | AZ39: 0
B40: 31 | C40: =IFERROR(VLOOKUP(B40,A!A36:M103,2,FALSE),"") ->  | I40: 0 | P40: 0 | W40: 0 | AA40: 0 | AH40: 0 | AO40: 0 | AV40: 0 | AZ40: 0
B41: 32 | C41: =IFERROR(VLOOKUP(B41,A!A37:M104,2,FALSE),"") ->  | I41: 0 | P41: 0 | W41: 0 | AA41: 0 | AH41: 0 | AO41: 0 | AV41: 0 | AZ41: 0
B42: 33 | C42: =IFERROR(VLOOKUP(B42,A!A38:M105,2,FALSE),"") ->  | I42: 0 | P42: 0 | W42: 0 | AA42: 0 | AH42: 0 | AO42: 0 | AV42: 0 | AZ42: 0
B43: 34 | C43: =IFERROR(VLOOKUP(B43,A!A39:M106,2,FALSE),"") ->  | I43: 0 | P43: 0 | W43: 0 | AA43: 0 | AH43: 0 | AO43: 0 | AV43: 0 | AZ43: 0
B44: 35 | C44: =IFERROR(VLOOKUP(B44,A!A40:M107,2,FALSE),"") ->  | I44: 0 | P44: 0 | W44: 0 | AA44: 0 | AH44: 0 | AO44: 0 | AV44: 0 | AZ44: 0
B45: 36 | C45: =IFERROR(VLOOKUP(B45,A!A41:M108,2,FALSE),"") ->  | I45: 0 | P45: 0 | W45: 0 | AA45: 0 | AH45: 0 | AO45: 0 | AV45: 0 | AZ45: 0
B46: 37 | C46: =IFERROR(VLOOKUP(B46,A!A42:M109,2,FALSE),"") ->  | I46: 0 | P46: 0 | W46: 0 | AA46: 0 | AH46: 0 | AO46: 0 | AV46: 0 | AZ46: 0
B47: 38 | C47: =IFERROR(VLOOKUP(B47,A!A43:M110,2,FALSE),"") ->  | I47: 0 | P47: 0 | W47: 0 | AA47: 0 | AH47: 0 | AO47: 0 | AV47: 0 | AZ47: 0
B48: 39 | C48: =IFERROR(VLOOKUP(B48,A!A44:M111,2,FALSE),"") ->  | I48: 0 | P48: 0 | W48: 0 | AA48: 0 | AH48: 0 | AO48: 0 | AV48: 0 | AZ48: 0
B49: 40 | C49: =IFERROR(VLOOKUP(B49,A!A45:M112,2,FALSE),"") ->  | I49: 0 | P49: 0 | W49: 0 | AA49: 0 | AH49: 0 | AO49: 0 | AV49: 0 | AZ49: 0
B50: 41 | C50: =IFERROR(VLOOKUP(B50,A!A46:M113,2,FALSE),"") ->  | I50: 0 | P50: 0 | W50: 0 | AA50: 0 | AH50: 0 | AO50: 0 | AV50: 0 | AZ50: 0
B51: 42 | C51: =IFERROR(VLOOKUP(B51,A!A47:M114,2,FALSE),"") ->  | I51: 0 | P51: 0 | W51: 0 | AA51: 0 | AH51: 0 | AO51: 0 | AV51: 0 | AZ51: 0
B52: 43 | C52: =IFERROR(VLOOKUP(B52,A!A48:M115,2,FALSE),"") ->  | I52: 0 | P52: 0 | W52: 0 | AA52: 0 | AH52: 0 | AO52: 0 | AV52: 0 | AZ52: 0
B53: 44 | C53: =IFERROR(VLOOKUP(B53,A!A49:M116,2,FALSE),"") ->  | I53: 0 | P53: 0 | W53: 0 | AA53: 0 | AH53: 0 | AO53: 0 | AV53: 0 | AZ53: 0
B54: 45 | C54: =IFERROR(VLOOKUP(B54,A!A50:M117,2,FALSE),"") ->  | I54: 0 | P54: 0 | W54: 0 | AA54: 0 | AH54: 0 | AO54: 0 | AV54: 0 | AZ54: 0
B55: 46 | C55: =IFERROR(VLOOKUP(B55,A!A51:M118,2,FALSE),"") ->  | I55: 0 | P55: 0 | W55: 0 | AA55: 0 | AH55: 0 | AO55: 0 | AV55: 0 | AZ55: 0
B56: 47 | C56: =IFERROR(VLOOKUP(B56,A!A52:M119,2,FALSE),"") ->  | I56: 0 | P56: 0 | W56: 0 | AA56: 0 | AH56: 0 | AO56: 0 | AV56: 0 | AZ56: 0
B57: 48 | C57: =IFERROR(VLOOKUP(B57,A!A53:M120,2,FALSE),"") ->  | I57: 0 | P57: 0 | W57: 0 | AA57: 0 | AH57: 0 | AO57: 0 | AV57: 0 | AZ57: 0
B58: 49 | C58: =IFERROR(VLOOKUP(B58,A!A54:M121,2,FALSE),"") ->  | I58: 0 | P58: 0 | W58: 0 | AA58: 0 | AH58: 0 | AO58: 0 | AV58: 0 | AZ58: 0
B59: 50 | C59: =IFERROR(VLOOKUP(B59,A!A55:M122,2,FALSE),"") ->  | I59: 0 | P59: 0 | W59: 0 | AA59: 0 | AH59: 0 | AO59: 0 | AV59: 0 | AZ59: 0
B60: 51 | C60: =IFERROR(VLOOKUP(B60,A!A56:M123,2,FALSE),"") ->  | I60: 0 | P60: 0 | W60: 0 | AA60: 0 | AH60: 0 | AO60: 0 | AV60: 0 | AZ60: 0
B61: 52 | C61: =IFERROR(VLOOKUP(B61,A!A57:M124,2,FALSE),"") ->  | I61: 0 | P61: 0 | W61: 0 | AA61: 0 | AH61: 0 | AO61: 0 | AV61: 0 | AZ61: 0

Sheet D3
B1: 1 | C1: 2 | D1: 3 | E1: 4 | F1: 5 | G1: 6 | H1: 7 | I1: 8 | J1: 9 | K1: 10 | L1: 11 | M1: 12 | N1: 13 | O1: 14 | P1: 15 | Q1: 16 | R1: 17 | S1: 18 | T1: 19 | U1: 20 | V1: 21 | W1: 22 | X1: 23 | Y1: 24 | Z1: 25 | AA1: 26 | AB1: 27 | AC1: 28 | AD1: 29 | AE1: 30 | AF1: 31 | AG1: 32 | AH1: 33 | AI1: 34 | AJ1: 35 | AK1: 36 | AL1: 37 | AM1: 38 | AN1: 39 | AO1: 40 | AP1: 41 | AQ1: 42 | AR1: 43 | AS1: 44 | AT1: 45 | AU1: 46 | AV1: 47 | AW1: 48 | AX1: 49 | AY1: 50 | AZ1: 51
C3: وزارة التربية والتعليم
C4: مكتب التربية والتعليم بمحافظة | D4: =الرئيسية!B14 -> الحديدة | V4: اسم المدرسة: | Y4: =الرئيسية!B12 -> 0 | AC4: =الرئيسية!AA14 -> 0 | AU4: اسم المدرسة: | AX4: =Y4 -> 0
C5: مكتب التربية بمديرية : | D5: =الرئيسية!B15 -> الحالي | V5: الصف: | Y5: =الرئيسية!B13 -> خامس | AC5: =الرئيسية!AA15 -> 0 | AU5: الصف: | AX5: =Y5 -> خامس
D6: كشـف بدرجات أعـمال السنة الفـصل الدراسي الأول للعام الدراسي | Q6: =الرئيسية!B16 -> 2026 / 2027 | V6: المــادة : | Y6: اللغة العربية | AC6: كشـف بدرجات أعـمال السنة الفـصل الدراسي الثاني للعام الدراسي | AP6: =الرئيسية!AA16 -> 0 | AU6: المــادة : | AX6: =Y6 -> اللغة العربية
B7: م | C7: اسم الـطــالـب | D7: شهر يوليو 2026م | K7: شهر اغسطس 2026م | R7: شهر سبتمبر 2026م | Y7: الفصل الدراسي الأول | AC7: شهر نوفمبر 2026م | AJ7: شهر ديسمبر 2026م | AQ7: شهر يناير 2027م | AX7: الفصل الدراسي الثاني
D8: الواجبات | E8: الشفوي | F8: المواظبة | G8: السلوك | H8: التحريري | I8: المجموع | J8: المحصلة | K8: الواجبات | L8: الشفوي | M8: المواظبة | N8: السلوك | O8: التحريري | P8: المجموع | Q8: المحصلة | R8: الواجبات | S8: الشفوي | T8: المواظبة | U8: السلوك | V8: التحريري | W8: المجموع | X8: المحصلة | Y8: محصلة ( 1 ) | Z8: الفصل الأول | AA8: المجموع | AC8: الواجبات | AD8: الشفوي | AE8: المواظبة | AF8: السلوك | AG8: التحريري | AH8: المجموع | AI8: المحصلة | AJ8: الواجبات | AK8: الشفوي | AL8: المواظبة | AM8: السلوك | AN8: التحريري | AO8: المجموع | AP8: المحصلة | AQ8: الواجبات | AR8: الشفوي | AS8: المواظبة | AT8: السلوك | AU8: التحريري | AV8: المجموع | AW8: المحصلة | AX8: محصلة ( 1 ) | AY8: الفصل الأول | AZ8: المجموع
D9: 20 | E9: 20 | F9: 10 | G9: 10 | H9: 40 | I9: 100 | J9: 20 | K9: 20 | L9: 20 | M9: 10 | N9: 10 | O9: 40 | P9: 100 | Q9: 20 | R9: 20 | S9: 20 | T9: 10 | U9: 10 | V9: 40 | W9: 100 | X9: 20 | Y9: 20 | Z9: 30 | AA9: 50 | AC9: 20 | AD9: 20 | AE9: 10 | AF9: 10 | AG9: 40 | AH9: 100 | AI9: 20 | AJ9: 20 | AK9: 20 | AL9: 10 | AM9: 10 | AN9: 40 | AO9: 100 | AP9: 20 | AQ9: 20 | AR9: 20 | AS9: 10 | AT9: 10 | AU9: 40 | AV9: 100 | AW9: 20 | AX9: 20 | AY9: 30 | AZ9: 50
B10: 1 | C10: =IFERROR(VLOOKUP(B10,A!A6:M73,2,FALSE),"") ->  | D10: 91 | E10: 92 | F10: 93 | G10: 94 | H10: 95 | I10: =H10+G10+F10+E10+D10 -> 465 | J10: =IFERROR(AVERAGE(D10:H10),"") -> 93 | K10: 96 | L10: 97 | M10: 98 | N10: 99 | O10: 100 | P10: =O10+N10+M10+L10+K10 -> 490 | Q10: =IFERROR(AVERAGE(K10:O10),"") -> 98 | R10: 100 | S10: 102 | T10: 103 | U10: 104 | V10: 105 | W10: =V10+U10+T10+S10+R10 -> 514 | X10: =IFERROR(AVERAGE(R10:V10),"") -> 102.8 | Y10: =IFERROR(AVERAGE(J10,Q10,X10),"") -> 97.93333333 | AA10: =_xlfn.AGGREGATE(9,6,Y10:Z10) -> 97.93333333 | AC10: 106 | AD10: 107 | AE10: 108 | AF10: 109 | AG10: 110 | AH10: =AG10+AF10+AE10+AD10+AC10 -> 540 | AI10: =IFERROR(AVERAGE(AC10:AG10),"") -> 108 | AJ10: 111 | AK10: 112 | AL10: 113 | AM10: 114 | AN10: 115 | AO10: =AN10+AM10+AL10+AK10+AJ10 -> 565 | AP10: =IFERROR(AVERAGE(AJ10:AN10),"") -> 113 | AQ10: 116 | AR10: 117 | AS10: 118 | AT10: 119 | AU10: 120 | AV10: =AU10+AT10+AS10+AR10+AQ10 -> 590 | AW10: =IFERROR(AVERAGE(AQ10:AU10),"") -> 118 | AX10: =IFERROR(AVERAGE(AI10,AP10,AW10),"") -> 113 | AZ10: =_xlfn.AGGREGATE(9,6,AX10:AY10) -> 113
B11: 2 | C11: =IFERROR(VLOOKUP(B11,A!A7:M74,2,FALSE),"") ->  | I11: =H11+G11+F11+E11+D11 -> 0 | J11: =IFERROR(AVERAGE(D11:H11),"") ->  | P11: =O11+N11+M11+L11+K11 -> 0 | Q11: =IFERROR(AVERAGE(K11:O11),"") ->  | W11: =V11+U11+T11+S11+R11 -> 0 | X11: =IFERROR(AVERAGE(R11:V11),"") ->  | Y11: =IFERROR(AVERAGE(J11,Q11,X11),"") ->  | AA11: =_xlfn.AGGREGATE(9,6,Y11:Z11) -> 0 | AH11: =AG11+AF11+AE11+AD11+AC11 -> 0 | AI11: =IFERROR(AVERAGE(AC11:AG11),"") ->  | AO11: =AN11+AM11+AL11+AK11+AJ11 -> 0 | AP11: =IFERROR(AVERAGE(AJ11:AN11),"") ->  | AV11: =AU11+AT11+AS11+AR11+AQ11 -> 0 | AW11: =IFERROR(AVERAGE(AQ11:AU11),"") ->  | AX11: =IFERROR(AVERAGE(AI11,AP11,AW11),"") ->  | AZ11: =_xlfn.AGGREGATE(9,6,AX11:AY11) -> 0
B12: 3 | C12: =IFERROR(VLOOKUP(B12,A!A8:M75,2,FALSE),"") ->  | I12: 0 | P12: 0 | W12: 0 | AA12: 0 | AH12: 0 | AO12: 0 | AV12: 0 | AZ12: 0
B13: 4 | C13: =IFERROR(VLOOKUP(B13,A!A9:M76,2,FALSE),"") ->  | I13: 0 | P13: 0 | W13: 0 | AA13: 0 | AH13: 0 | AO13: 0 | AV13: 0 | AZ13: 0
B14: 5 | C14: =IFERROR(VLOOKUP(B14,A!A10:M77,2,FALSE),"") ->  | I14: 0 | P14: 0 | W14: 0 | AA14: 0 | AH14: 0 | AO14: 0 | AV14: 0 | AZ14: 0
B15: 6 | C15: =IFERROR(VLOOKUP(B15,A!A11:M78,2,FALSE),"") ->  | I15: 0 | P15: 0 | W15: 0 | AA15: 0 | AH15: 0 | AO15: 0 | AV15: 0 | AZ15: 0
B16: 7 | C16: =IFERROR(VLOOKUP(B16,A!A12:M79,2,FALSE),"") ->  | I16: 0 | P16: 0 | W16: 0 | AA16: 0 | AH16: 0 | AO16: 0 | AV16: 0 | AZ16: 0
B17: 8 | C17: =IFERROR(VLOOKUP(B17,A!A13:M80,2,FALSE),"") ->  | I17: 0 | P17: 0 | W17: 0 | AA17: 0 | AH17: 0 | AO17: 0 | AV17: 0 | AZ17: 0
B18: 9 | C18: =IFERROR(VLOOKUP(B18,A!A14:M81,2,FALSE),"") ->  | I18: 0 | P18: 0 | W18: 0 | AA18: 0 | AH18: 0 | AO18: 0 | AV18: 0 | AZ18: 0
B19: 10 | C19: =IFERROR(VLOOKUP(B19,A!A15:M82,2,FALSE),"") ->  | I19: 0 | P19: 0 | W19: 0 | AA19: 0 | AH19: 0 | AO19: 0 | AV19: 0 | AZ19: 0
B20: 11 | C20: =IFERROR(VLOOKUP(B20,A!A16:M83,2,FALSE),"") ->  | I20: 0 | P20: 0 | W20: 0 | AA20: 0 | AH20: 0 | AO20: 0 | AV20: 0 | AZ20: 0
B21: 12 | C21: =IFERROR(VLOOKUP(B21,A!A17:M84,2,FALSE),"") ->  | I21: 0 | P21: 0 | W21: 0 | AA21: 0 | AH21: 0 | AO21: 0 | AV21: 0 | AZ21: 0
B22: 13 | C22: =IFERROR(VLOOKUP(B22,A!A18:M85,2,FALSE),"") ->  | I22: 0 | P22: 0 | W22: 0 | AA22: 0 | AH22: 0 | AO22: 0 | AV22: 0 | AZ22: 0
B23: 14 | C23: =IFERROR(VLOOKUP(B23,A!A19:M86,2,FALSE),"") ->  | I23: 0 | P23: 0 | W23: 0 | AA23: 0 | AH23: 0 | AO23: 0 | AV23: 0 | AZ23: 0
B24: 15 | C24: =IFERROR(VLOOKUP(B24,A!A20:M87,2,FALSE),"") ->  | I24: 0 | P24: 0 | W24: 0 | AA24: 0 | AH24: 0 | AO24: 0 | AV24: 0 | AZ24: 0
B25: 16 | C25: =IFERROR(VLOOKUP(B25,A!A21:M88,2,FALSE),"") ->  | I25: 0 | P25: 0 | W25: 0 | AA25: 0 | AH25: 0 | AO25: 0 | AV25: 0 | AZ25: 0
B26: 17 | C26: =IFERROR(VLOOKUP(B26,A!A22:M89,2,FALSE),"") ->  | I26: 0 | P26: 0 | W26: 0 | AA26: 0 | AH26: 0 | AO26: 0 | AV26: 0 | AZ26: 0
B27: 18 | C27: =IFERROR(VLOOKUP(B27,A!A23:M90,2,FALSE),"") ->  | I27: 0 | P27: 0 | W27: 0 | AA27: 0 | AH27: 0 | AO27: 0 | AV27: 0 | AZ27: 0
B28: 19 | C28: =IFERROR(VLOOKUP(B28,A!A24:M91,2,FALSE),"") ->  | I28: 0 | P28: 0 | W28: 0 | AA28: 0 | AH28: 0 | AO28: 0 | AV28: 0 | AZ28: 0
B29: 20 | C29: =IFERROR(VLOOKUP(B29,A!A25:M92,2,FALSE),"") ->  | I29: 0 | P29: 0 | W29: 0 | AA29: 0 | AH29: 0 | AO29: 0 | AV29: 0 | AZ29: 0
B30: 21 | C30: =IFERROR(VLOOKUP(B30,A!A26:M93,2,FALSE),"") ->  | I30: 0 | P30: 0 | W30: 0 | AA30: 0 | AH30: 0 | AO30: 0 | AV30: 0 | AZ30: 0
B31: 22 | C31: =IFERROR(VLOOKUP(B31,A!A27:M94,2,FALSE),"") ->  | I31: 0 | P31: 0 | W31: 0 | AA31: 0 | AH31: 0 | AO31: 0 | AV31: 0 | AZ31: 0
B32: 23 | C32: =IFERROR(VLOOKUP(B32,A!A28:M95,2,FALSE),"") ->  | I32: 0 | P32: 0 | W32: 0 | AA32: 0 | AH32: 0 | AO32: 0 | AV32: 0 | AZ32: 0
B33: 24 | C33: =IFERROR(VLOOKUP(B33,A!A29:M96,2,FALSE),"") ->  | I33: 0 | P33: 0 | W33: 0 | AA33: 0 | AH33: 0 | AO33: 0 | AV33: 0 | AZ33: 0
B34: 25 | C34: =IFERROR(VLOOKUP(B34,A!A30:M97,2,FALSE),"") ->  | I34: 0 | P34: 0 | W34: 0 | AA34: 0 | AH34: 0 | AO34: 0 | AV34: 0 | AZ34: 0
B35: 26 | C35: =IFERROR(VLOOKUP(B35,A!A31:M98,2,FALSE),"") ->  | I35: 0 | P35: 0 | W35: 0 | AA35: 0 | AH35: 0 | AO35: 0 | AV35: 0 | AZ35: 0
B36: 27 | C36: =IFERROR(VLOOKUP(B36,A!A32:M99,2,FALSE),"") ->  | I36: 0 | P36: 0 | W36: 0 | AA36: 0 | AH36: 0 | AO36: 0 | AV36: 0 | AZ36: 0
B37: 28 | C37: =IFERROR(VLOOKUP(B37,A!A33:M100,2,FALSE),"") ->  | I37: 0 | P37: 0 | W37: 0 | AA37: 0 | AH37: 0 | AO37: 0 | AV37: 0 | AZ37: 0
B38: 29 | C38: =IFERROR(VLOOKUP(B38,A!A34:M101,2,FALSE),"") ->  | I38: 0 | P38: 0 | W38: 0 | AA38: 0 | AH38: 0 | AO38: 0 | AV38: 0 | AZ38: 0
B39: 30 | C39: =IFERROR(VLOOKUP(B39,A!A35:M102,2,FALSE),"") ->  | I39: 0 | P39: 0 | W39: 0 | AA39: 0 | AH39: 0 | AO39: 0 | AV39: 0 | AZ39: 0
B40: 31 | C40: =IFERROR(VLOOKUP(B40,A!A36:M103,2,FALSE),"") ->  | I40: 0 | P40: 0 | W40: 0 | AA40: 0 | AH40: 0 | AO40: 0 | AV40: 0 | AZ40: 0
B41: 32 | C41: =IFERROR(VLOOKUP(B41,A!A37:M104,2,FALSE),"") ->  | I41: 0 | P41: 0 | W41: 0 | AA41: 0 | AH41: 0 | AO41: 0 | AV41: 0 | AZ41: 0
B42: 33 | C42: =IFERROR(VLOOKUP(B42,A!A38:M105,2,FALSE),"") ->  | I42: 0 | P42: 0 | W42: 0 | AA42: 0 | AH42: 0 | AO42: 0 | AV42: 0 | AZ42: 0
B43: 34 | C43: =IFERROR(VLOOKUP(B43,A!A39:M106,2,FALSE),"") ->  | I43: 0 | P43: 0 | W43: 0 | AA43: 0 | AH43: 0 | AO43: 0 | AV43: 0 | AZ43: 0
B44: 35 | C44: =IFERROR(VLOOKUP(B44,A!A40:M107,2,FALSE),"") ->  | I44: 0 | P44: 0 | W44: 0 | AA44: 0 | AH44: 0 | AO44: 0 | AV44: 0 | AZ44: 0
B45: 36 | C45: =IFERROR(VLOOKUP(B45,A!A41:M108,2,FALSE),"") ->  | I45: 0 | P45: 0 | W45: 0 | AA45: 0 | AH45: 0 | AO45: 0 | AV45: 0 | AZ45: 0
B46: 37 | C46: =IFERROR(VLOOKUP(B46,A!A42:M109,2,FALSE),"") ->  | I46: 0 | P46: 0 | W46: 0 | AA46: 0 | AH46: 0 | AO46: 0 | AV46: 0 | AZ46: 0
B47: 38 | C47: =IFERROR(VLOOKUP(B47,A!A43:M110,2,FALSE),"") ->  | I47: 0 | P47: 0 | W47: 0 | AA47: 0 | AH47: 0 | AO47: 0 | AV47: 0 | AZ47: 0
B48: 39 | C48: =IFERROR(VLOOKUP(B48,A!A44:M111,2,FALSE),"") ->  | I48: 0 | P48: 0 | W48: 0 | AA48: 0 | AH48: 0 | AO48: 0 | AV48: 0 | AZ48: 0
B49: 40 | C49: =IFERROR(VLOOKUP(B49,A!A45:M112,2,FALSE),"") ->  | I49: 0 | P49: 0 | W49: 0 | AA49: 0 | AH49: 0 | AO49: 0 | AV49: 0 | AZ49: 0
B50: 41 | C50: =IFERROR(VLOOKUP(B50,A!A46:M113,2,FALSE),"") ->  | I50: 0 | P50: 0 | W50: 0 | AA50: 0 | AH50: 0 | AO50: 0 | AV50: 0 | AZ50: 0
B51: 42 | C51: =IFERROR(VLOOKUP(B51,A!A47:M114,2,FALSE),"") ->  | I51: 0 | P51: 0 | W51: 0 | AA51: 0 | AH51: 0 | AO51: 0 | AV51: 0 | AZ51: 0
B52: 43 | C52: =IFERROR(VLOOKUP(B52,A!A48:M115,2,FALSE),"") ->  | I52: 0 | P52: 0 | W52: 0 | AA52: 0 | AH52: 0 | AO52: 0 | AV52: 0 | AZ52: 0
B53: 44 | C53: =IFERROR(VLOOKUP(B53,A!A49:M116,2,FALSE),"") ->  | I53: 0 | P53: 0 | W53: 0 | AA53: 0 | AH53: 0 | AO53: 0 | AV53: 0 | AZ53: 0
B54: 45 | C54: =IFERROR(VLOOKUP(B54,A!A50:M117,2,FALSE),"") ->  | I54: 0 | P54: 0 | W54: 0 | AA54: 0 | AH54: 0 | AO54: 0 | AV54: 0 | AZ54: 0
B55: 46 | C55: =IFERROR(VLOOKUP(B55,A!A51:M118,2,FALSE),"") ->  | I55: 0 | P55: 0 | W55: 0 | AA55: 0 | AH55: 0 | AO55: 0 | AV55: 0 | AZ55: 0
B56: 47 | C56: =IFERROR(VLOOKUP(B56,A!A52:M119,2,FALSE),"") ->  | I56: 0 | P56: 0 | W56: 0 | AA56: 0 | AH56: 0 | AO56: 0 | AV56: 0 | AZ56: 0
B57: 48 | C57: =IFERROR(VLOOKUP(B57,A!A53:M120,2,FALSE),"") ->  | I57: 0 | P57: 0 | W57: 0 | AA57: 0 | AH57: 0 | AO57: 0 | AV57: 0 | AZ57: 0
B58: 49 | C58: =IFERROR(VLOOKUP(B58,A!A54:M121,2,FALSE),"") ->  | I58: 0 | P58: 0 | W58: 0 | AA58: 0 | AH58: 0 | AO58: 0 | AV58: 0 | AZ58: 0
B59: 50 | C59: =IFERROR(VLOOKUP(B59,A!A55:M122,2,FALSE),"") ->  | I59: 0 | P59: 0 | W59: 0 | AA59: 0 | AH59: 0 | AO59: 0 | AV59: 0 | AZ59: 0
B60: 51 | C60: =IFERROR(VLOOKUP(B60,A!A56:M123,2,FALSE),"") ->  | I60: 0 | P60: 0 | W60: 0 | AA60: 0 | AH60: 0 | AO60: 0 | AV60: 0 | AZ60: 0
B61: 52 | C61: =IFERROR(VLOOKUP(B61,A!A57:M124,2,FALSE),"") ->  | I61: 0 | P61: 0 | W61: 0 | AA61: 0 | AH61: 0 | AO61: 0 | AV61: 0 | AZ61: 0

Sheet D4
B1: 1 | C1: 2 | D1: 3 | E1: 4 | F1: 5 | G1: 6 | H1: 7 | I1: 8 | J1: 9 | K1: 10 | L1: 11 | M1: 12 | N1: 13 | O1: 14 | P1: 15 | Q1: 16 | R1: 17 | S1: 18 | T1: 19 | U1: 20 | V1: 21 | W1: 22 | X1: 23 | Y1: 24 | Z1: 25 | AA1: 26 | AB1: 27 | AC1: 28 | AD1: 29 | AE1: 30 | AF1: 31 | AG1: 32 | AH1: 33 | AI1: 34 | AJ1: 35 | AK1: 36 | AL1: 37 | AM1: 38 | AN1: 39 | AO1: 40 | AP1: 41 | AQ1: 42 | AR1: 43 | AS1: 44 | AT1: 45 | AU1: 46 | AV1: 47 | AW1: 48 | AX1: 49 | AY1: 50 | AZ1: 51
C3: وزارة التربية والتعليم
C4: مكتب التربية والتعليم بمحافظة | D4: =الرئيسية!B14 -> الحديدة | V4: اسم المدرسة: | Y4: =الرئيسية!B12 -> 0 | AC4: =الرئيسية!AA14 -> 0 | AU4: اسم المدرسة: | AX4: =Y4 -> 0
C5: مكتب التربية بمديرية : | D5: =الرئيسية!B15 -> الحالي | V5: الصف: | Y5: =الرئيسية!B13 -> خامس | AC5: =الرئيسية!AA15 -> 0 | AU5: الصف: | AX5: =Y5 -> خامس
D6: كشـف بدرجات أعـمال السنة الفـصل الدراسي الأول للعام الدراسي | Q6: =الرئيسية!B16 -> 2026 / 2027 | V6: المــادة : | Y6: اللغة الإنجليزية | AC6: كشـف بدرجات أعـمال السنة الفـصل الدراسي الثاني للعام الدراسي | AP6: =الرئيسية!AA16 -> 0 | AU6: المــادة : | AX6: =Y6 -> اللغة الإنجليزية
B7: م | C7: اسم الـطــالـب | D7: شهر يوليو 2026م | K7: شهر اغسطس 2026م | R7: شهر سبتمبر 2026م | Y7: الفصل الدراسي الأول | AC7: شهر نوفمبر 2026م | AJ7: شهر ديسمبر 2026م | AQ7: شهر يناير 2027م | AX7: الفصل الدراسي الثاني
D8: الواجبات | E8: الشفوي | F8: المواظبة | G8: السلوك | H8: التحريري | I8: المجموع | J8: المحصلة | K8: الواجبات | L8: الشفوي | M8: المواظبة | N8: السلوك | O8: التحريري | P8: المجموع | Q8: المحصلة | R8: الواجبات | S8: الشفوي | T8: المواظبة | U8: السلوك | V8: التحريري | W8: المجموع | X8: المحصلة | Y8: محصلة ( 1 ) | Z8: الفصل الأول | AA8: المجموع | AC8: الواجبات | AD8: الشفوي | AE8: المواظبة | AF8: السلوك | AG8: التحريري | AH8: المجموع | AI8: المحصلة | AJ8: الواجبات | AK8: الشفوي | AL8: المواظبة | AM8: السلوك | AN8: التحريري | AO8: المجموع | AP8: المحصلة | AQ8: الواجبات | AR8: الشفوي | AS8: المواظبة | AT8: السلوك | AU8: التحريري | AV8: المجموع | AW8: المحصلة | AX8: محصلة ( 1 ) | AY8: الفصل الأول | AZ8: المجموع
D9: 20 | E9: 20 | F9: 10 | G9: 10 | H9: 40 | I9: 100 | J9: 20 | K9: 20 | L9: 20 | M9: 10 | N9: 10 | O9: 40 | P9: 100 | Q9: 20 | R9: 20 | S9: 20 | T9: 10 | U9: 10 | V9: 40 | W9: 100 | X9: 20 | Y9: 20 | Z9: 30 | AA9: 50 | AC9: 20 | AD9: 20 | AE9: 10 | AF9: 10 | AG9: 40 | AH9: 100 | AI9: 20 | AJ9: 20 | AK9: 20 | AL9: 10 | AM9: 10 | AN9: 40 | AO9: 100 | AP9: 20 | AQ9: 20 | AR9: 20 | AS9: 10 | AT9: 10 | AU9: 40 | AV9: 100 | AW9: 20 | AX9: 20 | AY9: 30 | AZ9: 50
B10: 1 | C10: =IFERROR(VLOOKUP(B10,A!A6:M73,2,FALSE),"") ->  | D10: 91 | E10: 92 | F10: 93 | G10: 94 | H10: 95 | I10: =H10+G10+F10+E10+D10 -> 465 | J10: =IFERROR(AVERAGE(D10:H10),"") -> 93 | K10: 96 | L10: 97 | M10: 98 | N10: 99 | O10: 100 | P10: =O10+N10+M10+L10+K10 -> 490 | Q10: =IFERROR(AVERAGE(K10:O10),"") -> 98 | R10: 100 | S10: 102 | T10: 103 | U10: 104 | V10: 105 | W10: =V10+U10+T10+S10+R10 -> 514 | X10: =IFERROR(AVERAGE(R10:V10),"") -> 102.8 | Y10: =IFERROR(AVERAGE(J10,Q10,X10),"") -> 97.93333333 | AA10: =_xlfn.AGGREGATE(9,6,Y10:Z10) -> 97.93333333 | AC10: 106 | AD10: 107 | AE10: 108 | AF10: 109 | AG10: 110 | AH10: =AG10+AF10+AE10+AD10+AC10 -> 540 | AI10: =IFERROR(AVERAGE(AC10:AG10),"") -> 108 | AJ10: 111 | AK10: 112 | AL10: 113 | AM10: 114 | AN10: 115 | AO10: =AN10+AM10+AL10+AK10+AJ10 -> 565 | AP10: =IFERROR(AVERAGE(AJ10:AN10),"") -> 113 | AQ10: 116 | AR10: 117 | AS10: 118 | AT10: 119 | AU10: 120 | AV10: =AU10+AT10+AS10+AR10+AQ10 -> 590 | AW10: =IFERROR(AVERAGE(AQ10:AU10),"") -> 118 | AX10: =IFERROR(AVERAGE(AI10,AP10,AW10),"") -> 113 | AZ10: =_xlfn.AGGREGATE(9,6,AX10:AY10) -> 113
B11: 2 | C11: =IFERROR(VLOOKUP(B11,A!A7:M74,2,FALSE),"") ->  | I11: =H11+G11+F11+E11+D11 -> 0 | J11: =IFERROR(AVERAGE(D11:H11),"") ->  | P11: =O11+N11+M11+L11+K11 -> 0 | Q11: =IFERROR(AVERAGE(K11:O11),"") ->  | W11: =V11+U11+T11+S11+R11 -> 0 | X11: =IFERROR(AVERAGE(R11:V11),"") ->  | Y11: =IFERROR(AVERAGE(J11,Q11,X11),"") ->  | AA11: =_xlfn.AGGREGATE(9,6,Y11:Z11) -> 0 | AH11: =AG11+AF11+AE11+AD11+AC11 -> 0 | AI11: =IFERROR(AVERAGE(AC11:AG11),"") ->  | AO11: =AN11+AM11+AL11+AK11+AJ11 -> 0 | AP11: =IFERROR(AVERAGE(AJ11:AN11),"") ->  | AV11: =AU11+AT11+AS11+AR11+AQ11 -> 0 | AW11: =IFERROR(AVERAGE(AQ11:AU11),"") ->  | AX11: =IFERROR(AVERAGE(AI11,AP11,AW11),"") ->  | AZ11: =_xlfn.AGGREGATE(9,6,AX11:AY11) -> 0
B12: 3 | C12: =IFERROR(VLOOKUP(B12,A!A8:M75,2,FALSE),"") ->  | I12: 0 | P12: 0 | W12: 0 | AA12: 0 | AH12: 0 | AO12: 0 | AV12: 0 | AZ12: 0
B13: 4 | C13: =IFERROR(VLOOKUP(B13,A!A9:M76,2,FALSE),"") ->  | I13: 0 | P13: 0 | W13: 0 | AA13: 0 | AH13: 0 | AO13: 0 | AV13: 0 | AZ13: 0
B14: 5 | C14: =IFERROR(VLOOKUP(B14,A!A10:M77,2,FALSE),"") ->  | I14: 0 | P14: 0 | W14: 0 | AA14: 0 | AH14: 0 | AO14: 0 | AV14: 0 | AZ14: 0
B15: 6 | C15: =IFERROR(VLOOKUP(B15,A!A11:M78,2,FALSE),"") ->  | I15: 0 | P15: 0 | W15: 0 | AA15: 0 | AH15: 0 | AO15: 0 | AV15: 0 | AZ15: 0
B16: 7 | C16: =IFERROR(VLOOKUP(B16,A!A12:M79,2,FALSE),"") ->  | I16: 0 | P16: 0 | W16: 0 | AA16: 0 | AH16: 0 | AO16: 0 | AV16: 0 | AZ16: 0
B17: 8 | C17: =IFERROR(VLOOKUP(B17,A!A13:M80,2,FALSE),"") ->  | I17: 0 | P17: 0 | W17: 0 | AA17: 0 | AH17: 0 | AO17: 0 | AV17: 0 | AZ17: 0
B18: 9 | C18: =IFERROR(VLOOKUP(B18,A!A14:M81,2,FALSE),"") ->  | I18: 0 | P18: 0 | W18: 0 | AA18: 0 | AH18: 0 | AO18: 0 | AV18: 0 | AZ18: 0
B19: 10 | C19: =IFERROR(VLOOKUP(B19,A!A15:M82,2,FALSE),"") ->  | I19: 0 | P19: 0 | W19: 0 | AA19: 0 | AH19: 0 | AO19: 0 | AV19: 0 | AZ19: 0
B20: 11 | C20: =IFERROR(VLOOKUP(B20,A!A16:M83,2,FALSE),"") ->  | I20: 0 | P20: 0 | W20: 0 | AA20: 0 | AH20: 0 | AO20: 0 | AV20: 0 | AZ20: 0
B21: 12 | C21: =IFERROR(VLOOKUP(B21,A!A17:M84,2,FALSE),"") ->  | I21: 0 | P21: 0 | W21: 0 | AA21: 0 | AH21: 0 | AO21: 0 | AV21: 0 | AZ21: 0
B22: 13 | C22: =IFERROR(VLOOKUP(B22,A!A18:M85,2,FALSE),"") ->  | I22: 0 | P22: 0 | W22: 0 | AA22: 0 | AH22: 0 | AO22: 0 | AV22: 0 | AZ22: 0
B23: 14 | C23: =IFERROR(VLOOKUP(B23,A!A19:M86,2,FALSE),"") ->  | I23: 0 | P23: 0 | W23: 0 | AA23: 0 | AH23: 0 | AO23: 0 | AV23: 0 | AZ23: 0
B24: 15 | C24: =IFERROR(VLOOKUP(B24,A!A20:M87,2,FALSE),"") ->  | I24: 0 | P24: 0 | W24: 0 | AA24: 0 | AH24: 0 | AO24: 0 | AV24: 0 | AZ24: 0
B25: 16 | C25: =IFERROR(VLOOKUP(B25,A!A21:M88,2,FALSE),"") ->  | I25: 0 | P25: 0 | W25: 0 | AA25: 0 | AH25: 0 | AO25: 0 | AV25: 0 | AZ25: 0
B26: 17 | C26: =IFERROR(VLOOKUP(B26,A!A22:M89,2,FALSE),"") ->  | I26: 0 | P26: 0 | W26: 0 | AA26: 0 | AH26: 0 | AO26: 0 | AV26: 0 | AZ26: 0
B27: 18 | C27: =IFERROR(VLOOKUP(B27,A!A23:M90,2,FALSE),"") ->  | I27: 0 | P27: 0 | W27: 0 | AA27: 0 | AH27: 0 | AO27: 0 | AV27: 0 | AZ27: 0
B28: 19 | C28: =IFERROR(VLOOKUP(B28,A!A24:M91,2,FALSE),"") ->  | I28: 0 | P28: 0 | W28: 0 | AA28: 0 | AH28: 0 | AO28: 0 | AV28: 0 | AZ28: 0
B29: 20 | C29: =IFERROR(VLOOKUP(B29,A!A25:M92,2,FALSE),"") ->  | I29: 0 | P29: 0 | W29: 0 | AA29: 0 | AH29: 0 | AO29: 0 | AV29: 0 | AZ29: 0
B30: 21 | C30: =IFERROR(VLOOKUP(B30,A!A26:M93,2,FALSE),"") ->  | I30: 0 | P30: 0 | W30: 0 | AA30: 0 | AH30: 0 | AO30: 0 | AV30: 0 | AZ30: 0
B31: 22 | C31: =IFERROR(VLOOKUP(B31,A!A27:M94,2,FALSE),"") ->  | I31: 0 | P31: 0 | W31: 0 | AA31: 0 | AH31: 0 | AO31: 0 | AV31: 0 | AZ31: 0
B32: 23 | C32: =IFERROR(VLOOKUP(B32,A!A28:M95,2,FALSE),"") ->  | I32: 0 | P32: 0 | W32: 0 | AA32: 0 | AH32: 0 | AO32: 0 | AV32: 0 | AZ32: 0
B33: 24 | C33: =IFERROR(VLOOKUP(B33,A!A29:M96,2,FALSE),"") ->  | I33: 0 | P33: 0 | W33: 0 | AA33: 0 | AH33: 0 | AO33: 0 | AV33: 0 | AZ33: 0
B34: 25 | C34: =IFERROR(VLOOKUP(B34,A!A30:M97,2,FALSE),"") ->  | I34: 0 | P34: 0 | W34: 0 | AA34: 0 | AH34: 0 | AO34: 0 | AV34: 0 | AZ34: 0
B35: 26 | C35: =IFERROR(VLOOKUP(B35,A!A31:M98,2,FALSE),"") ->  | I35: 0 | P35: 0 | W35: 0 | AA35: 0 | AH35: 0 | AO35: 0 | AV35: 0 | AZ35: 0
B36: 27 | C36: =IFERROR(VLOOKUP(B36,A!A32:M99,2,FALSE),"") ->  | I36: 0 | P36: 0 | W36: 0 | AA36: 0 | AH36: 0 | AO36: 0 | AV36: 0 | AZ36: 0
B37: 28 | C37: =IFERROR(VLOOKUP(B37,A!A33:M100,2,FALSE),"") ->  | I37: 0 | P37: 0 | W37: 0 | AA37: 0 | AH37: 0 | AO37: 0 | AV37: 0 | AZ37: 0
B38: 29 | C38: =IFERROR(VLOOKUP(B38,A!A34:M101,2,FALSE),"") ->  | I38: 0 | P38: 0 | W38: 0 | AA38: 0 | AH38: 0 | AO38: 0 | AV38: 0 | AZ38: 0
B39: 30 | C39: =IFERROR(VLOOKUP(B39,A!A35:M102,2,FALSE),"") ->  | I39: 0 | P39: 0 | W39: 0 | AA39: 0 | AH39: 0 | AO39: 0 | AV39: 0 | AZ39: 0
B40: 31 | C40: =IFERROR(VLOOKUP(B40,A!A36:M103,2,FALSE),"") ->  | I40: 0 | P40: 0 | W40: 0 | AA40: 0 | AH40: 0 | AO40: 0 | AV40: 0 | AZ40: 0
B41: 32 | C41: =IFERROR(VLOOKUP(B41,A!A37:M104,2,FALSE),"") ->  | I41: 0 | P41: 0 | W41: 0 | AA41: 0 | AH41: 0 | AO41: 0 | AV41: 0 | AZ41: 0
B42: 33 | C42: =IFERROR(VLOOKUP(B42,A!A38:M105,2,FALSE),"") ->  | I42: 0 | P42: 0 | W42: 0 | AA42: 0 | AH42: 0 | AO42: 0 | AV42: 0 | AZ42: 0
B43: 34 | C43: =IFERROR(VLOOKUP(B43,A!A39:M106,2,FALSE),"") ->  | I43: 0 | P43: 0 | W43: 0 | AA43: 0 | AH43: 0 | AO43: 0 | AV43: 0 | AZ43: 0
B44: 35 | C44: =IFERROR(VLOOKUP(B44,A!A40:M107,2,FALSE),"") ->  | I44: 0 | P44: 0 | W44: 0 | AA44: 0 | AH44: 0 | AO44: 0 | AV44: 0 | AZ44: 0
B45: 36 | C45: =IFERROR(VLOOKUP(B45,A!A41:M108,2,FALSE),"") ->  | I45: 0 | P45: 0 | W45: 0 | AA45: 0 | AH45: 0 | AO45: 0 | AV45: 0 | AZ45: 0
B46: 37 | C46: =IFERROR(VLOOKUP(B46,A!A42:M109,2,FALSE),"") ->  | I46: 0 | P46: 0 | W46: 0 | AA46: 0 | AH46: 0 | AO46: 0 | AV46: 0 | AZ46: 0
B47: 38 | C47: =IFERROR(VLOOKUP(B47,A!A43:M110,2,FALSE),"") ->  | I47: 0 | P47: 0 | W47: 0 | AA47: 0 | AH47: 0 | AO47: 0 | AV47: 0 | AZ47: 0
B48: 39 | C48: =IFERROR(VLOOKUP(B48,A!A44:M111,2,FALSE),"") ->  | I48: 0 | P48: 0 | W48: 0 | AA48: 0 | AH48: 0 | AO48: 0 | AV48: 0 | AZ48: 0
B49: 40 | C49: =IFERROR(VLOOKUP(B49,A!A45:M112,2,FALSE),"") ->  | I49: 0 | P49: 0 | W49: 0 | AA49: 0 | AH49: 0 | AO49: 0 | AV49: 0 | AZ49: 0
B50: 41 | C50: =IFERROR(VLOOKUP(B50,A!A46:M113,2,FALSE),"") ->  | I50: 0 | P50: 0 | W50: 0 | AA50: 0 | AH50: 0 | AO50: 0 | AV50: 0 | AZ50: 0
B51: 42 | C51: =IFERROR(VLOOKUP(B51,A!A47:M114,2,FALSE),"") ->  | I51: 0 | P51: 0 | W51: 0 | AA51: 0 | AH51: 0 | AO51: 0 | AV51: 0 | AZ51: 0
B52: 43 | C52: =IFERROR(VLOOKUP(B52,A!A48:M115,2,FALSE),"") ->  | I52: 0 | P52: 0 | W52: 0 | AA52: 0 | AH52: 0 | AO52: 0 | AV52: 0 | AZ52: 0
B53: 44 | C53: =IFERROR(VLOOKUP(B53,A!A49:M116,2,FALSE),"") ->  | I53: 0 | P53: 0 | W53: 0 | AA53: 0 | AH53: 0 | AO53: 0 | AV53: 0 | AZ53: 0
B54: 45 | C54: =IFERROR(VLOOKUP(B54,A!A50:M117,2,FALSE),"") ->  | I54: 0 | P54: 0 | W54: 0 | AA54: 0 | AH54: 0 | AO54: 0 | AV54: 0 | AZ54: 0
B55: 46 | C55: =IFERROR(VLOOKUP(B55,A!A51:M118,2,FALSE),"") ->  | I55: 0 | P55: 0 | W55: 0 | AA55: 0 | AH55: 0 | AO55: 0 | AV55: 0 | AZ55: 0
B56: 47 | C56: =IFERROR(VLOOKUP(B56,A!A52:M119,2,FALSE),"") ->  | I56: 0 | P56: 0 | W56: 0 | AA56: 0 | AH56: 0 | AO56: 0 | AV56: 0 | AZ56: 0
B57: 48 | C57: =IFERROR(VLOOKUP(B57,A!A53:M120,2,FALSE),"") ->  | I57: 0 | P57: 0 | W57: 0 | AA57: 0 | AH57: 0 | AO57: 0 | AV57: 0 | AZ57: 0
B58: 49 | C58: =IFERROR(VLOOKUP(B58,A!A54:M121,2,FALSE),"") ->  | I58: 0 | P58: 0 | W58: 0 | AA58: 0 | AH58: 0 | AO58: 0 | AV58: 0 | AZ58: 0
B59: 50 | C59: =IFERROR(VLOOKUP(B59,A!A55:M122,2,FALSE),"") ->  | I59: 0 | P59: 0 | W59: 0 | AA59: 0 | AH59: 0 | AO59: 0 | AV59: 0 | AZ59: 0
B60: 51 | C60: =IFERROR(VLOOKUP(B60,A!A56:M123,2,FALSE),"") ->  | I60: 0 | P60: 0 | W60: 0 | AA60: 0 | AH60: 0 | AO60: 0 | AV60: 0 | AZ60: 0
B61: 52 | C61: =IFERROR(VLOOKUP(B61,A!A57:M124,2,FALSE),"") ->  | I61: 0 | P61: 0 | W61: 0 | AA61: 0 | AH61: 0 | AO61: 0 | AV61: 0 | AZ61: 0

Sheet D5
B1: 1 | C1: 2 | D1: 3 | E1: 4 | F1: 5 | G1: 6 | H1: 7 | I1: 8 | J1: 9 | K1: 10 | L1: 11 | M1: 12 | N1: 13 | O1: 14 | P1: 15 | Q1: 16 | R1: 17 | S1: 18 | T1: 19 | U1: 20 | V1: 21 | W1: 22 | X1: 23 | Y1: 24 | Z1: 25 | AA1: 26 | AB1: 27 | AC1: 28 | AD1: 29 | AE1: 30 | AF1: 31 | AG1: 32 | AH1: 33 | AI1: 34 | AJ1: 35 | AK1: 36 | AL1: 37 | AM1: 38 | AN1: 39 | AO1: 40 | AP1: 41 | AQ1: 42 | AR1: 43 | AS1: 44 | AT1: 45 | AU1: 46 | AV1: 47 | AW1: 48 | AX1: 49 | AY1: 50 | AZ1: 51
C3: وزارة التربية والتعليم
C4: مكتب التربية والتعليم بمحافظة | D4: =الرئيسية!B14 -> الحديدة | V4: اسم المدرسة: | Y4: =الرئيسية!B12 -> 0 | AC4: =الرئيسية!AA14 -> 0 | AU4: اسم المدرسة: | AX4: =Y4 -> 0
C5: مكتب التربية بمديرية : | D5: =الرئيسية!B15 -> الحالي | V5: الصف: | Y5: =الرئيسية!B13 -> خامس | AC5: =الرئيسية!AA15 -> 0 | AU5: الصف: | AX5: =Y5 -> خامس
D6: كشـف بدرجات أعـمال السنة الفـصل الدراسي الأول للعام الدراسي | Q6: =الرئيسية!B16 -> 2026 / 2027 | V6: المــادة : | Y6: الرياضيات | AC6: كشـف بدرجات أعـمال السنة الفـصل الدراسي الثاني للعام الدراسي | AP6: =الرئيسية!AA16 -> 0 | AU6: المــادة : | AX6: =Y6 -> الرياضيات
B7: م | C7: اسم الـطــالـب | D7: شهر يوليو 2026م | K7: شهر اغسطس 2026م | R7: شهر سبتمبر 2026م | Y7: الفصل الدراسي الأول | AC7: شهر نوفمبر 2026م | AJ7: شهر ديسمبر 2026م | AQ7: شهر يناير 2027م | AX7: الفصل الدراسي الثاني
D8: الواجبات | E8: الشفوي | F8: المواظبة | G8: السلوك | H8: التحريري | I8: المجموع | J8: المحصلة | K8: الواجبات | L8: الشفوي | M8: المواظبة | N8: السلوك | O8: التحريري | P8: المجموع | Q8: المحصلة | R8: الواجبات | S8: الشفوي | T8: المواظبة | U8: السلوك | V8: التحريري | W8: المجموع | X8: المحصلة | Y8: محصلة ( 1 ) | Z8: الفصل الأول | AA8: المجموع | AC8: الواجبات | AD8: الشفوي | AE8: المواظبة | AF8: السلوك | AG8: التحريري | AH8: المجموع | AI8: المحصلة | AJ8: الواجبات | AK8: الشفوي | AL8: المواظبة | AM8: السلوك | AN8: التحريري | AO8: المجموع | AP8: المحصلة | AQ8: الواجبات | AR8: الشفوي | AS8: المواظبة | AT8: السلوك | AU8: التحريري | AV8: المجموع | AW8: المحصلة | AX8: محصلة ( 1 ) | AY8: الفصل الأول | AZ8: المجموع
D9: 20 | E9: 20 | F9: 10 | G9: 10 | H9: 40 | I9: 100 | J9: 20 | K9: 20 | L9: 20 | M9: 10 | N9: 10 | O9: 40 | P9: 100 | Q9: 20 | R9: 20 | S9: 20 | T9: 10 | U9: 10 | V9: 40 | W9: 100 | X9: 20 | Y9: 20 | Z9: 30 | AA9: 50 | AC9: 20 | AD9: 20 | AE9: 10 | AF9: 10 | AG9: 40 | AH9: 100 | AI9: 20 | AJ9: 20 | AK9: 20 | AL9: 10 | AM9: 10 | AN9: 40 | AO9: 100 | AP9: 20 | AQ9: 20 | AR9: 20 | AS9: 10 | AT9: 10 | AU9: 40 | AV9: 100 | AW9: 20 | AX9: 20 | AY9: 30 | AZ9: 50
B10: 1 | C10: =IFERROR(VLOOKUP(B10,A!A6:M73,2,FALSE),"") ->  | D10: 91 | E10: 92 | F10: 93 | G10: 94 | H10: 95 | I10: =H10+G10+F10+E10+D10 -> 465 | J10: =IFERROR(AVERAGE(D10:H10),"") -> 93 | K10: 96 | L10: 97 | M10: 98 | N10: 99 | O10: 100 | P10: =O10+N10+M10+L10+K10 -> 490 | Q10: =IFERROR(AVERAGE(K10:O10),"") -> 98 | R10: 100 | S10: 102 | T10: 103 | U10: 104 | V10: 105 | W10: =V10+U10+T10+S10+R10 -> 514 | X10: =IFERROR(AVERAGE(R10:V10),"") -> 102.8 | Y10: =IFERROR(AVERAGE(J10,Q10,X10),"") -> 97.93333333 | AA10: =_xlfn.AGGREGATE(9,6,Y10:Z10) -> 97.93333333 | AC10: 106 | AD10: 107 | AE10: 108 | AF10: 109 | AG10: 110 | AH10: =AG10+AF10+AE10+AD10+AC10 -> 540 | AI10: =IFERROR(AVERAGE(AC10:AG10),"") -> 108 | AJ10: 111 | AK10: 112 | AL10: 113 | AM10: 114 | AN10: 115 | AO10: =AN10+AM10+AL10+AK10+AJ10 -> 565 | AP10: =IFERROR(AVERAGE(AJ10:AN10),"") -> 113 | AQ10: 116 | AR10: 117 | AS10: 118 | AT10: 119 | AU10: 120 | AV10: =AU10+AT10+AS10+AR10+AQ10 -> 590 | AW10: =IFERROR(AVERAGE(AQ10:AU10),"") -> 118 | AX10: =IFERROR(AVERAGE(AI10,AP10,AW10),"") -> 113 | AZ10: =_xlfn.AGGREGATE(9,6,AX10:AY10) -> 113
B11: 2 | C11: =IFERROR(VLOOKUP(B11,A!A7:M74,2,FALSE),"") ->  | I11: =H11+G11+F11+E11+D11 -> 0 | J11: =IFERROR(AVERAGE(D11:H11),"") ->  | P11: =O11+N11+M11+L11+K11 -> 0 | Q11: =IFERROR(AVERAGE(K11:O11),"") ->  | W11: =V11+U11+T11+S11+R11 -> 0 | X11: =IFERROR(AVERAGE(R11:V11),"") ->  | Y11: =IFERROR(AVERAGE(J11,Q11,X11),"") ->  | AA11: =_xlfn.AGGREGATE(9,6,Y11:Z11) -> 0 | AH11: =AG11+AF11+AE11+AD11+AC11 -> 0 | AI11: =IFERROR(AVERAGE(AC11:AG11),"") ->  | AO11: =AN11+AM11+AL11+AK11+AJ11 -> 0 | AP11: =IFERROR(AVERAGE(AJ11:AN11),"") ->  | AV11: =AU11+AT11+AS11+AR11+AQ11 -> 0 | AW11: =IFERROR(AVERAGE(AQ11:AU11),"") ->  | AX11: =IFERROR(AVERAGE(AI11,AP11,AW11),"") ->  | AZ11: =_xlfn.AGGREGATE(9,6,AX11:AY11) -> 0
B12: 3 | C12: =IFERROR(VLOOKUP(B12,A!A8:M75,2,FALSE),"") ->  | I12: 0 | P12: 0 | W12: 0 | AA12: 0 | AH12: 0 | AO12: 0 | AV12: 0 | AZ12: 0
B13: 4 | C13: =IFERROR(VLOOKUP(B13,A!A9:M76,2,FALSE),"") ->  | I13: 0 | P13: 0 | W13: 0 | AA13: 0 | AH13: 0 | AO13: 0 | AV13: 0 | AZ13: 0
B14: 5 | C14: =IFERROR(VLOOKUP(B14,A!A10:M77,2,FALSE),"") ->  | I14: 0 | P14: 0 | W14: 0 | AA14: 0 | AH14: 0 | AO14: 0 | AV14: 0 | AZ14: 0
B15: 6 | C15: =IFERROR(VLOOKUP(B15,A!A11:M78,2,FALSE),"") ->  | I15: 0 | P15: 0 | W15: 0 | AA15: 0 | AH15: 0 | AO15: 0 | AV15: 0 | AZ15: 0
B16: 7 | C16: =IFERROR(VLOOKUP(B16,A!A12:M79,2,FALSE),"") ->  | I16: 0 | P16: 0 | W16: 0 | AA16: 0 | AH16: 0 | AO16: 0 | AV16: 0 | AZ16: 0
B17: 8 | C17: =IFERROR(VLOOKUP(B17,A!A13:M80,2,FALSE),"") ->  | I17: 0 | P17: 0 | W17: 0 | AA17: 0 | AH17: 0 | AO17: 0 | AV17: 0 | AZ17: 0
B18: 9 | C18: =IFERROR(VLOOKUP(B18,A!A14:M81,2,FALSE),"") ->  | I18: 0 | P18: 0 | W18: 0 | AA18: 0 | AH18: 0 | AO18: 0 | AV18: 0 | AZ18: 0
B19: 10 | C19: =IFERROR(VLOOKUP(B19,A!A15:M82,2,FALSE),"") ->  | I19: 0 | P19: 0 | W19: 0 | AA19: 0 | AH19: 0 | AO19: 0 | AV19: 0 | AZ19: 0
B20: 11 | C20: =IFERROR(VLOOKUP(B20,A!A16:M83,2,FALSE),"") ->  | I20: 0 | P20: 0 | W20: 0 | AA20: 0 | AH20: 0 | AO20: 0 | AV20: 0 | AZ20: 0
B21: 12 | C21: =IFERROR(VLOOKUP(B21,A!A17:M84,2,FALSE),"") ->  | I21: 0 | P21: 0 | W21: 0 | AA21: 0 | AH21: 0 | AO21: 0 | AV21: 0 | AZ21: 0
B22: 13 | C22: =IFERROR(VLOOKUP(B22,A!A18:M85,2,FALSE),"") ->  | I22: 0 | P22: 0 | W22: 0 | AA22: 0 | AH22: 0 | AO22: 0 | AV22: 0 | AZ22: 0
B23: 14 | C23: =IFERROR(VLOOKUP(B23,A!A19:M86,2,FALSE),"") ->  | I23: 0 | P23: 0 | W23: 0 | AA23: 0 | AH23: 0 | AO23: 0 | AV23: 0 | AZ23: 0
B24: 15 | C24: =IFERROR(VLOOKUP(B24,A!A20:M87,2,FALSE),"") ->  | I24: 0 | P24: 0 | W24: 0 | AA24: 0 | AH24: 0 | AO24: 0 | AV24: 0 | AZ24: 0
B25: 16 | C25: =IFERROR(VLOOKUP(B25,A!A21:M88,2,FALSE),"") ->  | I25: 0 | P25: 0 | W25: 0 | AA25: 0 | AH25: 0 | AO25: 0 | AV25: 0 | AZ25: 0
B26: 17 | C26: =IFERROR(VLOOKUP(B26,A!A22:M89,2,FALSE),"") ->  | I26: 0 | P26: 0 | W26: 0 | AA26: 0 | AH26: 0 | AO26: 0 | AV26: 0 | AZ26: 0
B27: 18 | C27: =IFERROR(VLOOKUP(B27,A!A23:M90,2,FALSE),"") ->  | I27: 0 | P27: 0 | W27: 0 | AA27: 0 | AH27: 0 | AO27: 0 | AV27: 0 | AZ27: 0
B28: 19 | C28: =IFERROR(VLOOKUP(B28,A!A24:M91,2,FALSE),"") ->  | I28: 0 | P28: 0 | W28: 0 | AA28: 0 | AH28: 0 | AO28: 0 | AV28: 0 | AZ28: 0
B29: 20 | C29: =IFERROR(VLOOKUP(B29,A!A25:M92,2,FALSE),"") ->  | I29: 0 | P29: 0 | W29: 0 | AA29: 0 | AH29: 0 | AO29: 0 | AV29: 0 | AZ29: 0
B30: 21 | C30: =IFERROR(VLOOKUP(B30,A!A26:M93,2,FALSE),"") ->  | I30: 0 | P30: 0 | W30: 0 | AA30: 0 | AH30: 0 | AO30: 0 | AV30: 0 | AZ30: 0
B31: 22 | C31: =IFERROR(VLOOKUP(B31,A!A27:M94,2,FALSE),"") ->  | I31: 0 | P31: 0 | W31: 0 | AA31: 0 | AH31: 0 | AO31: 0 | AV31: 0 | AZ31: 0
B32: 23 | C32: =IFERROR(VLOOKUP(B32,A!A28:M95,2,FALSE),"") ->  | I32: 0 | P32: 0 | W32: 0 | AA32: 0 | AH32: 0 | AO32: 0 | AV32: 0 | AZ32: 0
B33: 24 | C33: =IFERROR(VLOOKUP(B33,A!A29:M96,2,FALSE),"") ->  | I33: 0 | P33: 0 | W33: 0 | AA33: 0 | AH33: 0 | AO33: 0 | AV33: 0 | AZ33: 0
B34: 25 | C34: =IFERROR(VLOOKUP(B34,A!A30:M97,2,FALSE),"") ->  | I34: 0 | P34: 0 | W34: 0 | AA34: 0 | AH34: 0 | AO34: 0 | AV34: 0 | AZ34: 0
B35: 26 | C35: =IFERROR(VLOOKUP(B35,A!A31:M98,2,FALSE),"") ->  | I35: 0 | P35: 0 | W35: 0 | AA35: 0 | AH35: 0 | AO35: 0 | AV35: 0 | AZ35: 0
B36: 27 | C36: =IFERROR(VLOOKUP(B36,A!A32:M99,2,FALSE),"") ->  | I36: 0 | P36: 0 | W36: 0 | AA36: 0 | AH36: 0 | AO36: 0 | AV36: 0 | AZ36: 0
B37: 28 | C37: =IFERROR(VLOOKUP(B37,A!A33:M100,2,FALSE),"") ->  | I37: 0 | P37: 0 | W37: 0 | AA37: 0 | AH37: 0 | AO37: 0 | AV37: 0 | AZ37: 0
B38: 29 | C38: =IFERROR(VLOOKUP(B38,A!A34:M101,2,FALSE),"") ->  | I38: 0 | P38: 0 | W38: 0 | AA38: 0 | AH38: 0 | AO38: 0 | AV38: 0 | AZ38: 0
B39: 30 | C39: =IFERROR(VLOOKUP(B39,A!A35:M102,2,FALSE),"") ->  | I39: 0 | P39: 0 | W39: 0 | AA39: 0 | AH39: 0 | AO39: 0 | AV39: 0 | AZ39: 0
B40: 31 | C40: =IFERROR(VLOOKUP(B40,A!A36:M103,2,FALSE),"") ->  | I40: 0 | P40: 0 | W40: 0 | AA40: 0 | AH40: 0 | AO40: 0 | AV40: 0 | AZ40: 0
B41: 32 | C41: =IFERROR(VLOOKUP(B41,A!A37:M104,2,FALSE),"") ->  | I41: 0 | P41: 0 | W41: 0 | AA41: 0 | AH41: 0 | AO41: 0 | AV41: 0 | AZ41: 0
B42: 33 | C42: =IFERROR(VLOOKUP(B42,A!A38:M105,2,FALSE),"") ->  | I42: 0 | P42: 0 | W42: 0 | AA42: 0 | AH42: 0 | AO42: 0 | AV42: 0 | AZ42: 0
B43: 34 | C43: =IFERROR(VLOOKUP(B43,A!A39:M106,2,FALSE),"") ->  | I43: 0 | P43: 0 | W43: 0 | AA43: 0 | AH43: 0 | AO43: 0 | AV43: 0 | AZ43: 0
B44: 35 | C44: =IFERROR(VLOOKUP(B44,A!A40:M107,2,FALSE),"") ->  | I44: 0 | P44: 0 | W44: 0 | AA44: 0 | AH44: 0 | AO44: 0 | AV44: 0 | AZ44: 0
B45: 36 | C45: =IFERROR(VLOOKUP(B45,A!A41:M108,2,FALSE),"") ->  | I45: 0 | P45: 0 | W45: 0 | AA45: 0 | AH45: 0 | AO45: 0 | AV45: 0 | AZ45: 0
B46: 37 | C46: =IFERROR(VLOOKUP(B46,A!A42:M109,2,FALSE),"") ->  | I46: 0 | P46: 0 | W46: 0 | AA46: 0 | AH46: 0 | AO46: 0 | AV46: 0 | AZ46: 0
B47: 38 | C47: =IFERROR(VLOOKUP(B47,A!A43:M110,2,FALSE),"") ->  | I47: 0 | P47: 0 | W47: 0 | AA47: 0 | AH47: 0 | AO47: 0 | AV47: 0 | AZ47: 0
B48: 39 | C48: =IFERROR(VLOOKUP(B48,A!A44:M111,2,FALSE),"") ->  | I48: 0 | P48: 0 | W48: 0 | AA48: 0 | AH48: 0 | AO48: 0 | AV48: 0 | AZ48: 0
B49: 40 | C49: =IFERROR(VLOOKUP(B49,A!A45:M112,2,FALSE),"") ->  | I49: 0 | P49: 0 | W49: 0 | AA49: 0 | AH49: 0 | AO49: 0 | AV49: 0 | AZ49: 0
B50: 41 | C50: =IFERROR(VLOOKUP(B50,A!A46:M113,2,FALSE),"") ->  | I50: 0 | P50: 0 | W50: 0 | AA50: 0 | AH50: 0 | AO50: 0 | AV50: 0 | AZ50: 0
B51: 42 | C51: =IFERROR(VLOOKUP(B51,A!A47:M114,2,FALSE),"") ->  | I51: 0 | P51: 0 | W51: 0 | AA51: 0 | AH51: 0 | AO51: 0 | AV51: 0 | AZ51: 0
B52: 43 | C52: =IFERROR(VLOOKUP(B52,A!A48:M115,2,FALSE),"") ->  | I52: 0 | P52: 0 | W52: 0 | AA52: 0 | AH52: 0 | AO52: 0 | AV52: 0 | AZ52: 0
B53: 44 | C53: =IFERROR(VLOOKUP(B53,A!A49:M116,2,FALSE),"") ->  | I53: 0 | P53: 0 | W53: 0 | AA53: 0 | AH53: 0 | AO53: 0 | AV53: 0 | AZ53: 0
B54: 45 | C54: =IFERROR(VLOOKUP(B54,A!A50:M117,2,FALSE),"") ->  | I54: 0 | P54: 0 | W54: 0 | AA54: 0 | AH54: 0 | AO54: 0 | AV54: 0 | AZ54: 0
B55: 46 | C55: =IFERROR(VLOOKUP(B55,A!A51:M118,2,FALSE),"") ->  | I55: 0 | P55: 0 | W55: 0 | AA55: 0 | AH55: 0 | AO55: 0 | AV55: 0 | AZ55: 0
B56: 47 | C56: =IFERROR(VLOOKUP(B56,A!A52:M119,2,FALSE),"") ->  | I56: 0 | P56: 0 | W56: 0 | AA56: 0 | AH56: 0 | AO56: 0 | AV56: 0 | AZ56: 0
B57: 48 | C57: =IFERROR(VLOOKUP(B57,A!A53:M120,2,FALSE),"") ->  | I57: 0 | P57: 0 | W57: 0 | AA57: 0 | AH57: 0 | AO57: 0 | AV57: 0 | AZ57: 0
B58: 49 | C58: =IFERROR(VLOOKUP(B58,A!A54:M121,2,FALSE),"") ->  | I58: 0 | P58: 0 | W58: 0 | AA58: 0 | AH58: 0 | AO58: 0 | AV58: 0 | AZ58: 0
B59: 50 | C59: =IFERROR(VLOOKUP(B59,A!A55:M122,2,FALSE),"") ->  | I59: 0 | P59: 0 | W59: 0 | AA59: 0 | AH59: 0 | AO59: 0 | AV59: 0 | AZ59: 0
B60: 51 | C60: =IFERROR(VLOOKUP(B60,A!A56:M123,2,FALSE),"") ->  | I60: 0 | P60: 0 | W60: 0 | AA60: 0 | AH60: 0 | AO60: 0 | AV60: 0 | AZ60: 0
B61: 52 | C61: =IFERROR(VLOOKUP(B61,A!A57:M124,2,FALSE),"") ->  | I61: 0 | P61: 0 | W61: 0 | AA61: 0 | AH61: 0 | AO61: 0 | AV61: 0 | AZ61: 0

Sheet D6
B1: 1 | C1: 2 | D1: 3 | E1: 4 | F1: 5 | G1: 6 | H1: 7 | I1: 8 | J1: 9 | K1: 10 | L1: 11 | M1: 12 | N1: 13 | O1: 14 | P1: 15 | Q1: 16 | R1: 17 | S1: 18 | T1: 19 | U1: 20 | V1: 21 | W1: 22 | X1: 23 | Y1: 24 | Z1: 25 | AA1: 26 | AB1: 27 | AC1: 28 | AD1: 29 | AE1: 30 | AF1: 31 | AG1: 32 | AH1: 33 | AI1: 34 | AJ1: 35 | AK1: 36 | AL1: 37 | AM1: 38 | AN1: 39 | AO1: 40 | AP1: 41 | AQ1: 42 | AR1: 43 | AS1: 44 | AT1: 45 | AU1: 46 | AV1: 47 | AW1: 48 | AX1: 49 | AY1: 50 | AZ1: 51
C3: وزارة التربية والتعليم
C4: مكتب التربية والتعليم بمحافظة | D4: =الرئيسية!B14 -> الحديدة | V4: اسم المدرسة: | Y4: =الرئيسية!B12 -> 0 | AC4: =الرئيسية!AA14 -> 0 | AU4: اسم المدرسة: | AX4: =Y4 -> 0
C5: مكتب التربية بمديرية : | D5: =الرئيسية!B15 -> الحالي | V5: الصف: | Y5: =الرئيسية!B13 -> خامس | AC5: =الرئيسية!AA15 -> 0 | AU5: الصف: | AX5: =Y5 -> خامس
D6: كشـف بدرجات أعـمال السنة الفـصل الدراسي الأول للعام الدراسي | Q6: =الرئيسية!B16 -> 2026 / 2027 | V6: المــادة : | Y6: العلوم | AC6: كشـف بدرجات أعـمال السنة الفـصل الدراسي الثاني للعام الدراسي | AP6: =الرئيسية!AA16 -> 0 | AU6: المــادة : | AX6: =Y6 -> العلوم
B7: م | C7: اسم الـطــالـب | D7: شهر يوليو 2026م | K7: شهر اغسطس 2026م | R7: شهر سبتمبر 2026م | Y7: الفصل الدراسي الأول | AC7: شهر نوفمبر 2026م | AJ7: شهر ديسمبر 2026م | AQ7: شهر يناير 2027م | AX7: الفصل الدراسي الثاني
D8: الواجبات | E8: الشفوي | F8: المواظبة | G8: السلوك | H8: التحريري | I8: المجموع | J8: المحصلة | K8: الواجبات | L8: الشفوي | M8: المواظبة | N8: السلوك | O8: التحريري | P8: المجموع | Q8: المحصلة | R8: الواجبات | S8: الشفوي | T8: المواظبة | U8: السلوك | V8: التحريري | W8: المجموع | X8: المحصلة | Y8: محصلة ( 1 ) | Z8: الفصل الأول | AA8: المجموع | AC8: الواجبات | AD8: الشفوي | AE8: المواظبة | AF8: السلوك | AG8: التحريري | AH8: المجموع | AI8: المحصلة | AJ8: الواجبات | AK8: الشفوي | AL8: المواظبة | AM8: السلوك | AN8: التحريري | AO8: المجموع | AP8: المحصلة | AQ8: الواجبات | AR8: الشفوي | AS8: المواظبة | AT8: السلوك | AU8: التحريري | AV8: المجموع | AW8: المحصلة | AX8: محصلة ( 1 ) | AY8: الفصل الأول | AZ8: المجموع
D9: 20 | E9: 20 | F9: 10 | G9: 10 | H9: 40 | I9: 100 | J9: 20 | K9: 20 | L9: 20 | M9: 10 | N9: 10 | O9: 40 | P9: 100 | Q9: 20 | R9: 20 | S9: 20 | T9: 10 | U9: 10 | V9: 40 | W9: 100 | X9: 20 | Y9: 20 | Z9: 30 | AA9: 50 | AC9: 20 | AD9: 20 | AE9: 10 | AF9: 10 | AG9: 40 | AH9: 100 | AI9: 20 | AJ9: 20 | AK9: 20 | AL9: 10 | AM9: 10 | AN9: 40 | AO9: 100 | AP9: 20 | AQ9: 20 | AR9: 20 | AS9: 10 | AT9: 10 | AU9: 40 | AV9: 100 | AW9: 20 | AX9: 20 | AY9: 30 | AZ9: 50
B10: 1 | C10: =IFERROR(VLOOKUP(B10,A!A6:M73,2,FALSE),"") ->  | D10: 91 | E10: 92 | F10: 93 | G10: 94 | H10: 95 | I10: =H10+G10+F10+E10+D10 -> 465 | J10: =IFERROR(AVERAGE(D10:H10),"") -> 93 | K10: 96 | L10: 97 | M10: 98 | N10: 99 | O10: 100 | P10: =O10+N10+M10+L10+K10 -> 490 | Q10: =IFERROR(AVERAGE(K10:O10),"") -> 98 | R10: 100 | S10: 102 | T10: 103 | U10: 104 | V10: 105 | W10: =V10+U10+T10+S10+R10 -> 514 | X10: =IFERROR(AVERAGE(R10:V10),"") -> 102.8 | Y10: =IFERROR(AVERAGE(J10,Q10,X10),"") -> 97.93333333 | AA10: =_xlfn.AGGREGATE(9,6,Y10:Z10) -> 97.93333333 | AC10: 106 | AD10: 107 | AE10: 108 | AF10: 109 | AG10: 110 | AH10: =AG10+AF10+AE10+AD10+AC10 -> 540 | AI10: =IFERROR(AVERAGE(AC10:AG10),"") -> 108 | AJ10: 111 | AK10: 112 | AL10: 113 | AM10: 114 | AN10: 115 | AO10: =AN10+AM10+AL10+AK10+AJ10 -> 565 | AP10: =IFERROR(AVERAGE(AJ10:AN10),"") -> 113 | AQ10: 116 | AR10: 117 | AS10: 118 | AT10: 119 | AU10: 120 | AV10: =AU10+AT10+AS10+AR10+AQ10 -> 590 | AW10: =IFERROR(AVERAGE(AQ10:AU10),"") -> 118 | AX10: =IFERROR(AVERAGE(AI10,AP10,AW10),"") -> 113 | AZ10: =_xlfn.AGGREGATE(9,6,AX10:AY10) -> 113
B11: 2 | C11: =IFERROR(VLOOKUP(B11,A!A7:M74,2,FALSE),"") ->  | I11: =H11+G11+F11+E11+D11 -> 0 | J11: =IFERROR(AVERAGE(D11:H11),"") ->  | P11: =O11+N11+M11+L11+K11 -> 0 | Q11: =IFERROR(AVERAGE(K11:O11),"") ->  | W11: =V11+U11+T11+S11+R11 -> 0 | X11: =IFERROR(AVERAGE(R11:V11),"") ->  | Y11: =IFERROR(AVERAGE(J11,Q11,X11),"") ->  | AA11: =_xlfn.AGGREGATE(9,6,Y11:Z11) -> 0 | AH11: =AG11+AF11+AE11+AD11+AC11 -> 0 | AI11: =IFERROR(AVERAGE(AC11:AG11),"") ->  | AO11: =AN11+AM11+AL11+AK11+AJ11 -> 0 | AP11: =IFERROR(AVERAGE(AJ11:AN11),"") ->  | AV11: =AU11+AT11+AS11+AR11+AQ11 -> 0 | AW11: =IFERROR(AVERAGE(AQ11:AU11),"") ->  | AX11: =IFERROR(AVERAGE(AI11,AP11,AW11),"") ->  | AZ11: =_xlfn.AGGREGATE(9,6,AX11:AY11) -> 0
B12: 3 | C12: =IFERROR(VLOOKUP(B12,A!A8:M75,2,FALSE),"") ->  | I12: 0 | P12: 0 | W12: 0 | AA12: 0 | AH12: 0 | AO12: 0 | AV12: 0 | AZ12: 0
B13: 4 | C13: =IFERROR(VLOOKUP(B13,A!A9:M76,2,FALSE),"") ->  | I13: 0 | P13: 0 | W13: 0 | AA13: 0 | AH13: 0 | AO13: 0 | AV13: 0 | AZ13: 0
B14: 5 | C14: =IFERROR(VLOOKUP(B14,A!A10:M77,2,FALSE),"") ->  | I14: 0 | P14: 0 | W14: 0 | AA14: 0 | AH14: 0 | AO14: 0 | AV14: 0 | AZ14: 0
B15: 6 | C15: =IFERROR(VLOOKUP(B15,A!A11:M78,2,FALSE),"") ->  | I15: 0 | P15: 0 | W15: 0 | AA15: 0 | AH15: 0 | AO15: 0 | AV15: 0 | AZ15: 0
B16: 7 | C16: =IFERROR(VLOOKUP(B16,A!A12:M79,2,FALSE),"") ->  | I16: 0 | P16: 0 | W16: 0 | AA16: 0 | AH16: 0 | AO16: 0 | AV16: 0 | AZ16: 0
B17: 8 | C17: =IFERROR(VLOOKUP(B17,A!A13:M80,2,FALSE),"") ->  | I17: 0 | P17: 0 | W17: 0 | AA17: 0 | AH17: 0 | AO17: 0 | AV17: 0 | AZ17: 0
B18: 9 | C18: =IFERROR(VLOOKUP(B18,A!A14:M81,2,FALSE),"") ->  | I18: 0 | P18: 0 | W18: 0 | AA18: 0 | AH18: 0 | AO18: 0 | AV18: 0 | AZ18: 0
B19: 10 | C19: =IFERROR(VLOOKUP(B19,A!A15:M82,2,FALSE),"") ->  | I19: 0 | P19: 0 | W19: 0 | AA19: 0 | AH19: 0 | AO19: 0 | AV19: 0 | AZ19: 0
B20: 11 | C20: =IFERROR(VLOOKUP(B20,A!A16:M83,2,FALSE),"") ->  | I20: 0 | P20: 0 | W20: 0 | AA20: 0 | AH20: 0 | AO20: 0 | AV20: 0 | AZ20: 0
B21: 12 | C21: =IFERROR(VLOOKUP(B21,A!A17:M84,2,FALSE),"") ->  | I21: 0 | P21: 0 | W21: 0 | AA21: 0 | AH21: 0 | AO21: 0 | AV21: 0 | AZ21: 0
B22: 13 | C22: =IFERROR(VLOOKUP(B22,A!A18:M85,2,FALSE),"") ->  | I22: 0 | P22: 0 | W22: 0 | AA22: 0 | AH22: 0 | AO22: 0 | AV22: 0 | AZ22: 0
B23: 14 | C23: =IFERROR(VLOOKUP(B23,A!A19:M86,2,FALSE),"") ->  | I23: 0 | P23: 0 | W23: 0 | AA23: 0 | AH23: 0 | AO23: 0 | AV23: 0 | AZ23: 0
B24: 15 | C24: =IFERROR(VLOOKUP(B24,A!A20:M87,2,FALSE),"") ->  | I24: 0 | P24: 0 | W24: 0 | AA24: 0 | AH24: 0 | AO24: 0 | AV24: 0 | AZ24: 0
B25: 16 | C25: =IFERROR(VLOOKUP(B25,A!A21:M88,2,FALSE),"") ->  | I25: 0 | P25: 0 | W25: 0 | AA25: 0 | AH25: 0 | AO25: 0 | AV25: 0 | AZ25: 0
B26: 17 | C26: =IFERROR(VLOOKUP(B26,A!A22:M89,2,FALSE),"") ->  | I26: 0 | P26: 0 | W26: 0 | AA26: 0 | AH26: 0 | AO26: 0 | AV26: 0 | AZ26: 0
B27: 18 | C27: =IFERROR(VLOOKUP(B27,A!A23:M90,2,FALSE),"") ->  | I27: 0 | P27: 0 | W27: 0 | AA27: 0 | AH27: 0 | AO27: 0 | AV27: 0 | AZ27: 0
B28: 19 | C28: =IFERROR(VLOOKUP(B28,A!A24:M91,2,FALSE),"") ->  | I28: 0 | P28: 0 | W28: 0 | AA28: 0 | AH28: 0 | AO28: 0 | AV28: 0 | AZ28: 0
B29: 20 | C29: =IFERROR(VLOOKUP(B29,A!A25:M92,2,FALSE),"") ->  | I29: 0 | P29: 0 | W29: 0 | AA29: 0 | AH29: 0 | AO29: 0 | AV29: 0 | AZ29: 0
B30: 21 | C30: =IFERROR(VLOOKUP(B30,A!A26:M93,2,FALSE),"") ->  | I30: 0 | P30: 0 | W30: 0 | AA30: 0 | AH30: 0 | AO30: 0 | AV30: 0 | AZ30: 0
B31: 22 | C31: =IFERROR(VLOOKUP(B31,A!A27:M94,2,FALSE),"") ->  | I31: 0 | P31: 0 | W31: 0 | AA31: 0 | AH31: 0 | AO31: 0 | AV31: 0 | AZ31: 0
B32: 23 | C32: =IFERROR(VLOOKUP(B32,A!A28:M95,2,FALSE),"") ->  | I32: 0 | P32: 0 | W32: 0 | AA32: 0 | AH32: 0 | AO32: 0 | AV32: 0 | AZ32: 0
B33: 24 | C33: =IFERROR(VLOOKUP(B33,A!A29:M96,2,FALSE),"") ->  | I33: 0 | P33: 0 | W33: 0 | AA33: 0 | AH33: 0 | AO33: 0 | AV33: 0 | AZ33: 0
B34: 25 | C34: =IFERROR(VLOOKUP(B34,A!A30:M97,2,FALSE),"") ->  | I34: 0 | P34: 0 | W34: 0 | AA34: 0 | AH34: 0 | AO34: 0 | AV34: 0 | AZ34: 0
B35: 26 | C35: =IFERROR(VLOOKUP(B35,A!A31:M98,2,FALSE),"") ->  | I35: 0 | P35: 0 | W35: 0 | AA35: 0 | AH35: 0 | AO35: 0 | AV35: 0 | AZ35: 0
B36: 27 | C36: =IFERROR(VLOOKUP(B36,A!A32:M99,2,FALSE),"") ->  | I36: 0 | P36: 0 | W36: 0 | AA36: 0 | AH36: 0 | AO36: 0 | AV36: 0 | AZ36: 0
B37: 28 | C37: =IFERROR(VLOOKUP(B37,A!A33:M100,2,FALSE),"") ->  | I37: 0 | P37: 0 | W37: 0 | AA37: 0 | AH37: 0 | AO37: 0 | AV37: 0 | AZ37: 0
B38: 29 | C38: =IFERROR(VLOOKUP(B38,A!A34:M101,2,FALSE),"") ->  | I38: 0 | P38: 0 | W38: 0 | AA38: 0 | AH38: 0 | AO38: 0 | AV38: 0 | AZ38: 0
B39: 30 | C39: =IFERROR(VLOOKUP(B39,A!A35:M102,2,FALSE),"") ->  | I39: 0 | P39: 0 | W39: 0 | AA39: 0 | AH39: 0 | AO39: 0 | AV39: 0 | AZ39: 0
B40: 31 | C40: =IFERROR(VLOOKUP(B40,A!A36:M103,2,FALSE),"") ->  | I40: 0 | P40: 0 | W40: 0 | AA40: 0 | AH40: 0 | AO40: 0 | AV40: 0 | AZ40: 0
B41: 32 | C41: =IFERROR(VLOOKUP(B41,A!A37:M104,2,FALSE),"") ->  | I41: 0 | P41: 0 | W41: 0 | AA41: 0 | AH41: 0 | AO41: 0 | AV41: 0 | AZ41: 0
B42: 33 | C42: =IFERROR(VLOOKUP(B42,A!A38:M105,2,FALSE),"") ->  | I42: 0 | P42: 0 | W42: 0 | AA42: 0 | AH42: 0 | AO42: 0 | AV42: 0 | AZ42: 0
B43: 34 | C43: =IFERROR(VLOOKUP(B43,A!A39:M106,2,FALSE),"") ->  | I43: 0 | P43: 0 | W43: 0 | AA43: 0 | AH43: 0 | AO43: 0 | AV43: 0 | AZ43: 0
B44: 35 | C44: =IFERROR(VLOOKUP(B44,A!A40:M107,2,FALSE),"") ->  | I44: 0 | P44: 0 | W44: 0 | AA44: 0 | AH44: 0 | AO44: 0 | AV44: 0 | AZ44: 0
B45: 36 | C45: =IFERROR(VLOOKUP(B45,A!A41:M108,2,FALSE),"") ->  | I45: 0 | P45: 0 | W45: 0 | AA45: 0 | AH45: 0 | AO45: 0 | AV45: 0 | AZ45: 0
B46: 37 | C46: =IFERROR(VLOOKUP(B46,A!A42:M109,2,FALSE),"") ->  | I46: 0 | P46: 0 | W46: 0 | AA46: 0 | AH46: 0 | AO46: 0 | AV46: 0 | AZ46: 0
B47: 38 | C47: =IFERROR(VLOOKUP(B47,A!A43:M110,2,FALSE),"") ->  | I47: 0 | P47: 0 | W47: 0 | AA47: 0 | AH47: 0 | AO47: 0 | AV47: 0 | AZ47: 0
B48: 39 | C48: =IFERROR(VLOOKUP(B48,A!A44:M111,2,FALSE),"") ->  | I48: 0 | P48: 0 | W48: 0 | AA48: 0 | AH48: 0 | AO48: 0 | AV48: 0 | AZ48: 0
B49: 40 | C49: =IFERROR(VLOOKUP(B49,A!A45:M112,2,FALSE),"") ->  | I49: 0 | P49: 0 | W49: 0 | AA49: 0 | AH49: 0 | AO49: 0 | AV49: 0 | AZ49: 0
B50: 41 | C50: =IFERROR(VLOOKUP(B50,A!A46:M113,2,FALSE),"") ->  | I50: 0 | P50: 0 | W50: 0 | AA50: 0 | AH50: 0 | AO50: 0 | AV50: 0 | AZ50: 0
B51: 42 | C51: =IFERROR(VLOOKUP(B51,A!A47:M114,2,FALSE),"") ->  | I51: 0 | P51: 0 | W51: 0 | AA51: 0 | AH51: 0 | AO51: 0 | AV51: 0 | AZ51: 0
B52: 43 | C52: =IFERROR(VLOOKUP(B52,A!A48:M115,2,FALSE),"") ->  | I52: 0 | P52: 0 | W52: 0 | AA52: 0 | AH52: 0 | AO52: 0 | AV52: 0 | AZ52: 0
B53: 44 | C53: =IFERROR(VLOOKUP(B53,A!A49:M116,2,FALSE),"") ->  | I53: 0 | P53: 0 | W53: 0 | AA53: 0 | AH53: 0 | AO53: 0 | AV53: 0 | AZ53: 0
B54: 45 | C54: =IFERROR(VLOOKUP(B54,A!A50:M117,2,FALSE),"") ->  | I54: 0 | P54: 0 | W54: 0 | AA54: 0 | AH54: 0 | AO54: 0 | AV54: 0 | AZ54: 0
B55: 46 | C55: =IFERROR(VLOOKUP(B55,A!A51:M118,2,FALSE),"") ->  | I55: 0 | P55: 0 | W55: 0 | AA55: 0 | AH55: 0 | AO55: 0 | AV55: 0 | AZ55: 0
B56: 47 | C56: =IFERROR(VLOOKUP(B56,A!A52:M119,2,FALSE),"") ->  | I56: 0 | P56: 0 | W56: 0 | AA56: 0 | AH56: 0 | AO56: 0 | AV56: 0 | AZ56: 0
B57: 48 | C57: =IFERROR(VLOOKUP(B57,A!A53:M120,2,FALSE),"") ->  | I57: 0 | P57: 0 | W57: 0 | AA57: 0 | AH57: 0 | AO57: 0 | AV57: 0 | AZ57: 0
B58: 49 | C58: =IFERROR(VLOOKUP(B58,A!A54:M121,2,FALSE),"") ->  | I58: 0 | P58: 0 | W58: 0 | AA58: 0 | AH58: 0 | AO58: 0 | AV58: 0 | AZ58: 0
B59: 50 | C59: =IFERROR(VLOOKUP(B59,A!A55:M122,2,FALSE),"") ->  | I59: 0 | P59: 0 | W59: 0 | AA59: 0 | AH59: 0 | AO59: 0 | AV59: 0 | AZ59: 0
B60: 51 | C60: =IFERROR(VLOOKUP(B60,A!A56:M123,2,FALSE),"") ->  | I60: 0 | P60: 0 | W60: 0 | AA60: 0 | AH60: 0 | AO60: 0 | AV60: 0 | AZ60: 0
B61: 52 | C61: =IFERROR(VLOOKUP(B61,A!A57:M124,2,FALSE),"") ->  | I61: 0 | P61: 0 | W61: 0 | AA61: 0 | AH61: 0 | AO61: 0 | AV61: 0 | AZ61: 0

Sheet D7
B1: 1 | C1: 2 | D1: 3 | E1: 4 | F1: 5 | G1: 6 | H1: 7 | I1: 8 | J1: 9 | K1: 10 | L1: 11 | M1: 12 | N1: 13 | O1: 14 | P1: 15 | Q1: 16 | R1: 17 | S1: 18 | T1: 19 | U1: 20 | V1: 21 | W1: 22 | X1: 23 | Y1: 24 | Z1: 25 | AA1: 26 | AB1: 27 | AC1: 28 | AD1: 29 | AE1: 30 | AF1: 31 | AG1: 32 | AH1: 33 | AI1: 34 | AJ1: 35 | AK1: 36 | AL1: 37 | AM1: 38 | AN1: 39 | AO1: 40 | AP1: 41 | AQ1: 42 | AR1: 43 | AS1: 44 | AT1: 45 | AU1: 46 | AV1: 47 | AW1: 48 | AX1: 49 | AY1: 50 | AZ1: 51
C3: وزارة التربية والتعليم
C4: مكتب التربية والتعليم بمحافظة | D4: =الرئيسية!B14 -> الحديدة | V4: اسم المدرسة: | Y4: =الرئيسية!B12 -> 0 | AC4: =الرئيسية!AA14 -> 0 | AU4: اسم المدرسة: | AX4: =Y4 -> 0
C5: مكتب التربية بمديرية : | D5: =الرئيسية!B15 -> الحالي | V5: الصف: | Y5: =الرئيسية!B13 -> خامس | AC5: =الرئيسية!AA15 -> 0 | AU5: الصف: | AX5: =Y5 -> خامس
D6: كشـف بدرجات أعـمال السنة الفـصل الدراسي الأول للعام الدراسي | Q6: =الرئيسية!B16 -> 2026 / 2027 | V6: المــادة : | Y6: الاجتماعيات | AC6: كشـف بدرجات أعـمال السنة الفـصل الدراسي الثاني للعام الدراسي | AP6: =الرئيسية!AA16 -> 0 | AU6: المــادة : | AX6: =Y6 -> الاجتماعيات
B7: م | C7: اسم الـطــالـب | D7: شهر يوليو 2026م | K7: شهر اغسطس 2026م | R7: شهر سبتمبر 2026م | Y7: الفصل الدراسي الأول | AC7: شهر نوفمبر 2026م | AJ7: شهر ديسمبر 2026م | AQ7: شهر يناير 2027م | AX7: الفصل الدراسي الثاني
D8: الواجبات | E8: الشفوي | F8: المواظبة | G8: السلوك | H8: التحريري | I8: المجموع | J8: المحصلة | K8: الواجبات | L8: الشفوي | M8: المواظبة | N8: السلوك | O8: التحريري | P8: المجموع | Q8: المحصلة | R8: الواجبات | S8: الشفوي | T8: المواظبة | U8: السلوك | V8: التحريري | W8: المجموع | X8: المحصلة | Y8: محصلة ( 1 ) | Z8: الفصل الأول | AA8: المجموع | AC8: الواجبات | AD8: الشفوي | AE8: المواظبة | AF8: السلوك | AG8: التحريري | AH8: المجموع | AI8: المحصلة | AJ8: الواجبات | AK8: الشفوي | AL8: المواظبة | AM8: السلوك | AN8: التحريري | AO8: المجموع | AP8: المحصلة | AQ8: الواجبات | AR8: الشفوي | AS8: المواظبة | AT8: السلوك | AU8: التحريري | AV8: المجموع | AW8: المحصلة | AX8: محصلة ( 1 ) | AY8: الفصل الأول | AZ8: المجموع
D9: 20 | E9: 20 | F9: 10 | G9: 10 | H9: 40 | I9: 100 | J9: 20 | K9: 20 | L9: 20 | M9: 10 | N9: 10 | O9: 40 | P9: 100 | Q9: 20 | R9: 20 | S9: 20 | T9: 10 | U9: 10 | V9: 40 | W9: 100 | X9: 20 | Y9: 20 | Z9: 30 | AA9: 50 | AC9: 20 | AD9: 20 | AE9: 10 | AF9: 10 | AG9: 40 | AH9: 100 | AI9: 20 | AJ9: 20 | AK9: 20 | AL9: 10 | AM9: 10 | AN9: 40 | AO9: 100 | AP9: 20 | AQ9: 20 | AR9: 20 | AS9: 10 | AT9: 10 | AU9: 40 | AV9: 100 | AW9: 20 | AX9: 20 | AY9: 30 | AZ9: 50
B10: 1 | C10: =IFERROR(VLOOKUP(B10,A!A6:M73,2,FALSE),"") ->  | D10: 91 | E10: 92 | F10: 93 | G10: 94 | H10: 95 | I10: =H10+G10+F10+E10+D10 -> 465 | J10: =IFERROR(AVERAGE(D10:H10),"") -> 93 | K10: 96 | L10: 97 | M10: 98 | N10: 99 | O10: 100 | P10: =O10+N10+M10+L10+K10 -> 490 | Q10: =IFERROR(AVERAGE(K10:O10),"") -> 98 | R10: 100 | S10: 102 | T10: 103 | U10: 104 | V10: 105 | W10: =V10+U10+T10+S10+R10 -> 514 | X10: =IFERROR(AVERAGE(R10:V10),"") -> 102.8 | Y10: =IFERROR(AVERAGE(J10,Q10,X10),"") -> 97.93333333 | AA10: =_xlfn.AGGREGATE(9,6,Y10:Z10) -> 97.93333333 | AC10: 106 | AD10: 107 | AE10: 108 | AF10: 109 | AG10: 110 | AH10: =AG10+AF10+AE10+AD10+AC10 -> 540 | AI10: =IFERROR(AVERAGE(AC10:AG10),"") -> 108 | AJ10: 111 | AK10: 112 | AL10: 113 | AM10: 114 | AN10: 115 | AO10: =AN10+AM10+AL10+AK10+AJ10 -> 565 | AP10: =IFERROR(AVERAGE(AJ10:AN10),"") -> 113 | AQ10: 116 | AR10: 117 | AS10: 118 | AT10: 119 | AU10: 120 | AV10: =AU10+AT10+AS10+AR10+AQ10 -> 590 | AW10: =IFERROR(AVERAGE(AQ10:AU10),"") -> 118 | AX10: =IFERROR(AVERAGE(AI10,AP10,AW10),"") -> 113 | AZ10: =_xlfn.AGGREGATE(9,6,AX10:AY10) -> 113
B11: 2 | C11: =IFERROR(VLOOKUP(B11,A!A7:M74,2,FALSE),"") ->  | I11: =H11+G11+F11+E11+D11 -> 0 | J11: =IFERROR(AVERAGE(D11:H11),"") ->  | P11: =O11+N11+M11+L11+K11 -> 0 | Q11: =IFERROR(AVERAGE(K11:O11),"") ->  | W11: =V11+U11+T11+S11+R11 -> 0 | X11: =IFERROR(AVERAGE(R11:V11),"") ->  | Y11: =IFERROR(AVERAGE(J11,Q11,X11),"") ->  | AA11: =_xlfn.AGGREGATE(9,6,Y11:Z11) -> 0 | AH11: =AG11+AF11+AE11+AD11+AC11 -> 0 | AI11: =IFERROR(AVERAGE(AC11:AG11),"") ->  | AO11: =AN11+AM11+AL11+AK11+AJ11 -> 0 | AP11: =IFERROR(AVERAGE(AJ11:AN11),"") ->  | AV11: =AU11+AT11+AS11+AR11+AQ11 -> 0 | AW11: =IFERROR(AVERAGE(AQ11:AU11),"") ->  | AX11: =IFERROR(AVERAGE(AI11,AP11,AW11),"") ->  | AZ11: =_xlfn.AGGREGATE(9,6,AX11:AY11) -> 0
B12: 3 | C12: =IFERROR(VLOOKUP(B12,A!A8:M75,2,FALSE),"") ->  | I12: 0 | P12: 0 | W12: 0 | AA12: 0 | AH12: 0 | AO12: 0 | AV12: 0 | AZ12: 0
B13: 4 | C13: =IFERROR(VLOOKUP(B13,A!A9:M76,2,FALSE),"") ->  | I13: 0 | P13: 0 | W13: 0 | AA13: 0 | AH13: 0 | AO13: 0 | AV13: 0 | AZ13: 0
B14: 5 | C14: =IFERROR(VLOOKUP(B14,A!A10:M77,2,FALSE),"") ->  | I14: 0 | P14: 0 | W14: 0 | AA14: 0 | AH14: 0 | AO14: 0 | AV14: 0 | AZ14: 0
B15: 6 | C15: =IFERROR(VLOOKUP(B15,A!A11:M78,2,FALSE),"") ->  | I15: 0 | P15: 0 | W15: 0 | AA15: 0 | AH15: 0 | AO15: 0 | AV15: 0 | AZ15: 0
B16: 7 | C16: =IFERROR(VLOOKUP(B16,A!A12:M79,2,FALSE),"") ->  | I16: 0 | P16: 0 | W16: 0 | AA16: 0 | AH16: 0 | AO16: 0 | AV16: 0 | AZ16: 0
B17: 8 | C17: =IFERROR(VLOOKUP(B17,A!A13:M80,2,FALSE),"") ->  | I17: 0 | P17: 0 | W17: 0 | AA17: 0 | AH17: 0 | AO17: 0 | AV17: 0 | AZ17: 0
B18: 9 | C18: =IFERROR(VLOOKUP(B18,A!A14:M81,2,FALSE),"") ->  | I18: 0 | P18: 0 | W18: 0 | AA18: 0 | AH18: 0 | AO18: 0 | AV18: 0 | AZ18: 0
B19: 10 | C19: =IFERROR(VLOOKUP(B19,A!A15:M82,2,FALSE),"") ->  | I19: 0 | P19: 0 | W19: 0 | AA19: 0 | AH19: 0 | AO19: 0 | AV19: 0 | AZ19: 0
B20: 11 | C20: =IFERROR(VLOOKUP(B20,A!A16:M83,2,FALSE),"") ->  | I20: 0 | P20: 0 | W20: 0 | AA20: 0 | AH20: 0 | AO20: 0 | AV20: 0 | AZ20: 0
B21: 12 | C21: =IFERROR(VLOOKUP(B21,A!A17:M84,2,FALSE),"") ->  | I21: 0 | P21: 0 | W21: 0 | AA21: 0 | AH21: 0 | AO21: 0 | AV21: 0 | AZ21: 0
B22: 13 | C22: =IFERROR(VLOOKUP(B22,A!A18:M85,2,FALSE),"") ->  | I22: 0 | P22: 0 | W22: 0 | AA22: 0 | AH22: 0 | AO22: 0 | AV22: 0 | AZ22: 0
B23: 14 | C23: =IFERROR(VLOOKUP(B23,A!A19:M86,2,FALSE),"") ->  | I23: 0 | P23: 0 | W23: 0 | AA23: 0 | AH23: 0 | AO23: 0 | AV23: 0 | AZ23: 0
B24: 15 | C24: =IFERROR(VLOOKUP(B24,A!A20:M87,2,FALSE),"") ->  | I24: 0 | P24: 0 | W24: 0 | AA24: 0 | AH24: 0 | AO24: 0 | AV24: 0 | AZ24: 0
B25: 16 | C25: =IFERROR(VLOOKUP(B25,A!A21:M88,2,FALSE),"") ->  | I25: 0 | P25: 0 | W25: 0 | AA25: 0 | AH25: 0 | AO25: 0 | AV25: 0 | AZ25: 0
B26: 17 | C26: =IFERROR(VLOOKUP(B26,A!A22:M89,2,FALSE),"") ->  | I26: 0 | P26: 0 | W26: 0 | AA26: 0 | AH26: 0 | AO26: 0 | AV26: 0 | AZ26: 0
B27: 18 | C27: =IFERROR(VLOOKUP(B27,A!A23:M90,2,FALSE),"") ->  | I27: 0 | P27: 0 | W27: 0 | AA27: 0 | AH27: 0 | AO27: 0 | AV27: 0 | AZ27: 0
B28: 19 | C28: =IFERROR(VLOOKUP(B28,A!A24:M91,2,FALSE),"") ->  | I28: 0 | P28: 0 | W28: 0 | AA28: 0 | AH28: 0 | AO28: 0 | AV28: 0 | AZ28: 0
B29: 20 | C29: =IFERROR(VLOOKUP(B29,A!A25:M92,2,FALSE),"") ->  | I29: 0 | P29: 0 | W29: 0 | AA29: 0 | AH29: 0 | AO29: 0 | AV29: 0 | AZ29: 0
B30: 21 | C30: =IFERROR(VLOOKUP(B30,A!A26:M93,2,FALSE),"") ->  | I30: 0 | P30: 0 | W30: 0 | AA30: 0 | AH30: 0 | AO30: 0 | AV30: 0 | AZ30: 0
B31: 22 | C31: =IFERROR(VLOOKUP(B31,A!A27:M94,2,FALSE),"") ->  | I31: 0 | P31: 0 | W31: 0 | AA31: 0 | AH31: 0 | AO31: 0 | AV31: 0 | AZ31: 0
B32: 23 | C32: =IFERROR(VLOOKUP(B32,A!A28:M95,2,FALSE),"") ->  | I32: 0 | P32: 0 | W32: 0 | AA32: 0 | AH32: 0 | AO32: 0 | AV32: 0 | AZ32: 0
B33: 24 | C33: =IFERROR(VLOOKUP(B33,A!A29:M96,2,FALSE),"") ->  | I33: 0 | P33: 0 | W33: 0 | AA33: 0 | AH33: 0 | AO33: 0 | AV33: 0 | AZ33: 0
B34: 25 | C34: =IFERROR(VLOOKUP(B34,A!A30:M97,2,FALSE),"") ->  | I34: 0 | P34: 0 | W34: 0 | AA34: 0 | AH34: 0 | AO34: 0 | AV34: 0 | AZ34: 0
B35: 26 | C35: =IFERROR(VLOOKUP(B35,A!A31:M98,2,FALSE),"") ->  | I35: 0 | P35: 0 | W35: 0 | AA35: 0 | AH35: 0 | AO35: 0 | AV35: 0 | AZ35: 0
B36: 27 | C36: =IFERROR(VLOOKUP(B36,A!A32:M99,2,FALSE),"") ->  | I36: 0 | P36: 0 | W36: 0 | AA36: 0 | AH36: 0 | AO36: 0 | AV36: 0 | AZ36: 0
B37: 28 | C37: =IFERROR(VLOOKUP(B37,A!A33:M100,2,FALSE),"") ->  | I37: 0 | P37: 0 | W37: 0 | AA37: 0 | AH37: 0 | AO37: 0 | AV37: 0 | AZ37: 0
B38: 29 | C38: =IFERROR(VLOOKUP(B38,A!A34:M101,2,FALSE),"") ->  | I38: 0 | P38: 0 | W38: 0 | AA38: 0 | AH38: 0 | AO38: 0 | AV38: 0 | AZ38: 0
B39: 30 | C39: =IFERROR(VLOOKUP(B39,A!A35:M102,2,FALSE),"") ->  | I39: 0 | P39: 0 | W39: 0 | AA39: 0 | AH39: 0 | AO39: 0 | AV39: 0 | AZ39: 0
B40: 31 | C40: =IFERROR(VLOOKUP(B40,A!A36:M103,2,FALSE),"") ->  | I40: 0 | P40: 0 | W40: 0 | AA40: 0 | AH40: 0 | AO40: 0 | AV40: 0 | AZ40: 0
B41: 32 | C41: =IFERROR(VLOOKUP(B41,A!A37:M104,2,FALSE),"") ->  | I41: 0 | P41: 0 | W41: 0 | AA41: 0 | AH41: 0 | AO41: 0 | AV41: 0 | AZ41: 0
B42: 33 | C42: =IFERROR(VLOOKUP(B42,A!A38:M105,2,FALSE),"") ->  | I42: 0 | P42: 0 | W42: 0 | AA42: 0 | AH42: 0 | AO42: 0 | AV42: 0 | AZ42: 0
B43: 34 | C43: =IFERROR(VLOOKUP(B43,A!A39:M106,2,FALSE),"") ->  | I43: 0 | P43: 0 | W43: 0 | AA43: 0 | AH43: 0 | AO43: 0 | AV43: 0 | AZ43: 0
B44: 35 | C44: =IFERROR(VLOOKUP(B44,A!A40:M107,2,FALSE),"") ->  | I44: 0 | P44: 0 | W44: 0 | AA44: 0 | AH44: 0 | AO44: 0 | AV44: 0 | AZ44: 0
B45: 36 | C45: =IFERROR(VLOOKUP(B45,A!A41:M108,2,FALSE),"") ->  | I45: 0 | P45: 0 | W45: 0 | AA45: 0 | AH45: 0 | AO45: 0 | AV45: 0 | AZ45: 0
B46: 37 | C46: =IFERROR(VLOOKUP(B46,A!A42:M109,2,FALSE),"") ->  | I46: 0 | P46: 0 | W46: 0 | AA46: 0 | AH46: 0 | AO46: 0 | AV46: 0 | AZ46: 0
B47: 38 | C47: =IFERROR(VLOOKUP(B47,A!A43:M110,2,FALSE),"") ->  | I47: 0 | P47: 0 | W47: 0 | AA47: 0 | AH47: 0 | AO47: 0 | AV47: 0 | AZ47: 0
B48: 39 | C48: =IFERROR(VLOOKUP(B48,A!A44:M111,2,FALSE),"") ->  | I48: 0 | P48: 0 | W48: 0 | AA48: 0 | AH48: 0 | AO48: 0 | AV48: 0 | AZ48: 0
B49: 40 | C49: =IFERROR(VLOOKUP(B49,A!A45:M112,2,FALSE),"") ->  | I49: 0 | P49: 0 | W49: 0 | AA49: 0 | AH49: 0 | AO49: 0 | AV49: 0 | AZ49: 0
B50: 41 | C50: =IFERROR(VLOOKUP(B50,A!A46:M113,2,FALSE),"") ->  | I50: 0 | P50: 0 | W50: 0 | AA50: 0 | AH50: 0 | AO50: 0 | AV50: 0 | AZ50: 0
B51: 42 | C51: =IFERROR(VLOOKUP(B51,A!A47:M114,2,FALSE),"") ->  | I51: 0 | P51: 0 | W51: 0 | AA51: 0 | AH51: 0 | AO51: 0 | AV51: 0 | AZ51: 0
B52: 43 | C52: =IFERROR(VLOOKUP(B52,A!A48:M115,2,FALSE),"") ->  | I52: 0 | P52: 0 | W52: 0 | AA52: 0 | AH52: 0 | AO52: 0 | AV52: 0 | AZ52: 0
B53: 44 | C53: =IFERROR(VLOOKUP(B53,A!A49:M116,2,FALSE),"") ->  | I53: 0 | P53: 0 | W53: 0 | AA53: 0 | AH53: 0 | AO53: 0 | AV53: 0 | AZ53: 0
B54: 45 | C54: =IFERROR(VLOOKUP(B54,A!A50:M117,2,FALSE),"") ->  | I54: 0 | P54: 0 | W54: 0 | AA54: 0 | AH54: 0 | AO54: 0 | AV54: 0 | AZ54: 0
B55: 46 | C55: =IFERROR(VLOOKUP(B55,A!A51:M118,2,FALSE),"") ->  | I55: 0 | P55: 0 | W55: 0 | AA55: 0 | AH55: 0 | AO55: 0 | AV55: 0 | AZ55: 0
B56: 47 | C56: =IFERROR(VLOOKUP(B56,A!A52:M119,2,FALSE),"") ->  | I56: 0 | P56: 0 | W56: 0 | AA56: 0 | AH56: 0 | AO56: 0 | AV56: 0 | AZ56: 0
B57: 48 | C57: =IFERROR(VLOOKUP(B57,A!A53:M120,2,FALSE),"") ->  | I57: 0 | P57: 0 | W57: 0 | AA57: 0 | AH57: 0 | AO57: 0 | AV57: 0 | AZ57: 0
B58: 49 | C58: =IFERROR(VLOOKUP(B58,A!A54:M121,2,FALSE),"") ->  | I58: 0 | P58: 0 | W58: 0 | AA58: 0 | AH58: 0 | AO58: 0 | AV58: 0 | AZ58: 0
B59: 50 | C59: =IFERROR(VLOOKUP(B59,A!A55:M122,2,FALSE),"") ->  | I59: 0 | P59: 0 | W59: 0 | AA59: 0 | AH59: 0 | AO59: 0 | AV59: 0 | AZ59: 0
B60: 51 | C60: =IFERROR(VLOOKUP(B60,A!A56:M123,2,FALSE),"") ->  | I60: 0 | P60: 0 | W60: 0 | AA60: 0 | AH60: 0 | AO60: 0 | AV60: 0 | AZ60: 0
B61: 52 | C61: =IFERROR(VLOOKUP(B61,A!A57:M124,2,FALSE),"") ->  | I61: 0 | P61: 0 | W61: 0 | AA61: 0 | AH61: 0 | AO61: 0 | AV61: 0 | AZ61: 0

Sheet D8
B1: 1 | C1: 2 | D1: 3 | E1: 4 | F1: 5 | G1: 6 | H1: 7 | I1: 8 | J1: 9 | K1: 10 | L1: 11 | M1: 12 | N1: 13 | O1: 14 | P1: 15 | Q1: 16 | R1: 17 | S1: 18 | T1: 19 | U1: 20 | V1: 21 | W1: 22 | X1: 23 | Y1: 24 | Z1: 25 | AA1: 26 | AB1: 27 | AC1: 28 | AD1: 29 | AE1: 30 | AF1: 31 | AG1: 32 | AH1: 33 | AI1: 34 | AJ1: 35 | AK1: 36 | AL1: 37 | AM1: 38 | AN1: 39 | AO1: 40 | AP1: 41 | AQ1: 42 | AR1: 43 | AS1: 44 | AT1: 45 | AU1: 46 | AV1: 47 | AW1: 48 | AX1: 49 | AY1: 50 | AZ1: 51
C3: وزارة التربية والتعليم
C4: مكتب التربية والتعليم بمحافظة | D4: =الرئيسية!B14 -> الحديدة | V4: اسم المدرسة: | Y4: =الرئيسية!B12 -> 0 | AC4: =الرئيسية!AA14 -> 0 | AU4: اسم المدرسة: | AX4: =Y4 -> 0
C5: مكتب التربية بمديرية : | D5: =الرئيسية!B15 -> الحالي | V5: الصف: | Y5: =الرئيسية!B13 -> خامس | AC5: =الرئيسية!AA15 -> 0 | AU5: الصف: | AX5: =Y5 -> خامس
D6: كشـف بدرجات أعـمال السنة الفـصل الدراسي الأول للعام الدراسي | Q6: =الرئيسية!B16 -> 2026 / 2027 | V6: المــادة : | Y6: السلوك | AC6: كشـف بدرجات أعـمال السنة الفـصل الدراسي الثاني للعام الدراسي | AP6: =الرئيسية!AA16 -> 0 | AU6: المــادة : | AX6: =Y6 -> السلوك
B7: م | C7: اسم الـطــالـب | D7: شهر يوليو 2026م | K7: شهر اغسطس 2026م | R7: شهر سبتمبر 2026م | Y7: الفصل الدراسي الأول | AC7: شهر نوفمبر 2026م | AJ7: شهر ديسمبر 2026م | AQ7: شهر يناير 2027م | AX7: الفصل الدراسي الثاني
D8: الواجبات | E8: الشفوي | F8: المواظبة | G8: السلوك | H8: التحريري | I8: المجموع | J8: المحصلة | K8: الواجبات | L8: الشفوي | M8: المواظبة | N8: السلوك | O8: التحريري | P8: المجموع | Q8: المحصلة | R8: الواجبات | S8: الشفوي | T8: المواظبة | U8: السلوك | V8: التحريري | W8: المجموع | X8: المحصلة | Y8: محصلة ( 1 ) | Z8: الفصل الأول | AA8: المجموع | AC8: الواجبات | AD8: الشفوي | AE8: المواظبة | AF8: السلوك | AG8: التحريري | AH8: المجموع | AI8: المحصلة | AJ8: الواجبات | AK8: الشفوي | AL8: المواظبة | AM8: السلوك | AN8: التحريري | AO8: المجموع | AP8: المحصلة | AQ8: الواجبات | AR8: الشفوي | AS8: المواظبة | AT8: السلوك | AU8: التحريري | AV8: المجموع | AW8: المحصلة | AX8: محصلة ( 1 ) | AY8: الفصل الأول | AZ8: المجموع
D9: 20 | E9: 20 | F9: 10 | G9: 10 | H9: 40 | I9: 100 | J9: 20 | K9: 20 | L9: 20 | M9: 10 | N9: 10 | O9: 40 | P9: 100 | Q9: 20 | R9: 20 | S9: 20 | T9: 10 | U9: 10 | V9: 40 | W9: 100 | X9: 20 | Y9: 20 | Z9: 30 | AA9: 50 | AC9: 20 | AD9: 20 | AE9: 10 | AF9: 10 | AG9: 40 | AH9: 100 | AI9: 20 | AJ9: 20 | AK9: 20 | AL9: 10 | AM9: 10 | AN9: 40 | AO9: 100 | AP9: 20 | AQ9: 20 | AR9: 20 | AS9: 10 | AT9: 10 | AU9: 40 | AV9: 100 | AW9: 20 | AX9: 20 | AY9: 30 | AZ9: 50
B10: 1 | C10: =IFERROR(VLOOKUP(B10,A!A6:M73,2,FALSE),"") ->  | D10: 91 | E10: 92 | F10: 93 | G10: 94 | H10: 95 | I10: =H10+G10+F10+E10+D10 -> 465 | J10: =IFERROR(AVERAGE(D10:H10),"") -> 93 | K10: 96 | L10: 97 | M10: 98 | N10: 99 | O10: 100 | P10: =O10+N10+M10+L10+K10 -> 490 | Q10: =IFERROR(AVERAGE(K10:O10),"") -> 98 | R10: 100 | S10: 102 | T10: 103 | U10: 104 | V10: 105 | W10: =V10+U10+T10+S10+R10 -> 514 | X10: =IFERROR(AVERAGE(R10:V10),"") -> 102.8 | Y10: =IFERROR(AVERAGE(J10,Q10,X10),"") -> 97.93333333 | AA10: =_xlfn.AGGREGATE(9,6,Y10:Z10) -> 97.93333333 | AC10: 106 | AD10: 107 | AE10: 108 | AF10: 109 | AG10: 110 | AH10: =AG10+AF10+AE10+AD10+AC10 -> 540 | AI10: =IFERROR(AVERAGE(AC10:AG10),"") -> 108 | AJ10: 111 | AK10: 112 | AL10: 113 | AM10: 114 | AN10: 115 | AO10: =AN10+AM10+AL10+AK10+AJ10 -> 565 | AP10: =IFERROR(AVERAGE(AJ10:AN10),"") -> 113 | AQ10: 116 | AR10: 117 | AS10: 118 | AT10: 119 | AU10: 120 | AV10: =AU10+AT10+AS10+AR10+AQ10 -> 590 | AW10: =IFERROR(AVERAGE(AQ10:AU10),"") -> 118 | AX10: =IFERROR(AVERAGE(AI10,AP10,AW10),"") -> 113 | AZ10: =_xlfn.AGGREGATE(9,6,AX10:AY10) -> 113
B11: 2 | C11: =IFERROR(VLOOKUP(B11,A!A7:M74,2,FALSE),"") ->  | I11: =H11+G11+F11+E11+D11 -> 0 | J11: =IFERROR(AVERAGE(D11:H11),"") ->  | P11: =O11+N11+M11+L11+K11 -> 0 | Q11: =IFERROR(AVERAGE(K11:O11),"") ->  | W11: =V11+U11+T11+S11+R11 -> 0 | X11: =IFERROR(AVERAGE(R11:V11),"") ->  | Y11: =IFERROR(AVERAGE(J11,Q11,X11),"") ->  | AA11: =_xlfn.AGGREGATE(9,6,Y11:Z11) -> 0 | AH11: =AG11+AF11+AE11+AD11+AC11 -> 0 | AI11: =IFERROR(AVERAGE(AC11:AG11),"") ->  | AO11: =AN11+AM11+AL11+AK11+AJ11 -> 0 | AP11: =IFERROR(AVERAGE(AJ11:AN11),"") ->  | AV11: =AU11+AT11+AS11+AR11+AQ11 -> 0 | AW11: =IFERROR(AVERAGE(AQ11:AU11),"") ->  | AX11: =IFERROR(AVERAGE(AI11,AP11,AW11),"") ->  | AZ11: =_xlfn.AGGREGATE(9,6,AX11:AY11) -> 0
B12: 3 | C12: =IFERROR(VLOOKUP(B12,A!A8:M75,2,FALSE),"") ->  | I12: 0 | P12: 0 | W12: 0 | AA12: 0 | AH12: 0 | AO12: 0 | AV12: 0 | AZ12: 0
B13: 4 | C13: =IFERROR(VLOOKUP(B13,A!A9:M76,2,FALSE),"") ->  | I13: 0 | P13: 0 | W13: 0 | AA13: 0 | AH13: 0 | AO13: 0 | AV13: 0 | AZ13: 0
B14: 5 | C14: =IFERROR(VLOOKUP(B14,A!A10:M77,2,FALSE),"") ->  | I14: 0 | P14: 0 | W14: 0 | AA14: 0 | AH14: 0 | AO14: 0 | AV14: 0 | AZ14: 0
B15: 6 | C15: =IFERROR(VLOOKUP(B15,A!A11:M78,2,FALSE),"") ->  | I15: 0 | P15: 0 | W15: 0 | AA15: 0 | AH15: 0 | AO15: 0 | AV15: 0 | AZ15: 0
B16: 7 | C16: =IFERROR(VLOOKUP(B16,A!A12:M79,2,FALSE),"") ->  | I16: 0 | P16: 0 | W16: 0 | AA16: 0 | AH16: 0 | AO16: 0 | AV16: 0 | AZ16: 0
B17: 8 | C17: =IFERROR(VLOOKUP(B17,A!A13:M80,2,FALSE),"") ->  | I17: 0 | P17: 0 | W17: 0 | AA17: 0 | AH17: 0 | AO17: 0 | AV17: 0 | AZ17: 0
B18: 9 | C18: =IFERROR(VLOOKUP(B18,A!A14:M81,2,FALSE),"") ->  | I18: 0 | P18: 0 | W18: 0 | AA18: 0 | AH18: 0 | AO18: 0 | AV18: 0 | AZ18: 0
B19: 10 | C19: =IFERROR(VLOOKUP(B19,A!A15:M82,2,FALSE),"") ->  | I19: 0 | P19: 0 | W19: 0 | AA19: 0 | AH19: 0 | AO19: 0 | AV19: 0 | AZ19: 0
B20: 11 | C20: =IFERROR(VLOOKUP(B20,A!A16:M83,2,FALSE),"") ->  | I20: 0 | P20: 0 | W20: 0 | AA20: 0 | AH20: 0 | AO20: 0 | AV20: 0 | AZ20: 0
B21: 12 | C21: =IFERROR(VLOOKUP(B21,A!A17:M84,2,FALSE),"") ->  | I21: 0 | P21: 0 | W21: 0 | AA21: 0 | AH21: 0 | AO21: 0 | AV21: 0 | AZ21: 0
B22: 13 | C22: =IFERROR(VLOOKUP(B22,A!A18:M85,2,FALSE),"") ->  | I22: 0 | P22: 0 | W22: 0 | AA22: 0 | AH22: 0 | AO22: 0 | AV22: 0 | AZ22: 0
B23: 14 | C23: =IFERROR(VLOOKUP(B23,A!A19:M86,2,FALSE),"") ->  | I23: 0 | P23: 0 | W23: 0 | AA23: 0 | AH23: 0 | AO23: 0 | AV23: 0 | AZ23: 0
B24: 15 | C24: =IFERROR(VLOOKUP(B24,A!A20:M87,2,FALSE),"") ->  | I24: 0 | P24: 0 | W24: 0 | AA24: 0 | AH24: 0 | AO24: 0 | AV24: 0 | AZ24: 0
B25: 16 | C25: =IFERROR(VLOOKUP(B25,A!A21:M88,2,FALSE),"") ->  | I25: 0 | P25: 0 | W25: 0 | AA25: 0 | AH25: 0 | AO25: 0 | AV25: 0 | AZ25: 0
B26: 17 | C26: =IFERROR(VLOOKUP(B26,A!A22:M89,2,FALSE),"") ->  | I26: 0 | P26: 0 | W26: 0 | AA26: 0 | AH26: 0 | AO26: 0 | AV26: 0 | AZ26: 0
B27: 18 | C27: =IFERROR(VLOOKUP(B27,A!A23:M90,2,FALSE),"") ->  | I27: 0 | P27: 0 | W27: 0 | AA27: 0 | AH27: 0 | AO27: 0 | AV27: 0 | AZ27: 0
B28: 19 | C28: =IFERROR(VLOOKUP(B28,A!A24:M91,2,FALSE),"") ->  | I28: 0 | P28: 0 | W28: 0 | AA28: 0 | AH28: 0 | AO28: 0 | AV28: 0 | AZ28: 0
B29: 20 | C29: =IFERROR(VLOOKUP(B29,A!A25:M92,2,FALSE),"") ->  | I29: 0 | P29: 0 | W29: 0 | AA29: 0 | AH29: 0 | AO29: 0 | AV29: 0 | AZ29: 0
B30: 21 | C30: =IFERROR(VLOOKUP(B30,A!A26:M93,2,FALSE),"") ->  | I30: 0 | P30: 0 | W30: 0 | AA30: 0 | AH30: 0 | AO30: 0 | AV30: 0 | AZ30: 0
B31: 22 | C31: =IFERROR(VLOOKUP(B31,A!A27:M94,2,FALSE),"") ->  | I31: 0 | P31: 0 | W31: 0 | AA31: 0 | AH31: 0 | AO31: 0 | AV31: 0 | AZ31: 0
B32: 23 | C32: =IFERROR(VLOOKUP(B32,A!A28:M95,2,FALSE),"") ->  | I32: 0 | P32: 0 | W32: 0 | AA32: 0 | AH32: 0 | AO32: 0 | AV32: 0 | AZ32: 0
B33: 24 | C33: =IFERROR(VLOOKUP(B33,A!A29:M96,2,FALSE),"") ->  | I33: 0 | P33: 0 | W33: 0 | AA33: 0 | AH33: 0 | AO33: 0 | AV33: 0 | AZ33: 0
B34: 25 | C34: =IFERROR(VLOOKUP(B34,A!A30:M97,2,FALSE),"") ->  | I34: 0 | P34: 0 | W34: 0 | AA34: 0 | AH34: 0 | AO34: 0 | AV34: 0 | AZ34: 0
B35: 26 | C35: =IFERROR(VLOOKUP(B35,A!A31:M98,2,FALSE),"") ->  | I35: 0 | P35: 0 | W35: 0 | AA35: 0 | AH35: 0 | AO35: 0 | AV35: 0 | AZ35: 0
B36: 27 | C36: =IFERROR(VLOOKUP(B36,A!A32:M99,2,FALSE),"") ->  | I36: 0 | P36: 0 | W36: 0 | AA36: 0 | AH36: 0 | AO36: 0 | AV36: 0 | AZ36: 0
B37: 28 | C37: =IFERROR(VLOOKUP(B37,A!A33:M100,2,FALSE),"") ->  | I37: 0 | P37: 0 | W37: 0 | AA37: 0 | AH37: 0 | AO37: 0 | AV37: 0 | AZ37: 0
B38: 29 | C38: =IFERROR(VLOOKUP(B38,A!A34:M101,2,FALSE),"") ->  | I38: 0 | P38: 0 | W38: 0 | AA38: 0 | AH38: 0 | AO38: 0 | AV38: 0 | AZ38: 0
B39: 30 | C39: =IFERROR(VLOOKUP(B39,A!A35:M102,2,FALSE),"") ->  | I39: 0 | P39: 0 | W39: 0 | AA39: 0 | AH39: 0 | AO39: 0 | AV39: 0 | AZ39: 0
B40: 31 | C40: =IFERROR(VLOOKUP(B40,A!A36:M103,2,FALSE),"") ->  | I40: 0 | P40: 0 | W40: 0 | AA40: 0 | AH40: 0 | AO40: 0 | AV40: 0 | AZ40: 0
B41: 32 | C41: =IFERROR(VLOOKUP(B41,A!A37:M104,2,FALSE),"") ->  | I41: 0 | P41: 0 | W41: 0 | AA41: 0 | AH41: 0 | AO41: 0 | AV41: 0 | AZ41: 0
B42: 33 | C42: =IFERROR(VLOOKUP(B42,A!A38:M105,2,FALSE),"") ->  | I42: 0 | P42: 0 | W42: 0 | AA42: 0 | AH42: 0 | AO42: 0 | AV42: 0 | AZ42: 0
B43: 34 | C43: =IFERROR(VLOOKUP(B43,A!A39:M106,2,FALSE),"") ->  | I43: 0 | P43: 0 | W43: 0 | AA43: 0 | AH43: 0 | AO43: 0 | AV43: 0 | AZ43: 0
B44: 35 | C44: =IFERROR(VLOOKUP(B44,A!A40:M107,2,FALSE),"") ->  | I44: 0 | P44: 0 | W44: 0 | AA44: 0 | AH44: 0 | AO44: 0 | AV44: 0 | AZ44: 0
B45: 36 | C45: =IFERROR(VLOOKUP(B45,A!A41:M108,2,FALSE),"") ->  | I45: 0 | P45: 0 | W45: 0 | AA45: 0 | AH45: 0 | AO45: 0 | AV45: 0 | AZ45: 0
B46: 37 | C46: =IFERROR(VLOOKUP(B46,A!A42:M109,2,FALSE),"") ->  | I46: 0 | P46: 0 | W46: 0 | AA46: 0 | AH46: 0 | AO46: 0 | AV46: 0 | AZ46: 0
B47: 38 | C47: =IFERROR(VLOOKUP(B47,A!A43:M110,2,FALSE),"") ->  | I47: 0 | P47: 0 | W47: 0 | AA47: 0 | AH47: 0 | AO47: 0 | AV47: 0 | AZ47: 0
B48: 39 | C48: =IFERROR(VLOOKUP(B48,A!A44:M111,2,FALSE),"") ->  | I48: 0 | P48: 0 | W48: 0 | AA48: 0 | AH48: 0 | AO48: 0 | AV48: 0 | AZ48: 0
B49: 40 | C49: =IFERROR(VLOOKUP(B49,A!A45:M112,2,FALSE),"") ->  | I49: 0 | P49: 0 | W49: 0 | AA49: 0 | AH49: 0 | AO49: 0 | AV49: 0 | AZ49: 0
B50: 41 | C50: =IFERROR(VLOOKUP(B50,A!A46:M113,2,FALSE),"") ->  | I50: 0 | P50: 0 | W50: 0 | AA50: 0 | AH50: 0 | AO50: 0 | AV50: 0 | AZ50: 0
B51: 42 | C51: =IFERROR(VLOOKUP(B51,A!A47:M114,2,FALSE),"") ->  | I51: 0 | P51: 0 | W51: 0 | AA51: 0 | AH51: 0 | AO51: 0 | AV51: 0 | AZ51: 0
B52: 43 | C52: =IFERROR(VLOOKUP(B52,A!A48:M115,2,FALSE),"") ->  | I52: 0 | P52: 0 | W52: 0 | AA52: 0 | AH52: 0 | AO52: 0 | AV52: 0 | AZ52: 0
B53: 44 | C53: =IFERROR(VLOOKUP(B53,A!A49:M116,2,FALSE),"") ->  | I53: 0 | P53: 0 | W53: 0 | AA53: 0 | AH53: 0 | AO53: 0 | AV53: 0 | AZ53: 0
B54: 45 | C54: =IFERROR(VLOOKUP(B54,A!A50:M117,2,FALSE),"") ->  | I54: 0 | P54: 0 | W54: 0 | AA54: 0 | AH54: 0 | AO54: 0 | AV54: 0 | AZ54: 0
B55: 46 | C55: =IFERROR(VLOOKUP(B55,A!A51:M118,2,FALSE),"") ->  | I55: 0 | P55: 0 | W55: 0 | AA55: 0 | AH55: 0 | AO55: 0 | AV55: 0 | AZ55: 0
B56: 47 | C56: =IFERROR(VLOOKUP(B56,A!A52:M119,2,FALSE),"") ->  | I56: 0 | P56: 0 | W56: 0 | AA56: 0 | AH56: 0 | AO56: 0 | AV56: 0 | AZ56: 0
B57: 48 | C57: =IFERROR(VLOOKUP(B57,A!A53:M120,2,FALSE),"") ->  | I57: 0 | P57: 0 | W57: 0 | AA57: 0 | AH57: 0 | AO57: 0 | AV57: 0 | AZ57: 0
B58: 49 | C58: =IFERROR(VLOOKUP(B58,A!A54:M121,2,FALSE),"") ->  | I58: 0 | P58: 0 | W58: 0 | AA58: 0 | AH58: 0 | AO58: 0 | AV58: 0 | AZ58: 0
B59: 50 | C59: =IFERROR(VLOOKUP(B59,A!A55:M122,2,FALSE),"") ->  | I59: 0 | P59: 0 | W59: 0 | AA59: 0 | AH59: 0 | AO59: 0 | AV59: 0 | AZ59: 0
B60: 51 | C60: =IFERROR(VLOOKUP(B60,A!A56:M123,2,FALSE),"") ->  | I60: 0 | P60: 0 | W60: 0 | AA60: 0 | AH60: 0 | AO60: 0 | AV60: 0 | AZ60: 0
B61: 52 | C61: =IFERROR(VLOOKUP(B61,A!A57:M124,2,FALSE),"") ->  | I61: 0 | P61: 0 | W61: 0 | AA61: 0 | AH61: 0 | AO61: 0 | AV61: 0 | AZ61: 0

Sheet يوليو
A1: بسم الله الرحمن الرحيم
AQ3: اسم المدرسة: | AT3: =الرئيسية!B12 -> 0
B4: وزارة التربية والتعليم | AQ4: الصف: | AT4: =الرئيسية!B13 -> خامس
B5: مكتب التربية والتعليم بمحافظة | C5: =الرئيسية!B14 -> الحديدة | H5: كشـف رصـد درجــات شهر يوليو للمرحلـة الأساسيـة | AQ5: رقم الكشف ( 1 )
B6: مكتب التربية بمديرية : | C6: =الرئيسية!B15 -> الحالي | P6: للصف | T6: =الرئيسية!B13 -> خامس | W6: للعام الدراسي | AA6: =الرئيسية!B16 -> 2026 / 2027
A7: الرقم | B7: المواد الدراسية | C7: القرآن الكريم | I7: التربية إسلامية | O7: اللغة العربية | U7: اللغة الإنجليزية | AA7: الرياضيات | AG7: العلوم | AM7: الاجتماعيات | AS7: السلوك | AY7: المجموع الكلي | AZ7: النتيجة النهائية | BA7: النسبة / المعدل | BB7: التقدير العام | BC7: الترتيب | BD7: محل وتاريخ الميلاد
B8: اسم الطالب من واقع شهادة الميلاد | C8: الواجبات | D8: الشفوي | E8: المواظبة | F8: السلوك | G8: التحريري | H8: المجموع | I8: الواجبات | J8: الشفوي | K8: المواظبة | L8: السلوك | M8: التحريري | N8: المجموع | O8: الواجبات | P8: الشفوي | Q8: المواظبة | R8: السلوك | S8: التحريري | T8: المجموع | U8: الواجبات | V8: الشفوي | W8: المواظبة | X8: السلوك | Y8: التحريري | Z8: المجموع | AA8: الواجبات | AB8: الشفوي | AC8: المواظبة | AD8: السلوك | AE8: التحريري | AF8: المجموع | AG8: الواجبات | AH8: الشفوي | AI8: المواظبة | AJ8: السلوك | AK8: التحريري | AL8: المجموع | AM8: الواجبات | AN8: الشفوي | AO8: المواظبة | AP8: السلوك | AQ8: التحريري | AR8: المجموع | AS8: الواجبات | AT8: الشفوي | AU8: المواظبة | AV8: السلوك | AW8: التحريري | AX8: المجموع | BD8: المحافظة | BE8: المديرية | BF8: اليوم | BG8: الشهر | BH8: السنة
C9: 20 | D9: 20 | E9: 10 | F9: 10 | G9: 40 | H9: 100 | I9: 20 | J9: 20 | K9: 10 | L9: 10 | M9: 40 | N9: 100 | O9: 20 | P9: 20 | Q9: 10 | R9: 10 | S9: 40 | T9: 100 | U9: 20 | V9: 20 | W9: 10 | X9: 10 | Y9: 40 | Z9: 100 | AA9: 20 | AB9: 20 | AC9: 10 | AD9: 10 | AE9: 40 | AF9: 100 | AG9: 20 | AH9: 20 | AI9: 10 | AJ9: 10 | AK9: 40 | AL9: 100 | AM9: 20 | AN9: 20 | AO9: 10 | AP9: 10 | AQ9: 40 | AR9: 100 | AS9: 20 | AT9: 20 | AU9: 10 | AV9: 10 | AW9: 40 | AX9: 100
A10: 1 | B10: =IFERROR(VLOOKUP(A10,A!$A$6:$M$99,2,FALSE),"") ->  | C10: =VLOOKUP(A10,'D1'!$B$10:$AZ$109,3,FALSE) -> 10 | D10: =VLOOKUP(A10,'D1'!$B$10:$AZ$109,4,FALSE) -> 10 | E10: =VLOOKUP(A10,'D1'!$B$10:$AZ$109,5,FALSE) -> 5 | F10: =VLOOKUP(A10,'D1'!$B$10:$AZ$109,6,FALSE) -> 5 | G10: =VLOOKUP(A10,'D1'!$B$10:$AZ$109,7,FALSE) -> 20 | H10: =SUM(C10:G10) -> 50 | I10: =VLOOKUP(A10,'D2'!$B$10:$AZ$109,3,FALSE) -> 31 | J10: =VLOOKUP(A10,'D2'!$B$10:$AZ$109,4,FALSE) -> 32 | K10: =VLOOKUP(A10,'D2'!$B$10:$AZ$109,5,FALSE) -> 33 | L10: =VLOOKUP(A10,'D2'!$B$10:$AZ$109,6,FALSE) -> 34 | M10: =VLOOKUP(A10,'D2'!$B$10:$AZ$109,7,FALSE) -> 35 | N10: =SUM(I10:M10) -> 165 | O10: =VLOOKUP(A10,'D3'!$B$10:$AZ$109,3,FALSE) -> 91 | P10: =VLOOKUP(A10,'D3'!$B$10:$AZ$109,4,FALSE) -> 92 | Q10: =VLOOKUP(A10,'D3'!$B$10:$AZ$109,5,FALSE) -> 93 | R10: =VLOOKUP(A10,'D3'!$B$10:$AZ$109,6,FALSE) -> 94 | S10: =VLOOKUP(A10,'D3'!$B$10:$AZ$109,7,FALSE) -> 95 | T10: =SUM(O10:S10) -> 465 | U10: =VLOOKUP(A10,'D4'!$B$10:$AZ$109,3,FALSE) -> 91 | V10: =VLOOKUP(A10,'D4'!$B$10:$AZ$109,4,FALSE) -> 92 | W10: =VLOOKUP(A10,'D4'!$B$10:$AZ$109,5,FALSE) -> 93 | X10: =VLOOKUP(A10,'D4'!$B$10:$AZ$109,6,FALSE) -> 94 | Y10: =VLOOKUP(A10,'D4'!$B$10:$AZ$109,7,FALSE) -> 95 | Z10: =SUM(U10:Y10) -> 465 | AA10: =VLOOKUP(A10,'D5'!$B$10:$AZ$109,3,FALSE) -> 91 | AB10: =VLOOKUP(A10,'D5'!$B$10:$AZ$109,4,FALSE) -> 92 | AC10: =VLOOKUP(A10,'D5'!$B$10:$AZ$109,5,FALSE) -> 93 | AD10: =VLOOKUP(A10,'D5'!$B$10:$AZ$109,6,FALSE) -> 94 | AE10: =VLOOKUP(A10,'D5'!$B$10:$AZ$109,7,FALSE) -> 95 | AF10: =SUM(AA10:AE10) -> 465 | AG10: =VLOOKUP(A10,'D6'!$B$10:$AZ$109,3,FALSE) -> 91 | AH10: =VLOOKUP(A10,'D6'!$B$10:$AZ$109,4,FALSE) -> 92 | AI10: =VLOOKUP(A10,'D6'!$B$10:$AZ$109,5,FALSE) -> 93 | AJ10: =VLOOKUP(A10,'D6'!$B$10:$AZ$109,6,FALSE) -> 94 | AK10: =VLOOKUP(A10,'D6'!$B$10:$AZ$109,7,FALSE) -> 95 | AL10: =SUM(AG10:AK10) -> 465 | AM10: =VLOOKUP(A10,'D7'!$B$10:$AZ$109,3,FALSE) -> 91 | AN10: =VLOOKUP(A10,'D7'!$B$10:$AZ$109,4,FALSE) -> 92 | AO10: =VLOOKUP(A10,'D7'!$B$10:$AZ$109,5,FALSE) -> 93 | AP10: =VLOOKUP(A10,'D7'!$B$10:$AZ$109,6,FALSE) -> 94 | AQ10: =VLOOKUP(A10,'D7'!$B$10:$AZ$109,7,FALSE) -> 95 | AR10: =SUM(AM10:AQ10) -> 465 | AS10: =VLOOKUP(A10,'D8'!$B$10:$AZ$109,3,FALSE) -> 91 | AT10: =VLOOKUP(A10,'D8'!$B$10:$AZ$109,4,FALSE) -> 92 | AU10: =VLOOKUP(A10,'D8'!$B$10:$AZ$109,5,FALSE) -> 93 | AV10: =VLOOKUP(A10,'D8'!$B$10:$AZ$109,6,FALSE) -> 94 | AW10: =VLOOKUP(A10,'D8'!$B$10:$AZ$109,7,FALSE) -> 95 | AX10: =SUM(AS10:AW10) -> 465 | AY10: =AX10+AR10+AL10+AF10+Z10+T10+N10+H10 -> 3005 | AZ10: =IF(OR(H10="غ",N10="غ",T10="غ",AF10="غ",AL10="غ",AR10="غ",AX10="غ"),"غائب",IF(OR(H10<50,N10<50,T10<50,AF10<50,AL10<50,AR10<50,AX10<50),"راسب","ناجح")) -> ناجح | BA10: =ROUND((AY10/8),2) -> 375.63 | BB10: =IF(BA10>90,"ممتاز",IF(BA10>80,"جيد جداً",IF(BA10>60,"جيد",IF(BA10>=50,"مقبول","")))) -> ممتاز | BC10: =IF(BL10>"",BL10&BK10,"") -> الأول | BD10: =IFERROR(VLOOKUP(A10,A!$A$6:$M$99,6,FALSE),"") ->  | BE10: =IFERROR(VLOOKUP(A10,A!$A$6:$M$99,7,FALSE),"") ->  | BF10: =IFERROR(VLOOKUP(A10,A!$A$6:$M$99,9,FALSE),"") ->  | BG10: =IFERROR(VLOOKUP(A10,A!$A$6:$M$99,10,FALSE),"") ->  | BH10: =IFERROR(VLOOKUP(A10,A!$A$6:$M$99,11,FALSE),"") ->  | BI10: =IF(COUNTIF($AY$10:AY10,AY10)=1,AY10) -> 3005 | BJ10: =RANK(AY10,$BI$10:$BI$64) -> 1 | BK10: =IF(COUNTIF($AY$10:AY10,AY10)>1," مكرر ","") ->  | BL10: =IF(BJ10=1,"الأول",IF(BJ10=2,"الثاني",IF(BJ10=3,"الثالث",IF(BJ10=4,"الرابع",IF(BJ10=5,"الخامس",IF(BJ10=6,"السادس",IF(BJ10=7,"السابع",IF(BJ10=8,"الثامن",IF(BJ10=9,"التاسع",IF(BJ10=10,"العاشر","")))))))))) -> الأول
A11: 2 | B11: =IFERROR(VLOOKUP(A11,A!$A$6:$M$99,2,FALSE),"") ->  | C11: =VLOOKUP(A11,'D1'!$B$10:$AZ$109,3,FALSE) -> 0 | D11: =VLOOKUP(A11,'D1'!$B$10:$AZ$109,4,FALSE) -> 0 | E11: =VLOOKUP(A11,'D1'!$B$10:$AZ$109,5,FALSE) -> 0 | F11: =VLOOKUP(A11,'D1'!$B$10:$AZ$109,6,FALSE) -> 0 | G11: =VLOOKUP(A11,'D1'!$B$10:$AZ$109,7,FALSE) -> 0 | H11: =SUM(C11:G11) -> 0 | I11: =VLOOKUP(A11,'D2'!$B$10:$AZ$109,3,FALSE) -> 0 | J11: =VLOOKUP(A11,'D2'!$B$10:$AZ$109,4,FALSE) -> 0 | K11: =VLOOKUP(A11,'D2'!$B$10:$AZ$109,5,FALSE) -> 0 | L11: =VLOOKUP(A11,'D2'!$B$10:$AZ$109,6,FALSE) -> 0 | M11: =VLOOKUP(A11,'D2'!$B$10:$AZ$109,7,FALSE) -> 0 | N11: =SUM(I11:M11) -> 0 | O11: =VLOOKUP(A11,'D3'!$B$10:$AZ$109,3,FALSE) -> 0 | P11: =VLOOKUP(A11,'D3'!$B$10:$AZ$109,4,FALSE) -> 0 | Q11: =VLOOKUP(A11,'D3'!$B$10:$AZ$109,5,FALSE) -> 0 | R11: =VLOOKUP(A11,'D3'!$B$10:$AZ$109,6,FALSE) -> 0 | S11: =VLOOKUP(A11,'D3'!$B$10:$AZ$109,7,FALSE) -> 0 | T11: =SUM(O11:S11) -> 0 | U11: =VLOOKUP(A11,'D4'!$B$10:$AZ$109,3,FALSE) -> 0 | V11: =VLOOKUP(A11,'D4'!$B$10:$AZ$109,4,FALSE) -> 0 | W11: =VLOOKUP(A11,'D4'!$B$10:$AZ$109,5,FALSE) -> 0 | X11: =VLOOKUP(A11,'D4'!$B$10:$AZ$109,6,FALSE) -> 0 | Y11: =VLOOKUP(A11,'D4'!$B$10:$AZ$109,7,FALSE) -> 0 | Z11: =SUM(U11:Y11) -> 0 | AA11: =VLOOKUP(A11,'D5'!$B$10:$AZ$109,3,FALSE) -> 0 | AB11: =VLOOKUP(A11,'D5'!$B$10:$AZ$109,4,FALSE) -> 0 | AC11: =VLOOKUP(A11,'D5'!$B$10:$AZ$109,5,FALSE) -> 0 | AD11: =VLOOKUP(A11,'D5'!$B$10:$AZ$109,6,FALSE) -> 0 | AE11: =VLOOKUP(A11,'D5'!$B$10:$AZ$109,7,FALSE) -> 0 | AF11: =SUM(AA11:AE11) -> 0 | AG11: =VLOOKUP(A11,'D6'!$B$10:$AZ$109,3,FALSE) -> 0 | AH11: =VLOOKUP(A11,'D6'!$B$10:$AZ$109,4,FALSE) -> 0 | AI11: =VLOOKUP(A11,'D6'!$B$10:$AZ$109,5,FALSE) -> 0 | AJ11: =VLOOKUP(A11,'D6'!$B$10:$AZ$109,6,FALSE) -> 0 | AK11: =VLOOKUP(A11,'D6'!$B$10:$AZ$109,7,FALSE) -> 0 | AL11: =SUM(AG11:AK11) -> 0 | AM11: =VLOOKUP(A11,'D7'!$B$10:$AZ$109,3,FALSE) -> 0 | AN11: =VLOOKUP(A11,'D7'!$B$10:$AZ$109,4,FALSE) -> 0 | AO11: =VLOOKUP(A11,'D7'!$B$10:$AZ$109,5,FALSE) -> 0 | AP11: =VLOOKUP(A11,'D7'!$B$10:$AZ$109,6,FALSE) -> 0 | AQ11: =VLOOKUP(A11,'D7'!$B$10:$AZ$109,7,FALSE) -> 0 | AR11: =SUM(AM11:AQ11) -> 0 | AS11: =VLOOKUP(A11,'D8'!$B$10:$AZ$109,3,FALSE) -> 0 | AT11: =VLOOKUP(A11,'D8'!$B$10:$AZ$109,4,FALSE) -> 0 | AU11: =VLOOKUP(A11,'D8'!$B$10:$AZ$109,5,FALSE) -> 0 | AV11: =VLOOKUP(A11,'D8'!$B$10:$AZ$109,6,FALSE) -> 0 | AW11: =VLOOKUP(A11,'D8'!$B$10:$AZ$109,7,FALSE) -> 0 | AX11: =SUM(AS11:AW11) -> 0 | AY11: =AX11+AR11+AL11+AF11+Z11+T11+N11+H11 -> 0 | AZ11: =IF(OR(H11="غ",N11="غ",T11="غ",AF11="غ",AL11="غ",AR11="غ",AX11="غ"),"غائب",IF(OR(H11<50,N11<50,T11<50,AF11<50,AL11<50,AR11<50,AX11<50),"راسب","ناجح")) -> راسب | BA11: =ROUND((AY11/8),2) -> 0 | BB11: =IF(BA11>90,"ممتاز",IF(BA11>80,"جيد جداً",IF(BA11>60,"جيد",IF(BA11>=50,"مقبول","")))) ->  | BC11: =IF(BL11>"",BL11&BK11,"") -> الثاني | BD11: =IFERROR(VLOOKUP(A11,A!$A$6:$M$99,6,FALSE),"") ->  | BE11: =IFERROR(VLOOKUP(A11,A!$A$6:$M$99,7,FALSE),"") ->  | BF11: =IFERROR(VLOOKUP(A11,A!$A$6:$M$99,9,FALSE),"") ->  | BG11: =IFERROR(VLOOKUP(A11,A!$A$6:$M$99,10,FALSE),"") ->  | BH11: =IFERROR(VLOOKUP(A11,A!$A$6:$M$99,11,FALSE),"") ->  | BI11: =IF(COUNTIF($AY$10:AY11,AY11)=1,AY11) -> 0 | BJ11: =RANK(AY11,$BI$10:$BI$64) -> 2 | BK11: =IF(COUNTIF($AY$10:AY11,AY11)>1," مكرر ","") ->  | BL11: =IF(BJ11=1,"الأول",IF(BJ11=2,"الثاني",IF(BJ11=3,"الثالث",IF(BJ11=4,"الرابع",IF(BJ11=5,"الخامس",IF(BJ11=6,"السادس",IF(BJ11=7,"السابع",IF(BJ11=8,"الثامن",IF(BJ11=9,"التاسع",IF(BJ11=10,"العاشر","")))))))))) -> الثاني
A12: 3 | B12: =IFERROR(VLOOKUP(A12,A!$A$6:$M$99,2,FALSE),"") ->  | C12: =VLOOKUP(A12,'D1'!$B$10:$AZ$109,3,FALSE) -> 0 | D12: =VLOOKUP(A12,'D1'!$B$10:$AZ$109,4,FALSE) -> 0 | E12: =VLOOKUP(A12,'D1'!$B$10:$AZ$109,5,FALSE) -> 0 | F12: =VLOOKUP(A12,'D1'!$B$10:$AZ$109,6,FALSE) -> 0 | G12: =VLOOKUP(A12,'D1'!$B$10:$AZ$109,7,FALSE) -> 0 | H12: 0 | I12: =VLOOKUP(A12,'D2'!$B$10:$AZ$109,3,FALSE) -> 0 | J12: =VLOOKUP(A12,'D2'!$B$10:$AZ$109,4,FALSE) -> 0 | K12: =VLOOKUP(A12,'D2'!$B$10:$AZ$109,5,FALSE) -> 0 | L12: =VLOOKUP(A12,'D2'!$B$10:$AZ$109,6,FALSE) -> 0 | M12: =VLOOKUP(A12,'D2'!$B$10:$AZ$109,7,FALSE) -> 0 | N12: 0 | O12: =VLOOKUP(A12,'D3'!$B$10:$AZ$109,3,FALSE) -> 0 | P12: =VLOOKUP(A12,'D3'!$B$10:$AZ$109,4,FALSE) -> 0 | Q12: =VLOOKUP(A12,'D3'!$B$10:$AZ$109,5,FALSE) -> 0 | R12: =VLOOKUP(A12,'D3'!$B$10:$AZ$109,6,FALSE) -> 0 | S12: =VLOOKUP(A12,'D3'!$B$10:$AZ$109,7,FALSE) -> 0 | T12: 0 | U12: =VLOOKUP(A12,'D4'!$B$10:$AZ$109,3,FALSE) -> 0 | V12: =VLOOKUP(A12,'D4'!$B$10:$AZ$109,4,FALSE) -> 0 | W12: =VLOOKUP(A12,'D4'!$B$10:$AZ$109,5,FALSE) -> 0 | X12: =VLOOKUP(A12,'D4'!$B$10:$AZ$109,6,FALSE) -> 0 | Y12: =VLOOKUP(A12,'D4'!$B$10:$AZ$109,7,FALSE) -> 0 | Z12: 0 | AA12: =VLOOKUP(A12,'D5'!$B$10:$AZ$109,3,FALSE) -> 0 | AB12: =VLOOKUP(A12,'D5'!$B$10:$AZ$109,4,FALSE) -> 0 | AC12: =VLOOKUP(A12,'D5'!$B$10:$AZ$109,5,FALSE) -> 0 | AD12: =VLOOKUP(A12,'D5'!$B$10:$AZ$109,6,FALSE) -> 0 | AE12: =VLOOKUP(A12,'D5'!$B$10:$AZ$109,7,FALSE) -> 0 | AF12: 0 | AG12: =VLOOKUP(A12,'D6'!$B$10:$AZ$109,3,FALSE) -> 0 | AH12: =VLOOKUP(A12,'D6'!$B$10:$AZ$109,4,FALSE) -> 0 | AI12: =VLOOKUP(A12,'D6'!$B$10:$AZ$109,5,FALSE) -> 0 | AJ12: =VLOOKUP(A12,'D6'!$B$10:$AZ$109,6,FALSE) -> 0 | AK12: =VLOOKUP(A12,'D6'!$B$10:$AZ$109,7,FALSE) -> 0 | AL12: 0 | AM12: =VLOOKUP(A12,'D7'!$B$10:$AZ$109,3,FALSE) -> 0 | AN12: =VLOOKUP(A12,'D7'!$B$10:$AZ$109,4,FALSE) -> 0 | AO12: =VLOOKUP(A12,'D7'!$B$10:$AZ$109,5,FALSE) -> 0 | AP12: =VLOOKUP(A12,'D7'!$B$10:$AZ$109,6,FALSE) -> 0 | AQ12: =VLOOKUP(A12,'D7'!$B$10:$AZ$109,7,FALSE) -> 0 | AR12: 0 | AS12: =VLOOKUP(A12,'D8'!$B$10:$AZ$109,3,FALSE) -> 0 | AT12: =VLOOKUP(A12,'D8'!$B$10:$AZ$109,4,FALSE) -> 0 | AU12: =VLOOKUP(A12,'D8'!$B$10:$AZ$109,5,FALSE) -> 0 | AV12: =VLOOKUP(A12,'D8'!$B$10:$AZ$109,6,FALSE) -> 0 | AW12: =VLOOKUP(A12,'D8'!$B$10:$AZ$109,7,FALSE) -> 0 | AX12: 0 | AY12: 0 | AZ12: راسب | BA12: 0 | BC12: الثاني مكرر | BD12: =IFERROR(VLOOKUP(A12,A!$A$6:$M$99,6,FALSE),"") ->  | BE12: =IFERROR(VLOOKUP(A12,A!$A$6:$M$99,7,FALSE),"") ->  | BF12: =IFERROR(VLOOKUP(A12,A!$A$6:$M$99,9,FALSE),"") ->  | BG12: =IFERROR(VLOOKUP(A12,A!$A$6:$M$99,10,FALSE),"") ->  | BH12: =IFERROR(VLOOKUP(A12,A!$A$6:$M$99,11,FALSE),"") ->  | BI12: =IF(COUNTIF($AY$10:AY12,AY12)=1,AY12) -> FALSE | BJ12: 2 | BK12: =IF(COUNTIF($AY$10:AY12,AY12)>1," مكرر ","") -> مكرر | BL12: الثاني
A13: 4 | B13: =IFERROR(VLOOKUP(A13,A!$A$6:$M$99,2,FALSE),"") ->  | C13: =VLOOKUP(A13,'D1'!$B$10:$AZ$109,3,FALSE) -> 0 | D13: =VLOOKUP(A13,'D1'!$B$10:$AZ$109,4,FALSE) -> 0 | E13: =VLOOKUP(A13,'D1'!$B$10:$AZ$109,5,FALSE) -> 0 | F13: =VLOOKUP(A13,'D1'!$B$10:$AZ$109,6,FALSE) -> 0 | G13: =VLOOKUP(A13,'D1'!$B$10:$AZ$109,7,FALSE) -> 0 | H13: 0 | I13: =VLOOKUP(A13,'D2'!$B$10:$AZ$109,3,FALSE) -> 0 | J13: =VLOOKUP(A13,'D2'!$B$10:$AZ$109,4,FALSE) -> 0 | K13: =VLOOKUP(A13,'D2'!$B$10:$AZ$109,5,FALSE) -> 0 | L13: =VLOOKUP(A13,'D2'!$B$10:$AZ$109,6,FALSE) -> 0 | M13: =VLOOKUP(A13,'D2'!$B$10:$AZ$109,7,FALSE) -> 0 | N13: 0 | O13: =VLOOKUP(A13,'D3'!$B$10:$AZ$109,3,FALSE) -> 0 | P13: =VLOOKUP(A13,'D3'!$B$10:$AZ$109,4,FALSE) -> 0 | Q13: =VLOOKUP(A13,'D3'!$B$10:$AZ$109,5,FALSE) -> 0 | R13: =VLOOKUP(A13,'D3'!$B$10:$AZ$109,6,FALSE) -> 0 | S13: =VLOOKUP(A13,'D3'!$B$10:$AZ$109,7,FALSE) -> 0 | T13: 0 | U13: =VLOOKUP(A13,'D4'!$B$10:$AZ$109,3,FALSE) -> 0 | V13: =VLOOKUP(A13,'D4'!$B$10:$AZ$109,4,FALSE) -> 0 | W13: =VLOOKUP(A13,'D4'!$B$10:$AZ$109,5,FALSE) -> 0 | X13: =VLOOKUP(A13,'D4'!$B$10:$AZ$109,6,FALSE) -> 0 | Y13: =VLOOKUP(A13,'D4'!$B$10:$AZ$109,7,FALSE) -> 0 | Z13: 0 | AA13: =VLOOKUP(A13,'D5'!$B$10:$AZ$109,3,FALSE) -> 0 | AB13: =VLOOKUP(A13,'D5'!$B$10:$AZ$109,4,FALSE) -> 0 | AC13: =VLOOKUP(A13,'D5'!$B$10:$AZ$109,5,FALSE) -> 0 | AD13: =VLOOKUP(A13,'D5'!$B$10:$AZ$109,6,FALSE) -> 0 | AE13: =VLOOKUP(A13,'D5'!$B$10:$AZ$109,7,FALSE) -> 0 | AF13: 0 | AG13: =VLOOKUP(A13,'D6'!$B$10:$AZ$109,3,FALSE) -> 0 | AH13: =VLOOKUP(A13,'D6'!$B$10:$AZ$109,4,FALSE) -> 0 | AI13: =VLOOKUP(A13,'D6'!$B$10:$AZ$109,5,FALSE) -> 0 | AJ13: =VLOOKUP(A13,'D6'!$B$10:$AZ$109,6,FALSE) -> 0 | AK13: =VLOOKUP(A13,'D6'!$B$10:$AZ$109,7,FALSE) -> 0 | AL13: 0 | AM13: =VLOOKUP(A13,'D7'!$B$10:$AZ$109,3,FALSE) -> 0 | AN13: =VLOOKUP(A13,'D7'!$B$10:$AZ$109,4,FALSE) -> 0 | AO13: =VLOOKUP(A13,'D7'!$B$10:$AZ$109,5,FALSE) -> 0 | AP13: =VLOOKUP(A13,'D7'!$B$10:$AZ$109,6,FALSE) -> 0 | AQ13: =VLOOKUP(A13,'D7'!$B$10:$AZ$109,7,FALSE) -> 0 | AR13: 0 | AS13: =VLOOKUP(A13,'D8'!$B$10:$AZ$109,3,FALSE) -> 0 | AT13: =VLOOKUP(A13,'D8'!$B$10:$AZ$109,4,FALSE) -> 0 | AU13: =VLOOKUP(A13,'D8'!$B$10:$AZ$109,5,FALSE) -> 0 | AV13: =VLOOKUP(A13,'D8'!$B$10:$AZ$109,6,FALSE) -> 0 | AW13: =VLOOKUP(A13,'D8'!$B$10:$AZ$109,7,FALSE) -> 0 | AX13: 0 | AY13: 0 | AZ13: راسب | BA13: 0 | BC13: الثاني مكرر | BD13: =IFERROR(VLOOKUP(A13,A!$A$6:$M$99,6,FALSE),"") ->  | BE13: =IFERROR(VLOOKUP(A13,A!$A$6:$M$99,7,FALSE),"") ->  | BF13: =IFERROR(VLOOKUP(A13,A!$A$6:$M$99,9,FALSE),"") ->  | BG13: =IFERROR(VLOOKUP(A13,A!$A$6:$M$99,10,FALSE),"") ->  | BH13: =IFERROR(VLOOKUP(A13,A!$A$6:$M$99,11,FALSE),"") ->  | BI13: =IF(COUNTIF($AY$10:AY13,AY13)=1,AY13) -> FALSE | BJ13: 2 | BK13: =IF(COUNTIF($AY$10:AY13,AY13)>1," مكرر ","") -> مكرر | BL13: الثاني
A14: 5 | B14: =IFERROR(VLOOKUP(A14,A!$A$6:$M$99,2,FALSE),"") ->  | C14: =VLOOKUP(A14,'D1'!$B$10:$AZ$109,3,FALSE) -> 0 | D14: =VLOOKUP(A14,'D1'!$B$10:$AZ$109,4,FALSE) -> 0 | E14: =VLOOKUP(A14,'D1'!$B$10:$AZ$109,5,FALSE) -> 0 | F14: =VLOOKUP(A14,'D1'!$B$10:$AZ$109,6,FALSE) -> 0 | G14: =VLOOKUP(A14,'D1'!$B$10:$AZ$109,7,FALSE) -> 0 | H14: 0 | I14: =VLOOKUP(A14,'D2'!$B$10:$AZ$109,3,FALSE) -> 0 | J14: =VLOOKUP(A14,'D2'!$B$10:$AZ$109,4,FALSE) -> 0 | K14: =VLOOKUP(A14,'D2'!$B$10:$AZ$109,5,FALSE) -> 0 | L14: =VLOOKUP(A14,'D2'!$B$10:$AZ$109,6,FALSE) -> 0 | M14: =VLOOKUP(A14,'D2'!$B$10:$AZ$109,7,FALSE) -> 0 | N14: 0 | O14: =VLOOKUP(A14,'D3'!$B$10:$AZ$109,3,FALSE) -> 0 | P14: =VLOOKUP(A14,'D3'!$B$10:$AZ$109,4,FALSE) -> 0 | Q14: =VLOOKUP(A14,'D3'!$B$10:$AZ$109,5,FALSE) -> 0 | R14: =VLOOKUP(A14,'D3'!$B$10:$AZ$109,6,FALSE) -> 0 | S14: =VLOOKUP(A14,'D3'!$B$10:$AZ$109,7,FALSE) -> 0 | T14: 0 | U14: =VLOOKUP(A14,'D4'!$B$10:$AZ$109,3,FALSE) -> 0 | V14: =VLOOKUP(A14,'D4'!$B$10:$AZ$109,4,FALSE) -> 0 | W14: =VLOOKUP(A14,'D4'!$B$10:$AZ$109,5,FALSE) -> 0 | X14: =VLOOKUP(A14,'D4'!$B$10:$AZ$109,6,FALSE) -> 0 | Y14: =VLOOKUP(A14,'D4'!$B$10:$AZ$109,7,FALSE) -> 0 | Z14: 0 | AA14: =VLOOKUP(A14,'D5'!$B$10:$AZ$109,3,FALSE) -> 0 | AB14: =VLOOKUP(A14,'D5'!$B$10:$AZ$109,4,FALSE) -> 0 | AC14: =VLOOKUP(A14,'D5'!$B$10:$AZ$109,5,FALSE) -> 0 | AD14: =VLOOKUP(A14,'D5'!$B$10:$AZ$109,6,FALSE) -> 0 | AE14: =VLOOKUP(A14,'D5'!$B$10:$AZ$109,7,FALSE) -> 0 | AF14: 0 | AG14: =VLOOKUP(A14,'D6'!$B$10:$AZ$109,3,FALSE) -> 0 | AH14: =VLOOKUP(A14,'D6'!$B$10:$AZ$109,4,FALSE) -> 0 | AI14: =VLOOKUP(A14,'D6'!$B$10:$AZ$109,5,FALSE) -> 0 | AJ14: =VLOOKUP(A14,'D6'!$B$10:$AZ$109,6,FALSE) -> 0 | AK14: =VLOOKUP(A14,'D6'!$B$10:$AZ$109,7,FALSE) -> 0 | AL14: 0 | AM14: =VLOOKUP(A14,'D7'!$B$10:$AZ$109,3,FALSE) -> 0 | AN14: =VLOOKUP(A14,'D7'!$B$10:$AZ$109,4,FALSE) -> 0 | AO14: =VLOOKUP(A14,'D7'!$B$10:$AZ$109,5,FALSE) -> 0 | AP14: =VLOOKUP(A14,'D7'!$B$10:$AZ$109,6,FALSE) -> 0 | AQ14: =VLOOKUP(A14,'D7'!$B$10:$AZ$109,7,FALSE) -> 0 | AR14: 0 | AS14: =VLOOKUP(A14,'D8'!$B$10:$AZ$109,3,FALSE) -> 0 | AT14: =VLOOKUP(A14,'D8'!$B$10:$AZ$109,4,FALSE) -> 0 | AU14: =VLOOKUP(A14,'D8'!$B$10:$AZ$109,5,FALSE) -> 0 | AV14: =VLOOKUP(A14,'D8'!$B$10:$AZ$109,6,FALSE) -> 0 | AW14: =VLOOKUP(A14,'D8'!$B$10:$AZ$109,7,FALSE) -> 0 | AX14: 0 | AY14: 0 | AZ14: راسب | BA14: 0 | BC14: الثاني مكرر | BD14: =IFERROR(VLOOKUP(A14,A!$A$6:$M$99,6,FALSE),"") ->  | BE14: =IFERROR(VLOOKUP(A14,A!$A$6:$M$99,7,FALSE),"") ->  | BF14: =IFERROR(VLOOKUP(A14,A!$A$6:$M$99,9,FALSE),"") ->  | BG14: =IFERROR(VLOOKUP(A14,A!$A$6:$M$99,10,FALSE),"") ->  | BH14: =IFERROR(VLOOKUP(A14,A!$A$6:$M$99,11,FALSE),"") ->  | BI14: =IF(COUNTIF($AY$10:AY14,AY14)=1,AY14) -> FALSE | BJ14: 2 | BK14: =IF(COUNTIF($AY$10:AY14,AY14)>1," مكرر ","") -> مكرر | BL14: الثاني
A15: 6 | B15: =IFERROR(VLOOKUP(A15,A!$A$6:$M$99,2,FALSE),"") ->  | C15: =VLOOKUP(A15,'D1'!$B$10:$AZ$109,3,FALSE) -> 0 | D15: =VLOOKUP(A15,'D1'!$B$10:$AZ$109,4,FALSE) -> 0 | E15: =VLOOKUP(A15,'D1'!$B$10:$AZ$109,5,FALSE) -> 0 | F15: =VLOOKUP(A15,'D1'!$B$10:$AZ$109,6,FALSE) -> 0 | G15: =VLOOKUP(A15,'D1'!$B$10:$AZ$109,7,FALSE) -> 0 | H15: 0 | I15: =VLOOKUP(A15,'D2'!$B$10:$AZ$109,3,FALSE) -> 0 | J15: =VLOOKUP(A15,'D2'!$B$10:$AZ$109,4,FALSE) -> 0 | K15: =VLOOKUP(A15,'D2'!$B$10:$AZ$109,5,FALSE) -> 0 | L15: =VLOOKUP(A15,'D2'!$B$10:$AZ$109,6,FALSE) -> 0 | M15: =VLOOKUP(A15,'D2'!$B$10:$AZ$109,7,FALSE) -> 0 | N15: 0 | O15: =VLOOKUP(A15,'D3'!$B$10:$AZ$109,3,FALSE) -> 0 | P15: =VLOOKUP(A15,'D3'!$B$10:$AZ$109,4,FALSE) -> 0 | Q15: =VLOOKUP(A15,'D3'!$B$10:$AZ$109,5,FALSE) -> 0 | R15: =VLOOKUP(A15,'D3'!$B$10:$AZ$109,6,FALSE) -> 0 | S15: =VLOOKUP(A15,'D3'!$B$10:$AZ$109,7,FALSE) -> 0 | T15: 0 | U15: =VLOOKUP(A15,'D4'!$B$10:$AZ$109,3,FALSE) -> 0 | V15: =VLOOKUP(A15,'D4'!$B$10:$AZ$109,4,FALSE) -> 0 | W15: =VLOOKUP(A15,'D4'!$B$10:$AZ$109,5,FALSE) -> 0 | X15: =VLOOKUP(A15,'D4'!$B$10:$AZ$109,6,FALSE) -> 0 | Y15: =VLOOKUP(A15,'D4'!$B$10:$AZ$109,7,FALSE) -> 0 | Z15: 0 | AA15: =VLOOKUP(A15,'D5'!$B$10:$AZ$109,3,FALSE) -> 0 | AB15: =VLOOKUP(A15,'D5'!$B$10:$AZ$109,4,FALSE) -> 0 | AC15: =VLOOKUP(A15,'D5'!$B$10:$AZ$109,5,FALSE) -> 0 | AD15: =VLOOKUP(A15,'D5'!$B$10:$AZ$109,6,FALSE) -> 0 | AE15: =VLOOKUP(A15,'D5'!$B$10:$AZ$109,7,FALSE) -> 0 | AF15: 0 | AG15: =VLOOKUP(A15,'D6'!$B$10:$AZ$109,3,FALSE) -> 0 | AH15: =VLOOKUP(A15,'D6'!$B$10:$AZ$109,4,FALSE) -> 0 | AI15: =VLOOKUP(A15,'D6'!$B$10:$AZ$109,5,FALSE) -> 0 | AJ15: =VLOOKUP(A15,'D6'!$B$10:$AZ$109,6,FALSE) -> 0 | AK15: =VLOOKUP(A15,'D6'!$B$10:$AZ$109,7,FALSE) -> 0 | AL15: 0 | AM15: =VLOOKUP(A15,'D7'!$B$10:$AZ$109,3,FALSE) -> 0 | AN15: =VLOOKUP(A15,'D7'!$B$10:$AZ$109,4,FALSE) -> 0 | AO15: =VLOOKUP(A15,'D7'!$B$10:$AZ$109,5,FALSE) -> 0 | AP15: =VLOOKUP(A15,'D7'!$B$10:$AZ$109,6,FALSE) -> 0 | AQ15: =VLOOKUP(A15,'D7'!$B$10:$AZ$109,7,FALSE) -> 0 | AR15: 0 | AS15: =VLOOKUP(A15,'D8'!$B$10:$AZ$109,3,FALSE) -> 0 | AT15: =VLOOKUP(A15,'D8'!$B$10:$AZ$109,4,FALSE) -> 0 | AU15: =VLOOKUP(A15,'D8'!$B$10:$AZ$109,5,FALSE) -> 0 | AV15: =VLOOKUP(A15,'D8'!$B$10:$AZ$109,6,FALSE) -> 0 | AW15: =VLOOKUP(A15,'D8'!$B$10:$AZ$109,7,FALSE) -> 0 | AX15: 0 | AY15: 0 | AZ15: راسب | BA15: 0 | BC15: الثاني مكرر | BD15: =IFERROR(VLOOKUP(A15,A!$A$6:$M$99,6,FALSE),"") ->  | BE15: =IFERROR(VLOOKUP(A15,A!$A$6:$M$99,7,FALSE),"") ->  | BF15: =IFERROR(VLOOKUP(A15,A!$A$6:$M$99,9,FALSE),"") ->  | BG15: =IFERROR(VLOOKUP(A15,A!$A$6:$M$99,10,FALSE),"") ->  | BH15: =IFERROR(VLOOKUP(A15,A!$A$6:$M$99,11,FALSE),"") ->  | BI15: =IF(COUNTIF($AY$10:AY15,AY15)=1,AY15) -> FALSE | BJ15: 2 | BK15: =IF(COUNTIF($AY$10:AY15,AY15)>1," مكرر ","") -> مكرر | BL15: الثاني
A16: 7 | B16: =IFERROR(VLOOKUP(A16,A!$A$6:$M$99,2,FALSE),"") ->  | C16: =VLOOKUP(A16,'D1'!$B$10:$AZ$109,3,FALSE) -> 0 | D16: =VLOOKUP(A16,'D1'!$B$10:$AZ$109,4,FALSE) -> 0 | E16: =VLOOKUP(A16,'D1'!$B$10:$AZ$109,5,FALSE) -> 0 | F16: =VLOOKUP(A16,'D1'!$B$10:$AZ$109,6,FALSE) -> 0 | G16: =VLOOKUP(A16,'D1'!$B$10:$AZ$109,7,FALSE) -> 0 | H16: 0 | I16: =VLOOKUP(A16,'D2'!$B$10:$AZ$109,3,FALSE) -> 0 | J16: =VLOOKUP(A16,'D2'!$B$10:$AZ$109,4,FALSE) -> 0 | K16: =VLOOKUP(A16,'D2'!$B$10:$AZ$109,5,FALSE) -> 0 | L16: =VLOOKUP(A16,'D2'!$B$10:$AZ$109,6,FALSE) -> 0 | M16: =VLOOKUP(A16,'D2'!$B$10:$AZ$109,7,FALSE) -> 0 | N16: 0 | O16: =VLOOKUP(A16,'D3'!$B$10:$AZ$109,3,FALSE) -> 0 | P16: =VLOOKUP(A16,'D3'!$B$10:$AZ$109,4,FALSE) -> 0 | Q16: =VLOOKUP(A16,'D3'!$B$10:$AZ$109,5,FALSE) -> 0 | R16: =VLOOKUP(A16,'D3'!$B$10:$AZ$109,6,FALSE) -> 0 | S16: =VLOOKUP(A16,'D3'!$B$10:$AZ$109,7,FALSE) -> 0 | T16: 0 | U16: =VLOOKUP(A16,'D4'!$B$10:$AZ$109,3,FALSE) -> 0 | V16: =VLOOKUP(A16,'D4'!$B$10:$AZ$109,4,FALSE) -> 0 | W16: =VLOOKUP(A16,'D4'!$B$10:$AZ$109,5,FALSE) -> 0 | X16: =VLOOKUP(A16,'D4'!$B$10:$AZ$109,6,FALSE) -> 0 | Y16: =VLOOKUP(A16,'D4'!$B$10:$AZ$109,7,FALSE) -> 0 | Z16: 0 | AA16: =VLOOKUP(A16,'D5'!$B$10:$AZ$109,3,FALSE) -> 0 | AB16: =VLOOKUP(A16,'D5'!$B$10:$AZ$109,4,FALSE) -> 0 | AC16: =VLOOKUP(A16,'D5'!$B$10:$AZ$109,5,FALSE) -> 0 | AD16: =VLOOKUP(A16,'D5'!$B$10:$AZ$109,6,FALSE) -> 0 | AE16: =VLOOKUP(A16,'D5'!$B$10:$AZ$109,7,FALSE) -> 0 | AF16: 0 | AG16: =VLOOKUP(A16,'D6'!$B$10:$AZ$109,3,FALSE) -> 0 | AH16: =VLOOKUP(A16,'D6'!$B$10:$AZ$109,4,FALSE) -> 0 | AI16: =VLOOKUP(A16,'D6'!$B$10:$AZ$109,5,FALSE) -> 0 | AJ16: =VLOOKUP(A16,'D6'!$B$10:$AZ$109,6,FALSE) -> 0 | AK16: =VLOOKUP(A16,'D6'!$B$10:$AZ$109,7,FALSE) -> 0 | AL16: 0 | AM16: =VLOOKUP(A16,'D7'!$B$10:$AZ$109,3,FALSE) -> 0 | AN16: =VLOOKUP(A16,'D7'!$B$10:$AZ$109,4,FALSE) -> 0 | AO16: =VLOOKUP(A16,'D7'!$B$10:$AZ$109,5,FALSE) -> 0 | AP16: =VLOOKUP(A16,'D7'!$B$10:$AZ$109,6,FALSE) -> 0 | AQ16: =VLOOKUP(A16,'D7'!$B$10:$AZ$109,7,FALSE) -> 0 | AR16: 0 | AS16: =VLOOKUP(A16,'D8'!$B$10:$AZ$109,3,FALSE) -> 0 | AT16: =VLOOKUP(A16,'D8'!$B$10:$AZ$109,4,FALSE) -> 0 | AU16: =VLOOKUP(A16,'D8'!$B$10:$AZ$109,5,FALSE) -> 0 | AV16: =VLOOKUP(A16,'D8'!$B$10:$AZ$109,6,FALSE) -> 0 | AW16: =VLOOKUP(A16,'D8'!$B$10:$AZ$109,7,FALSE) -> 0 | AX16: 0 | AY16: 0 | AZ16: راسب | BA16: 0 | BC16: الثاني مكرر | BD16: =IFERROR(VLOOKUP(A16,A!$A$6:$M$99,6,FALSE),"") ->  | BE16: =IFERROR(VLOOKUP(A16,A!$A$6:$M$99,7,FALSE),"") ->  | BF16: =IFERROR(VLOOKUP(A16,A!$A$6:$M$99,9,FALSE),"") ->  | BG16: =IFERROR(VLOOKUP(A16,A!$A$6:$M$99,10,FALSE),"") ->  | BH16: =IFERROR(VLOOKUP(A16,A!$A$6:$M$99,11,FALSE),"") ->  | BI16: =IF(COUNTIF($AY$10:AY16,AY16)=1,AY16) -> FALSE | BJ16: 2 | BK16: =IF(COUNTIF($AY$10:AY16,AY16)>1," مكرر ","") -> مكرر | BL16: الثاني
A17: 8 | B17: =IFERROR(VLOOKUP(A17,A!$A$6:$M$99,2,FALSE),"") ->  | C17: =VLOOKUP(A17,'D1'!$B$10:$AZ$109,3,FALSE) -> 0 | D17: =VLOOKUP(A17,'D1'!$B$10:$AZ$109,4,FALSE) -> 0 | E17: =VLOOKUP(A17,'D1'!$B$10:$AZ$109,5,FALSE) -> 0 | F17: =VLOOKUP(A17,'D1'!$B$10:$AZ$109,6,FALSE) -> 0 | G17: =VLOOKUP(A17,'D1'!$B$10:$AZ$109,7,FALSE) -> 0 | H17: 0 | I17: =VLOOKUP(A17,'D2'!$B$10:$AZ$109,3,FALSE) -> 0 | J17: =VLOOKUP(A17,'D2'!$B$10:$AZ$109,4,FALSE) -> 0 | K17: =VLOOKUP(A17,'D2'!$B$10:$AZ$109,5,FALSE) -> 0 | L17: =VLOOKUP(A17,'D2'!$B$10:$AZ$109,6,FALSE) -> 0 | M17: =VLOOKUP(A17,'D2'!$B$10:$AZ$109,7,FALSE) -> 0 | N17: 0 | O17: =VLOOKUP(A17,'D3'!$B$10:$AZ$109,3,FALSE) -> 0 | P17: =VLOOKUP(A17,'D3'!$B$10:$AZ$109,4,FALSE) -> 0 | Q17: =VLOOKUP(A17,'D3'!$B$10:$AZ$109,5,FALSE) -> 0 | R17: =VLOOKUP(A17,'D3'!$B$10:$AZ$109,6,FALSE) -> 0 | S17: =VLOOKUP(A17,'D3'!$B$10:$AZ$109,7,FALSE) -> 0 | T17: 0 | U17: =VLOOKUP(A17,'D4'!$B$10:$AZ$109,3,FALSE) -> 0 | V17: =VLOOKUP(A17,'D4'!$B$10:$AZ$109,4,FALSE) -> 0 | W17: =VLOOKUP(A17,'D4'!$B$10:$AZ$109,5,FALSE) -> 0 | X17: =VLOOKUP(A17,'D4'!$B$10:$AZ$109,6,FALSE) -> 0 | Y17: =VLOOKUP(A17,'D4'!$B$10:$AZ$109,7,FALSE) -> 0 | Z17: 0 | AA17: =VLOOKUP(A17,'D5'!$B$10:$AZ$109,3,FALSE) -> 0 | AB17: =VLOOKUP(A17,'D5'!$B$10:$AZ$109,4,FALSE) -> 0 | AC17: =VLOOKUP(A17,'D5'!$B$10:$AZ$109,5,FALSE) -> 0 | AD17: =VLOOKUP(A17,'D5'!$B$10:$AZ$109,6,FALSE) -> 0 | AE17: =VLOOKUP(A17,'D5'!$B$10:$AZ$109,7,FALSE) -> 0 | AF17: 0 | AG17: =VLOOKUP(A17,'D6'!$B$10:$AZ$109,3,FALSE) -> 0 | AH17: =VLOOKUP(A17,'D6'!$B$10:$AZ$109,4,FALSE) -> 0 | AI17: =VLOOKUP(A17,'D6'!$B$10:$AZ$109,5,FALSE) -> 0 | AJ17: =VLOOKUP(A17,'D6'!$B$10:$AZ$109,6,FALSE) -> 0 | AK17: =VLOOKUP(A17,'D6'!$B$10:$AZ$109,7,FALSE) -> 0 | AL17: 0 | AM17: =VLOOKUP(A17,'D7'!$B$10:$AZ$109,3,FALSE) -> 0 | AN17: =VLOOKUP(A17,'D7'!$B$10:$AZ$109,4,FALSE) -> 0 | AO17: =VLOOKUP(A17,'D7'!$B$10:$AZ$109,5,FALSE) -> 0 | AP17: =VLOOKUP(A17,'D7'!$B$10:$AZ$109,6,FALSE) -> 0 | AQ17: =VLOOKUP(A17,'D7'!$B$10:$AZ$109,7,FALSE) -> 0 | AR17: 0 | AS17: =VLOOKUP(A17,'D8'!$B$10:$AZ$109,3,FALSE) -> 0 | AT17: =VLOOKUP(A17,'D8'!$B$10:$AZ$109,4,FALSE) -> 0 | AU17: =VLOOKUP(A17,'D8'!$B$10:$AZ$109,5,FALSE) -> 0 | AV17: =VLOOKUP(A17,'D8'!$B$10:$AZ$109,6,FALSE) -> 0 | AW17: =VLOOKUP(A17,'D8'!$B$10:$AZ$109,7,FALSE) -> 0 | AX17: 0 | AY17: 0 | AZ17: راسب | BA17: 0 | BC17: الثاني مكرر | BD17: =IFERROR(VLOOKUP(A17,A!$A$6:$M$99,6,FALSE),"") ->  | BE17: =IFERROR(VLOOKUP(A17,A!$A$6:$M$99,7,FALSE),"") ->  | BF17: =IFERROR(VLOOKUP(A17,A!$A$6:$M$99,9,FALSE),"") ->  | BG17: =IFERROR(VLOOKUP(A17,A!$A$6:$M$99,10,FALSE),"") ->  | BH17: =IFERROR(VLOOKUP(A17,A!$A$6:$M$99,11,FALSE),"") ->  | BI17: =IF(COUNTIF($AY$10:AY17,AY17)=1,AY17) -> FALSE | BJ17: 2 | BK17: =IF(COUNTIF($AY$10:AY17,AY17)>1," مكرر ","") -> مكرر | BL17: الثاني
A18: 9 | B18: =IFERROR(VLOOKUP(A18,A!$A$6:$M$99,2,FALSE),"") ->  | C18: =VLOOKUP(A18,'D1'!$B$10:$AZ$109,3,FALSE) -> 0 | D18: =VLOOKUP(A18,'D1'!$B$10:$AZ$109,4,FALSE) -> 0 | E18: =VLOOKUP(A18,'D1'!$B$10:$AZ$109,5,FALSE) -> 0 | F18: =VLOOKUP(A18,'D1'!$B$10:$AZ$109,6,FALSE) -> 0 | G18: =VLOOKUP(A18,'D1'!$B$10:$AZ$109,7,FALSE) -> 0 | H18: 0 | I18: =VLOOKUP(A18,'D2'!$B$10:$AZ$109,3,FALSE) -> 0 | J18: =VLOOKUP(A18,'D2'!$B$10:$AZ$109,4,FALSE) -> 0 | K18: =VLOOKUP(A18,'D2'!$B$10:$AZ$109,5,FALSE) -> 0 | L18: =VLOOKUP(A18,'D2'!$B$10:$AZ$109,6,FALSE) -> 0 | M18: =VLOOKUP(A18,'D2'!$B$10:$AZ$109,7,FALSE) -> 0 | N18: 0 | O18: =VLOOKUP(A18,'D3'!$B$10:$AZ$109,3,FALSE) -> 0 | P18: =VLOOKUP(A18,'D3'!$B$10:$AZ$109,4,FALSE) -> 0 | Q18: =VLOOKUP(A18,'D3'!$B$10:$AZ$109,5,FALSE) -> 0 | R18: =VLOOKUP(A18,'D3'!$B$10:$AZ$109,6,FALSE) -> 0 | S18: =VLOOKUP(A18,'D3'!$B$10:$AZ$109,7,FALSE) -> 0 | T18: 0 | U18: =VLOOKUP(A18,'D4'!$B$10:$AZ$109,3,FALSE) -> 0 | V18: =VLOOKUP(A18,'D4'!$B$10:$AZ$109,4,FALSE) -> 0 | W18: =VLOOKUP(A18,'D4'!$B$10:$AZ$109,5,FALSE) -> 0 | X18: =VLOOKUP(A18,'D4'!$B$10:$AZ$109,6,FALSE) -> 0 | Y18: =VLOOKUP(A18,'D4'!$B$10:$AZ$109,7,FALSE) -> 0 | Z18: 0 | AA18: =VLOOKUP(A18,'D5'!$B$10:$AZ$109,3,FALSE) -> 0 | AB18: =VLOOKUP(A18,'D5'!$B$10:$AZ$109,4,FALSE) -> 0 | AC18: =VLOOKUP(A18,'D5'!$B$10:$AZ$109,5,FALSE) -> 0 | AD18: =VLOOKUP(A18,'D5'!$B$10:$AZ$109,6,FALSE) -> 0 | AE18: =VLOOKUP(A18,'D5'!$B$10:$AZ$109,7,FALSE) -> 0 | AF18: 0 | AG18: =VLOOKUP(A18,'D6'!$B$10:$AZ$109,3,FALSE) -> 0 | AH18: =VLOOKUP(A18,'D6'!$B$10:$AZ$109,4,FALSE) -> 0 | AI18: =VLOOKUP(A18,'D6'!$B$10:$AZ$109,5,FALSE) -> 0 | AJ18: =VLOOKUP(A18,'D6'!$B$10:$AZ$109,6,FALSE) -> 0 | AK18: =VLOOKUP(A18,'D6'!$B$10:$AZ$109,7,FALSE) -> 0 | AL18: 0 | AM18: =VLOOKUP(A18,'D7'!$B$10:$AZ$109,3,FALSE) -> 0 | AN18: =VLOOKUP(A18,'D7'!$B$10:$AZ$109,4,FALSE) -> 0 | AO18: =VLOOKUP(A18,'D7'!$B$10:$AZ$109,5,FALSE) -> 0 | AP18: =VLOOKUP(A18,'D7'!$B$10:$AZ$109,6,FALSE) -> 0 | AQ18: =VLOOKUP(A18,'D7'!$B$10:$AZ$109,7,FALSE) -> 0 | AR18: 0 | AS18: =VLOOKUP(A18,'D8'!$B$10:$AZ$109,3,FALSE) -> 0 | AT18: =VLOOKUP(A18,'D8'!$B$10:$AZ$109,4,FALSE) -> 0 | AU18: =VLOOKUP(A18,'D8'!$B$10:$AZ$109,5,FALSE) -> 0 | AV18: =VLOOKUP(A18,'D8'!$B$10:$AZ$109,6,FALSE) -> 0 | AW18: =VLOOKUP(A18,'D8'!$B$10:$AZ$109,7,FALSE) -> 0 | AX18: 0 | AY18: 0 | AZ18: راسب | BA18: 0 | BC18: الثاني مكرر | BD18: =IFERROR(VLOOKUP(A18,A!$A$6:$M$99,6,FALSE),"") ->  | BE18: =IFERROR(VLOOKUP(A18,A!$A$6:$M$99,7,FALSE),"") ->  | BF18: =IFERROR(VLOOKUP(A18,A!$A$6:$M$99,9,FALSE),"") ->  | BG18: =IFERROR(VLOOKUP(A18,A!$A$6:$M$99,10,FALSE),"") ->  | BH18: =IFERROR(VLOOKUP(A18,A!$A$6:$M$99,11,FALSE),"") ->  | BI18: =IF(COUNTIF($AY$10:AY18,AY18)=1,AY18) -> FALSE | BJ18: 2 | BK18: =IF(COUNTIF($AY$10:AY18,AY18)>1," مكرر ","") -> مكرر | BL18: الثاني
A19: 10 | B19: =IFERROR(VLOOKUP(A19,A!$A$6:$M$99,2,FALSE),"") ->  | C19: =VLOOKUP(A19,'D1'!$B$10:$AZ$109,3,FALSE) -> 0 | D19: =VLOOKUP(A19,'D1'!$B$10:$AZ$109,4,FALSE) -> 0 | E19: =VLOOKUP(A19,'D1'!$B$10:$AZ$109,5,FALSE) -> 0 | F19: =VLOOKUP(A19,'D1'!$B$10:$AZ$109,6,FALSE) -> 0 | G19: =VLOOKUP(A19,'D1'!$B$10:$AZ$109,7,FALSE) -> 0 | H19: 0 | I19: =VLOOKUP(A19,'D2'!$B$10:$AZ$109,3,FALSE) -> 0 | J19: =VLOOKUP(A19,'D2'!$B$10:$AZ$109,4,FALSE) -> 0 | K19: =VLOOKUP(A19,'D2'!$B$10:$AZ$109,5,FALSE) -> 0 | L19: =VLOOKUP(A19,'D2'!$B$10:$AZ$109,6,FALSE) -> 0 | M19: =VLOOKUP(A19,'D2'!$B$10:$AZ$109,7,FALSE) -> 0 | N19: 0 | O19: =VLOOKUP(A19,'D3'!$B$10:$AZ$109,3,FALSE) -> 0 | P19: =VLOOKUP(A19,'D3'!$B$10:$AZ$109,4,FALSE) -> 0 | Q19: =VLOOKUP(A19,'D3'!$B$10:$AZ$109,5,FALSE) -> 0 | R19: =VLOOKUP(A19,'D3'!$B$10:$AZ$109,6,FALSE) -> 0 | S19: =VLOOKUP(A19,'D3'!$B$10:$AZ$109,7,FALSE) -> 0 | T19: 0 | U19: =VLOOKUP(A19,'D4'!$B$10:$AZ$109,3,FALSE) -> 0 | V19: =VLOOKUP(A19,'D4'!$B$10:$AZ$109,4,FALSE) -> 0 | W19: =VLOOKUP(A19,'D4'!$B$10:$AZ$109,5,FALSE) -> 0 | X19: =VLOOKUP(A19,'D4'!$B$10:$AZ$109,6,FALSE) -> 0 | Y19: =VLOOKUP(A19,'D4'!$B$10:$AZ$109,7,FALSE) -> 0 | Z19: 0 | AA19: =VLOOKUP(A19,'D5'!$B$10:$AZ$109,3,FALSE) -> 0 | AB19: =VLOOKUP(A19,'D5'!$B$10:$AZ$109,4,FALSE) -> 0 | AC19: =VLOOKUP(A19,'D5'!$B$10:$AZ$109,5,FALSE) -> 0 | AD19: =VLOOKUP(A19,'D5'!$B$10:$AZ$109,6,FALSE) -> 0 | AE19: =VLOOKUP(A19,'D5'!$B$10:$AZ$109,7,FALSE) -> 0 | AF19: 0 | AG19: =VLOOKUP(A19,'D6'!$B$10:$AZ$109,3,FALSE) -> 0 | AH19: =VLOOKUP(A19,'D6'!$B$10:$AZ$109,4,FALSE) -> 0 | AI19: =VLOOKUP(A19,'D6'!$B$10:$AZ$109,5,FALSE) -> 0 | AJ19: =VLOOKUP(A19,'D6'!$B$10:$AZ$109,6,FALSE) -> 0 | AK19: =VLOOKUP(A19,'D6'!$B$10:$AZ$109,7,FALSE) -> 0 | AL19: 0 | AM19: =VLOOKUP(A19,'D7'!$B$10:$AZ$109,3,FALSE) -> 0 | AN19: =VLOOKUP(A19,'D7'!$B$10:$AZ$109,4,FALSE) -> 0 | AO19: =VLOOKUP(A19,'D7'!$B$10:$AZ$109,5,FALSE) -> 0 | AP19: =VLOOKUP(A19,'D7'!$B$10:$AZ$109,6,FALSE) -> 0 | AQ19: =VLOOKUP(A19,'D7'!$B$10:$AZ$109,7,FALSE) -> 0 | AR19: 0 | AS19: =VLOOKUP(A19,'D8'!$B$10:$AZ$109,3,FALSE) -> 0 | AT19: =VLOOKUP(A19,'D8'!$B$10:$AZ$109,4,FALSE) -> 0 | AU19: =VLOOKUP(A19,'D8'!$B$10:$AZ$109,5,FALSE) -> 0 | AV19: =VLOOKUP(A19,'D8'!$B$10:$AZ$109,6,FALSE) -> 0 | AW19: =VLOOKUP(A19,'D8'!$B$10:$AZ$109,7,FALSE) -> 0 | AX19: 0 | AY19: 0 | AZ19: راسب | BA19: 0 | BC19: الثاني مكرر | BD19: =IFERROR(VLOOKUP(A19,A!$A$6:$M$99,6,FALSE),"") ->  | BE19: =IFERROR(VLOOKUP(A19,A!$A$6:$M$99,7,FALSE),"") ->  | BF19: =IFERROR(VLOOKUP(A19,A!$A$6:$M$99,9,FALSE),"") ->  | BG19: =IFERROR(VLOOKUP(A19,A!$A$6:$M$99,10,FALSE),"") ->  | BH19: =IFERROR(VLOOKUP(A19,A!$A$6:$M$99,11,FALSE),"") ->  | BI19: =IF(COUNTIF($AY$10:AY19,AY19)=1,AY19) -> FALSE | BJ19: 2 | BK19: =IF(COUNTIF($AY$10:AY19,AY19)>1," مكرر ","") -> مكرر | BL19: الثاني
A20: 11 | B20: =IFERROR(VLOOKUP(A20,A!$A$6:$M$99,2,FALSE),"") ->  | C20: =VLOOKUP(A20,'D1'!$B$10:$AZ$109,3,FALSE) -> 0 | D20: =VLOOKUP(A20,'D1'!$B$10:$AZ$109,4,FALSE) -> 0 | E20: =VLOOKUP(A20,'D1'!$B$10:$AZ$109,5,FALSE) -> 0 | F20: =VLOOKUP(A20,'D1'!$B$10:$AZ$109,6,FALSE) -> 0 | G20: =VLOOKUP(A20,'D1'!$B$10:$AZ$109,7,FALSE) -> 0 | H20: 0 | I20: =VLOOKUP(A20,'D2'!$B$10:$AZ$109,3,FALSE) -> 0 | J20: =VLOOKUP(A20,'D2'!$B$10:$AZ$109,4,FALSE) -> 0 | K20: =VLOOKUP(A20,'D2'!$B$10:$AZ$109,5,FALSE) -> 0 | L20: =VLOOKUP(A20,'D2'!$B$10:$AZ$109,6,FALSE) -> 0 | M20: =VLOOKUP(A20,'D2'!$B$10:$AZ$109,7,FALSE) -> 0 | N20: 0 | O20: =VLOOKUP(A20,'D3'!$B$10:$AZ$109,3,FALSE) -> 0 | P20: =VLOOKUP(A20,'D3'!$B$10:$AZ$109,4,FALSE) -> 0 | Q20: =VLOOKUP(A20,'D3'!$B$10:$AZ$109,5,FALSE) -> 0 | R20: =VLOOKUP(A20,'D3'!$B$10:$AZ$109,6,FALSE) -> 0 | S20: =VLOOKUP(A20,'D3'!$B$10:$AZ$109,7,FALSE) -> 0 | T20: 0 | U20: =VLOOKUP(A20,'D4'!$B$10:$AZ$109,3,FALSE) -> 0 | V20: =VLOOKUP(A20,'D4'!$B$10:$AZ$109,4,FALSE) -> 0 | W20: =VLOOKUP(A20,'D4'!$B$10:$AZ$109,5,FALSE) -> 0 | X20: =VLOOKUP(A20,'D4'!$B$10:$AZ$109,6,FALSE) -> 0 | Y20: =VLOOKUP(A20,'D4'!$B$10:$AZ$109,7,FALSE) -> 0 | Z20: 0 | AA20: =VLOOKUP(A20,'D5'!$B$10:$AZ$109,3,FALSE) -> 0 | AB20: =VLOOKUP(A20,'D5'!$B$10:$AZ$109,4,FALSE) -> 0 | AC20: =VLOOKUP(A20,'D5'!$B$10:$AZ$109,5,FALSE) -> 0 | AD20: =VLOOKUP(A20,'D5'!$B$10:$AZ$109,6,FALSE) -> 0 | AE20: =VLOOKUP(A20,'D5'!$B$10:$AZ$109,7,FALSE) -> 0 | AF20: 0 | AG20: =VLOOKUP(A20,'D6'!$B$10:$AZ$109,3,FALSE) -> 0 | AH20: =VLOOKUP(A20,'D6'!$B$10:$AZ$109,4,FALSE) -> 0 | AI20: =VLOOKUP(A20,'D6'!$B$10:$AZ$109,5,FALSE) -> 0 | AJ20: =VLOOKUP(A20,'D6'!$B$10:$AZ$109,6,FALSE) -> 0 | AK20: =VLOOKUP(A20,'D6'!$B$10:$AZ$109,7,FALSE) -> 0 | AL20: 0 | AM20: =VLOOKUP(A20,'D7'!$B$10:$AZ$109,3,FALSE) -> 0 | AN20: =VLOOKUP(A20,'D7'!$B$10:$AZ$109,4,FALSE) -> 0 | AO20: =VLOOKUP(A20,'D7'!$B$10:$AZ$109,5,FALSE) -> 0 | AP20: =VLOOKUP(A20,'D7'!$B$10:$AZ$109,6,FALSE) -> 0 | AQ20: =VLOOKUP(A20,'D7'!$B$10:$AZ$109,7,FALSE) -> 0 | AR20: 0 | AS20: =VLOOKUP(A20,'D8'!$B$10:$AZ$109,3,FALSE) -> 0 | AT20: =VLOOKUP(A20,'D8'!$B$10:$AZ$109,4,FALSE) -> 0 | AU20: =VLOOKUP(A20,'D8'!$B$10:$AZ$109,5,FALSE) -> 0 | AV20: =VLOOKUP(A20,'D8'!$B$10:$AZ$109,6,FALSE) -> 0 | AW20: =VLOOKUP(A20,'D8'!$B$10:$AZ$109,7,FALSE) -> 0 | AX20: 0 | AY20: 0 | AZ20: راسب | BA20: 0 | BC20: الثاني مكرر | BD20: =IFERROR(VLOOKUP(A20,A!$A$6:$M$99,6,FALSE),"") ->  | BE20: =IFERROR(VLOOKUP(A20,A!$A$6:$M$99,7,FALSE),"") ->  | BF20: =IFERROR(VLOOKUP(A20,A!$A$6:$M$99,9,FALSE),"") ->  | BG20: =IFERROR(VLOOKUP(A20,A!$A$6:$M$99,10,FALSE),"") ->  | BH20: =IFERROR(VLOOKUP(A20,A!$A$6:$M$99,11,FALSE),"") ->  | BI20: =IF(COUNTIF($AY$10:AY20,AY20)=1,AY20) -> FALSE | BJ20: 2 | BK20: =IF(COUNTIF($AY$10:AY20,AY20)>1," مكرر ","") -> مكرر | BL20: الثاني
A21: 12 | B21: =IFERROR(VLOOKUP(A21,A!$A$6:$M$99,2,FALSE),"") ->  | C21: =VLOOKUP(A21,'D1'!$B$10:$AZ$109,3,FALSE) -> 0 | D21: =VLOOKUP(A21,'D1'!$B$10:$AZ$109,4,FALSE) -> 0 | E21: =VLOOKUP(A21,'D1'!$B$10:$AZ$109,5,FALSE) -> 0 | F21: =VLOOKUP(A21,'D1'!$B$10:$AZ$109,6,FALSE) -> 0 | G21: =VLOOKUP(A21,'D1'!$B$10:$AZ$109,7,FALSE) -> 0 | H21: 0 | I21: =VLOOKUP(A21,'D2'!$B$10:$AZ$109,3,FALSE) -> 0 | J21: =VLOOKUP(A21,'D2'!$B$10:$AZ$109,4,FALSE) -> 0 | K21: =VLOOKUP(A21,'D2'!$B$10:$AZ$109,5,FALSE) -> 0 | L21: =VLOOKUP(A21,'D2'!$B$10:$AZ$109,6,FALSE) -> 0 | M21: =VLOOKUP(A21,'D2'!$B$10:$AZ$109,7,FALSE) -> 0 | N21: 0 | O21: =VLOOKUP(A21,'D3'!$B$10:$AZ$109,3,FALSE) -> 0 | P21: =VLOOKUP(A21,'D3'!$B$10:$AZ$109,4,FALSE) -> 0 | Q21: =VLOOKUP(A21,'D3'!$B$10:$AZ$109,5,FALSE) -> 0 | R21: =VLOOKUP(A21,'D3'!$B$10:$AZ$109,6,FALSE) -> 0 | S21: =VLOOKUP(A21,'D3'!$B$10:$AZ$109,7,FALSE) -> 0 | T21: 0 | U21: =VLOOKUP(A21,'D4'!$B$10:$AZ$109,3,FALSE) -> 0 | V21: =VLOOKUP(A21,'D4'!$B$10:$AZ$109,4,FALSE) -> 0 | W21: =VLOOKUP(A21,'D4'!$B$10:$AZ$109,5,FALSE) -> 0 | X21: =VLOOKUP(A21,'D4'!$B$10:$AZ$109,6,FALSE) -> 0 | Y21: =VLOOKUP(A21,'D4'!$B$10:$AZ$109,7,FALSE) -> 0 | Z21: 0 | AA21: =VLOOKUP(A21,'D5'!$B$10:$AZ$109,3,FALSE) -> 0 | AB21: =VLOOKUP(A21,'D5'!$B$10:$AZ$109,4,FALSE) -> 0 | AC21: =VLOOKUP(A21,'D5'!$B$10:$AZ$109,5,FALSE) -> 0 | AD21: =VLOOKUP(A21,'D5'!$B$10:$AZ$109,6,FALSE) -> 0 | AE21: =VLOOKUP(A21,'D5'!$B$10:$AZ$109,7,FALSE) -> 0 | AF21: 0 | AG21: =VLOOKUP(A21,'D6'!$B$10:$AZ$109,3,FALSE) -> 0 | AH21: =VLOOKUP(A21,'D6'!$B$10:$AZ$109,4,FALSE) -> 0 | AI21: =VLOOKUP(A21,'D6'!$B$10:$AZ$109,5,FALSE) -> 0 | AJ21: =VLOOKUP(A21,'D6'!$B$10:$AZ$109,6,FALSE) -> 0 | AK21: =VLOOKUP(A21,'D6'!$B$10:$AZ$109,7,FALSE) -> 0 | AL21: 0 | AM21: =VLOOKUP(A21,'D7'!$B$10:$AZ$109,3,FALSE) -> 0 | AN21: =VLOOKUP(A21,'D7'!$B$10:$AZ$109,4,FALSE) -> 0 | AO21: =VLOOKUP(A21,'D7'!$B$10:$AZ$109,5,FALSE) -> 0 | AP21: =VLOOKUP(A21,'D7'!$B$10:$AZ$109,6,FALSE) -> 0 | AQ21: =VLOOKUP(A21,'D7'!$B$10:$AZ$109,7,FALSE) -> 0 | AR21: 0 | AS21: =VLOOKUP(A21,'D8'!$B$10:$AZ$109,3,FALSE) -> 0 | AT21: =VLOOKUP(A21,'D8'!$B$10:$AZ$109,4,FALSE) -> 0 | AU21: =VLOOKUP(A21,'D8'!$B$10:$AZ$109,5,FALSE) -> 0 | AV21: =VLOOKUP(A21,'D8'!$B$10:$AZ$109,6,FALSE) -> 0 | AW21: =VLOOKUP(A21,'D8'!$B$10:$AZ$109,7,FALSE) -> 0 | AX21: 0 | AY21: 0 | AZ21: راسب | BA21: 0 | BC21: الثاني مكرر | BD21: =IFERROR(VLOOKUP(A21,A!$A$6:$M$99,6,FALSE),"") ->  | BE21: =IFERROR(VLOOKUP(A21,A!$A$6:$M$99,7,FALSE),"") ->  | BF21: =IFERROR(VLOOKUP(A21,A!$A$6:$M$99,9,FALSE),"") ->  | BG21: =IFERROR(VLOOKUP(A21,A!$A$6:$M$99,10,FALSE),"") ->  | BH21: =IFERROR(VLOOKUP(A21,A!$A$6:$M$99,11,FALSE),"") ->  | BI21: =IF(COUNTIF($AY$10:AY21,AY21)=1,AY21) -> FALSE | BJ21: 2 | BK21: =IF(COUNTIF($AY$10:AY21,AY21)>1," مكرر ","") -> مكرر | BL21: الثاني
A22: 13 | B22: =IFERROR(VLOOKUP(A22,A!$A$6:$M$99,2,FALSE),"") ->  | C22: =VLOOKUP(A22,'D1'!$B$10:$AZ$109,3,FALSE) -> 0 | D22: =VLOOKUP(A22,'D1'!$B$10:$AZ$109,4,FALSE) -> 0 | E22: =VLOOKUP(A22,'D1'!$B$10:$AZ$109,5,FALSE) -> 0 | F22: =VLOOKUP(A22,'D1'!$B$10:$AZ$109,6,FALSE) -> 0 | G22: =VLOOKUP(A22,'D1'!$B$10:$AZ$109,7,FALSE) -> 0 | H22: 0 | I22: =VLOOKUP(A22,'D2'!$B$10:$AZ$109,3,FALSE) -> 0 | J22: =VLOOKUP(A22,'D2'!$B$10:$AZ$109,4,FALSE) -> 0 | K22: =VLOOKUP(A22,'D2'!$B$10:$AZ$109,5,FALSE) -> 0 | L22: =VLOOKUP(A22,'D2'!$B$10:$AZ$109,6,FALSE) -> 0 | M22: =VLOOKUP(A22,'D2'!$B$10:$AZ$109,7,FALSE) -> 0 | N22: 0 | O22: =VLOOKUP(A22,'D3'!$B$10:$AZ$109,3,FALSE) -> 0 | P22: =VLOOKUP(A22,'D3'!$B$10:$AZ$109,4,FALSE) -> 0 | Q22: =VLOOKUP(A22,'D3'!$B$10:$AZ$109,5,FALSE) -> 0 | R22: =VLOOKUP(A22,'D3'!$B$10:$AZ$109,6,FALSE) -> 0 | S22: =VLOOKUP(A22,'D3'!$B$10:$AZ$109,7,FALSE) -> 0 | T22: 0 | U22: =VLOOKUP(A22,'D4'!$B$10:$AZ$109,3,FALSE) -> 0 | V22: =VLOOKUP(A22,'D4'!$B$10:$AZ$109,4,FALSE) -> 0 | W22: =VLOOKUP(A22,'D4'!$B$10:$AZ$109,5,FALSE) -> 0 | X22: =VLOOKUP(A22,'D4'!$B$10:$AZ$109,6,FALSE) -> 0 | Y22: =VLOOKUP(A22,'D4'!$B$10:$AZ$109,7,FALSE) -> 0 | Z22: 0 | AA22: =VLOOKUP(A22,'D5'!$B$10:$AZ$109,3,FALSE) -> 0 | AB22: =VLOOKUP(A22,'D5'!$B$10:$AZ$109,4,FALSE) -> 0 | AC22: =VLOOKUP(A22,'D5'!$B$10:$AZ$109,5,FALSE) -> 0 | AD22: =VLOOKUP(A22,'D5'!$B$10:$AZ$109,6,FALSE) -> 0 | AE22: =VLOOKUP(A22,'D5'!$B$10:$AZ$109,7,FALSE) -> 0 | AF22: 0 | AG22: =VLOOKUP(A22,'D6'!$B$10:$AZ$109,3,FALSE) -> 0 | AH22: =VLOOKUP(A22,'D6'!$B$10:$AZ$109,4,FALSE) -> 0 | AI22: =VLOOKUP(A22,'D6'!$B$10:$AZ$109,5,FALSE) -> 0 | AJ22: =VLOOKUP(A22,'D6'!$B$10:$AZ$109,6,FALSE) -> 0 | AK22: =VLOOKUP(A22,'D6'!$B$10:$AZ$109,7,FALSE) -> 0 | AL22: 0 | AM22: =VLOOKUP(A22,'D7'!$B$10:$AZ$109,3,FALSE) -> 0 | AN22: =VLOOKUP(A22,'D7'!$B$10:$AZ$109,4,FALSE) -> 0 | AO22: =VLOOKUP(A22,'D7'!$B$10:$AZ$109,5,FALSE) -> 0 | AP22: =VLOOKUP(A22,'D7'!$B$10:$AZ$109,6,FALSE) -> 0 | AQ22: =VLOOKUP(A22,'D7'!$B$10:$AZ$109,7,FALSE) -> 0 | AR22: 0 | AS22: =VLOOKUP(A22,'D8'!$B$10:$AZ$109,3,FALSE) -> 0 | AT22: =VLOOKUP(A22,'D8'!$B$10:$AZ$109,4,FALSE) -> 0 | AU22: =VLOOKUP(A22,'D8'!$B$10:$AZ$109,5,FALSE) -> 0 | AV22: =VLOOKUP(A22,'D8'!$B$10:$AZ$109,6,FALSE) -> 0 | AW22: =VLOOKUP(A22,'D8'!$B$10:$AZ$109,7,FALSE) -> 0 | AX22: 0 | AY22: 0 | AZ22: راسب | BA22: 0 | BC22: الثاني مكرر | BD22: =IFERROR(VLOOKUP(A22,A!$A$6:$M$99,6,FALSE),"") ->  | BE22: =IFERROR(VLOOKUP(A22,A!$A$6:$M$99,7,FALSE),"") ->  | BF22: =IFERROR(VLOOKUP(A22,A!$A$6:$M$99,9,FALSE),"") ->  | BG22: =IFERROR(VLOOKUP(A22,A!$A$6:$M$99,10,FALSE),"") ->  | BH22: =IFERROR(VLOOKUP(A22,A!$A$6:$M$99,11,FALSE),"") ->  | BI22: =IF(COUNTIF($AY$10:AY22,AY22)=1,AY22) -> FALSE | BJ22: 2 | BK22: =IF(COUNTIF($AY$10:AY22,AY22)>1," مكرر ","") -> مكرر | BL22: الثاني
A23: 14 | B23: =IFERROR(VLOOKUP(A23,A!$A$6:$M$99,2,FALSE),"") ->  | C23: =VLOOKUP(A23,'D1'!$B$10:$AZ$109,3,FALSE) -> 0 | D23: =VLOOKUP(A23,'D1'!$B$10:$AZ$109,4,FALSE) -> 0 | E23: =VLOOKUP(A23,'D1'!$B$10:$AZ$109,5,FALSE) -> 0 | F23: =VLOOKUP(A23,'D1'!$B$10:$AZ$109,6,FALSE) -> 0 | G23: =VLOOKUP(A23,'D1'!$B$10:$AZ$109,7,FALSE) -> 0 | H23: 0 | I23: =VLOOKUP(A23,'D2'!$B$10:$AZ$109,3,FALSE) -> 0 | J23: =VLOOKUP(A23,'D2'!$B$10:$AZ$109,4,FALSE) -> 0 | K23: =VLOOKUP(A23,'D2'!$B$10:$AZ$109,5,FALSE) -> 0 | L23: =VLOOKUP(A23,'D2'!$B$10:$AZ$109,6,FALSE) -> 0 | M23: =VLOOKUP(A23,'D2'!$B$10:$AZ$109,7,FALSE) -> 0 | N23: 0 | O23: =VLOOKUP(A23,'D3'!$B$10:$AZ$109,3,FALSE) -> 0 | P23: =VLOOKUP(A23,'D3'!$B$10:$AZ$109,4,FALSE) -> 0 | Q23: =VLOOKUP(A23,'D3'!$B$10:$AZ$109,5,FALSE) -> 0 | R23: =VLOOKUP(A23,'D3'!$B$10:$AZ$109,6,FALSE) -> 0 | S23: =VLOOKUP(A23,'D3'!$B$10:$AZ$109,7,FALSE) -> 0 | T23: 0 | U23: =VLOOKUP(A23,'D4'!$B$10:$AZ$109,3,FALSE) -> 0 | V23: =VLOOKUP(A23,'D4'!$B$10:$AZ$109,4,FALSE) -> 0 | W23: =VLOOKUP(A23,'D4'!$B$10:$AZ$109,5,FALSE) -> 0 | X23: =VLOOKUP(A23,'D4'!$B$10:$AZ$109,6,FALSE) -> 0 | Y23: =VLOOKUP(A23,'D4'!$B$10:$AZ$109,7,FALSE) -> 0 | Z23: 0 | AA23: =VLOOKUP(A23,'D5'!$B$10:$AZ$109,3,FALSE) -> 0 | AB23: =VLOOKUP(A23,'D5'!$B$10:$AZ$109,4,FALSE) -> 0 | AC23: =VLOOKUP(A23,'D5'!$B$10:$AZ$109,5,FALSE) -> 0 | AD23: =VLOOKUP(A23,'D5'!$B$10:$AZ$109,6,FALSE) -> 0 | AE23: =VLOOKUP(A23,'D5'!$B$10:$AZ$109,7,FALSE) -> 0 | AF23: 0 | AG23: =VLOOKUP(A23,'D6'!$B$10:$AZ$109,3,FALSE) -> 0 | AH23: =VLOOKUP(A23,'D6'!$B$10:$AZ$109,4,FALSE) -> 0 | AI23: =VLOOKUP(A23,'D6'!$B$10:$AZ$109,5,FALSE) -> 0 | AJ23: =VLOOKUP(A23,'D6'!$B$10:$AZ$109,6,FALSE) -> 0 | AK23: =VLOOKUP(A23,'D6'!$B$10:$AZ$109,7,FALSE) -> 0 | AL23: 0 | AM23: =VLOOKUP(A23,'D7'!$B$10:$AZ$109,3,FALSE) -> 0 | AN23: =VLOOKUP(A23,'D7'!$B$10:$AZ$109,4,FALSE) -> 0 | AO23: =VLOOKUP(A23,'D7'!$B$10:$AZ$109,5,FALSE) -> 0 | AP23: =VLOOKUP(A23,'D7'!$B$10:$AZ$109,6,FALSE) -> 0 | AQ23: =VLOOKUP(A23,'D7'!$B$10:$AZ$109,7,FALSE) -> 0 | AR23: 0 | AS23: =VLOOKUP(A23,'D8'!$B$10:$AZ$109,3,FALSE) -> 0 | AT23: =VLOOKUP(A23,'D8'!$B$10:$AZ$109,4,FALSE) -> 0 | AU23: =VLOOKUP(A23,'D8'!$B$10:$AZ$109,5,FALSE) -> 0 | AV23: =VLOOKUP(A23,'D8'!$B$10:$AZ$109,6,FALSE) -> 0 | AW23: =VLOOKUP(A23,'D8'!$B$10:$AZ$109,7,FALSE) -> 0 | AX23: 0 | AY23: 0 | AZ23: راسب | BA23: 0 | BC23: الثاني مكرر | BD23: =IFERROR(VLOOKUP(A23,A!$A$6:$M$99,6,FALSE),"") ->  | BE23: =IFERROR(VLOOKUP(A23,A!$A$6:$M$99,7,FALSE),"") ->  | BF23: =IFERROR(VLOOKUP(A23,A!$A$6:$M$99,9,FALSE),"") ->  | BG23: =IFERROR(VLOOKUP(A23,A!$A$6:$M$99,10,FALSE),"") ->  | BH23: =IFERROR(VLOOKUP(A23,A!$A$6:$M$99,11,FALSE),"") ->  | BI23: =IF(COUNTIF($AY$10:AY23,AY23)=1,AY23) -> FALSE | BJ23: 2 | BK23: =IF(COUNTIF($AY$10:AY23,AY23)>1," مكرر ","") -> مكرر | BL23: الثاني
A24: 15 | B24: =IFERROR(VLOOKUP(A24,A!$A$6:$M$99,2,FALSE),"") ->  | C24: =VLOOKUP(A24,'D1'!$B$10:$AZ$109,3,FALSE) -> 0 | D24: =VLOOKUP(A24,'D1'!$B$10:$AZ$109,4,FALSE) -> 0 | E24: =VLOOKUP(A24,'D1'!$B$10:$AZ$109,5,FALSE) -> 0 | F24: =VLOOKUP(A24,'D1'!$B$10:$AZ$109,6,FALSE) -> 0 | G24: =VLOOKUP(A24,'D1'!$B$10:$AZ$109,7,FALSE) -> 0 | H24: 0 | I24: =VLOOKUP(A24,'D2'!$B$10:$AZ$109,3,FALSE) -> 0 | J24: =VLOOKUP(A24,'D2'!$B$10:$AZ$109,4,FALSE) -> 0 | K24: =VLOOKUP(A24,'D2'!$B$10:$AZ$109,5,FALSE) -> 0 | L24: =VLOOKUP(A24,'D2'!$B$10:$AZ$109,6,FALSE) -> 0 | M24: =VLOOKUP(A24,'D2'!$B$10:$AZ$109,7,FALSE) -> 0 | N24: 0 | O24: =VLOOKUP(A24,'D3'!$B$10:$AZ$109,3,FALSE) -> 0 | P24: =VLOOKUP(A24,'D3'!$B$10:$AZ$109,4,FALSE) -> 0 | Q24: =VLOOKUP(A24,'D3'!$B$10:$AZ$109,5,FALSE) -> 0 | R24: =VLOOKUP(A24,'D3'!$B$10:$AZ$109,6,FALSE) -> 0 | S24: =VLOOKUP(A24,'D3'!$B$10:$AZ$109,7,FALSE) -> 0 | T24: 0 | U24: =VLOOKUP(A24,'D4'!$B$10:$AZ$109,3,FALSE) -> 0 | V24: =VLOOKUP(A24,'D4'!$B$10:$AZ$109,4,FALSE) -> 0 | W24: =VLOOKUP(A24,'D4'!$B$10:$AZ$109,5,FALSE) -> 0 | X24: =VLOOKUP(A24,'D4'!$B$10:$AZ$109,6,FALSE) -> 0 | Y24: =VLOOKUP(A24,'D4'!$B$10:$AZ$109,7,FALSE) -> 0 | Z24: 0 | AA24: =VLOOKUP(A24,'D5'!$B$10:$AZ$109,3,FALSE) -> 0 | AB24: =VLOOKUP(A24,'D5'!$B$10:$AZ$109,4,FALSE) -> 0 | AC24: =VLOOKUP(A24,'D5'!$B$10:$AZ$109,5,FALSE) -> 0 | AD24: =VLOOKUP(A24,'D5'!$B$10:$AZ$109,6,FALSE) -> 0 | AE24: =VLOOKUP(A24,'D5'!$B$10:$AZ$109,7,FALSE) -> 0 | AF24: 0 | AG24: =VLOOKUP(A24,'D6'!$B$10:$AZ$109,3,FALSE) -> 0 | AH24: =VLOOKUP(A24,'D6'!$B$10:$AZ$109,4,FALSE) -> 0 | AI24: =VLOOKUP(A24,'D6'!$B$10:$AZ$109,5,FALSE) -> 0 | AJ24: =VLOOKUP(A24,'D6'!$B$10:$AZ$109,6,FALSE) -> 0 | AK24: =VLOOKUP(A24,'D6'!$B$10:$AZ$109,7,FALSE) -> 0 | AL24: 0 | AM24: =VLOOKUP(A24,'D7'!$B$10:$AZ$109,3,FALSE) -> 0 | AN24: =VLOOKUP(A24,'D7'!$B$10:$AZ$109,4,FALSE) -> 0 | AO24: =VLOOKUP(A24,'D7'!$B$10:$AZ$109,5,FALSE) -> 0 | AP24: =VLOOKUP(A24,'D7'!$B$10:$AZ$109,6,FALSE) -> 0 | AQ24: =VLOOKUP(A24,'D7'!$B$10:$AZ$109,7,FALSE) -> 0 | AR24: 0 | AS24: =VLOOKUP(A24,'D8'!$B$10:$AZ$109,3,FALSE) -> 0 | AT24: =VLOOKUP(A24,'D8'!$B$10:$AZ$109,4,FALSE) -> 0 | AU24: =VLOOKUP(A24,'D8'!$B$10:$AZ$109,5,FALSE) -> 0 | AV24: =VLOOKUP(A24,'D8'!$B$10:$AZ$109,6,FALSE) -> 0 | AW24: =VLOOKUP(A24,'D8'!$B$10:$AZ$109,7,FALSE) -> 0 | AX24: 0 | AY24: 0 | AZ24: راسب | BA24: 0 | BC24: الثاني مكرر | BD24: =IFERROR(VLOOKUP(A24,A!$A$6:$M$99,6,FALSE),"") ->  | BE24: =IFERROR(VLOOKUP(A24,A!$A$6:$M$99,7,FALSE),"") ->  | BF24: =IFERROR(VLOOKUP(A24,A!$A$6:$M$99,9,FALSE),"") ->  | BG24: =IFERROR(VLOOKUP(A24,A!$A$6:$M$99,10,FALSE),"") ->  | BH24: =IFERROR(VLOOKUP(A24,A!$A$6:$M$99,11,FALSE),"") ->  | BI24: =IF(COUNTIF($AY$10:AY24,AY24)=1,AY24) -> FALSE | BJ24: 2 | BK24: =IF(COUNTIF($AY$10:AY24,AY24)>1," مكرر ","") -> مكرر | BL24: الثاني
A25: 16 | B25: =IFERROR(VLOOKUP(A25,A!$A$6:$M$99,2,FALSE),"") ->  | C25: =VLOOKUP(A25,'D1'!$B$10:$AZ$109,3,FALSE) -> 0 | D25: =VLOOKUP(A25,'D1'!$B$10:$AZ$109,4,FALSE) -> 0 | E25: =VLOOKUP(A25,'D1'!$B$10:$AZ$109,5,FALSE) -> 0 | F25: =VLOOKUP(A25,'D1'!$B$10:$AZ$109,6,FALSE) -> 0 | G25: =VLOOKUP(A25,'D1'!$B$10:$AZ$109,7,FALSE) -> 0 | H25: 0 | I25: =VLOOKUP(A25,'D2'!$B$10:$AZ$109,3,FALSE) -> 0 | J25: =VLOOKUP(A25,'D2'!$B$10:$AZ$109,4,FALSE) -> 0 | K25: =VLOOKUP(A25,'D2'!$B$10:$AZ$109,5,FALSE) -> 0 | L25: =VLOOKUP(A25,'D2'!$B$10:$AZ$109,6,FALSE) -> 0 | M25: =VLOOKUP(A25,'D2'!$B$10:$AZ$109,7,FALSE) -> 0 | N25: 0 | O25: =VLOOKUP(A25,'D3'!$B$10:$AZ$109,3,FALSE) -> 0 | P25: =VLOOKUP(A25,'D3'!$B$10:$AZ$109,4,FALSE) -> 0 | Q25: =VLOOKUP(A25,'D3'!$B$10:$AZ$109,5,FALSE) -> 0 | R25: =VLOOKUP(A25,'D3'!$B$10:$AZ$109,6,FALSE) -> 0 | S25: =VLOOKUP(A25,'D3'!$B$10:$AZ$109,7,FALSE) -> 0 | T25: 0 | U25: =VLOOKUP(A25,'D4'!$B$10:$AZ$109,3,FALSE) -> 0 | V25: =VLOOKUP(A25,'D4'!$B$10:$AZ$109,4,FALSE) -> 0 | W25: =VLOOKUP(A25,'D4'!$B$10:$AZ$109,5,FALSE) -> 0 | X25: =VLOOKUP(A25,'D4'!$B$10:$AZ$109,6,FALSE) -> 0 | Y25: =VLOOKUP(A25,'D4'!$B$10:$AZ$109,7,FALSE) -> 0 | Z25: 0 | AA25: =VLOOKUP(A25,'D5'!$B$10:$AZ$109,3,FALSE) -> 0 | AB25: =VLOOKUP(A25,'D5'!$B$10:$AZ$109,4,FALSE) -> 0 | AC25: =VLOOKUP(A25,'D5'!$B$10:$AZ$109,5,FALSE) -> 0 | AD25: =VLOOKUP(A25,'D5'!$B$10:$AZ$109,6,FALSE) -> 0 | AE25: =VLOOKUP(A25,'D5'!$B$10:$AZ$109,7,FALSE) -> 0 | AF25: 0 | AG25: =VLOOKUP(A25,'D6'!$B$10:$AZ$109,3,FALSE) -> 0 | AH25: =VLOOKUP(A25,'D6'!$B$10:$AZ$109,4,FALSE) -> 0 | AI25: =VLOOKUP(A25,'D6'!$B$10:$AZ$109,5,FALSE) -> 0 | AJ25: =VLOOKUP(A25,'D6'!$B$10:$AZ$109,6,FALSE) -> 0 | AK25: =VLOOKUP(A25,'D6'!$B$10:$AZ$109,7,FALSE) -> 0 | AL25: 0 | AM25: =VLOOKUP(A25,'D7'!$B$10:$AZ$109,3,FALSE) -> 0 | AN25: =VLOOKUP(A25,'D7'!$B$10:$AZ$109,4,FALSE) -> 0 | AO25: =VLOOKUP(A25,'D7'!$B$10:$AZ$109,5,FALSE) -> 0 | AP25: =VLOOKUP(A25,'D7'!$B$10:$AZ$109,6,FALSE) -> 0 | AQ25: =VLOOKUP(A25,'D7'!$B$10:$AZ$109,7,FALSE) -> 0 | AR25: 0 | AS25: =VLOOKUP(A25,'D8'!$B$10:$AZ$109,3,FALSE) -> 0 | AT25: =VLOOKUP(A25,'D8'!$B$10:$AZ$109,4,FALSE) -> 0 | AU25: =VLOOKUP(A25,'D8'!$B$10:$AZ$109,5,FALSE) -> 0 | AV25: =VLOOKUP(A25,'D8'!$B$10:$AZ$109,6,FALSE) -> 0 | AW25: =VLOOKUP(A25,'D8'!$B$10:$AZ$109,7,FALSE) -> 0 | AX25: 0 | AY25: 0 | AZ25: راسب | BA25: 0 | BC25: الثاني مكرر | BD25: =IFERROR(VLOOKUP(A25,A!$A$6:$M$99,6,FALSE),"") ->  | BE25: =IFERROR(VLOOKUP(A25,A!$A$6:$M$99,7,FALSE),"") ->  | BF25: =IFERROR(VLOOKUP(A25,A!$A$6:$M$99,9,FALSE),"") ->  | BG25: =IFERROR(VLOOKUP(A25,A!$A$6:$M$99,10,FALSE),"") ->  | BH25: =IFERROR(VLOOKUP(A25,A!$A$6:$M$99,11,FALSE),"") ->  | BI25: =IF(COUNTIF($AY$10:AY25,AY25)=1,AY25) -> FALSE | BJ25: 2 | BK25: =IF(COUNTIF($AY$10:AY25,AY25)>1," مكرر ","") -> مكرر | BL25: الثاني
A26: 17 | B26: =IFERROR(VLOOKUP(A26,A!$A$6:$M$99,2,FALSE),"") ->  | C26: =VLOOKUP(A26,'D1'!$B$10:$AZ$109,3,FALSE) -> 0 | D26: =VLOOKUP(A26,'D1'!$B$10:$AZ$109,4,FALSE) -> 0 | E26: =VLOOKUP(A26,'D1'!$B$10:$AZ$109,5,FALSE) -> 0 | F26: =VLOOKUP(A26,'D1'!$B$10:$AZ$109,6,FALSE) -> 0 | G26: =VLOOKUP(A26,'D1'!$B$10:$AZ$109,7,FALSE) -> 0 | H26: 0 | I26: =VLOOKUP(A26,'D2'!$B$10:$AZ$109,3,FALSE) -> 0 | J26: =VLOOKUP(A26,'D2'!$B$10:$AZ$109,4,FALSE) -> 0 | K26: =VLOOKUP(A26,'D2'!$B$10:$AZ$109,5,FALSE) -> 0 | L26: =VLOOKUP(A26,'D2'!$B$10:$AZ$109,6,FALSE) -> 0 | M26: =VLOOKUP(A26,'D2'!$B$10:$AZ$109,7,FALSE) -> 0 | N26: 0 | O26: =VLOOKUP(A26,'D3'!$B$10:$AZ$109,3,FALSE) -> 0 | P26: =VLOOKUP(A26,'D3'!$B$10:$AZ$109,4,FALSE) -> 0 | Q26: =VLOOKUP(A26,'D3'!$B$10:$AZ$109,5,FALSE) -> 0 | R26: =VLOOKUP(A26,'D3'!$B$10:$AZ$109,6,FALSE) -> 0 | S26: =VLOOKUP(A26,'D3'!$B$10:$AZ$109,7,FALSE) -> 0 | T26: 0 | U26: =VLOOKUP(A26,'D4'!$B$10:$AZ$109,3,FALSE) -> 0 | V26: =VLOOKUP(A26,'D4'!$B$10:$AZ$109,4,FALSE) -> 0 | W26: =VLOOKUP(A26,'D4'!$B$10:$AZ$109,5,FALSE) -> 0 | X26: =VLOOKUP(A26,'D4'!$B$10:$AZ$109,6,FALSE) -> 0 | Y26: =VLOOKUP(A26,'D4'!$B$10:$AZ$109,7,FALSE) -> 0 | Z26: 0 | AA26: =VLOOKUP(A26,'D5'!$B$10:$AZ$109,3,FALSE) -> 0 | AB26: =VLOOKUP(A26,'D5'!$B$10:$AZ$109,4,FALSE) -> 0 | AC26: =VLOOKUP(A26,'D5'!$B$10:$AZ$109,5,FALSE) -> 0 | AD26: =VLOOKUP(A26,'D5'!$B$10:$AZ$109,6,FALSE) -> 0 | AE26: =VLOOKUP(A26,'D5'!$B$10:$AZ$109,7,FALSE) -> 0 | AF26: 0 | AG26: =VLOOKUP(A26,'D6'!$B$10:$AZ$109,3,FALSE) -> 0 | AH26: =VLOOKUP(A26,'D6'!$B$10:$AZ$109,4,FALSE) -> 0 | AI26: =VLOOKUP(A26,'D6'!$B$10:$AZ$109,5,FALSE) -> 0 | AJ26: =VLOOKUP(A26,'D6'!$B$10:$AZ$109,6,FALSE) -> 0 | AK26: =VLOOKUP(A26,'D6'!$B$10:$AZ$109,7,FALSE) -> 0 | AL26: 0 | AM26: =VLOOKUP(A26,'D7'!$B$10:$AZ$109,3,FALSE) -> 0 | AN26: =VLOOKUP(A26,'D7'!$B$10:$AZ$109,4,FALSE) -> 0 | AO26: =VLOOKUP(A26,'D7'!$B$10:$AZ$109,5,FALSE) -> 0 | AP26: =VLOOKUP(A26,'D7'!$B$10:$AZ$109,6,FALSE) -> 0 | AQ26: =VLOOKUP(A26,'D7'!$B$10:$AZ$109,7,FALSE) -> 0 | AR26: 0 | AS26: =VLOOKUP(A26,'D8'!$B$10:$AZ$109,3,FALSE) -> 0 | AT26: =VLOOKUP(A26,'D8'!$B$10:$AZ$109,4,FALSE) -> 0 | AU26: =VLOOKUP(A26,'D8'!$B$10:$AZ$109,5,FALSE) -> 0 | AV26: =VLOOKUP(A26,'D8'!$B$10:$AZ$109,6,FALSE) -> 0 | AW26: =VLOOKUP(A26,'D8'!$B$10:$AZ$109,7,FALSE) -> 0 | AX26: 0 | AY26: 0 | AZ26: راسب | BA26: 0 | BC26: الثاني مكرر | BD26: =IFERROR(VLOOKUP(A26,A!$A$6:$M$99,6,FALSE),"") ->  | BE26: =IFERROR(VLOOKUP(A26,A!$A$6:$M$99,7,FALSE),"") ->  | BF26: =IFERROR(VLOOKUP(A26,A!$A$6:$M$99,9,FALSE),"") ->  | BG26: =IFERROR(VLOOKUP(A26,A!$A$6:$M$99,10,FALSE),"") ->  | BH26: =IFERROR(VLOOKUP(A26,A!$A$6:$M$99,11,FALSE),"") ->  | BI26: =IF(COUNTIF($AY$10:AY26,AY26)=1,AY26) -> FALSE | BJ26: 2 | BK26: =IF(COUNTIF($AY$10:AY26,AY26)>1," مكرر ","") -> مكرر | BL26: الثاني
A27: 18 | B27: =IFERROR(VLOOKUP(A27,A!$A$6:$M$99,2,FALSE),"") ->  | C27: =VLOOKUP(A27,'D1'!$B$10:$AZ$109,3,FALSE) -> 0 | D27: =VLOOKUP(A27,'D1'!$B$10:$AZ$109,4,FALSE) -> 0 | E27: =VLOOKUP(A27,'D1'!$B$10:$AZ$109,5,FALSE) -> 0 | F27: =VLOOKUP(A27,'D1'!$B$10:$AZ$109,6,FALSE) -> 0 | G27: =VLOOKUP(A27,'D1'!$B$10:$AZ$109,7,FALSE) -> 0 | H27: 0 | I27: =VLOOKUP(A27,'D2'!$B$10:$AZ$109,3,FALSE) -> 0 | J27: =VLOOKUP(A27,'D2'!$B$10:$AZ$109,4,FALSE) -> 0 | K27: =VLOOKUP(A27,'D2'!$B$10:$AZ$109,5,FALSE) -> 0 | L27: =VLOOKUP(A27,'D2'!$B$10:$AZ$109,6,FALSE) -> 0 | M27: =VLOOKUP(A27,'D2'!$B$10:$AZ$109,7,FALSE) -> 0 | N27: 0 | O27: =VLOOKUP(A27,'D3'!$B$10:$AZ$109,3,FALSE) -> 0 | P27: =VLOOKUP(A27,'D3'!$B$10:$AZ$109,4,FALSE) -> 0 | Q27: =VLOOKUP(A27,'D3'!$B$10:$AZ$109,5,FALSE) -> 0 | R27: =VLOOKUP(A27,'D3'!$B$10:$AZ$109,6,FALSE) -> 0 | S27: =VLOOKUP(A27,'D3'!$B$10:$AZ$109,7,FALSE) -> 0 | T27: 0 | U27: =VLOOKUP(A27,'D4'!$B$10:$AZ$109,3,FALSE) -> 0 | V27: =VLOOKUP(A27,'D4'!$B$10:$AZ$109,4,FALSE) -> 0 | W27: =VLOOKUP(A27,'D4'!$B$10:$AZ$109,5,FALSE) -> 0 | X27: =VLOOKUP(A27,'D4'!$B$10:$AZ$109,6,FALSE) -> 0 | Y27: =VLOOKUP(A27,'D4'!$B$10:$AZ$109,7,FALSE) -> 0 | Z27: 0 | AA27: =VLOOKUP(A27,'D5'!$B$10:$AZ$109,3,FALSE) -> 0 | AB27: =VLOOKUP(A27,'D5'!$B$10:$AZ$109,4,FALSE) -> 0 | AC27: =VLOOKUP(A27,'D5'!$B$10:$AZ$109,5,FALSE) -> 0 | AD27: =VLOOKUP(A27,'D5'!$B$10:$AZ$109,6,FALSE) -> 0 | AE27: =VLOOKUP(A27,'D5'!$B$10:$AZ$109,7,FALSE) -> 0 | AF27: 0 | AG27: =VLOOKUP(A27,'D6'!$B$10:$AZ$109,3,FALSE) -> 0 | AH27: =VLOOKUP(A27,'D6'!$B$10:$AZ$109,4,FALSE) -> 0 | AI27: =VLOOKUP(A27,'D6'!$B$10:$AZ$109,5,FALSE) -> 0 | AJ27: =VLOOKUP(A27,'D6'!$B$10:$AZ$109,6,FALSE) -> 0 | AK27: =VLOOKUP(A27,'D6'!$B$10:$AZ$109,7,FALSE) -> 0 | AL27: 0 | AM27: =VLOOKUP(A27,'D7'!$B$10:$AZ$109,3,FALSE) -> 0 | AN27: =VLOOKUP(A27,'D7'!$B$10:$AZ$109,4,FALSE) -> 0 | AO27: =VLOOKUP(A27,'D7'!$B$10:$AZ$109,5,FALSE) -> 0 | AP27: =VLOOKUP(A27,'D7'!$B$10:$AZ$109,6,FALSE) -> 0 | AQ27: =VLOOKUP(A27,'D7'!$B$10:$AZ$109,7,FALSE) -> 0 | AR27: 0 | AS27: =VLOOKUP(A27,'D8'!$B$10:$AZ$109,3,FALSE) -> 0 | AT27: =VLOOKUP(A27,'D8'!$B$10:$AZ$109,4,FALSE) -> 0 | AU27: =VLOOKUP(A27,'D8'!$B$10:$AZ$109,5,FALSE) -> 0 | AV27: =VLOOKUP(A27,'D8'!$B$10:$AZ$109,6,FALSE) -> 0 | AW27: =VLOOKUP(A27,'D8'!$B$10:$AZ$109,7,FALSE) -> 0 | AX27: 0 | AY27: 0 | AZ27: راسب | BA27: 0 | BC27: الثاني مكرر | BD27: =IFERROR(VLOOKUP(A27,A!$A$6:$M$99,6,FALSE),"") ->  | BE27: =IFERROR(VLOOKUP(A27,A!$A$6:$M$99,7,FALSE),"") ->  | BF27: =IFERROR(VLOOKUP(A27,A!$A$6:$M$99,9,FALSE),"") ->  | BG27: =IFERROR(VLOOKUP(A27,A!$A$6:$M$99,10,FALSE),"") ->  | BH27: =IFERROR(VLOOKUP(A27,A!$A$6:$M$99,11,FALSE),"") ->  | BI27: =IF(COUNTIF($AY$10:AY27,AY27)=1,AY27) -> FALSE | BJ27: 2 | BK27: =IF(COUNTIF($AY$10:AY27,AY27)>1," مكرر ","") -> مكرر | BL27: الثاني
A28: 19 | B28: =IFERROR(VLOOKUP(A28,A!$A$6:$M$99,2,FALSE),"") ->  | C28: =VLOOKUP(A28,'D1'!$B$10:$AZ$109,3,FALSE) -> 0 | D28: =VLOOKUP(A28,'D1'!$B$10:$AZ$109,4,FALSE) -> 0 | E28: =VLOOKUP(A28,'D1'!$B$10:$AZ$109,5,FALSE) -> 0 | F28: =VLOOKUP(A28,'D1'!$B$10:$AZ$109,6,FALSE) -> 0 | G28: =VLOOKUP(A28,'D1'!$B$10:$AZ$109,7,FALSE) -> 0 | H28: 0 | I28: =VLOOKUP(A28,'D2'!$B$10:$AZ$109,3,FALSE) -> 0 | J28: =VLOOKUP(A28,'D2'!$B$10:$AZ$109,4,FALSE) -> 0 | K28: =VLOOKUP(A28,'D2'!$B$10:$AZ$109,5,FALSE) -> 0 | L28: =VLOOKUP(A28,'D2'!$B$10:$AZ$109,6,FALSE) -> 0 | M28: =VLOOKUP(A28,'D2'!$B$10:$AZ$109,7,FALSE) -> 0 | N28: 0 | O28: =VLOOKUP(A28,'D3'!$B$10:$AZ$109,3,FALSE) -> 0 | P28: =VLOOKUP(A28,'D3'!$B$10:$AZ$109,4,FALSE) -> 0 | Q28: =VLOOKUP(A28,'D3'!$B$10:$AZ$109,5,FALSE) -> 0 | R28: =VLOOKUP(A28,'D3'!$B$10:$AZ$109,6,FALSE) -> 0 | S28: =VLOOKUP(A28,'D3'!$B$10:$AZ$109,7,FALSE) -> 0 | T28: 0 | U28: =VLOOKUP(A28,'D4'!$B$10:$AZ$109,3,FALSE) -> 0 | V28: =VLOOKUP(A28,'D4'!$B$10:$AZ$109,4,FALSE) -> 0 | W28: =VLOOKUP(A28,'D4'!$B$10:$AZ$109,5,FALSE) -> 0 | X28: =VLOOKUP(A28,'D4'!$B$10:$AZ$109,6,FALSE) -> 0 | Y28: =VLOOKUP(A28,'D4'!$B$10:$AZ$109,7,FALSE) -> 0 | Z28: 0 | AA28: =VLOOKUP(A28,'D5'!$B$10:$AZ$109,3,FALSE) -> 0 | AB28: =VLOOKUP(A28,'D5'!$B$10:$AZ$109,4,FALSE) -> 0 | AC28: =VLOOKUP(A28,'D5'!$B$10:$AZ$109,5,FALSE) -> 0 | AD28: =VLOOKUP(A28,'D5'!$B$10:$AZ$109,6,FALSE) -> 0 | AE28: =VLOOKUP(A28,'D5'!$B$10:$AZ$109,7,FALSE) -> 0 | AF28: 0 | AG28: =VLOOKUP(A28,'D6'!$B$10:$AZ$109,3,FALSE) -> 0 | AH28: =VLOOKUP(A28,'D6'!$B$10:$AZ$109,4,FALSE) -> 0 | AI28: =VLOOKUP(A28,'D6'!$B$10:$AZ$109,5,FALSE) -> 0 | AJ28: =VLOOKUP(A28,'D6'!$B$10:$AZ$109,6,FALSE) -> 0 | AK28: =VLOOKUP(A28,'D6'!$B$10:$AZ$109,7,FALSE) -> 0 | AL28: 0 | AM28: =VLOOKUP(A28,'D7'!$B$10:$AZ$109,3,FALSE) -> 0 | AN28: =VLOOKUP(A28,'D7'!$B$10:$AZ$109,4,FALSE) -> 0 | AO28: =VLOOKUP(A28,'D7'!$B$10:$AZ$109,5,FALSE) -> 0 | AP28: =VLOOKUP(A28,'D7'!$B$10:$AZ$109,6,FALSE) -> 0 | AQ28: =VLOOKUP(A28,'D7'!$B$10:$AZ$109,7,FALSE) -> 0 | AR28: 0 | AS28: =VLOOKUP(A28,'D8'!$B$10:$AZ$109,3,FALSE) -> 0 | AT28: =VLOOKUP(A28,'D8'!$B$10:$AZ$109,4,FALSE) -> 0 | AU28: =VLOOKUP(A28,'D8'!$B$10:$AZ$109,5,FALSE) -> 0 | AV28: =VLOOKUP(A28,'D8'!$B$10:$AZ$109,6,FALSE) -> 0 | AW28: =VLOOKUP(A28,'D8'!$B$10:$AZ$109,7,FALSE) -> 0 | AX28: 0 | AY28: 0 | AZ28: راسب | BA28: 0 | BC28: الثاني مكرر | BD28: =IFERROR(VLOOKUP(A28,A!$A$6:$M$99,6,FALSE),"") ->  | BE28: =IFERROR(VLOOKUP(A28,A!$A$6:$M$99,7,FALSE),"") ->  | BF28: =IFERROR(VLOOKUP(A28,A!$A$6:$M$99,9,FALSE),"") ->  | BG28: =IFERROR(VLOOKUP(A28,A!$A$6:$M$99,10,FALSE),"") ->  | BH28: =IFERROR(VLOOKUP(A28,A!$A$6:$M$99,11,FALSE),"") ->  | BI28: =IF(COUNTIF($AY$10:AY28,AY28)=1,AY28) -> FALSE | BJ28: 2 | BK28: =IF(COUNTIF($AY$10:AY28,AY28)>1," مكرر ","") -> مكرر | BL28: الثاني
A29: 20 | B29: =IFERROR(VLOOKUP(A29,A!$A$6:$M$99,2,FALSE),"") ->  | C29: =VLOOKUP(A29,'D1'!$B$10:$AZ$109,3,FALSE) -> 0 | D29: =VLOOKUP(A29,'D1'!$B$10:$AZ$109,4,FALSE) -> 0 | E29: =VLOOKUP(A29,'D1'!$B$10:$AZ$109,5,FALSE) -> 0 | F29: =VLOOKUP(A29,'D1'!$B$10:$AZ$109,6,FALSE) -> 0 | G29: =VLOOKUP(A29,'D1'!$B$10:$AZ$109,7,FALSE) -> 0 | H29: 0 | I29: =VLOOKUP(A29,'D2'!$B$10:$AZ$109,3,FALSE) -> 0 | J29: =VLOOKUP(A29,'D2'!$B$10:$AZ$109,4,FALSE) -> 0 | K29: =VLOOKUP(A29,'D2'!$B$10:$AZ$109,5,FALSE) -> 0 | L29: =VLOOKUP(A29,'D2'!$B$10:$AZ$109,6,FALSE) -> 0 | M29: =VLOOKUP(A29,'D2'!$B$10:$AZ$109,7,FALSE) -> 0 | N29: 0 | O29: =VLOOKUP(A29,'D3'!$B$10:$AZ$109,3,FALSE) -> 0 | P29: =VLOOKUP(A29,'D3'!$B$10:$AZ$109,4,FALSE) -> 0 | Q29: =VLOOKUP(A29,'D3'!$B$10:$AZ$109,5,FALSE) -> 0 | R29: =VLOOKUP(A29,'D3'!$B$10:$AZ$109,6,FALSE) -> 0 | S29: =VLOOKUP(A29,'D3'!$B$10:$AZ$109,7,FALSE) -> 0 | T29: 0 | U29: =VLOOKUP(A29,'D4'!$B$10:$AZ$109,3,FALSE) -> 0 | V29: =VLOOKUP(A29,'D4'!$B$10:$AZ$109,4,FALSE) -> 0 | W29: =VLOOKUP(A29,'D4'!$B$10:$AZ$109,5,FALSE) -> 0 | X29: =VLOOKUP(A29,'D4'!$B$10:$AZ$109,6,FALSE) -> 0 | Y29: =VLOOKUP(A29,'D4'!$B$10:$AZ$109,7,FALSE) -> 0 | Z29: 0 | AA29: =VLOOKUP(A29,'D5'!$B$10:$AZ$109,3,FALSE) -> 0 | AB29: =VLOOKUP(A29,'D5'!$B$10:$AZ$109,4,FALSE) -> 0 | AC29: =VLOOKUP(A29,'D5'!$B$10:$AZ$109,5,FALSE) -> 0 | AD29: =VLOOKUP(A29,'D5'!$B$10:$AZ$109,6,FALSE) -> 0 | AE29: =VLOOKUP(A29,'D5'!$B$10:$AZ$109,7,FALSE) -> 0 | AF29: 0 | AG29: =VLOOKUP(A29,'D6'!$B$10:$AZ$109,3,FALSE) -> 0 | AH29: =VLOOKUP(A29,'D6'!$B$10:$AZ$109,4,FALSE) -> 0 | AI29: =VLOOKUP(A29,'D6'!$B$10:$AZ$109,5,FALSE) -> 0 | AJ29: =VLOOKUP(A29,'D6'!$B$10:$AZ$109,6,FALSE) -> 0 | AK29: =VLOOKUP(A29,'D6'!$B$10:$AZ$109,7,FALSE) -> 0 | AL29: 0 | AM29: =VLOOKUP(A29,'D7'!$B$10:$AZ$109,3,FALSE) -> 0 | AN29: =VLOOKUP(A29,'D7'!$B$10:$AZ$109,4,FALSE) -> 0 | AO29: =VLOOKUP(A29,'D7'!$B$10:$AZ$109,5,FALSE) -> 0 | AP29: =VLOOKUP(A29,'D7'!$B$10:$AZ$109,6,FALSE) -> 0 | AQ29: =VLOOKUP(A29,'D7'!$B$10:$AZ$109,7,FALSE) -> 0 | AR29: 0 | AS29: =VLOOKUP(A29,'D8'!$B$10:$AZ$109,3,FALSE) -> 0 | AT29: =VLOOKUP(A29,'D8'!$B$10:$AZ$109,4,FALSE) -> 0 | AU29: =VLOOKUP(A29,'D8'!$B$10:$AZ$109,5,FALSE) -> 0 | AV29: =VLOOKUP(A29,'D8'!$B$10:$AZ$109,6,FALSE) -> 0 | AW29: =VLOOKUP(A29,'D8'!$B$10:$AZ$109,7,FALSE) -> 0 | AX29: 0 | AY29: 0 | AZ29: راسب | BA29: 0 | BC29: الثاني مكرر | BD29: =IFERROR(VLOOKUP(A29,A!$A$6:$M$99,6,FALSE),"") ->  | BE29: =IFERROR(VLOOKUP(A29,A!$A$6:$M$99,7,FALSE),"") ->  | BF29: =IFERROR(VLOOKUP(A29,A!$A$6:$M$99,9,FALSE),"") ->  | BG29: =IFERROR(VLOOKUP(A29,A!$A$6:$M$99,10,FALSE),"") ->  | BH29: =IFERROR(VLOOKUP(A29,A!$A$6:$M$99,11,FALSE),"") ->  | BI29: =IF(COUNTIF($AY$10:AY29,AY29)=1,AY29) -> FALSE | BJ29: 2 | BK29: =IF(COUNTIF($AY$10:AY29,AY29)>1," مكرر ","") -> مكرر | BL29: الثاني
A30: 21 | B30: =IFERROR(VLOOKUP(A30,A!$A$6:$M$99,2,FALSE),"") ->  | C30: =VLOOKUP(A30,'D1'!$B$10:$AZ$109,3,FALSE) -> 0 | D30: =VLOOKUP(A30,'D1'!$B$10:$AZ$109,4,FALSE) -> 0 | E30: =VLOOKUP(A30,'D1'!$B$10:$AZ$109,5,FALSE) -> 0 | F30: =VLOOKUP(A30,'D1'!$B$10:$AZ$109,6,FALSE) -> 0 | G30: =VLOOKUP(A30,'D1'!$B$10:$AZ$109,7,FALSE) -> 0 | H30: 0 | I30: =VLOOKUP(A30,'D2'!$B$10:$AZ$109,3,FALSE) -> 0 | J30: =VLOOKUP(A30,'D2'!$B$10:$AZ$109,4,FALSE) -> 0 | K30: =VLOOKUP(A30,'D2'!$B$10:$AZ$109,5,FALSE) -> 0 | L30: =VLOOKUP(A30,'D2'!$B$10:$AZ$109,6,FALSE) -> 0 | M30: =VLOOKUP(A30,'D2'!$B$10:$AZ$109,7,FALSE) -> 0 | N30: 0 | O30: =VLOOKUP(A30,'D3'!$B$10:$AZ$109,3,FALSE) -> 0 | P30: =VLOOKUP(A30,'D3'!$B$10:$AZ$109,4,FALSE) -> 0 | Q30: =VLOOKUP(A30,'D3'!$B$10:$AZ$109,5,FALSE) -> 0 | R30: =VLOOKUP(A30,'D3'!$B$10:$AZ$109,6,FALSE) -> 0 | S30: =VLOOKUP(A30,'D3'!$B$10:$AZ$109,7,FALSE) -> 0 | T30: 0 | U30: =VLOOKUP(A30,'D4'!$B$10:$AZ$109,3,FALSE) -> 0 | V30: =VLOOKUP(A30,'D4'!$B$10:$AZ$109,4,FALSE) -> 0 | W30: =VLOOKUP(A30,'D4'!$B$10:$AZ$109,5,FALSE) -> 0 | X30: =VLOOKUP(A30,'D4'!$B$10:$AZ$109,6,FALSE) -> 0 | Y30: =VLOOKUP(A30,'D4'!$B$10:$AZ$109,7,FALSE) -> 0 | Z30: 0 | AA30: =VLOOKUP(A30,'D5'!$B$10:$AZ$109,3,FALSE) -> 0 | AB30: =VLOOKUP(A30,'D5'!$B$10:$AZ$109,4,FALSE) -> 0 | AC30: =VLOOKUP(A30,'D5'!$B$10:$AZ$109,5,FALSE) -> 0 | AD30: =VLOOKUP(A30,'D5'!$B$10:$AZ$109,6,FALSE) -> 0 | AE30: =VLOOKUP(A30,'D5'!$B$10:$AZ$109,7,FALSE) -> 0 | AF30: 0 | AG30: =VLOOKUP(A30,'D6'!$B$10:$AZ$109,3,FALSE) -> 0 | AH30: =VLOOKUP(A30,'D6'!$B$10:$AZ$109,4,FALSE) -> 0 | AI30: =VLOOKUP(A30,'D6'!$B$10:$AZ$109,5,FALSE) -> 0 | AJ30: =VLOOKUP(A30,'D6'!$B$10:$AZ$109,6,FALSE) -> 0 | AK30: =VLOOKUP(A30,'D6'!$B$10:$AZ$109,7,FALSE) -> 0 | AL30: 0 | AM30: =VLOOKUP(A30,'D7'!$B$10:$AZ$109,3,FALSE) -> 0 | AN30: =VLOOKUP(A30,'D7'!$B$10:$AZ$109,4,FALSE) -> 0 | AO30: =VLOOKUP(A30,'D7'!$B$10:$AZ$109,5,FALSE) -> 0 | AP30: =VLOOKUP(A30,'D7'!$B$10:$AZ$109,6,FALSE) -> 0 | AQ30: =VLOOKUP(A30,'D7'!$B$10:$AZ$109,7,FALSE) -> 0 | AR30: 0 | AS30: =VLOOKUP(A30,'D8'!$B$10:$AZ$109,3,FALSE) -> 0 | AT30: =VLOOKUP(A30,'D8'!$B$10:$AZ$109,4,FALSE) -> 0 | AU30: =VLOOKUP(A30,'D8'!$B$10:$AZ$109,5,FALSE) -> 0 | AV30: =VLOOKUP(A30,'D8'!$B$10:$AZ$109,6,FALSE) -> 0 | AW30: =VLOOKUP(A30,'D8'!$B$10:$AZ$109,7,FALSE) -> 0 | AX30: 0 | AY30: 0 | AZ30: راسب | BA30: 0 | BC30: الثاني مكرر | BD30: =IFERROR(VLOOKUP(A30,A!$A$6:$M$99,6,FALSE),"") ->  | BE30: =IFERROR(VLOOKUP(A30,A!$A$6:$M$99,7,FALSE),"") ->  | BF30: =IFERROR(VLOOKUP(A30,A!$A$6:$M$99,9,FALSE),"") ->  | BG30: =IFERROR(VLOOKUP(A30,A!$A$6:$M$99,10,FALSE),"") ->  | BH30: =IFERROR(VLOOKUP(A30,A!$A$6:$M$99,11,FALSE),"") ->  | BI30: =IF(COUNTIF($AY$10:AY30,AY30)=1,AY30) -> FALSE | BJ30: 2 | BK30: =IF(COUNTIF($AY$10:AY30,AY30)>1," مكرر ","") -> مكرر | BL30: الثاني
A31: 22 | B31: =IFERROR(VLOOKUP(A31,A!$A$6:$M$99,2,FALSE),"") ->  | C31: =VLOOKUP(A31,'D1'!$B$10:$AZ$109,3,FALSE) -> 0 | D31: =VLOOKUP(A31,'D1'!$B$10:$AZ$109,4,FALSE) -> 0 | E31: =VLOOKUP(A31,'D1'!$B$10:$AZ$109,5,FALSE) -> 0 | F31: =VLOOKUP(A31,'D1'!$B$10:$AZ$109,6,FALSE) -> 0 | G31: =VLOOKUP(A31,'D1'!$B$10:$AZ$109,7,FALSE) -> 0 | H31: 0 | I31: =VLOOKUP(A31,'D2'!$B$10:$AZ$109,3,FALSE) -> 0 | J31: =VLOOKUP(A31,'D2'!$B$10:$AZ$109,4,FALSE) -> 0 | K31: =VLOOKUP(A31,'D2'!$B$10:$AZ$109,5,FALSE) -> 0 | L31: =VLOOKUP(A31,'D2'!$B$10:$AZ$109,6,FALSE) -> 0 | M31: =VLOOKUP(A31,'D2'!$B$10:$AZ$109,7,FALSE) -> 0 | N31: 0 | O31: =VLOOKUP(A31,'D3'!$B$10:$AZ$109,3,FALSE) -> 0 | P31: =VLOOKUP(A31,'D3'!$B$10:$AZ$109,4,FALSE) -> 0 | Q31: =VLOOKUP(A31,'D3'!$B$10:$AZ$109,5,FALSE) -> 0 | R31: =VLOOKUP(A31,'D3'!$B$10:$AZ$109,6,FALSE) -> 0 | S31: =VLOOKUP(A31,'D3'!$B$10:$AZ$109,7,FALSE) -> 0 | T31: 0 | U31: =VLOOKUP(A31,'D4'!$B$10:$AZ$109,3,FALSE) -> 0 | V31: =VLOOKUP(A31,'D4'!$B$10:$AZ$109,4,FALSE) -> 0 | W31: =VLOOKUP(A31,'D4'!$B$10:$AZ$109,5,FALSE) -> 0 | X31: =VLOOKUP(A31,'D4'!$B$10:$AZ$109,6,FALSE) -> 0 | Y31: =VLOOKUP(A31,'D4'!$B$10:$AZ$109,7,FALSE) -> 0 | Z31: 0 | AA31: =VLOOKUP(A31,'D5'!$B$10:$AZ$109,3,FALSE) -> 0 | AB31: =VLOOKUP(A31,'D5'!$B$10:$AZ$109,4,FALSE) -> 0 | AC31: =VLOOKUP(A31,'D5'!$B$10:$AZ$109,5,FALSE) -> 0 | AD31: =VLOOKUP(A31,'D5'!$B$10:$AZ$109,6,FALSE) -> 0 | AE31: =VLOOKUP(A31,'D5'!$B$10:$AZ$109,7,FALSE) -> 0 | AF31: 0 | AG31: =VLOOKUP(A31,'D6'!$B$10:$AZ$109,3,FALSE) -> 0 | AH31: =VLOOKUP(A31,'D6'!$B$10:$AZ$109,4,FALSE) -> 0 | AI31: =VLOOKUP(A31,'D6'!$B$10:$AZ$109,5,FALSE) -> 0 | AJ31: =VLOOKUP(A31,'D6'!$B$10:$AZ$109,6,FALSE) -> 0 | AK31: =VLOOKUP(A31,'D6'!$B$10:$AZ$109,7,FALSE) -> 0 | AL31: 0 | AM31: =VLOOKUP(A31,'D7'!$B$10:$AZ$109,3,FALSE) -> 0 | AN31: =VLOOKUP(A31,'D7'!$B$10:$AZ$109,4,FALSE) -> 0 | AO31: =VLOOKUP(A31,'D7'!$B$10:$AZ$109,5,FALSE) -> 0 | AP31: =VLOOKUP(A31,'D7'!$B$10:$AZ$109,6,FALSE) -> 0 | AQ31: =VLOOKUP(A31,'D7'!$B$10:$AZ$109,7,FALSE) -> 0 | AR31: 0 | AS31: =VLOOKUP(A31,'D8'!$B$10:$AZ$109,3,FALSE) -> 0 | AT31: =VLOOKUP(A31,'D8'!$B$10:$AZ$109,4,FALSE) -> 0 | AU31: =VLOOKUP(A31,'D8'!$B$10:$AZ$109,5,FALSE) -> 0 | AV31: =VLOOKUP(A31,'D8'!$B$10:$AZ$109,6,FALSE) -> 0 | AW31: =VLOOKUP(A31,'D8'!$B$10:$AZ$109,7,FALSE) -> 0 | AX31: 0 | AY31: 0 | AZ31: راسب | BA31: 0 | BC31: الثاني مكرر | BD31: =IFERROR(VLOOKUP(A31,A!$A$6:$M$99,6,FALSE),"") ->  | BE31: =IFERROR(VLOOKUP(A31,A!$A$6:$M$99,7,FALSE),"") ->  | BF31: =IFERROR(VLOOKUP(A31,A!$A$6:$M$99,9,FALSE),"") ->  | BG31: =IFERROR(VLOOKUP(A31,A!$A$6:$M$99,10,FALSE),"") ->  | BH31: =IFERROR(VLOOKUP(A31,A!$A$6:$M$99,11,FALSE),"") ->  | BI31: =IF(COUNTIF($AY$10:AY31,AY31)=1,AY31) -> FALSE | BJ31: 2 | BK31: =IF(COUNTIF($AY$10:AY31,AY31)>1," مكرر ","") -> مكرر | BL31: الثاني
A32: 23 | B32: =IFERROR(VLOOKUP(A32,A!$A$6:$M$99,2,FALSE),"") ->  | C32: =VLOOKUP(A32,'D1'!$B$10:$AZ$109,3,FALSE) -> 0 | D32: =VLOOKUP(A32,'D1'!$B$10:$AZ$109,4,FALSE) -> 0 | E32: =VLOOKUP(A32,'D1'!$B$10:$AZ$109,5,FALSE) -> 0 | F32: =VLOOKUP(A32,'D1'!$B$10:$AZ$109,6,FALSE) -> 0 | G32: =VLOOKUP(A32,'D1'!$B$10:$AZ$109,7,FALSE) -> 0 | H32: 0 | I32: =VLOOKUP(A32,'D2'!$B$10:$AZ$109,3,FALSE) -> 0 | J32: =VLOOKUP(A32,'D2'!$B$10:$AZ$109,4,FALSE) -> 0 | K32: =VLOOKUP(A32,'D2'!$B$10:$AZ$109,5,FALSE) -> 0 | L32: =VLOOKUP(A32,'D2'!$B$10:$AZ$109,6,FALSE) -> 0 | M32: =VLOOKUP(A32,'D2'!$B$10:$AZ$109,7,FALSE) -> 0 | N32: 0 | O32: =VLOOKUP(A32,'D3'!$B$10:$AZ$109,3,FALSE) -> 0 | P32: =VLOOKUP(A32,'D3'!$B$10:$AZ$109,4,FALSE) -> 0 | Q32: =VLOOKUP(A32,'D3'!$B$10:$AZ$109,5,FALSE) -> 0 | R32: =VLOOKUP(A32,'D3'!$B$10:$AZ$109,6,FALSE) -> 0 | S32: =VLOOKUP(A32,'D3'!$B$10:$AZ$109,7,FALSE) -> 0 | T32: 0 | U32: =VLOOKUP(A32,'D4'!$B$10:$AZ$109,3,FALSE) -> 0 | V32: =VLOOKUP(A32,'D4'!$B$10:$AZ$109,4,FALSE) -> 0 | W32: =VLOOKUP(A32,'D4'!$B$10:$AZ$109,5,FALSE) -> 0 | X32: =VLOOKUP(A32,'D4'!$B$10:$AZ$109,6,FALSE) -> 0 | Y32: =VLOOKUP(A32,'D4'!$B$10:$AZ$109,7,FALSE) -> 0 | Z32: 0 | AA32: =VLOOKUP(A32,'D5'!$B$10:$AZ$109,3,FALSE) -> 0 | AB32: =VLOOKUP(A32,'D5'!$B$10:$AZ$109,4,FALSE) -> 0 | AC32: =VLOOKUP(A32,'D5'!$B$10:$AZ$109,5,FALSE) -> 0 | AD32: =VLOOKUP(A32,'D5'!$B$10:$AZ$109,6,FALSE) -> 0 | AE32: =VLOOKUP(A32,'D5'!$B$10:$AZ$109,7,FALSE) -> 0 | AF32: 0 | AG32: =VLOOKUP(A32,'D6'!$B$10:$AZ$109,3,FALSE) -> 0 | AH32: =VLOOKUP(A32,'D6'!$B$10:$AZ$109,4,FALSE) -> 0 | AI32: =VLOOKUP(A32,'D6'!$B$10:$AZ$109,5,FALSE) -> 0 | AJ32: =VLOOKUP(A32,'D6'!$B$10:$AZ$109,6,FALSE) -> 0 | AK32: =VLOOKUP(A32,'D6'!$B$10:$AZ$109,7,FALSE) -> 0 | AL32: 0 | AM32: =VLOOKUP(A32,'D7'!$B$10:$AZ$109,3,FALSE) -> 0 | AN32: =VLOOKUP(A32,'D7'!$B$10:$AZ$109,4,FALSE) -> 0 | AO32: =VLOOKUP(A32,'D7'!$B$10:$AZ$109,5,FALSE) -> 0 | AP32: =VLOOKUP(A32,'D7'!$B$10:$AZ$109,6,FALSE) -> 0 | AQ32: =VLOOKUP(A32,'D7'!$B$10:$AZ$109,7,FALSE) -> 0 | AR32: 0 | AS32: =VLOOKUP(A32,'D8'!$B$10:$AZ$109,3,FALSE) -> 0 | AT32: =VLOOKUP(A32,'D8'!$B$10:$AZ$109,4,FALSE) -> 0 | AU32: =VLOOKUP(A32,'D8'!$B$10:$AZ$109,5,FALSE) -> 0 | AV32: =VLOOKUP(A32,'D8'!$B$10:$AZ$109,6,FALSE) -> 0 | AW32: =VLOOKUP(A32,'D8'!$B$10:$AZ$109,7,FALSE) -> 0 | AX32: 0 | AY32: 0 | AZ32: راسب | BA32: 0 | BC32: الثاني مكرر | BD32: =IFERROR(VLOOKUP(A32,A!$A$6:$M$99,6,FALSE),"") ->  | BE32: =IFERROR(VLOOKUP(A32,A!$A$6:$M$99,7,FALSE),"") ->  | BF32: =IFERROR(VLOOKUP(A32,A!$A$6:$M$99,9,FALSE),"") ->  | BG32: =IFERROR(VLOOKUP(A32,A!$A$6:$M$99,10,FALSE),"") ->  | BH32: =IFERROR(VLOOKUP(A32,A!$A$6:$M$99,11,FALSE),"") ->  | BI32: =IF(COUNTIF($AY$10:AY32,AY32)=1,AY32) -> FALSE | BJ32: 2 | BK32: =IF(COUNTIF($AY$10:AY32,AY32)>1," مكرر ","") -> مكرر | BL32: الثاني
A33: 24 | B33: =IFERROR(VLOOKUP(A33,A!$A$6:$M$99,2,FALSE),"") ->  | C33: =VLOOKUP(A33,'D1'!$B$10:$AZ$109,3,FALSE) -> 0 | D33: =VLOOKUP(A33,'D1'!$B$10:$AZ$109,4,FALSE) -> 0 | E33: =VLOOKUP(A33,'D1'!$B$10:$AZ$109,5,FALSE) -> 0 | F33: =VLOOKUP(A33,'D1'!$B$10:$AZ$109,6,FALSE) -> 0 | G33: =VLOOKUP(A33,'D1'!$B$10:$AZ$109,7,FALSE) -> 0 | H33: 0 | I33: =VLOOKUP(A33,'D2'!$B$10:$AZ$109,3,FALSE) -> 0 | J33: =VLOOKUP(A33,'D2'!$B$10:$AZ$109,4,FALSE) -> 0 | K33: =VLOOKUP(A33,'D2'!$B$10:$AZ$109,5,FALSE) -> 0 | L33: =VLOOKUP(A33,'D2'!$B$10:$AZ$109,6,FALSE) -> 0 | M33: =VLOOKUP(A33,'D2'!$B$10:$AZ$109,7,FALSE) -> 0 | N33: 0 | O33: =VLOOKUP(A33,'D3'!$B$10:$AZ$109,3,FALSE) -> 0 | P33: =VLOOKUP(A33,'D3'!$B$10:$AZ$109,4,FALSE) -> 0 | Q33: =VLOOKUP(A33,'D3'!$B$10:$AZ$109,5,FALSE) -> 0 | R33: =VLOOKUP(A33,'D3'!$B$10:$AZ$109,6,FALSE) -> 0 | S33: =VLOOKUP(A33,'D3'!$B$10:$AZ$109,7,FALSE) -> 0 | T33: 0 | U33: =VLOOKUP(A33,'D4'!$B$10:$AZ$109,3,FALSE) -> 0 | V33: =VLOOKUP(A33,'D4'!$B$10:$AZ$109,4,FALSE) -> 0 | W33: =VLOOKUP(A33,'D4'!$B$10:$AZ$109,5,FALSE) -> 0 | X33: =VLOOKUP(A33,'D4'!$B$10:$AZ$109,6,FALSE) -> 0 | Y33: =VLOOKUP(A33,'D4'!$B$10:$AZ$109,7,FALSE) -> 0 | Z33: 0 | AA33: =VLOOKUP(A33,'D5'!$B$10:$AZ$109,3,FALSE) -> 0 | AB33: =VLOOKUP(A33,'D5'!$B$10:$AZ$109,4,FALSE) -> 0 | AC33: =VLOOKUP(A33,'D5'!$B$10:$AZ$109,5,FALSE) -> 0 | AD33: =VLOOKUP(A33,'D5'!$B$10:$AZ$109,6,FALSE) -> 0 | AE33: =VLOOKUP(A33,'D5'!$B$10:$AZ$109,7,FALSE) -> 0 | AF33: 0 | AG33: =VLOOKUP(A33,'D6'!$B$10:$AZ$109,3,FALSE) -> 0 | AH33: =VLOOKUP(A33,'D6'!$B$10:$AZ$109,4,FALSE) -> 0 | AI33: =VLOOKUP(A33,'D6'!$B$10:$AZ$109,5,FALSE) -> 0 | AJ33: =VLOOKUP(A33,'D6'!$B$10:$AZ$109,6,FALSE) -> 0 | AK33: =VLOOKUP(A33,'D6'!$B$10:$AZ$109,7,FALSE) -> 0 | AL33: 0 | AM33: =VLOOKUP(A33,'D7'!$B$10:$AZ$109,3,FALSE) -> 0 | AN33: =VLOOKUP(A33,'D7'!$B$10:$AZ$109,4,FALSE) -> 0 | AO33: =VLOOKUP(A33,'D7'!$B$10:$AZ$109,5,FALSE) -> 0 | AP33: =VLOOKUP(A33,'D7'!$B$10:$AZ$109,6,FALSE) -> 0 | AQ33: =VLOOKUP(A33,'D7'!$B$10:$AZ$109,7,FALSE) -> 0 | AR33: 0 | AS33: =VLOOKUP(A33,'D8'!$B$10:$AZ$109,3,FALSE) -> 0 | AT33: =VLOOKUP(A33,'D8'!$B$10:$AZ$109,4,FALSE) -> 0 | AU33: =VLOOKUP(A33,'D8'!$B$10:$AZ$109,5,FALSE) -> 0 | AV33: =VLOOKUP(A33,'D8'!$B$10:$AZ$109,6,FALSE) -> 0 | AW33: =VLOOKUP(A33,'D8'!$B$10:$AZ$109,7,FALSE) -> 0 | AX33: 0 | AY33: 0 | AZ33: راسب | BA33: 0 | BC33: الثاني مكرر | BD33: =IFERROR(VLOOKUP(A33,A!$A$6:$M$99,6,FALSE),"") ->  | BE33: =IFERROR(VLOOKUP(A33,A!$A$6:$M$99,7,FALSE),"") ->  | BF33: =IFERROR(VLOOKUP(A33,A!$A$6:$M$99,9,FALSE),"") ->  | BG33: =IFERROR(VLOOKUP(A33,A!$A$6:$M$99,10,FALSE),"") ->  | BH33: =IFERROR(VLOOKUP(A33,A!$A$6:$M$99,11,FALSE),"") ->  | BI33: =IF(COUNTIF($AY$10:AY33,AY33)=1,AY33) -> FALSE | BJ33: 2 | BK33: =IF(COUNTIF($AY$10:AY33,AY33)>1," مكرر ","") -> مكرر | BL33: الثاني
A34: 25 | B34: =IFERROR(VLOOKUP(A34,A!$A$6:$M$99,2,FALSE),"") ->  | C34: =VLOOKUP(A34,'D1'!$B$10:$AZ$109,3,FALSE) -> 0 | D34: =VLOOKUP(A34,'D1'!$B$10:$AZ$109,4,FALSE) -> 0 | E34: =VLOOKUP(A34,'D1'!$B$10:$AZ$109,5,FALSE) -> 0 | F34: =VLOOKUP(A34,'D1'!$B$10:$AZ$109,6,FALSE) -> 0 | G34: =VLOOKUP(A34,'D1'!$B$10:$AZ$109,7,FALSE) -> 0 | H34: 0 | I34: =VLOOKUP(A34,'D2'!$B$10:$AZ$109,3,FALSE) -> 0 | J34: =VLOOKUP(A34,'D2'!$B$10:$AZ$109,4,FALSE) -> 0 | K34: =VLOOKUP(A34,'D2'!$B$10:$AZ$109,5,FALSE) -> 0 | L34: =VLOOKUP(A34,'D2'!$B$10:$AZ$109,6,FALSE) -> 0 | M34: =VLOOKUP(A34,'D2'!$B$10:$AZ$109,7,FALSE) -> 0 | N34: 0 | O34: =VLOOKUP(A34,'D3'!$B$10:$AZ$109,3,FALSE) -> 0 | P34: =VLOOKUP(A34,'D3'!$B$10:$AZ$109,4,FALSE) -> 0 | Q34: =VLOOKUP(A34,'D3'!$B$10:$AZ$109,5,FALSE) -> 0 | R34: =VLOOKUP(A34,'D3'!$B$10:$AZ$109,6,FALSE) -> 0 | S34: =VLOOKUP(A34,'D3'!$B$10:$AZ$109,7,FALSE) -> 0 | T34: 0 | U34: =VLOOKUP(A34,'D4'!$B$10:$AZ$109,3,FALSE) -> 0 | V34: =VLOOKUP(A34,'D4'!$B$10:$AZ$109,4,FALSE) -> 0 | W34: =VLOOKUP(A34,'D4'!$B$10:$AZ$109,5,FALSE) -> 0 | X34: =VLOOKUP(A34,'D4'!$B$10:$AZ$109,6,FALSE) -> 0 | Y34: =VLOOKUP(A34,'D4'!$B$10:$AZ$109,7,FALSE) -> 0 | Z34: 0 | AA34: =VLOOKUP(A34,'D5'!$B$10:$AZ$109,3,FALSE) -> 0 | AB34: =VLOOKUP(A34,'D5'!$B$10:$AZ$109,4,FALSE) -> 0 | AC34: =VLOOKUP(A34,'D5'!$B$10:$AZ$109,5,FALSE) -> 0 | AD34: =VLOOKUP(A34,'D5'!$B$10:$AZ$109,6,FALSE) -> 0 | AE34: =VLOOKUP(A34,'D5'!$B$10:$AZ$109,7,FALSE) -> 0 | AF34: 0 | AG34: =VLOOKUP(A34,'D6'!$B$10:$AZ$109,3,FALSE) -> 0 | AH34: =VLOOKUP(A34,'D6'!$B$10:$AZ$109,4,FALSE) -> 0 | AI34: =VLOOKUP(A34,'D6'!$B$10:$AZ$109,5,FALSE) -> 0 | AJ34: =VLOOKUP(A34,'D6'!$B$10:$AZ$109,6,FALSE) -> 0 | AK34: =VLOOKUP(A34,'D6'!$B$10:$AZ$109,7,FALSE) -> 0 | AL34: 0 | AM34: =VLOOKUP(A34,'D7'!$B$10:$AZ$109,3,FALSE) -> 0 | AN34: =VLOOKUP(A34,'D7'!$B$10:$AZ$109,4,FALSE) -> 0 | AO34: =VLOOKUP(A34,'D7'!$B$10:$AZ$109,5,FALSE) -> 0 | AP34: =VLOOKUP(A34,'D7'!$B$10:$AZ$109,6,FALSE) -> 0 | AQ34: =VLOOKUP(A34,'D7'!$B$10:$AZ$109,7,FALSE) -> 0 | AR34: 0 | AS34: =VLOOKUP(A34,'D8'!$B$10:$AZ$109,3,FALSE) -> 0 | AT34: =VLOOKUP(A34,'D8'!$B$10:$AZ$109,4,FALSE) -> 0 | AU34: =VLOOKUP(A34,'D8'!$B$10:$AZ$109,5,FALSE) -> 0 | AV34: =VLOOKUP(A34,'D8'!$B$10:$AZ$109,6,FALSE) -> 0 | AW34: =VLOOKUP(A34,'D8'!$B$10:$AZ$109,7,FALSE) -> 0 | AX34: 0 | AY34: 0 | AZ34: راسب | BA34: 0 | BC34: الثاني مكرر | BD34: =IFERROR(VLOOKUP(A34,A!$A$6:$M$99,6,FALSE),"") ->  | BE34: =IFERROR(VLOOKUP(A34,A!$A$6:$M$99,7,FALSE),"") ->  | BF34: =IFERROR(VLOOKUP(A34,A!$A$6:$M$99,9,FALSE),"") ->  | BG34: =IFERROR(VLOOKUP(A34,A!$A$6:$M$99,10,FALSE),"") ->  | BH34: =IFERROR(VLOOKUP(A34,A!$A$6:$M$99,11,FALSE),"") ->  | BI34: =IF(COUNTIF($AY$10:AY34,AY34)=1,AY34) -> FALSE | BJ34: 2 | BK34: =IF(COUNTIF($AY$10:AY34,AY34)>1," مكرر ","") -> مكرر | BL34: الثاني
A35: 26 | B35: =IFERROR(VLOOKUP(A35,A!$A$6:$M$99,2,FALSE),"") ->  | C35: =VLOOKUP(A35,'D1'!$B$10:$AZ$109,3,FALSE) -> 0 | D35: =VLOOKUP(A35,'D1'!$B$10:$AZ$109,4,FALSE) -> 0 | E35: =VLOOKUP(A35,'D1'!$B$10:$AZ$109,5,FALSE) -> 0 | F35: =VLOOKUP(A35,'D1'!$B$10:$AZ$109,6,FALSE) -> 0 | G35: =VLOOKUP(A35,'D1'!$B$10:$AZ$109,7,FALSE) -> 0 | H35: 0 | I35: =VLOOKUP(A35,'D2'!$B$10:$AZ$109,3,FALSE) -> 0 | J35: =VLOOKUP(A35,'D2'!$B$10:$AZ$109,4,FALSE) -> 0 | K35: =VLOOKUP(A35,'D2'!$B$10:$AZ$109,5,FALSE) -> 0 | L35: =VLOOKUP(A35,'D2'!$B$10:$AZ$109,6,FALSE) -> 0 | M35: =VLOOKUP(A35,'D2'!$B$10:$AZ$109,7,FALSE) -> 0 | N35: 0 | O35: =VLOOKUP(A35,'D3'!$B$10:$AZ$109,3,FALSE) -> 0 | P35: =VLOOKUP(A35,'D3'!$B$10:$AZ$109,4,FALSE) -> 0 | Q35: =VLOOKUP(A35,'D3'!$B$10:$AZ$109,5,FALSE) -> 0 | R35: =VLOOKUP(A35,'D3'!$B$10:$AZ$109,6,FALSE) -> 0 | S35: =VLOOKUP(A35,'D3'!$B$10:$AZ$109,7,FALSE) -> 0 | T35: 0 | U35: =VLOOKUP(A35,'D4'!$B$10:$AZ$109,3,FALSE) -> 0 | V35: =VLOOKUP(A35,'D4'!$B$10:$AZ$109,4,FALSE) -> 0 | W35: =VLOOKUP(A35,'D4'!$B$10:$AZ$109,5,FALSE) -> 0 | X35: =VLOOKUP(A35,'D4'!$B$10:$AZ$109,6,FALSE) -> 0 | Y35: =VLOOKUP(A35,'D4'!$B$10:$AZ$109,7,FALSE) -> 0 | Z35: 0 | AA35: =VLOOKUP(A35,'D5'!$B$10:$AZ$109,3,FALSE) -> 0 | AB35: =VLOOKUP(A35,'D5'!$B$10:$AZ$109,4,FALSE) -> 0 | AC35: =VLOOKUP(A35,'D5'!$B$10:$AZ$109,5,FALSE) -> 0 | AD35: =VLOOKUP(A35,'D5'!$B$10:$AZ$109,6,FALSE) -> 0 | AE35: =VLOOKUP(A35,'D5'!$B$10:$AZ$109,7,FALSE) -> 0 | AF35: 0 | AG35: =VLOOKUP(A35,'D6'!$B$10:$AZ$109,3,FALSE) -> 0 | AH35: =VLOOKUP(A35,'D6'!$B$10:$AZ$109,4,FALSE) -> 0 | AI35: =VLOOKUP(A35,'D6'!$B$10:$AZ$109,5,FALSE) -> 0 | AJ35: =VLOOKUP(A35,'D6'!$B$10:$AZ$109,6,FALSE) -> 0 | AK35: =VLOOKUP(A35,'D6'!$B$10:$AZ$109,7,FALSE) -> 0 | AL35: 0 | AM35: =VLOOKUP(A35,'D7'!$B$10:$AZ$109,3,FALSE) -> 0 | AN35: =VLOOKUP(A35,'D7'!$B$10:$AZ$109,4,FALSE) -> 0 | AO35: =VLOOKUP(A35,'D7'!$B$10:$AZ$109,5,FALSE) -> 0 | AP35: =VLOOKUP(A35,'D7'!$B$10:$AZ$109,6,FALSE) -> 0 | AQ35: =VLOOKUP(A35,'D7'!$B$10:$AZ$109,7,FALSE) -> 0 | AR35: 0 | AS35: =VLOOKUP(A35,'D8'!$B$10:$AZ$109,3,FALSE) -> 0 | AT35: =VLOOKUP(A35,'D8'!$B$10:$AZ$109,4,FALSE) -> 0 | AU35: =VLOOKUP(A35,'D8'!$B$10:$AZ$109,5,FALSE) -> 0 | AV35: =VLOOKUP(A35,'D8'!$B$10:$AZ$109,6,FALSE) -> 0 | AW35: =VLOOKUP(A35,'D8'!$B$10:$AZ$109,7,FALSE) -> 0 | AX35: 0 | AY35: 0 | AZ35: راسب | BA35: 0 | BC35: الثاني مكرر | BD35: =IFERROR(VLOOKUP(A35,A!$A$6:$M$99,6,FALSE),"") ->  | BE35: =IFERROR(VLOOKUP(A35,A!$A$6:$M$99,7,FALSE),"") ->  | BF35: =IFERROR(VLOOKUP(A35,A!$A$6:$M$99,9,FALSE),"") ->  | BG35: =IFERROR(VLOOKUP(A35,A!$A$6:$M$99,10,FALSE),"") ->  | BH35: =IFERROR(VLOOKUP(A35,A!$A$6:$M$99,11,FALSE),"") ->  | BI35: =IF(COUNTIF($AY$10:AY35,AY35)=1,AY35) -> FALSE | BJ35: 2 | BK35: =IF(COUNTIF($AY$10:AY35,AY35)>1," مكرر ","") -> مكرر | BL35: الثاني
A36: 27 | B36: =IFERROR(VLOOKUP(A36,A!$A$6:$M$99,2,FALSE),"") ->  | C36: =VLOOKUP(A36,'D1'!$B$10:$AZ$109,3,FALSE) -> 0 | D36: =VLOOKUP(A36,'D1'!$B$10:$AZ$109,4,FALSE) -> 0 | E36: =VLOOKUP(A36,'D1'!$B$10:$AZ$109,5,FALSE) -> 0 | F36: =VLOOKUP(A36,'D1'!$B$10:$AZ$109,6,FALSE) -> 0 | G36: =VLOOKUP(A36,'D1'!$B$10:$AZ$109,7,FALSE) -> 0 | H36: 0 | I36: =VLOOKUP(A36,'D2'!$B$10:$AZ$109,3,FALSE) -> 0 | J36: =VLOOKUP(A36,'D2'!$B$10:$AZ$109,4,FALSE) -> 0 | K36: =VLOOKUP(A36,'D2'!$B$10:$AZ$109,5,FALSE) -> 0 | L36: =VLOOKUP(A36,'D2'!$B$10:$AZ$109,6,FALSE) -> 0 | M36: =VLOOKUP(A36,'D2'!$B$10:$AZ$109,7,FALSE) -> 0 | N36: 0 | O36: =VLOOKUP(A36,'D3'!$B$10:$AZ$109,3,FALSE) -> 0 | P36: =VLOOKUP(A36,'D3'!$B$10:$AZ$109,4,FALSE) -> 0 | Q36: =VLOOKUP(A36,'D3'!$B$10:$AZ$109,5,FALSE) -> 0 | R36: =VLOOKUP(A36,'D3'!$B$10:$AZ$109,6,FALSE) -> 0 | S36: =VLOOKUP(A36,'D3'!$B$10:$AZ$109,7,FALSE) -> 0 | T36: 0 | U36: =VLOOKUP(A36,'D4'!$B$10:$AZ$109,3,FALSE) -> 0 | V36: =VLOOKUP(A36,'D4'!$B$10:$AZ$109,4,FALSE) -> 0 | W36: =VLOOKUP(A36,'D4'!$B$10:$AZ$109,5,FALSE) -> 0 | X36: =VLOOKUP(A36,'D4'!$B$10:$AZ$109,6,FALSE) -> 0 | Y36: =VLOOKUP(A36,'D4'!$B$10:$AZ$109,7,FALSE) -> 0 | Z36: 0 | AA36: =VLOOKUP(A36,'D5'!$B$10:$AZ$109,3,FALSE) -> 0 | AB36: =VLOOKUP(A36,'D5'!$B$10:$AZ$109,4,FALSE) -> 0 | AC36: =VLOOKUP(A36,'D5'!$B$10:$AZ$109,5,FALSE) -> 0 | AD36: =VLOOKUP(A36,'D5'!$B$10:$AZ$109,6,FALSE) -> 0 | AE36: =VLOOKUP(A36,'D5'!$B$10:$AZ$109,7,FALSE) -> 0 | AF36: 0 | AG36: =VLOOKUP(A36,'D6'!$B$10:$AZ$109,3,FALSE) -> 0 | AH36: =VLOOKUP(A36,'D6'!$B$10:$AZ$109,4,FALSE) -> 0 | AI36: =VLOOKUP(A36,'D6'!$B$10:$AZ$109,5,FALSE) -> 0 | AJ36: =VLOOKUP(A36,'D6'!$B$10:$AZ$109,6,FALSE) -> 0 | AK36: =VLOOKUP(A36,'D6'!$B$10:$AZ$109,7,FALSE) -> 0 | AL36: 0 | AM36: =VLOOKUP(A36,'D7'!$B$10:$AZ$109,3,FALSE) -> 0 | AN36: =VLOOKUP(A36,'D7'!$B$10:$AZ$109,4,FALSE) -> 0 | AO36: =VLOOKUP(A36,'D7'!$B$10:$AZ$109,5,FALSE) -> 0 | AP36: =VLOOKUP(A36,'D7'!$B$10:$AZ$109,6,FALSE) -> 0 | AQ36: =VLOOKUP(A36,'D7'!$B$10:$AZ$109,7,FALSE) -> 0 | AR36: 0 | AS36: =VLOOKUP(A36,'D8'!$B$10:$AZ$109,3,FALSE) -> 0 | AT36: =VLOOKUP(A36,'D8'!$B$10:$AZ$109,4,FALSE) -> 0 | AU36: =VLOOKUP(A36,'D8'!$B$10:$AZ$109,5,FALSE) -> 0 | AV36: =VLOOKUP(A36,'D8'!$B$10:$AZ$109,6,FALSE) -> 0 | AW36: =VLOOKUP(A36,'D8'!$B$10:$AZ$109,7,FALSE) -> 0 | AX36: 0 | AY36: 0 | AZ36: راسب | BA36: 0 | BC36: الثاني مكرر | BD36: =IFERROR(VLOOKUP(A36,A!$A$6:$M$99,6,FALSE),"") ->  | BE36: =IFERROR(VLOOKUP(A36,A!$A$6:$M$99,7,FALSE),"") ->  | BF36: =IFERROR(VLOOKUP(A36,A!$A$6:$M$99,9,FALSE),"") ->  | BG36: =IFERROR(VLOOKUP(A36,A!$A$6:$M$99,10,FALSE),"") ->  | BH36: =IFERROR(VLOOKUP(A36,A!$A$6:$M$99,11,FALSE),"") ->  | BI36: =IF(COUNTIF($AY$10:AY36,AY36)=1,AY36) -> FALSE | BJ36: 2 | BK36: =IF(COUNTIF($AY$10:AY36,AY36)>1," مكرر ","") -> مكرر | BL36: الثاني
A37: 28 | B37: =IFERROR(VLOOKUP(A37,A!$A$6:$M$99,2,FALSE),"") ->  | C37: =VLOOKUP(A37,'D1'!$B$10:$AZ$109,3,FALSE) -> 0 | D37: =VLOOKUP(A37,'D1'!$B$10:$AZ$109,4,FALSE) -> 0 | E37: =VLOOKUP(A37,'D1'!$B$10:$AZ$109,5,FALSE) -> 0 | F37: =VLOOKUP(A37,'D1'!$B$10:$AZ$109,6,FALSE) -> 0 | G37: =VLOOKUP(A37,'D1'!$B$10:$AZ$109,7,FALSE) -> 0 | H37: 0 | I37: =VLOOKUP(A37,'D2'!$B$10:$AZ$109,3,FALSE) -> 0 | J37: =VLOOKUP(A37,'D2'!$B$10:$AZ$109,4,FALSE) -> 0 | K37: =VLOOKUP(A37,'D2'!$B$10:$AZ$109,5,FALSE) -> 0 | L37: =VLOOKUP(A37,'D2'!$B$10:$AZ$109,6,FALSE) -> 0 | M37: =VLOOKUP(A37,'D2'!$B$10:$AZ$109,7,FALSE) -> 0 | N37: 0 | O37: =VLOOKUP(A37,'D3'!$B$10:$AZ$109,3,FALSE) -> 0 | P37: =VLOOKUP(A37,'D3'!$B$10:$AZ$109,4,FALSE) -> 0 | Q37: =VLOOKUP(A37,'D3'!$B$10:$AZ$109,5,FALSE) -> 0 | R37: =VLOOKUP(A37,'D3'!$B$10:$AZ$109,6,FALSE) -> 0 | S37: =VLOOKUP(A37,'D3'!$B$10:$AZ$109,7,FALSE) -> 0 | T37: 0 | U37: =VLOOKUP(A37,'D4'!$B$10:$AZ$109,3,FALSE) -> 0 | V37: =VLOOKUP(A37,'D4'!$B$10:$AZ$109,4,FALSE) -> 0 | W37: =VLOOKUP(A37,'D4'!$B$10:$AZ$109,5,FALSE) -> 0 | X37: =VLOOKUP(A37,'D4'!$B$10:$AZ$109,6,FALSE) -> 0 | Y37: =VLOOKUP(A37,'D4'!$B$10:$AZ$109,7,FALSE) -> 0 | Z37: 0 | AA37: =VLOOKUP(A37,'D5'!$B$10:$AZ$109,3,FALSE) -> 0 | AB37: =VLOOKUP(A37,'D5'!$B$10:$AZ$109,4,FALSE) -> 0 | AC37: =VLOOKUP(A37,'D5'!$B$10:$AZ$109,5,FALSE) -> 0 | AD37: =VLOOKUP(A37,'D5'!$B$10:$AZ$109,6,FALSE) -> 0 | AE37: =VLOOKUP(A37,'D5'!$B$10:$AZ$109,7,FALSE) -> 0 | AF37: 0 | AG37: =VLOOKUP(A37,'D6'!$B$10:$AZ$109,3,FALSE) -> 0 | AH37: =VLOOKUP(A37,'D6'!$B$10:$AZ$109,4,FALSE) -> 0 | AI37: =VLOOKUP(A37,'D6'!$B$10:$AZ$109,5,FALSE) -> 0 | AJ37: =VLOOKUP(A37,'D6'!$B$10:$AZ$109,6,FALSE) -> 0 | AK37: =VLOOKUP(A37,'D6'!$B$10:$AZ$109,7,FALSE) -> 0 | AL37: 0 | AM37: =VLOOKUP(A37,'D7'!$B$10:$AZ$109,3,FALSE) -> 0 | AN37: =VLOOKUP(A37,'D7'!$B$10:$AZ$109,4,FALSE) -> 0 | AO37: =VLOOKUP(A37,'D7'!$B$10:$AZ$109,5,FALSE) -> 0 | AP37: =VLOOKUP(A37,'D7'!$B$10:$AZ$109,6,FALSE) -> 0 | AQ37: =VLOOKUP(A37,'D7'!$B$10:$AZ$109,7,FALSE) -> 0 | AR37: 0 | AS37: =VLOOKUP(A37,'D8'!$B$10:$AZ$109,3,FALSE) -> 0 | AT37: =VLOOKUP(A37,'D8'!$B$10:$AZ$109,4,FALSE) -> 0 | AU37: =VLOOKUP(A37,'D8'!$B$10:$AZ$109,5,FALSE) -> 0 | AV37: =VLOOKUP(A37,'D8'!$B$10:$AZ$109,6,FALSE) -> 0 | AW37: =VLOOKUP(A37,'D8'!$B$10:$AZ$109,7,FALSE) -> 0 | AX37: 0 | AY37: 0 | AZ37: راسب | BA37: 0 | BC37: الثاني مكرر | BD37: =IFERROR(VLOOKUP(A37,A!$A$6:$M$99,6,FALSE),"") ->  | BE37: =IFERROR(VLOOKUP(A37,A!$A$6:$M$99,7,FALSE),"") ->  | BF37: =IFERROR(VLOOKUP(A37,A!$A$6:$M$99,9,FALSE),"") ->  | BG37: =IFERROR(VLOOKUP(A37,A!$A$6:$M$99,10,FALSE),"") ->  | BH37: =IFERROR(VLOOKUP(A37,A!$A$6:$M$99,11,FALSE),"") ->  | BI37: =IF(COUNTIF($AY$10:AY37,AY37)=1,AY37) -> FALSE | BJ37: 2 | BK37: =IF(COUNTIF($AY$10:AY37,AY37)>1," مكرر ","") -> مكرر | BL37: الثاني
A38: 29 | B38: =IFERROR(VLOOKUP(A38,A!$A$6:$M$99,2,FALSE),"") ->  | C38: =VLOOKUP(A38,'D1'!$B$10:$AZ$109,3,FALSE) -> 0 | D38: =VLOOKUP(A38,'D1'!$B$10:$AZ$109,4,FALSE) -> 0 | E38: =VLOOKUP(A38,'D1'!$B$10:$AZ$109,5,FALSE) -> 0 | F38: =VLOOKUP(A38,'D1'!$B$10:$AZ$109,6,FALSE) -> 0 | G38: =VLOOKUP(A38,'D1'!$B$10:$AZ$109,7,FALSE) -> 0 | H38: 0 | I38: =VLOOKUP(A38,'D2'!$B$10:$AZ$109,3,FALSE) -> 0 | J38: =VLOOKUP(A38,'D2'!$B$10:$AZ$109,4,FALSE) -> 0 | K38: =VLOOKUP(A38,'D2'!$B$10:$AZ$109,5,FALSE) -> 0 | L38: =VLOOKUP(A38,'D2'!$B$10:$AZ$109,6,FALSE) -> 0 | M38: =VLOOKUP(A38,'D2'!$B$10:$AZ$109,7,FALSE) -> 0 | N38: 0 | O38: =VLOOKUP(A38,'D3'!$B$10:$AZ$109,3,FALSE) -> 0 | P38: =VLOOKUP(A38,'D3'!$B$10:$AZ$109,4,FALSE) -> 0 | Q38: =VLOOKUP(A38,'D3'!$B$10:$AZ$109,5,FALSE) -> 0 | R38: =VLOOKUP(A38,'D3'!$B$10:$AZ$109,6,FALSE) -> 0 | S38: =VLOOKUP(A38,'D3'!$B$10:$AZ$109,7,FALSE) -> 0 | T38: 0 | U38: =VLOOKUP(A38,'D4'!$B$10:$AZ$109,3,FALSE) -> 0 | V38: =VLOOKUP(A38,'D4'!$B$10:$AZ$109,4,FALSE) -> 0 | W38: =VLOOKUP(A38,'D4'!$B$10:$AZ$109,5,FALSE) -> 0 | X38: =VLOOKUP(A38,'D4'!$B$10:$AZ$109,6,FALSE) -> 0 | Y38: =VLOOKUP(A38,'D4'!$B$10:$AZ$109,7,FALSE) -> 0 | Z38: 0 | AA38: =VLOOKUP(A38,'D5'!$B$10:$AZ$109,3,FALSE) -> 0 | AB38: =VLOOKUP(A38,'D5'!$B$10:$AZ$109,4,FALSE) -> 0 | AC38: =VLOOKUP(A38,'D5'!$B$10:$AZ$109,5,FALSE) -> 0 | AD38: =VLOOKUP(A38,'D5'!$B$10:$AZ$109,6,FALSE) -> 0 | AE38: =VLOOKUP(A38,'D5'!$B$10:$AZ$109,7,FALSE) -> 0 | AF38: 0 | AG38: =VLOOKUP(A38,'D6'!$B$10:$AZ$109,3,FALSE) -> 0 | AH38: =VLOOKUP(A38,'D6'!$B$10:$AZ$109,4,FALSE) -> 0 | AI38: =VLOOKUP(A38,'D6'!$B$10:$AZ$109,5,FALSE) -> 0 | AJ38: =VLOOKUP(A38,'D6'!$B$10:$AZ$109,6,FALSE) -> 0 | AK38: =VLOOKUP(A38,'D6'!$B$10:$AZ$109,7,FALSE) -> 0 | AL38: 0 | AM38: =VLOOKUP(A38,'D7'!$B$10:$AZ$109,3,FALSE) -> 0 | AN38: =VLOOKUP(A38,'D7'!$B$10:$AZ$109,4,FALSE) -> 0 | AO38: =VLOOKUP(A38,'D7'!$B$10:$AZ$109,5,FALSE) -> 0 | AP38: =VLOOKUP(A38,'D7'!$B$10:$AZ$109,6,FALSE) -> 0 | AQ38: =VLOOKUP(A38,'D7'!$B$10:$AZ$109,7,FALSE) -> 0 | AR38: 0 | AS38: =VLOOKUP(A38,'D8'!$B$10:$AZ$109,3,FALSE) -> 0 | AT38: =VLOOKUP(A38,'D8'!$B$10:$AZ$109,4,FALSE) -> 0 | AU38: =VLOOKUP(A38,'D8'!$B$10:$AZ$109,5,FALSE) -> 0 | AV38: =VLOOKUP(A38,'D8'!$B$10:$AZ$109,6,FALSE) -> 0 | AW38: =VLOOKUP(A38,'D8'!$B$10:$AZ$109,7,FALSE) -> 0 | AX38: 0 | AY38: 0 | AZ38: راسب | BA38: 0 | BC38: الثاني مكرر | BD38: =IFERROR(VLOOKUP(A38,A!$A$6:$M$99,6,FALSE),"") ->  | BE38: =IFERROR(VLOOKUP(A38,A!$A$6:$M$99,7,FALSE),"") ->  | BF38: =IFERROR(VLOOKUP(A38,A!$A$6:$M$99,9,FALSE),"") ->  | BG38: =IFERROR(VLOOKUP(A38,A!$A$6:$M$99,10,FALSE),"") ->  | BH38: =IFERROR(VLOOKUP(A38,A!$A$6:$M$99,11,FALSE),"") ->  | BI38: =IF(COUNTIF($AY$10:AY38,AY38)=1,AY38) -> FALSE | BJ38: 2 | BK38: =IF(COUNTIF($AY$10:AY38,AY38)>1," مكرر ","") -> مكرر | BL38: الثاني
A39: 30 | B39: =IFERROR(VLOOKUP(A39,A!$A$6:$M$99,2,FALSE),"") ->  | C39: =VLOOKUP(A39,'D1'!$B$10:$AZ$109,3,FALSE) -> 0 | D39: =VLOOKUP(A39,'D1'!$B$10:$AZ$109,4,FALSE) -> 0 | E39: =VLOOKUP(A39,'D1'!$B$10:$AZ$109,5,FALSE) -> 0 | F39: =VLOOKUP(A39,'D1'!$B$10:$AZ$109,6,FALSE) -> 0 | G39: =VLOOKUP(A39,'D1'!$B$10:$AZ$109,7,FALSE) -> 0 | H39: 0 | I39: =VLOOKUP(A39,'D2'!$B$10:$AZ$109,3,FALSE) -> 0 | J39: =VLOOKUP(A39,'D2'!$B$10:$AZ$109,4,FALSE) -> 0 | K39: =VLOOKUP(A39,'D2'!$B$10:$AZ$109,5,FALSE) -> 0 | L39: =VLOOKUP(A39,'D2'!$B$10:$AZ$109,6,FALSE) -> 0 | M39: =VLOOKUP(A39,'D2'!$B$10:$AZ$109,7,FALSE) -> 0 | N39: 0 | O39: =VLOOKUP(A39,'D3'!$B$10:$AZ$109,3,FALSE) -> 0 | P39: =VLOOKUP(A39,'D3'!$B$10:$AZ$109,4,FALSE) -> 0 | Q39: =VLOOKUP(A39,'D3'!$B$10:$AZ$109,5,FALSE) -> 0 | R39: =VLOOKUP(A39,'D3'!$B$10:$AZ$109,6,FALSE) -> 0 | S39: =VLOOKUP(A39,'D3'!$B$10:$AZ$109,7,FALSE) -> 0 | T39: 0 | U39: =VLOOKUP(A39,'D4'!$B$10:$AZ$109,3,FALSE) -> 0 | V39: =VLOOKUP(A39,'D4'!$B$10:$AZ$109,4,FALSE) -> 0 | W39: =VLOOKUP(A39,'D4'!$B$10:$AZ$109,5,FALSE) -> 0 | X39: =VLOOKUP(A39,'D4'!$B$10:$AZ$109,6,FALSE) -> 0 | Y39: =VLOOKUP(A39,'D4'!$B$10:$AZ$109,7,FALSE) -> 0 | Z39: 0 | AA39: =VLOOKUP(A39,'D5'!$B$10:$AZ$109,3,FALSE) -> 0 | AB39: =VLOOKUP(A39,'D5'!$B$10:$AZ$109,4,FALSE) -> 0 | AC39: =VLOOKUP(A39,'D5'!$B$10:$AZ$109,5,FALSE) -> 0 | AD39: =VLOOKUP(A39,'D5'!$B$10:$AZ$109,6,FALSE) -> 0 | AE39: =VLOOKUP(A39,'D5'!$B$10:$AZ$109,7,FALSE) -> 0 | AF39: 0 | AG39: =VLOOKUP(A39,'D6'!$B$10:$AZ$109,3,FALSE) -> 0 | AH39: =VLOOKUP(A39,'D6'!$B$10:$AZ$109,4,FALSE) -> 0 | AI39: =VLOOKUP(A39,'D6'!$B$10:$AZ$109,5,FALSE) -> 0 | AJ39: =VLOOKUP(A39,'D6'!$B$10:$AZ$109,6,FALSE) -> 0 | AK39: =VLOOKUP(A39,'D6'!$B$10:$AZ$109,7,FALSE) -> 0 | AL39: 0 | AM39: =VLOOKUP(A39,'D7'!$B$10:$AZ$109,3,FALSE) -> 0 | AN39: =VLOOKUP(A39,'D7'!$B$10:$AZ$109,4,FALSE) -> 0 | AO39: =VLOOKUP(A39,'D7'!$B$10:$AZ$109,5,FALSE) -> 0 | AP39: =VLOOKUP(A39,'D7'!$B$10:$AZ$109,6,FALSE) -> 0 | AQ39: =VLOOKUP(A39,'D7'!$B$10:$AZ$109,7,FALSE) -> 0 | AR39: 0 | AS39: =VLOOKUP(A39,'D8'!$B$10:$AZ$109,3,FALSE) -> 0 | AT39: =VLOOKUP(A39,'D8'!$B$10:$AZ$109,4,FALSE) -> 0 | AU39: =VLOOKUP(A39,'D8'!$B$10:$AZ$109,5,FALSE) -> 0 | AV39: =VLOOKUP(A39,'D8'!$B$10:$AZ$109,6,FALSE) -> 0 | AW39: =VLOOKUP(A39,'D8'!$B$10:$AZ$109,7,FALSE) -> 0 | AX39: 0 | AY39: 0 | AZ39: راسب | BA39: 0 | BC39: الثاني مكرر | BD39: =IFERROR(VLOOKUP(A39,A!$A$6:$M$99,6,FALSE),"") ->  | BE39: =IFERROR(VLOOKUP(A39,A!$A$6:$M$99,7,FALSE),"") ->  | BF39: =IFERROR(VLOOKUP(A39,A!$A$6:$M$99,9,FALSE),"") ->  | BG39: =IFERROR(VLOOKUP(A39,A!$A$6:$M$99,10,FALSE),"") ->  | BH39: =IFERROR(VLOOKUP(A39,A!$A$6:$M$99,11,FALSE),"") ->  | BI39: =IF(COUNTIF($AY$10:AY39,AY39)=1,AY39) -> FALSE | BJ39: 2 | BK39: =IF(COUNTIF($AY$10:AY39,AY39)>1," مكرر ","") -> مكرر | BL39: الثاني
A40: 31 | B40: =IFERROR(VLOOKUP(A40,A!$A$6:$M$99,2,FALSE),"") ->  | C40: =VLOOKUP(A40,'D1'!$B$10:$AZ$109,3,FALSE) -> 0 | D40: =VLOOKUP(A40,'D1'!$B$10:$AZ$109,4,FALSE) -> 0 | E40: =VLOOKUP(A40,'D1'!$B$10:$AZ$109,5,FALSE) -> 0 | F40: =VLOOKUP(A40,'D1'!$B$10:$AZ$109,6,FALSE) -> 0 | G40: =VLOOKUP(A40,'D1'!$B$10:$AZ$109,7,FALSE) -> 0 | H40: 0 | I40: =VLOOKUP(A40,'D2'!$B$10:$AZ$109,3,FALSE) -> 0 | J40: =VLOOKUP(A40,'D2'!$B$10:$AZ$109,4,FALSE) -> 0 | K40: =VLOOKUP(A40,'D2'!$B$10:$AZ$109,5,FALSE) -> 0 | L40: =VLOOKUP(A40,'D2'!$B$10:$AZ$109,6,FALSE) -> 0 | M40: =VLOOKUP(A40,'D2'!$B$10:$AZ$109,7,FALSE) -> 0 | N40: 0 | O40: =VLOOKUP(A40,'D3'!$B$10:$AZ$109,3,FALSE) -> 0 | P40: =VLOOKUP(A40,'D3'!$B$10:$AZ$109,4,FALSE) -> 0 | Q40: =VLOOKUP(A40,'D3'!$B$10:$AZ$109,5,FALSE) -> 0 | R40: =VLOOKUP(A40,'D3'!$B$10:$AZ$109,6,FALSE) -> 0 | S40: =VLOOKUP(A40,'D3'!$B$10:$AZ$109,7,FALSE) -> 0 | T40: 0 | U40: =VLOOKUP(A40,'D4'!$B$10:$AZ$109,3,FALSE) -> 0 | V40: =VLOOKUP(A40,'D4'!$B$10:$AZ$109,4,FALSE) -> 0 | W40: =VLOOKUP(A40,'D4'!$B$10:$AZ$109,5,FALSE) -> 0 | X40: =VLOOKUP(A40,'D4'!$B$10:$AZ$109,6,FALSE) -> 0 | Y40: =VLOOKUP(A40,'D4'!$B$10:$AZ$109,7,FALSE) -> 0 | Z40: 0 | AA40: =VLOOKUP(A40,'D5'!$B$10:$AZ$109,3,FALSE) -> 0 | AB40: =VLOOKUP(A40,'D5'!$B$10:$AZ$109,4,FALSE) -> 0 | AC40: =VLOOKUP(A40,'D5'!$B$10:$AZ$109,5,FALSE) -> 0 | AD40: =VLOOKUP(A40,'D5'!$B$10:$AZ$109,6,FALSE) -> 0 | AE40: =VLOOKUP(A40,'D5'!$B$10:$AZ$109,7,FALSE) -> 0 | AF40: 0 | AG40: =VLOOKUP(A40,'D6'!$B$10:$AZ$109,3,FALSE) -> 0 | AH40: =VLOOKUP(A40,'D6'!$B$10:$AZ$109,4,FALSE) -> 0 | AI40: =VLOOKUP(A40,'D6'!$B$10:$AZ$109,5,FALSE) -> 0 | AJ40: =VLOOKUP(A40,'D6'!$B$10:$AZ$109,6,FALSE) -> 0 | AK40: =VLOOKUP(A40,'D6'!$B$10:$AZ$109,7,FALSE) -> 0 | AL40: 0 | AM40: =VLOOKUP(A40,'D7'!$B$10:$AZ$109,3,FALSE) -> 0 | AN40: =VLOOKUP(A40,'D7'!$B$10:$AZ$109,4,FALSE) -> 0 | AO40: =VLOOKUP(A40,'D7'!$B$10:$AZ$109,5,FALSE) -> 0 | AP40: =VLOOKUP(A40,'D7'!$B$10:$AZ$109,6,FALSE) -> 0 | AQ40: =VLOOKUP(A40,'D7'!$B$10:$AZ$109,7,FALSE) -> 0 | AR40: 0 | AS40: =VLOOKUP(A40,'D8'!$B$10:$AZ$109,3,FALSE) -> 0 | AT40: =VLOOKUP(A40,'D8'!$B$10:$AZ$109,4,FALSE) -> 0 | AU40: =VLOOKUP(A40,'D8'!$B$10:$AZ$109,5,FALSE) -> 0 | AV40: =VLOOKUP(A40,'D8'!$B$10:$AZ$109,6,FALSE) -> 0 | AW40: =VLOOKUP(A40,'D8'!$B$10:$AZ$109,7,FALSE) -> 0 | AX40: 0 | AY40: 0 | AZ40: راسب | BA40: 0 | BC40: الثاني مكرر | BD40: =IFERROR(VLOOKUP(A40,A!$A$6:$M$99,6,FALSE),"") ->  | BE40: =IFERROR(VLOOKUP(A40,A!$A$6:$M$99,7,FALSE),"") ->  | BF40: =IFERROR(VLOOKUP(A40,A!$A$6:$M$99,9,FALSE),"") ->  | BG40: =IFERROR(VLOOKUP(A40,A!$A$6:$M$99,10,FALSE),"") ->  | BH40: =IFERROR(VLOOKUP(A40,A!$A$6:$M$99,11,FALSE),"") ->  | BI40: =IF(COUNTIF($AY$10:AY40,AY40)=1,AY40) -> FALSE | BJ40: 2 | BK40: =IF(COUNTIF($AY$10:AY40,AY40)>1," مكرر ","") -> مكرر | BL40: الثاني
A41: 32 | B41: =IFERROR(VLOOKUP(A41,A!$A$6:$M$99,2,FALSE),"") ->  | C41: =VLOOKUP(A41,'D1'!$B$10:$AZ$109,3,FALSE) -> 0 | D41: =VLOOKUP(A41,'D1'!$B$10:$AZ$109,4,FALSE) -> 0 | E41: =VLOOKUP(A41,'D1'!$B$10:$AZ$109,5,FALSE) -> 0 | F41: =VLOOKUP(A41,'D1'!$B$10:$AZ$109,6,FALSE) -> 0 | G41: =VLOOKUP(A41,'D1'!$B$10:$AZ$109,7,FALSE) -> 0 | H41: 0 | I41: =VLOOKUP(A41,'D2'!$B$10:$AZ$109,3,FALSE) -> 0 | J41: =VLOOKUP(A41,'D2'!$B$10:$AZ$109,4,FALSE) -> 0 | K41: =VLOOKUP(A41,'D2'!$B$10:$AZ$109,5,FALSE) -> 0 | L41: =VLOOKUP(A41,'D2'!$B$10:$AZ$109,6,FALSE) -> 0 | M41: =VLOOKUP(A41,'D2'!$B$10:$AZ$109,7,FALSE) -> 0 | N41: 0 | O41: =VLOOKUP(A41,'D3'!$B$10:$AZ$109,3,FALSE) -> 0 | P41: =VLOOKUP(A41,'D3'!$B$10:$AZ$109,4,FALSE) -> 0 | Q41: =VLOOKUP(A41,'D3'!$B$10:$AZ$109,5,FALSE) -> 0 | R41: =VLOOKUP(A41,'D3'!$B$10:$AZ$109,6,FALSE) -> 0 | S41: =VLOOKUP(A41,'D3'!$B$10:$AZ$109,7,FALSE) -> 0 | T41: 0 | U41: =VLOOKUP(A41,'D4'!$B$10:$AZ$109,3,FALSE) -> 0 | V41: =VLOOKUP(A41,'D4'!$B$10:$AZ$109,4,FALSE) -> 0 | W41: =VLOOKUP(A41,'D4'!$B$10:$AZ$109,5,FALSE) -> 0 | X41: =VLOOKUP(A41,'D4'!$B$10:$AZ$109,6,FALSE) -> 0 | Y41: =VLOOKUP(A41,'D4'!$B$10:$AZ$109,7,FALSE) -> 0 | Z41: 0 | AA41: =VLOOKUP(A41,'D5'!$B$10:$AZ$109,3,FALSE) -> 0 | AB41: =VLOOKUP(A41,'D5'!$B$10:$AZ$109,4,FALSE) -> 0 | AC41: =VLOOKUP(A41,'D5'!$B$10:$AZ$109,5,FALSE) -> 0 | AD41: =VLOOKUP(A41,'D5'!$B$10:$AZ$109,6,FALSE) -> 0 | AE41: =VLOOKUP(A41,'D5'!$B$10:$AZ$109,7,FALSE) -> 0 | AF41: 0 | AG41: =VLOOKUP(A41,'D6'!$B$10:$AZ$109,3,FALSE) -> 0 | AH41: =VLOOKUP(A41,'D6'!$B$10:$AZ$109,4,FALSE) -> 0 | AI41: =VLOOKUP(A41,'D6'!$B$10:$AZ$109,5,FALSE) -> 0 | AJ41: =VLOOKUP(A41,'D6'!$B$10:$AZ$109,6,FALSE) -> 0 | AK41: =VLOOKUP(A41,'D6'!$B$10:$AZ$109,7,FALSE) -> 0 | AL41: 0 | AM41: =VLOOKUP(A41,'D7'!$B$10:$AZ$109,3,FALSE) -> 0 | AN41: =VLOOKUP(A41,'D7'!$B$10:$AZ$109,4,FALSE) -> 0 | AO41: =VLOOKUP(A41,'D7'!$B$10:$AZ$109,5,FALSE) -> 0 | AP41: =VLOOKUP(A41,'D7'!$B$10:$AZ$109,6,FALSE) -> 0 | AQ41: =VLOOKUP(A41,'D7'!$B$10:$AZ$109,7,FALSE) -> 0 | AR41: 0 | AS41: =VLOOKUP(A41,'D8'!$B$10:$AZ$109,3,FALSE) -> 0 | AT41: =VLOOKUP(A41,'D8'!$B$10:$AZ$109,4,FALSE) -> 0 | AU41: =VLOOKUP(A41,'D8'!$B$10:$AZ$109,5,FALSE) -> 0 | AV41: =VLOOKUP(A41,'D8'!$B$10:$AZ$109,6,FALSE) -> 0 | AW41: =VLOOKUP(A41,'D8'!$B$10:$AZ$109,7,FALSE) -> 0 | AX41: 0 | AY41: 0 | AZ41: راسب | BA41: 0 | BC41: الثاني مكرر | BD41: =IFERROR(VLOOKUP(A41,A!$A$6:$M$99,6,FALSE),"") ->  | BE41: =IFERROR(VLOOKUP(A41,A!$A$6:$M$99,7,FALSE),"") ->  | BF41: =IFERROR(VLOOKUP(A41,A!$A$6:$M$99,9,FALSE),"") ->  | BG41: =IFERROR(VLOOKUP(A41,A!$A$6:$M$99,10,FALSE),"") ->  | BH41: =IFERROR(VLOOKUP(A41,A!$A$6:$M$99,11,FALSE),"") ->  | BI41: =IF(COUNTIF($AY$10:AY41,AY41)=1,AY41) -> FALSE | BJ41: 2 | BK41: =IF(COUNTIF($AY$10:AY41,AY41)>1," مكرر ","") -> مكرر | BL41: الثاني
A42: 33 | B42: =IFERROR(VLOOKUP(A42,A!$A$6:$M$99,2,FALSE),"") ->  | C42: =VLOOKUP(A42,'D1'!$B$10:$AZ$109,3,FALSE) -> 0 | D42: =VLOOKUP(A42,'D1'!$B$10:$AZ$109,4,FALSE) -> 0 | E42: =VLOOKUP(A42,'D1'!$B$10:$AZ$109,5,FALSE) -> 0 | F42: =VLOOKUP(A42,'D1'!$B$10:$AZ$109,6,FALSE) -> 0 | G42: =VLOOKUP(A42,'D1'!$B$10:$AZ$109,7,FALSE) -> 0 | H42: 0 | I42: =VLOOKUP(A42,'D2'!$B$10:$AZ$109,3,FALSE) -> 0 | J42: =VLOOKUP(A42,'D2'!$B$10:$AZ$109,4,FALSE) -> 0 | K42: =VLOOKUP(A42,'D2'!$B$10:$AZ$109,5,FALSE) -> 0 | L42: =VLOOKUP(A42,'D2'!$B$10:$AZ$109,6,FALSE) -> 0 | M42: =VLOOKUP(A42,'D2'!$B$10:$AZ$109,7,FALSE) -> 0 | N42: 0 | O42: =VLOOKUP(A42,'D3'!$B$10:$AZ$109,3,FALSE) -> 0 | P42: =VLOOKUP(A42,'D3'!$B$10:$AZ$109,4,FALSE) -> 0 | Q42: =VLOOKUP(A42,'D3'!$B$10:$AZ$109,5,FALSE) -> 0 | R42: =VLOOKUP(A42,'D3'!$B$10:$AZ$109,6,FALSE) -> 0 | S42: =VLOOKUP(A42,'D3'!$B$10:$AZ$109,7,FALSE) -> 0 | T42: 0 | U42: =VLOOKUP(A42,'D4'!$B$10:$AZ$109,3,FALSE) -> 0 | V42: =VLOOKUP(A42,'D4'!$B$10:$AZ$109,4,FALSE) -> 0 | W42: =VLOOKUP(A42,'D4'!$B$10:$AZ$109,5,FALSE) -> 0 | X42: =VLOOKUP(A42,'D4'!$B$10:$AZ$109,6,FALSE) -> 0 | Y42: =VLOOKUP(A42,'D4'!$B$10:$AZ$109,7,FALSE) -> 0 | Z42: 0 | AA42: =VLOOKUP(A42,'D5'!$B$10:$AZ$109,3,FALSE) -> 0 | AB42: =VLOOKUP(A42,'D5'!$B$10:$AZ$109,4,FALSE) -> 0 | AC42: =VLOOKUP(A42,'D5'!$B$10:$AZ$109,5,FALSE) -> 0 | AD42: =VLOOKUP(A42,'D5'!$B$10:$AZ$109,6,FALSE) -> 0 | AE42: =VLOOKUP(A42,'D5'!$B$10:$AZ$109,7,FALSE) -> 0 | AF42: 0 | AG42: =VLOOKUP(A42,'D6'!$B$10:$AZ$109,3,FALSE) -> 0 | AH42: =VLOOKUP(A42,'D6'!$B$10:$AZ$109,4,FALSE) -> 0 | AI42: =VLOOKUP(A42,'D6'!$B$10:$AZ$109,5,FALSE) -> 0 | AJ42: =VLOOKUP(A42,'D6'!$B$10:$AZ$109,6,FALSE) -> 0 | AK42: =VLOOKUP(A42,'D6'!$B$10:$AZ$109,7,FALSE) -> 0 | AL42: 0 | AM42: =VLOOKUP(A42,'D7'!$B$10:$AZ$109,3,FALSE) -> 0 | AN42: =VLOOKUP(A42,'D7'!$B$10:$AZ$109,4,FALSE) -> 0 | AO42: =VLOOKUP(A42,'D7'!$B$10:$AZ$109,5,FALSE) -> 0 | AP42: =VLOOKUP(A42,'D7'!$B$10:$AZ$109,6,FALSE) -> 0 | AQ42: =VLOOKUP(A42,'D7'!$B$10:$AZ$109,7,FALSE) -> 0 | AR42: 0 | AS42: =VLOOKUP(A42,'D8'!$B$10:$AZ$109,3,FALSE) -> 0 | AT42: =VLOOKUP(A42,'D8'!$B$10:$AZ$109,4,FALSE) -> 0 | AU42: =VLOOKUP(A42,'D8'!$B$10:$AZ$109,5,FALSE) -> 0 | AV42: =VLOOKUP(A42,'D8'!$B$10:$AZ$109,6,FALSE) -> 0 | AW42: =VLOOKUP(A42,'D8'!$B$10:$AZ$109,7,FALSE) -> 0 | AX42: 0 | AY42: 0 | AZ42: راسب | BA42: 0 | BC42: الثاني مكرر | BD42: =IFERROR(VLOOKUP(A42,A!$A$6:$M$99,6,FALSE),"") ->  | BE42: =IFERROR(VLOOKUP(A42,A!$A$6:$M$99,7,FALSE),"") ->  | BF42: =IFERROR(VLOOKUP(A42,A!$A$6:$M$99,9,FALSE),"") ->  | BG42: =IFERROR(VLOOKUP(A42,A!$A$6:$M$99,10,FALSE),"") ->  | BH42: =IFERROR(VLOOKUP(A42,A!$A$6:$M$99,11,FALSE),"") ->  | BI42: =IF(COUNTIF($AY$10:AY42,AY42)=1,AY42) -> FALSE | BJ42: 2 | BK42: =IF(COUNTIF($AY$10:AY42,AY42)>1," مكرر ","") -> مكرر | BL42: الثاني
A43: 34 | B43: =IFERROR(VLOOKUP(A43,A!$A$6:$M$99,2,FALSE),"") ->  | C43: =VLOOKUP(A43,'D1'!$B$10:$AZ$109,3,FALSE) -> 0 | D43: =VLOOKUP(A43,'D1'!$B$10:$AZ$109,4,FALSE) -> 0 | E43: =VLOOKUP(A43,'D1'!$B$10:$AZ$109,5,FALSE) -> 0 | F43: =VLOOKUP(A43,'D1'!$B$10:$AZ$109,6,FALSE) -> 0 | G43: =VLOOKUP(A43,'D1'!$B$10:$AZ$109,7,FALSE) -> 0 | H43: 0 | I43: =VLOOKUP(A43,'D2'!$B$10:$AZ$109,3,FALSE) -> 0 | J43: =VLOOKUP(A43,'D2'!$B$10:$AZ$109,4,FALSE) -> 0 | K43: =VLOOKUP(A43,'D2'!$B$10:$AZ$109,5,FALSE) -> 0 | L43: =VLOOKUP(A43,'D2'!$B$10:$AZ$109,6,FALSE) -> 0 | M43: =VLOOKUP(A43,'D2'!$B$10:$AZ$109,7,FALSE) -> 0 | N43: 0 | O43: =VLOOKUP(A43,'D3'!$B$10:$AZ$109,3,FALSE) -> 0 | P43: =VLOOKUP(A43,'D3'!$B$10:$AZ$109,4,FALSE) -> 0 | Q43: =VLOOKUP(A43,'D3'!$B$10:$AZ$109,5,FALSE) -> 0 | R43: =VLOOKUP(A43,'D3'!$B$10:$AZ$109,6,FALSE) -> 0 | S43: =VLOOKUP(A43,'D3'!$B$10:$AZ$109,7,FALSE) -> 0 | T43: 0 | U43: =VLOOKUP(A43,'D4'!$B$10:$AZ$109,3,FALSE) -> 0 | V43: =VLOOKUP(A43,'D4'!$B$10:$AZ$109,4,FALSE) -> 0 | W43: =VLOOKUP(A43,'D4'!$B$10:$AZ$109,5,FALSE) -> 0 | X43: =VLOOKUP(A43,'D4'!$B$10:$AZ$109,6,FALSE) -> 0 | Y43: =VLOOKUP(A43,'D4'!$B$10:$AZ$109,7,FALSE) -> 0 | Z43: 0 | AA43: =VLOOKUP(A43,'D5'!$B$10:$AZ$109,3,FALSE) -> 0 | AB43: =VLOOKUP(A43,'D5'!$B$10:$AZ$109,4,FALSE) -> 0 | AC43: =VLOOKUP(A43,'D5'!$B$10:$AZ$109,5,FALSE) -> 0 | AD43: =VLOOKUP(A43,'D5'!$B$10:$AZ$109,6,FALSE) -> 0 | AE43: =VLOOKUP(A43,'D5'!$B$10:$AZ$109,7,FALSE) -> 0 | AF43: 0 | AG43: =VLOOKUP(A43,'D6'!$B$10:$AZ$109,3,FALSE) -> 0 | AH43: =VLOOKUP(A43,'D6'!$B$10:$AZ$109,4,FALSE) -> 0 | AI43: =VLOOKUP(A43,'D6'!$B$10:$AZ$109,5,FALSE) -> 0 | AJ43: =VLOOKUP(A43,'D6'!$B$10:$AZ$109,6,FALSE) -> 0 | AK43: =VLOOKUP(A43,'D6'!$B$10:$AZ$109,7,FALSE) -> 0 | AL43: 0 | AM43: =VLOOKUP(A43,'D7'!$B$10:$AZ$109,3,FALSE) -> 0 | AN43: =VLOOKUP(A43,'D7'!$B$10:$AZ$109,4,FALSE) -> 0 | AO43: =VLOOKUP(A43,'D7'!$B$10:$AZ$109,5,FALSE) -> 0 | AP43: =VLOOKUP(A43,'D7'!$B$10:$AZ$109,6,FALSE) -> 0 | AQ43: =VLOOKUP(A43,'D7'!$B$10:$AZ$109,7,FALSE) -> 0 | AR43: 0 | AS43: =VLOOKUP(A43,'D8'!$B$10:$AZ$109,3,FALSE) -> 0 | AT43: =VLOOKUP(A43,'D8'!$B$10:$AZ$109,4,FALSE) -> 0 | AU43: =VLOOKUP(A43,'D8'!$B$10:$AZ$109,5,FALSE) -> 0 | AV43: =VLOOKUP(A43,'D8'!$B$10:$AZ$109,6,FALSE) -> 0 | AW43: =VLOOKUP(A43,'D8'!$B$10:$AZ$109,7,FALSE) -> 0 | AX43: 0 | AY43: 0 | AZ43: راسب | BA43: 0 | BC43: الثاني مكرر | BD43: =IFERROR(VLOOKUP(A43,A!$A$6:$M$99,6,FALSE),"") ->  | BE43: =IFERROR(VLOOKUP(A43,A!$A$6:$M$99,7,FALSE),"") ->  | BF43: =IFERROR(VLOOKUP(A43,A!$A$6:$M$99,9,FALSE),"") ->  | BG43: =IFERROR(VLOOKUP(A43,A!$A$6:$M$99,10,FALSE),"") ->  | BH43: =IFERROR(VLOOKUP(A43,A!$A$6:$M$99,11,FALSE),"") ->  | BI43: =IF(COUNTIF($AY$10:AY43,AY43)=1,AY43) -> FALSE | BJ43: 2 | BK43: =IF(COUNTIF($AY$10:AY43,AY43)>1," مكرر ","") -> مكرر | BL43: الثاني
A44: 35 | B44: =IFERROR(VLOOKUP(A44,A!$A$6:$M$99,2,FALSE),"") ->  | C44: =VLOOKUP(A44,'D1'!$B$10:$AZ$109,3,FALSE) -> 0 | D44: =VLOOKUP(A44,'D1'!$B$10:$AZ$109,4,FALSE) -> 0 | E44: =VLOOKUP(A44,'D1'!$B$10:$AZ$109,5,FALSE) -> 0 | F44: =VLOOKUP(A44,'D1'!$B$10:$AZ$109,6,FALSE) -> 0 | G44: =VLOOKUP(A44,'D1'!$B$10:$AZ$109,7,FALSE) -> 0 | H44: 0 | I44: =VLOOKUP(A44,'D2'!$B$10:$AZ$109,3,FALSE) -> 0 | J44: =VLOOKUP(A44,'D2'!$B$10:$AZ$109,4,FALSE) -> 0 | K44: =VLOOKUP(A44,'D2'!$B$10:$AZ$109,5,FALSE) -> 0 | L44: =VLOOKUP(A44,'D2'!$B$10:$AZ$109,6,FALSE) -> 0 | M44: =VLOOKUP(A44,'D2'!$B$10:$AZ$109,7,FALSE) -> 0 | N44: 0 | O44: =VLOOKUP(A44,'D3'!$B$10:$AZ$109,3,FALSE) -> 0 | P44: =VLOOKUP(A44,'D3'!$B$10:$AZ$109,4,FALSE) -> 0 | Q44: =VLOOKUP(A44,'D3'!$B$10:$AZ$109,5,FALSE) -> 0 | R44: =VLOOKUP(A44,'D3'!$B$10:$AZ$109,6,FALSE) -> 0 | S44: =VLOOKUP(A44,'D3'!$B$10:$AZ$109,7,FALSE) -> 0 | T44: 0 | U44: =VLOOKUP(A44,'D4'!$B$10:$AZ$109,3,FALSE) -> 0 | V44: =VLOOKUP(A44,'D4'!$B$10:$AZ$109,4,FALSE) -> 0 | W44: =VLOOKUP(A44,'D4'!$B$10:$AZ$109,5,FALSE) -> 0 | X44: =VLOOKUP(A44,'D4'!$B$10:$AZ$109,6,FALSE) -> 0 | Y44: =VLOOKUP(A44,'D4'!$B$10:$AZ$109,7,FALSE) -> 0 | Z44: 0 | AA44: =VLOOKUP(A44,'D5'!$B$10:$AZ$109,3,FALSE) -> 0 | AB44: =VLOOKUP(A44,'D5'!$B$10:$AZ$109,4,FALSE) -> 0 | AC44: =VLOOKUP(A44,'D5'!$B$10:$AZ$109,5,FALSE) -> 0 | AD44: =VLOOKUP(A44,'D5'!$B$10:$AZ$109,6,FALSE) -> 0 | AE44: =VLOOKUP(A44,'D5'!$B$10:$AZ$109,7,FALSE) -> 0 | AF44: 0 | AG44: =VLOOKUP(A44,'D6'!$B$10:$AZ$109,3,FALSE) -> 0 | AH44: =VLOOKUP(A44,'D6'!$B$10:$AZ$109,4,FALSE) -> 0 | AI44: =VLOOKUP(A44,'D6'!$B$10:$AZ$109,5,FALSE) -> 0 | AJ44: =VLOOKUP(A44,'D6'!$B$10:$AZ$109,6,FALSE) -> 0 | AK44: =VLOOKUP(A44,'D6'!$B$10:$AZ$109,7,FALSE) -> 0 | AL44: 0 | AM44: =VLOOKUP(A44,'D7'!$B$10:$AZ$109,3,FALSE) -> 0 | AN44: =VLOOKUP(A44,'D7'!$B$10:$AZ$109,4,FALSE) -> 0 | AO44: =VLOOKUP(A44,'D7'!$B$10:$AZ$109,5,FALSE) -> 0 | AP44: =VLOOKUP(A44,'D7'!$B$10:$AZ$109,6,FALSE) -> 0 | AQ44: =VLOOKUP(A44,'D7'!$B$10:$AZ$109,7,FALSE) -> 0 | AR44: 0 | AS44: =VLOOKUP(A44,'D8'!$B$10:$AZ$109,3,FALSE) -> 0 | AT44: =VLOOKUP(A44,'D8'!$B$10:$AZ$109,4,FALSE) -> 0 | AU44: =VLOOKUP(A44,'D8'!$B$10:$AZ$109,5,FALSE) -> 0 | AV44: =VLOOKUP(A44,'D8'!$B$10:$AZ$109,6,FALSE) -> 0 | AW44: =VLOOKUP(A44,'D8'!$B$10:$AZ$109,7,FALSE) -> 0 | AX44: 0 | AY44: 0 | AZ44: راسب | BA44: 0 | BC44: الثاني مكرر | BD44: =IFERROR(VLOOKUP(A44,A!$A$6:$M$99,6,FALSE),"") ->  | BE44: =IFERROR(VLOOKUP(A44,A!$A$6:$M$99,7,FALSE),"") ->  | BF44: =IFERROR(VLOOKUP(A44,A!$A$6:$M$99,9,FALSE),"") ->  | BG44: =IFERROR(VLOOKUP(A44,A!$A$6:$M$99,10,FALSE),"") ->  | BH44: =IFERROR(VLOOKUP(A44,A!$A$6:$M$99,11,FALSE),"") ->  | BI44: =IF(COUNTIF($AY$10:AY44,AY44)=1,AY44) -> FALSE | BJ44: 2 | BK44: =IF(COUNTIF($AY$10:AY44,AY44)>1," مكرر ","") -> مكرر | BL44: الثاني
A45: 36 | B45: =IFERROR(VLOOKUP(A45,A!$A$6:$M$99,2,FALSE),"") ->  | C45: =VLOOKUP(A45,'D1'!$B$10:$AZ$109,3,FALSE) -> 0 | D45: =VLOOKUP(A45,'D1'!$B$10:$AZ$109,4,FALSE) -> 0 | E45: =VLOOKUP(A45,'D1'!$B$10:$AZ$109,5,FALSE) -> 0 | F45: =VLOOKUP(A45,'D1'!$B$10:$AZ$109,6,FALSE) -> 0 | G45: =VLOOKUP(A45,'D1'!$B$10:$AZ$109,7,FALSE) -> 0 | H45: 0 | I45: =VLOOKUP(A45,'D2'!$B$10:$AZ$109,3,FALSE) -> 0 | J45: =VLOOKUP(A45,'D2'!$B$10:$AZ$109,4,FALSE) -> 0 | K45: =VLOOKUP(A45,'D2'!$B$10:$AZ$109,5,FALSE) -> 0 | L45: =VLOOKUP(A45,'D2'!$B$10:$AZ$109,6,FALSE) -> 0 | M45: =VLOOKUP(A45,'D2'!$B$10:$AZ$109,7,FALSE) -> 0 | N45: 0 | O45: =VLOOKUP(A45,'D3'!$B$10:$AZ$109,3,FALSE) -> 0 | P45: =VLOOKUP(A45,'D3'!$B$10:$AZ$109,4,FALSE) -> 0 | Q45: =VLOOKUP(A45,'D3'!$B$10:$AZ$109,5,FALSE) -> 0 | R45: =VLOOKUP(A45,'D3'!$B$10:$AZ$109,6,FALSE) -> 0 | S45: =VLOOKUP(A45,'D3'!$B$10:$AZ$109,7,FALSE) -> 0 | T45: 0 | U45: =VLOOKUP(A45,'D4'!$B$10:$AZ$109,3,FALSE) -> 0 | V45: =VLOOKUP(A45,'D4'!$B$10:$AZ$109,4,FALSE) -> 0 | W45: =VLOOKUP(A45,'D4'!$B$10:$AZ$109,5,FALSE) -> 0 | X45: =VLOOKUP(A45,'D4'!$B$10:$AZ$109,6,FALSE) -> 0 | Y45: =VLOOKUP(A45,'D4'!$B$10:$AZ$109,7,FALSE) -> 0 | Z45: 0 | AA45: =VLOOKUP(A45,'D5'!$B$10:$AZ$109,3,FALSE) -> 0 | AB45: =VLOOKUP(A45,'D5'!$B$10:$AZ$109,4,FALSE) -> 0 | AC45: =VLOOKUP(A45,'D5'!$B$10:$AZ$109,5,FALSE) -> 0 | AD45: =VLOOKUP(A45,'D5'!$B$10:$AZ$109,6,FALSE) -> 0 | AE45: =VLOOKUP(A45,'D5'!$B$10:$AZ$109,7,FALSE) -> 0 | AF45: 0 | AG45: =VLOOKUP(A45,'D6'!$B$10:$AZ$109,3,FALSE) -> 0 | AH45: =VLOOKUP(A45,'D6'!$B$10:$AZ$109,4,FALSE) -> 0 | AI45: =VLOOKUP(A45,'D6'!$B$10:$AZ$109,5,FALSE) -> 0 | AJ45: =VLOOKUP(A45,'D6'!$B$10:$AZ$109,6,FALSE) -> 0 | AK45: =VLOOKUP(A45,'D6'!$B$10:$AZ$109,7,FALSE) -> 0 | AL45: 0 | AM45: =VLOOKUP(A45,'D7'!$B$10:$AZ$109,3,FALSE) -> 0 | AN45: =VLOOKUP(A45,'D7'!$B$10:$AZ$109,4,FALSE) -> 0 | AO45: =VLOOKUP(A45,'D7'!$B$10:$AZ$109,5,FALSE) -> 0 | AP45: =VLOOKUP(A45,'D7'!$B$10:$AZ$109,6,FALSE) -> 0 | AQ45: =VLOOKUP(A45,'D7'!$B$10:$AZ$109,7,FALSE) -> 0 | AR45: 0 | AS45: =VLOOKUP(A45,'D8'!$B$10:$AZ$109,3,FALSE) -> 0 | AT45: =VLOOKUP(A45,'D8'!$B$10:$AZ$109,4,FALSE) -> 0 | AU45: =VLOOKUP(A45,'D8'!$B$10:$AZ$109,5,FALSE) -> 0 | AV45: =VLOOKUP(A45,'D8'!$B$10:$AZ$109,6,FALSE) -> 0 | AW45: =VLOOKUP(A45,'D8'!$B$10:$AZ$109,7,FALSE) -> 0 | AX45: 0 | AY45: 0 | AZ45: راسب | BA45: 0 | BC45: الثاني مكرر | BD45: =IFERROR(VLOOKUP(A45,A!$A$6:$M$99,6,FALSE),"") ->  | BE45: =IFERROR(VLOOKUP(A45,A!$A$6:$M$99,7,FALSE),"") ->  | BF45: =IFERROR(VLOOKUP(A45,A!$A$6:$M$99,9,FALSE),"") ->  | BG45: =IFERROR(VLOOKUP(A45,A!$A$6:$M$99,10,FALSE),"") ->  | BH45: =IFERROR(VLOOKUP(A45,A!$A$6:$M$99,11,FALSE),"") ->  | BI45: =IF(COUNTIF($AY$10:AY45,AY45)=1,AY45) -> FALSE | BJ45: 2 | BK45: =IF(COUNTIF($AY$10:AY45,AY45)>1," مكرر ","") -> مكرر | BL45: الثاني
A46: 37 | B46: =IFERROR(VLOOKUP(A46,A!$A$6:$M$99,2,FALSE),"") ->  | C46: =VLOOKUP(A46,'D1'!$B$10:$AZ$109,3,FALSE) -> 0 | D46: =VLOOKUP(A46,'D1'!$B$10:$AZ$109,4,FALSE) -> 0 | E46: =VLOOKUP(A46,'D1'!$B$10:$AZ$109,5,FALSE) -> 0 | F46: =VLOOKUP(A46,'D1'!$B$10:$AZ$109,6,FALSE) -> 0 | G46: =VLOOKUP(A46,'D1'!$B$10:$AZ$109,7,FALSE) -> 0 | H46: 0 | I46: =VLOOKUP(A46,'D2'!$B$10:$AZ$109,3,FALSE) -> 0 | J46: =VLOOKUP(A46,'D2'!$B$10:$AZ$109,4,FALSE) -> 0 | K46: =VLOOKUP(A46,'D2'!$B$10:$AZ$109,5,FALSE) -> 0 | L46: =VLOOKUP(A46,'D2'!$B$10:$AZ$109,6,FALSE) -> 0 | M46: =VLOOKUP(A46,'D2'!$B$10:$AZ$109,7,FALSE) -> 0 | N46: 0 | O46: =VLOOKUP(A46,'D3'!$B$10:$AZ$109,3,FALSE) -> 0 | P46: =VLOOKUP(A46,'D3'!$B$10:$AZ$109,4,FALSE) -> 0 | Q46: =VLOOKUP(A46,'D3'!$B$10:$AZ$109,5,FALSE) -> 0 | R46: =VLOOKUP(A46,'D3'!$B$10:$AZ$109,6,FALSE) -> 0 | S46: =VLOOKUP(A46,'D3'!$B$10:$AZ$109,7,FALSE) -> 0 | T46: 0 | U46: =VLOOKUP(A46,'D4'!$B$10:$AZ$109,3,FALSE) -> 0 | V46: =VLOOKUP(A46,'D4'!$B$10:$AZ$109,4,FALSE) -> 0 | W46: =VLOOKUP(A46,'D4'!$B$10:$AZ$109,5,FALSE) -> 0 | X46: =VLOOKUP(A46,'D4'!$B$10:$AZ$109,6,FALSE) -> 0 | Y46: =VLOOKUP(A46,'D4'!$B$10:$AZ$109,7,FALSE) -> 0 | Z46: 0 | AA46: =VLOOKUP(A46,'D5'!$B$10:$AZ$109,3,FALSE) -> 0 | AB46: =VLOOKUP(A46,'D5'!$B$10:$AZ$109,4,FALSE) -> 0 | AC46: =VLOOKUP(A46,'D5'!$B$10:$AZ$109,5,FALSE) -> 0 | AD46: =VLOOKUP(A46,'D5'!$B$10:$AZ$109,6,FALSE) -> 0 | AE46: =VLOOKUP(A46,'D5'!$B$10:$AZ$109,7,FALSE) -> 0 | AF46: 0 | AG46: =VLOOKUP(A46,'D6'!$B$10:$AZ$109,3,FALSE) -> 0 | AH46: =VLOOKUP(A46,'D6'!$B$10:$AZ$109,4,FALSE) -> 0 | AI46: =VLOOKUP(A46,'D6'!$B$10:$AZ$109,5,FALSE) -> 0 | AJ46: =VLOOKUP(A46,'D6'!$B$10:$AZ$109,6,FALSE) -> 0 | AK46: =VLOOKUP(A46,'D6'!$B$10:$AZ$109,7,FALSE) -> 0 | AL46: 0 | AM46: =VLOOKUP(A46,'D7'!$B$10:$AZ$109,3,FALSE) -> 0 | AN46: =VLOOKUP(A46,'D7'!$B$10:$AZ$109,4,FALSE) -> 0 | AO46: =VLOOKUP(A46,'D7'!$B$10:$AZ$109,5,FALSE) -> 0 | AP46: =VLOOKUP(A46,'D7'!$B$10:$AZ$109,6,FALSE) -> 0 | AQ46: =VLOOKUP(A46,'D7'!$B$10:$AZ$109,7,FALSE) -> 0 | AR46: 0 | AS46: =VLOOKUP(A46,'D8'!$B$10:$AZ$109,3,FALSE) -> 0 | AT46: =VLOOKUP(A46,'D8'!$B$10:$AZ$109,4,FALSE) -> 0 | AU46: =VLOOKUP(A46,'D8'!$B$10:$AZ$109,5,FALSE) -> 0 | AV46: =VLOOKUP(A46,'D8'!$B$10:$AZ$109,6,FALSE) -> 0 | AW46: =VLOOKUP(A46,'D8'!$B$10:$AZ$109,7,FALSE) -> 0 | AX46: 0 | AY46: 0 | AZ46: راسب | BA46: 0 | BC46: الثاني مكرر | BD46: =IFERROR(VLOOKUP(A46,A!$A$6:$M$99,6,FALSE),"") ->  | BE46: =IFERROR(VLOOKUP(A46,A!$A$6:$M$99,7,FALSE),"") ->  | BF46: =IFERROR(VLOOKUP(A46,A!$A$6:$M$99,9,FALSE),"") ->  | BG46: =IFERROR(VLOOKUP(A46,A!$A$6:$M$99,10,FALSE),"") ->  | BH46: =IFERROR(VLOOKUP(A46,A!$A$6:$M$99,11,FALSE),"") ->  | BI46: =IF(COUNTIF($AY$10:AY46,AY46)=1,AY46) -> FALSE | BJ46: 2 | BK46: =IF(COUNTIF($AY$10:AY46,AY46)>1," مكرر ","") -> مكرر | BL46: الثاني
A47: 38 | B47: =IFERROR(VLOOKUP(A47,A!$A$6:$M$99,2,FALSE),"") ->  | C47: =VLOOKUP(A47,'D1'!$B$10:$AZ$109,3,FALSE) -> 0 | D47: =VLOOKUP(A47,'D1'!$B$10:$AZ$109,4,FALSE) -> 0 | E47: =VLOOKUP(A47,'D1'!$B$10:$AZ$109,5,FALSE) -> 0 | F47: =VLOOKUP(A47,'D1'!$B$10:$AZ$109,6,FALSE) -> 0 | G47: =VLOOKUP(A47,'D1'!$B$10:$AZ$109,7,FALSE) -> 0 | H47: 0 | I47: =VLOOKUP(A47,'D2'!$B$10:$AZ$109,3,FALSE) -> 0 | J47: =VLOOKUP(A47,'D2'!$B$10:$AZ$109,4,FALSE) -> 0 | K47: =VLOOKUP(A47,'D2'!$B$10:$AZ$109,5,FALSE) -> 0 | L47: =VLOOKUP(A47,'D2'!$B$10:$AZ$109,6,FALSE) -> 0 | M47: =VLOOKUP(A47,'D2'!$B$10:$AZ$109,7,FALSE) -> 0 | N47: 0 | O47: =VLOOKUP(A47,'D3'!$B$10:$AZ$109,3,FALSE) -> 0 | P47: =VLOOKUP(A47,'D3'!$B$10:$AZ$109,4,FALSE) -> 0 | Q47: =VLOOKUP(A47,'D3'!$B$10:$AZ$109,5,FALSE) -> 0 | R47: =VLOOKUP(A47,'D3'!$B$10:$AZ$109,6,FALSE) -> 0 | S47: =VLOOKUP(A47,'D3'!$B$10:$AZ$109,7,FALSE) -> 0 | T47: 0 | U47: =VLOOKUP(A47,'D4'!$B$10:$AZ$109,3,FALSE) -> 0 | V47: =VLOOKUP(A47,'D4'!$B$10:$AZ$109,4,FALSE) -> 0 | W47: =VLOOKUP(A47,'D4'!$B$10:$AZ$109,5,FALSE) -> 0 | X47: =VLOOKUP(A47,'D4'!$B$10:$AZ$109,6,FALSE) -> 0 | Y47: =VLOOKUP(A47,'D4'!$B$10:$AZ$109,7,FALSE) -> 0 | Z47: 0 | AA47: =VLOOKUP(A47,'D5'!$B$10:$AZ$109,3,FALSE) -> 0 | AB47: =VLOOKUP(A47,'D5'!$B$10:$AZ$109,4,FALSE) -> 0 | AC47: =VLOOKUP(A47,'D5'!$B$10:$AZ$109,5,FALSE) -> 0 | AD47: =VLOOKUP(A47,'D5'!$B$10:$AZ$109,6,FALSE) -> 0 | AE47: =VLOOKUP(A47,'D5'!$B$10:$AZ$109,7,FALSE) -> 0 | AF47: 0 | AG47: =VLOOKUP(A47,'D6'!$B$10:$AZ$109,3,FALSE) -> 0 | AH47: =VLOOKUP(A47,'D6'!$B$10:$AZ$109,4,FALSE) -> 0 | AI47: =VLOOKUP(A47,'D6'!$B$10:$AZ$109,5,FALSE) -> 0 | AJ47: =VLOOKUP(A47,'D6'!$B$10:$AZ$109,6,FALSE) -> 0 | AK47: =VLOOKUP(A47,'D6'!$B$10:$AZ$109,7,FALSE) -> 0 | AL47: 0 | AM47: =VLOOKUP(A47,'D7'!$B$10:$AZ$109,3,FALSE) -> 0 | AN47: =VLOOKUP(A47,'D7'!$B$10:$AZ$109,4,FALSE) -> 0 | AO47: =VLOOKUP(A47,'D7'!$B$10:$AZ$109,5,FALSE) -> 0 | AP47: =VLOOKUP(A47,'D7'!$B$10:$AZ$109,6,FALSE) -> 0 | AQ47: =VLOOKUP(A47,'D7'!$B$10:$AZ$109,7,FALSE) -> 0 | AR47: 0 | AS47: =VLOOKUP(A47,'D8'!$B$10:$AZ$109,3,FALSE) -> 0 | AT47: =VLOOKUP(A47,'D8'!$B$10:$AZ$109,4,FALSE) -> 0 | AU47: =VLOOKUP(A47,'D8'!$B$10:$AZ$109,5,FALSE) -> 0 | AV47: =VLOOKUP(A47,'D8'!$B$10:$AZ$109,6,FALSE) -> 0 | AW47: =VLOOKUP(A47,'D8'!$B$10:$AZ$109,7,FALSE) -> 0 | AX47: 0 | AY47: 0 | AZ47: راسب | BA47: 0 | BC47: الثاني مكرر | BD47: =IFERROR(VLOOKUP(A47,A!$A$6:$M$99,6,FALSE),"") ->  | BE47: =IFERROR(VLOOKUP(A47,A!$A$6:$M$99,7,FALSE),"") ->  | BF47: =IFERROR(VLOOKUP(A47,A!$A$6:$M$99,9,FALSE),"") ->  | BG47: =IFERROR(VLOOKUP(A47,A!$A$6:$M$99,10,FALSE),"") ->  | BH47: =IFERROR(VLOOKUP(A47,A!$A$6:$M$99,11,FALSE),"") ->  | BI47: =IF(COUNTIF($AY$10:AY47,AY47)=1,AY47) -> FALSE | BJ47: 2 | BK47: =IF(COUNTIF($AY$10:AY47,AY47)>1," مكرر ","") -> مكرر | BL47: الثاني
A48: 39 | B48: =IFERROR(VLOOKUP(A48,A!$A$6:$M$99,2,FALSE),"") ->  | C48: =VLOOKUP(A48,'D1'!$B$10:$AZ$109,3,FALSE) -> 0 | D48: =VLOOKUP(A48,'D1'!$B$10:$AZ$109,4,FALSE) -> 0 | E48: =VLOOKUP(A48,'D1'!$B$10:$AZ$109,5,FALSE) -> 0 | F48: =VLOOKUP(A48,'D1'!$B$10:$AZ$109,6,FALSE) -> 0 | G48: =VLOOKUP(A48,'D1'!$B$10:$AZ$109,7,FALSE) -> 0 | H48: 0 | I48: =VLOOKUP(A48,'D2'!$B$10:$AZ$109,3,FALSE) -> 0 | J48: =VLOOKUP(A48,'D2'!$B$10:$AZ$109,4,FALSE) -> 0 | K48: =VLOOKUP(A48,'D2'!$B$10:$AZ$109,5,FALSE) -> 0 | L48: =VLOOKUP(A48,'D2'!$B$10:$AZ$109,6,FALSE) -> 0 | M48: =VLOOKUP(A48,'D2'!$B$10:$AZ$109,7,FALSE) -> 0 | N48: 0 | O48: =VLOOKUP(A48,'D3'!$B$10:$AZ$109,3,FALSE) -> 0 | P48: =VLOOKUP(A48,'D3'!$B$10:$AZ$109,4,FALSE) -> 0 | Q48: =VLOOKUP(A48,'D3'!$B$10:$AZ$109,5,FALSE) -> 0 | R48: =VLOOKUP(A48,'D3'!$B$10:$AZ$109,6,FALSE) -> 0 | S48: =VLOOKUP(A48,'D3'!$B$10:$AZ$109,7,FALSE) -> 0 | T48: 0 | U48: =VLOOKUP(A48,'D4'!$B$10:$AZ$109,3,FALSE) -> 0 | V48: =VLOOKUP(A48,'D4'!$B$10:$AZ$109,4,FALSE) -> 0 | W48: =VLOOKUP(A48,'D4'!$B$10:$AZ$109,5,FALSE) -> 0 | X48: =VLOOKUP(A48,'D4'!$B$10:$AZ$109,6,FALSE) -> 0 | Y48: =VLOOKUP(A48,'D4'!$B$10:$AZ$109,7,FALSE) -> 0 | Z48: 0 | AA48: =VLOOKUP(A48,'D5'!$B$10:$AZ$109,3,FALSE) -> 0 | AB48: =VLOOKUP(A48,'D5'!$B$10:$AZ$109,4,FALSE) -> 0 | AC48: =VLOOKUP(A48,'D5'!$B$10:$AZ$109,5,FALSE) -> 0 | AD48: =VLOOKUP(A48,'D5'!$B$10:$AZ$109,6,FALSE) -> 0 | AE48: =VLOOKUP(A48,'D5'!$B$10:$AZ$109,7,FALSE) -> 0 | AF48: 0 | AG48: =VLOOKUP(A48,'D6'!$B$10:$AZ$109,3,FALSE) -> 0 | AH48: =VLOOKUP(A48,'D6'!$B$10:$AZ$109,4,FALSE) -> 0 | AI48: =VLOOKUP(A48,'D6'!$B$10:$AZ$109,5,FALSE) -> 0 | AJ48: =VLOOKUP(A48,'D6'!$B$10:$AZ$109,6,FALSE) -> 0 | AK48: =VLOOKUP(A48,'D6'!$B$10:$AZ$109,7,FALSE) -> 0 | AL48: 0 | AM48: =VLOOKUP(A48,'D7'!$B$10:$AZ$109,3,FALSE) -> 0 | AN48: =VLOOKUP(A48,'D7'!$B$10:$AZ$109,4,FALSE) -> 0 | AO48: =VLOOKUP(A48,'D7'!$B$10:$AZ$109,5,FALSE) -> 0 | AP48: =VLOOKUP(A48,'D7'!$B$10:$AZ$109,6,FALSE) -> 0 | AQ48: =VLOOKUP(A48,'D7'!$B$10:$AZ$109,7,FALSE) -> 0 | AR48: 0 | AS48: =VLOOKUP(A48,'D8'!$B$10:$AZ$109,3,FALSE) -> 0 | AT48: =VLOOKUP(A48,'D8'!$B$10:$AZ$109,4,FALSE) -> 0 | AU48: =VLOOKUP(A48,'D8'!$B$10:$AZ$109,5,FALSE) -> 0 | AV48: =VLOOKUP(A48,'D8'!$B$10:$AZ$109,6,FALSE) -> 0 | AW48: =VLOOKUP(A48,'D8'!$B$10:$AZ$109,7,FALSE) -> 0 | AX48: 0 | AY48: 0 | AZ48: راسب | BA48: 0 | BC48: الثاني مكرر | BD48: =IFERROR(VLOOKUP(A48,A!$A$6:$M$99,6,FALSE),"") ->  | BE48: =IFERROR(VLOOKUP(A48,A!$A$6:$M$99,7,FALSE),"") ->  | BF48: =IFERROR(VLOOKUP(A48,A!$A$6:$M$99,9,FALSE),"") ->  | BG48: =IFERROR(VLOOKUP(A48,A!$A$6:$M$99,10,FALSE),"") ->  | BH48: =IFERROR(VLOOKUP(A48,A!$A$6:$M$99,11,FALSE),"") ->  | BI48: =IF(COUNTIF($AY$10:AY48,AY48)=1,AY48) -> FALSE | BJ48: 2 | BK48: =IF(COUNTIF($AY$10:AY48,AY48)>1," مكرر ","") -> مكرر | BL48: الثاني
A49: 40 | B49: =IFERROR(VLOOKUP(A49,A!$A$6:$M$99,2,FALSE),"") ->  | C49: =VLOOKUP(A49,'D1'!$B$10:$AZ$109,3,FALSE) -> 0 | D49: =VLOOKUP(A49,'D1'!$B$10:$AZ$109,4,FALSE) -> 0 | E49: =VLOOKUP(A49,'D1'!$B$10:$AZ$109,5,FALSE) -> 0 | F49: =VLOOKUP(A49,'D1'!$B$10:$AZ$109,6,FALSE) -> 0 | G49: =VLOOKUP(A49,'D1'!$B$10:$AZ$109,7,FALSE) -> 0 | H49: 0 | I49: =VLOOKUP(A49,'D2'!$B$10:$AZ$109,3,FALSE) -> 0 | J49: =VLOOKUP(A49,'D2'!$B$10:$AZ$109,4,FALSE) -> 0 | K49: =VLOOKUP(A49,'D2'!$B$10:$AZ$109,5,FALSE) -> 0 | L49: =VLOOKUP(A49,'D2'!$B$10:$AZ$109,6,FALSE) -> 0 | M49: =VLOOKUP(A49,'D2'!$B$10:$AZ$109,7,FALSE) -> 0 | N49: 0 | O49: =VLOOKUP(A49,'D3'!$B$10:$AZ$109,3,FALSE) -> 0 | P49: =VLOOKUP(A49,'D3'!$B$10:$AZ$109,4,FALSE) -> 0 | Q49: =VLOOKUP(A49,'D3'!$B$10:$AZ$109,5,FALSE) -> 0 | R49: =VLOOKUP(A49,'D3'!$B$10:$AZ$109,6,FALSE) -> 0 | S49: =VLOOKUP(A49,'D3'!$B$10:$AZ$109,7,FALSE) -> 0 | T49: 0 | U49: =VLOOKUP(A49,'D4'!$B$10:$AZ$109,3,FALSE) -> 0 | V49: =VLOOKUP(A49,'D4'!$B$10:$AZ$109,4,FALSE) -> 0 | W49: =VLOOKUP(A49,'D4'!$B$10:$AZ$109,5,FALSE) -> 0 | X49: =VLOOKUP(A49,'D4'!$B$10:$AZ$109,6,FALSE) -> 0 | Y49: =VLOOKUP(A49,'D4'!$B$10:$AZ$109,7,FALSE) -> 0 | Z49: 0 | AA49: =VLOOKUP(A49,'D5'!$B$10:$AZ$109,3,FALSE) -> 0 | AB49: =VLOOKUP(A49,'D5'!$B$10:$AZ$109,4,FALSE) -> 0 | AC49: =VLOOKUP(A49,'D5'!$B$10:$AZ$109,5,FALSE) -> 0 | AD49: =VLOOKUP(A49,'D5'!$B$10:$AZ$109,6,FALSE) -> 0 | AE49: =VLOOKUP(A49,'D5'!$B$10:$AZ$109,7,FALSE) -> 0 | AF49: 0 | AG49: =VLOOKUP(A49,'D6'!$B$10:$AZ$109,3,FALSE) -> 0 | AH49: =VLOOKUP(A49,'D6'!$B$10:$AZ$109,4,FALSE) -> 0 | AI49: =VLOOKUP(A49,'D6'!$B$10:$AZ$109,5,FALSE) -> 0 | AJ49: =VLOOKUP(A49,'D6'!$B$10:$AZ$109,6,FALSE) -> 0 | AK49: =VLOOKUP(A49,'D6'!$B$10:$AZ$109,7,FALSE) -> 0 | AL49: 0 | AM49: =VLOOKUP(A49,'D7'!$B$10:$AZ$109,3,FALSE) -> 0 | AN49: =VLOOKUP(A49,'D7'!$B$10:$AZ$109,4,FALSE) -> 0 | AO49: =VLOOKUP(A49,'D7'!$B$10:$AZ$109,5,FALSE) -> 0 | AP49: =VLOOKUP(A49,'D7'!$B$10:$AZ$109,6,FALSE) -> 0 | AQ49: =VLOOKUP(A49,'D7'!$B$10:$AZ$109,7,FALSE) -> 0 | AR49: 0 | AS49: =VLOOKUP(A49,'D8'!$B$10:$AZ$109,3,FALSE) -> 0 | AT49: =VLOOKUP(A49,'D8'!$B$10:$AZ$109,4,FALSE) -> 0 | AU49: =VLOOKUP(A49,'D8'!$B$10:$AZ$109,5,FALSE) -> 0 | AV49: =VLOOKUP(A49,'D8'!$B$10:$AZ$109,6,FALSE) -> 0 | AW49: =VLOOKUP(A49,'D8'!$B$10:$AZ$109,7,FALSE) -> 0 | AX49: 0 | AY49: 0 | AZ49: راسب | BA49: 0 | BC49: الثاني مكرر | BD49: =IFERROR(VLOOKUP(A49,A!$A$6:$M$99,6,FALSE),"") ->  | BE49: =IFERROR(VLOOKUP(A49,A!$A$6:$M$99,7,FALSE),"") ->  | BF49: =IFERROR(VLOOKUP(A49,A!$A$6:$M$99,9,FALSE),"") ->  | BG49: =IFERROR(VLOOKUP(A49,A!$A$6:$M$99,10,FALSE),"") ->  | BH49: =IFERROR(VLOOKUP(A49,A!$A$6:$M$99,11,FALSE),"") ->  | BI49: =IF(COUNTIF($AY$10:AY49,AY49)=1,AY49) -> FALSE | BJ49: 2 | BK49: =IF(COUNTIF($AY$10:AY49,AY49)>1," مكرر ","") -> مكرر | BL49: الثاني
A50: 41 | B50: =IFERROR(VLOOKUP(A50,A!$A$6:$M$99,2,FALSE),"") ->  | C50: =VLOOKUP(A50,'D1'!$B$10:$AZ$109,3,FALSE) -> 0 | D50: =VLOOKUP(A50,'D1'!$B$10:$AZ$109,4,FALSE) -> 0 | E50: =VLOOKUP(A50,'D1'!$B$10:$AZ$109,5,FALSE) -> 0 | F50: =VLOOKUP(A50,'D1'!$B$10:$AZ$109,6,FALSE) -> 0 | G50: =VLOOKUP(A50,'D1'!$B$10:$AZ$109,7,FALSE) -> 0 | H50: 0 | I50: =VLOOKUP(A50,'D2'!$B$10:$AZ$109,3,FALSE) -> 0 | J50: =VLOOKUP(A50,'D2'!$B$10:$AZ$109,4,FALSE) -> 0 | K50: =VLOOKUP(A50,'D2'!$B$10:$AZ$109,5,FALSE) -> 0 | L50: =VLOOKUP(A50,'D2'!$B$10:$AZ$109,6,FALSE) -> 0 | M50: =VLOOKUP(A50,'D2'!$B$10:$AZ$109,7,FALSE) -> 0 | N50: 0 | O50: =VLOOKUP(A50,'D3'!$B$10:$AZ$109,3,FALSE) -> 0 | P50: =VLOOKUP(A50,'D3'!$B$10:$AZ$109,4,FALSE) -> 0 | Q50: =VLOOKUP(A50,'D3'!$B$10:$AZ$109,5,FALSE) -> 0 | R50: =VLOOKUP(A50,'D3'!$B$10:$AZ$109,6,FALSE) -> 0 | S50: =VLOOKUP(A50,'D3'!$B$10:$AZ$109,7,FALSE) -> 0 | T50: 0 | U50: =VLOOKUP(A50,'D4'!$B$10:$AZ$109,3,FALSE) -> 0 | V50: =VLOOKUP(A50,'D4'!$B$10:$AZ$109,4,FALSE) -> 0 | W50: =VLOOKUP(A50,'D4'!$B$10:$AZ$109,5,FALSE) -> 0 | X50: =VLOOKUP(A50,'D4'!$B$10:$AZ$109,6,FALSE) -> 0 | Y50: =VLOOKUP(A50,'D4'!$B$10:$AZ$109,7,FALSE) -> 0 | Z50: 0 | AA50: =VLOOKUP(A50,'D5'!$B$10:$AZ$109,3,FALSE) -> 0 | AB50: =VLOOKUP(A50,'D5'!$B$10:$AZ$109,4,FALSE) -> 0 | AC50: =VLOOKUP(A50,'D5'!$B$10:$AZ$109,5,FALSE) -> 0 | AD50: =VLOOKUP(A50,'D5'!$B$10:$AZ$109,6,FALSE) -> 0 | AE50: =VLOOKUP(A50,'D5'!$B$10:$AZ$109,7,FALSE) -> 0 | AF50: 0 | AG50: =VLOOKUP(A50,'D6'!$B$10:$AZ$109,3,FALSE) -> 0 | AH50: =VLOOKUP(A50,'D6'!$B$10:$AZ$109,4,FALSE) -> 0 | AI50: =VLOOKUP(A50,'D6'!$B$10:$AZ$109,5,FALSE) -> 0 | AJ50: =VLOOKUP(A50,'D6'!$B$10:$AZ$109,6,FALSE) -> 0 | AK50: =VLOOKUP(A50,'D6'!$B$10:$AZ$109,7,FALSE) -> 0 | AL50: 0 | AM50: =VLOOKUP(A50,'D7'!$B$10:$AZ$109,3,FALSE) -> 0 | AN50: =VLOOKUP(A50,'D7'!$B$10:$AZ$109,4,FALSE) -> 0 | AO50: =VLOOKUP(A50,'D7'!$B$10:$AZ$109,5,FALSE) -> 0 | AP50: =VLOOKUP(A50,'D7'!$B$10:$AZ$109,6,FALSE) -> 0 | AQ50: =VLOOKUP(A50,'D7'!$B$10:$AZ$109,7,FALSE) -> 0 | AR50: 0 | AS50: =VLOOKUP(A50,'D8'!$B$10:$AZ$109,3,FALSE) -> 0 | AT50: =VLOOKUP(A50,'D8'!$B$10:$AZ$109,4,FALSE) -> 0 | AU50: =VLOOKUP(A50,'D8'!$B$10:$AZ$109,5,FALSE) -> 0 | AV50: =VLOOKUP(A50,'D8'!$B$10:$AZ$109,6,FALSE) -> 0 | AW50: =VLOOKUP(A50,'D8'!$B$10:$AZ$109,7,FALSE) -> 0 | AX50: 0 | AY50: 0 | AZ50: راسب | BA50: 0 | BC50: الثاني مكرر | BD50: =IFERROR(VLOOKUP(A50,A!$A$6:$M$99,6,FALSE),"") ->  | BE50: =IFERROR(VLOOKUP(A50,A!$A$6:$M$99,7,FALSE),"") ->  | BF50: =IFERROR(VLOOKUP(A50,A!$A$6:$M$99,9,FALSE),"") ->  | BG50: =IFERROR(VLOOKUP(A50,A!$A$6:$M$99,10,FALSE),"") ->  | BH50: =IFERROR(VLOOKUP(A50,A!$A$6:$M$99,11,FALSE),"") ->  | BI50: =IF(COUNTIF($AY$10:AY50,AY50)=1,AY50) -> FALSE | BJ50: 2 | BK50: =IF(COUNTIF($AY$10:AY50,AY50)>1," مكرر ","") -> مكرر | BL50: الثاني
A51: 42 | B51: =IFERROR(VLOOKUP(A51,A!$A$6:$M$99,2,FALSE),"") ->  | C51: =VLOOKUP(A51,'D1'!$B$10:$AZ$109,3,FALSE) -> 0 | D51: =VLOOKUP(A51,'D1'!$B$10:$AZ$109,4,FALSE) -> 0 | E51: =VLOOKUP(A51,'D1'!$B$10:$AZ$109,5,FALSE) -> 0 | F51: =VLOOKUP(A51,'D1'!$B$10:$AZ$109,6,FALSE) -> 0 | G51: =VLOOKUP(A51,'D1'!$B$10:$AZ$109,7,FALSE) -> 0 | H51: 0 | I51: =VLOOKUP(A51,'D2'!$B$10:$AZ$109,3,FALSE) -> 0 | J51: =VLOOKUP(A51,'D2'!$B$10:$AZ$109,4,FALSE) -> 0 | K51: =VLOOKUP(A51,'D2'!$B$10:$AZ$109,5,FALSE) -> 0 | L51: =VLOOKUP(A51,'D2'!$B$10:$AZ$109,6,FALSE) -> 0 | M51: =VLOOKUP(A51,'D2'!$B$10:$AZ$109,7,FALSE) -> 0 | N51: 0 | O51: =VLOOKUP(A51,'D3'!$B$10:$AZ$109,3,FALSE) -> 0 | P51: =VLOOKUP(A51,'D3'!$B$10:$AZ$109,4,FALSE) -> 0 | Q51: =VLOOKUP(A51,'D3'!$B$10:$AZ$109,5,FALSE) -> 0 | R51: =VLOOKUP(A51,'D3'!$B$10:$AZ$109,6,FALSE) -> 0 | S51: =VLOOKUP(A51,'D3'!$B$10:$AZ$109,7,FALSE) -> 0 | T51: 0 | U51: =VLOOKUP(A51,'D4'!$B$10:$AZ$109,3,FALSE) -> 0 | V51: =VLOOKUP(A51,'D4'!$B$10:$AZ$109,4,FALSE) -> 0 | W51: =VLOOKUP(A51,'D4'!$B$10:$AZ$109,5,FALSE) -> 0 | X51: =VLOOKUP(A51,'D4'!$B$10:$AZ$109,6,FALSE) -> 0 | Y51: =VLOOKUP(A51,'D4'!$B$10:$AZ$109,7,FALSE) -> 0 | Z51: 0 | AA51: =VLOOKUP(A51,'D5'!$B$10:$AZ$109,3,FALSE) -> 0 | AB51: =VLOOKUP(A51,'D5'!$B$10:$AZ$109,4,FALSE) -> 0 | AC51: =VLOOKUP(A51,'D5'!$B$10:$AZ$109,5,FALSE) -> 0 | AD51: =VLOOKUP(A51,'D5'!$B$10:$AZ$109,6,FALSE) -> 0 | AE51: =VLOOKUP(A51,'D5'!$B$10:$AZ$109,7,FALSE) -> 0 | AF51: 0 | AG51: =VLOOKUP(A51,'D6'!$B$10:$AZ$109,3,FALSE) -> 0 | AH51: =VLOOKUP(A51,'D6'!$B$10:$AZ$109,4,FALSE) -> 0 | AI51: =VLOOKUP(A51,'D6'!$B$10:$AZ$109,5,FALSE) -> 0 | AJ51: =VLOOKUP(A51,'D6'!$B$10:$AZ$109,6,FALSE) -> 0 | AK51: =VLOOKUP(A51,'D6'!$B$10:$AZ$109,7,FALSE) -> 0 | AL51: 0 | AM51: =VLOOKUP(A51,'D7'!$B$10:$AZ$109,3,FALSE) -> 0 | AN51: =VLOOKUP(A51,'D7'!$B$10:$AZ$109,4,FALSE) -> 0 | AO51: =VLOOKUP(A51,'D7'!$B$10:$AZ$109,5,FALSE) -> 0 | AP51: =VLOOKUP(A51,'D7'!$B$10:$AZ$109,6,FALSE) -> 0 | AQ51: =VLOOKUP(A51,'D7'!$B$10:$AZ$109,7,FALSE) -> 0 | AR51: 0 | AS51: =VLOOKUP(A51,'D8'!$B$10:$AZ$109,3,FALSE) -> 0 | AT51: =VLOOKUP(A51,'D8'!$B$10:$AZ$109,4,FALSE) -> 0 | AU51: =VLOOKUP(A51,'D8'!$B$10:$AZ$109,5,FALSE) -> 0 | AV51: =VLOOKUP(A51,'D8'!$B$10:$AZ$109,6,FALSE) -> 0 | AW51: =VLOOKUP(A51,'D8'!$B$10:$AZ$109,7,FALSE) -> 0 | AX51: 0 | AY51: 0 | AZ51: راسب | BA51: 0 | BC51: الثاني مكرر | BD51: =IFERROR(VLOOKUP(A51,A!$A$6:$M$99,6,FALSE),"") ->  | BE51: =IFERROR(VLOOKUP(A51,A!$A$6:$M$99,7,FALSE),"") ->  | BF51: =IFERROR(VLOOKUP(A51,A!$A$6:$M$99,9,FALSE),"") ->  | BG51: =IFERROR(VLOOKUP(A51,A!$A$6:$M$99,10,FALSE),"") ->  | BH51: =IFERROR(VLOOKUP(A51,A!$A$6:$M$99,11,FALSE),"") ->  | BI51: =IF(COUNTIF($AY$10:AY51,AY51)=1,AY51) -> FALSE | BJ51: 2 | BK51: =IF(COUNTIF($AY$10:AY51,AY51)>1," مكرر ","") -> مكرر | BL51: الثاني
A52: 43 | B52: =IFERROR(VLOOKUP(A52,A!$A$6:$M$99,2,FALSE),"") ->  | C52: =VLOOKUP(A52,'D1'!$B$10:$AZ$109,3,FALSE) -> 0 | D52: =VLOOKUP(A52,'D1'!$B$10:$AZ$109,4,FALSE) -> 0 | E52: =VLOOKUP(A52,'D1'!$B$10:$AZ$109,5,FALSE) -> 0 | F52: =VLOOKUP(A52,'D1'!$B$10:$AZ$109,6,FALSE) -> 0 | G52: =VLOOKUP(A52,'D1'!$B$10:$AZ$109,7,FALSE) -> 0 | H52: 0 | I52: =VLOOKUP(A52,'D2'!$B$10:$AZ$109,3,FALSE) -> 0 | J52: =VLOOKUP(A52,'D2'!$B$10:$AZ$109,4,FALSE) -> 0 | K52: =VLOOKUP(A52,'D2'!$B$10:$AZ$109,5,FALSE) -> 0 | L52: =VLOOKUP(A52,'D2'!$B$10:$AZ$109,6,FALSE) -> 0 | M52: =VLOOKUP(A52,'D2'!$B$10:$AZ$109,7,FALSE) -> 0 | N52: 0 | O52: =VLOOKUP(A52,'D3'!$B$10:$AZ$109,3,FALSE) -> 0 | P52: =VLOOKUP(A52,'D3'!$B$10:$AZ$109,4,FALSE) -> 0 | Q52: =VLOOKUP(A52,'D3'!$B$10:$AZ$109,5,FALSE) -> 0 | R52: =VLOOKUP(A52,'D3'!$B$10:$AZ$109,6,FALSE) -> 0 | S52: =VLOOKUP(A52,'D3'!$B$10:$AZ$109,7,FALSE) -> 0 | T52: 0 | U52: =VLOOKUP(A52,'D4'!$B$10:$AZ$109,3,FALSE) -> 0 | V52: =VLOOKUP(A52,'D4'!$B$10:$AZ$109,4,FALSE) -> 0 | W52: =VLOOKUP(A52,'D4'!$B$10:$AZ$109,5,FALSE) -> 0 | X52: =VLOOKUP(A52,'D4'!$B$10:$AZ$109,6,FALSE) -> 0 | Y52: =VLOOKUP(A52,'D4'!$B$10:$AZ$109,7,FALSE) -> 0 | Z52: 0 | AA52: =VLOOKUP(A52,'D5'!$B$10:$AZ$109,3,FALSE) -> 0 | AB52: =VLOOKUP(A52,'D5'!$B$10:$AZ$109,4,FALSE) -> 0 | AC52: =VLOOKUP(A52,'D5'!$B$10:$AZ$109,5,FALSE) -> 0 | AD52: =VLOOKUP(A52,'D5'!$B$10:$AZ$109,6,FALSE) -> 0 | AE52: =VLOOKUP(A52,'D5'!$B$10:$AZ$109,7,FALSE) -> 0 | AF52: 0 | AG52: =VLOOKUP(A52,'D6'!$B$10:$AZ$109,3,FALSE) -> 0 | AH52: =VLOOKUP(A52,'D6'!$B$10:$AZ$109,4,FALSE) -> 0 | AI52: =VLOOKUP(A52,'D6'!$B$10:$AZ$109,5,FALSE) -> 0 | AJ52: =VLOOKUP(A52,'D6'!$B$10:$AZ$109,6,FALSE) -> 0 | AK52: =VLOOKUP(A52,'D6'!$B$10:$AZ$109,7,FALSE) -> 0 | AL52: 0 | AM52: =VLOOKUP(A52,'D7'!$B$10:$AZ$109,3,FALSE) -> 0 | AN52: =VLOOKUP(A52,'D7'!$B$10:$AZ$109,4,FALSE) -> 0 | AO52: =VLOOKUP(A52,'D7'!$B$10:$AZ$109,5,FALSE) -> 0 | AP52: =VLOOKUP(A52,'D7'!$B$10:$AZ$109,6,FALSE) -> 0 | AQ52: =VLOOKUP(A52,'D7'!$B$10:$AZ$109,7,FALSE) -> 0 | AR52: 0 | AS52: =VLOOKUP(A52,'D8'!$B$10:$AZ$109,3,FALSE) -> 0 | AT52: =VLOOKUP(A52,'D8'!$B$10:$AZ$109,4,FALSE) -> 0 | AU52: =VLOOKUP(A52,'D8'!$B$10:$AZ$109,5,FALSE) -> 0 | AV52: =VLOOKUP(A52,'D8'!$B$10:$AZ$109,6,FALSE) -> 0 | AW52: =VLOOKUP(A52,'D8'!$B$10:$AZ$109,7,FALSE) -> 0 | AX52: 0 | AY52: 0 | AZ52: راسب | BA52: 0 | BC52: الثاني مكرر | BD52: =IFERROR(VLOOKUP(A52,A!$A$6:$M$99,6,FALSE),"") ->  | BE52: =IFERROR(VLOOKUP(A52,A!$A$6:$M$99,7,FALSE),"") ->  | BF52: =IFERROR(VLOOKUP(A52,A!$A$6:$M$99,9,FALSE),"") ->  | BG52: =IFERROR(VLOOKUP(A52,A!$A$6:$M$99,10,FALSE),"") ->  | BH52: =IFERROR(VLOOKUP(A52,A!$A$6:$M$99,11,FALSE),"") ->  | BI52: =IF(COUNTIF($AY$10:AY52,AY52)=1,AY52) -> FALSE | BJ52: 2 | BK52: =IF(COUNTIF($AY$10:AY52,AY52)>1," مكرر ","") -> مكرر | BL52: الثاني
A53: 44 | B53: =IFERROR(VLOOKUP(A53,A!$A$6:$M$99,2,FALSE),"") ->  | C53: =VLOOKUP(A53,'D1'!$B$10:$AZ$109,3,FALSE) -> 0 | D53: =VLOOKUP(A53,'D1'!$B$10:$AZ$109,4,FALSE) -> 0 | E53: =VLOOKUP(A53,'D1'!$B$10:$AZ$109,5,FALSE) -> 0 | F53: =VLOOKUP(A53,'D1'!$B$10:$AZ$109,6,FALSE) -> 0 | G53: =VLOOKUP(A53,'D1'!$B$10:$AZ$109,7,FALSE) -> 0 | H53: 0 | I53: =VLOOKUP(A53,'D2'!$B$10:$AZ$109,3,FALSE) -> 0 | J53: =VLOOKUP(A53,'D2'!$B$10:$AZ$109,4,FALSE) -> 0 | K53: =VLOOKUP(A53,'D2'!$B$10:$AZ$109,5,FALSE) -> 0 | L53: =VLOOKUP(A53,'D2'!$B$10:$AZ$109,6,FALSE) -> 0 | M53: =VLOOKUP(A53,'D2'!$B$10:$AZ$109,7,FALSE) -> 0 | N53: 0 | O53: =VLOOKUP(A53,'D3'!$B$10:$AZ$109,3,FALSE) -> 0 | P53: =VLOOKUP(A53,'D3'!$B$10:$AZ$109,4,FALSE) -> 0 | Q53: =VLOOKUP(A53,'D3'!$B$10:$AZ$109,5,FALSE) -> 0 | R53: =VLOOKUP(A53,'D3'!$B$10:$AZ$109,6,FALSE) -> 0 | S53: =VLOOKUP(A53,'D3'!$B$10:$AZ$109,7,FALSE) -> 0 | T53: 0 | U53: =VLOOKUP(A53,'D4'!$B$10:$AZ$109,3,FALSE) -> 0 | V53: =VLOOKUP(A53,'D4'!$B$10:$AZ$109,4,FALSE) -> 0 | W53: =VLOOKUP(A53,'D4'!$B$10:$AZ$109,5,FALSE) -> 0 | X53: =VLOOKUP(A53,'D4'!$B$10:$AZ$109,6,FALSE) -> 0 | Y53: =VLOOKUP(A53,'D4'!$B$10:$AZ$109,7,FALSE) -> 0 | Z53: 0 | AA53: =VLOOKUP(A53,'D5'!$B$10:$AZ$109,3,FALSE) -> 0 | AB53: =VLOOKUP(A53,'D5'!$B$10:$AZ$109,4,FALSE) -> 0 | AC53: =VLOOKUP(A53,'D5'!$B$10:$AZ$109,5,FALSE) -> 0 | AD53: =VLOOKUP(A53,'D5'!$B$10:$AZ$109,6,FALSE) -> 0 | AE53: =VLOOKUP(A53,'D5'!$B$10:$AZ$109,7,FALSE) -> 0 | AF53: 0 | AG53: =VLOOKUP(A53,'D6'!$B$10:$AZ$109,3,FALSE) -> 0 | AH53: =VLOOKUP(A53,'D6'!$B$10:$AZ$109,4,FALSE) -> 0 | AI53: =VLOOKUP(A53,'D6'!$B$10:$AZ$109,5,FALSE) -> 0 | AJ53: =VLOOKUP(A53,'D6'!$B$10:$AZ$109,6,FALSE) -> 0 | AK53: =VLOOKUP(A53,'D6'!$B$10:$AZ$109,7,FALSE) -> 0 | AL53: 0 | AM53: =VLOOKUP(A53,'D7'!$B$10:$AZ$109,3,FALSE) -> 0 | AN53: =VLOOKUP(A53,'D7'!$B$10:$AZ$109,4,FALSE) -> 0 | AO53: =VLOOKUP(A53,'D7'!$B$10:$AZ$109,5,FALSE) -> 0 | AP53: =VLOOKUP(A53,'D7'!$B$10:$AZ$109,6,FALSE) -> 0 | AQ53: =VLOOKUP(A53,'D7'!$B$10:$AZ$109,7,FALSE) -> 0 | AR53: 0 | AS53: =VLOOKUP(A53,'D8'!$B$10:$AZ$109,3,FALSE) -> 0 | AT53: =VLOOKUP(A53,'D8'!$B$10:$AZ$109,4,FALSE) -> 0 | AU53: =VLOOKUP(A53,'D8'!$B$10:$AZ$109,5,FALSE) -> 0 | AV53: =VLOOKUP(A53,'D8'!$B$10:$AZ$109,6,FALSE) -> 0 | AW53: =VLOOKUP(A53,'D8'!$B$10:$AZ$109,7,FALSE) -> 0 | AX53: 0 | AY53: 0 | AZ53: راسب | BA53: 0 | BC53: الثاني مكرر | BD53: =IFERROR(VLOOKUP(A53,A!$A$6:$M$99,6,FALSE),"") ->  | BE53: =IFERROR(VLOOKUP(A53,A!$A$6:$M$99,7,FALSE),"") ->  | BF53: =IFERROR(VLOOKUP(A53,A!$A$6:$M$99,9,FALSE),"") ->  | BG53: =IFERROR(VLOOKUP(A53,A!$A$6:$M$99,10,FALSE),"") ->  | BH53: =IFERROR(VLOOKUP(A53,A!$A$6:$M$99,11,FALSE),"") ->  | BI53: =IF(COUNTIF($AY$10:AY53,AY53)=1,AY53) -> FALSE | BJ53: 2 | BK53: =IF(COUNTIF($AY$10:AY53,AY53)>1," مكرر ","") -> مكرر | BL53: الثاني
A54: 45 | B54: =IFERROR(VLOOKUP(A54,A!$A$6:$M$99,2,FALSE),"") ->  | C54: =VLOOKUP(A54,'D1'!$B$10:$AZ$109,3,FALSE) -> 0 | D54: =VLOOKUP(A54,'D1'!$B$10:$AZ$109,4,FALSE) -> 0 | E54: =VLOOKUP(A54,'D1'!$B$10:$AZ$109,5,FALSE) -> 0 | F54: =VLOOKUP(A54,'D1'!$B$10:$AZ$109,6,FALSE) -> 0 | G54: =VLOOKUP(A54,'D1'!$B$10:$AZ$109,7,FALSE) -> 0 | H54: 0 | I54: =VLOOKUP(A54,'D2'!$B$10:$AZ$109,3,FALSE) -> 0 | J54: =VLOOKUP(A54,'D2'!$B$10:$AZ$109,4,FALSE) -> 0 | K54: =VLOOKUP(A54,'D2'!$B$10:$AZ$109,5,FALSE) -> 0 | L54: =VLOOKUP(A54,'D2'!$B$10:$AZ$109,6,FALSE) -> 0 | M54: =VLOOKUP(A54,'D2'!$B$10:$AZ$109,7,FALSE) -> 0 | N54: 0 | O54: =VLOOKUP(A54,'D3'!$B$10:$AZ$109,3,FALSE) -> 0 | P54: =VLOOKUP(A54,'D3'!$B$10:$AZ$109,4,FALSE) -> 0 | Q54: =VLOOKUP(A54,'D3'!$B$10:$AZ$109,5,FALSE) -> 0 | R54: =VLOOKUP(A54,'D3'!$B$10:$AZ$109,6,FALSE) -> 0 | S54: =VLOOKUP(A54,'D3'!$B$10:$AZ$109,7,FALSE) -> 0 | T54: 0 | U54: =VLOOKUP(A54,'D4'!$B$10:$AZ$109,3,FALSE) -> 0 | V54: =VLOOKUP(A54,'D4'!$B$10:$AZ$109,4,FALSE) -> 0 | W54: =VLOOKUP(A54,'D4'!$B$10:$AZ$109,5,FALSE) -> 0 | X54: =VLOOKUP(A54,'D4'!$B$10:$AZ$109,6,FALSE) -> 0 | Y54: =VLOOKUP(A54,'D4'!$B$10:$AZ$109,7,FALSE) -> 0 | Z54: 0 | AA54: =VLOOKUP(A54,'D5'!$B$10:$AZ$109,3,FALSE) -> 0 | AB54: =VLOOKUP(A54,'D5'!$B$10:$AZ$109,4,FALSE) -> 0 | AC54: =VLOOKUP(A54,'D5'!$B$10:$AZ$109,5,FALSE) -> 0 | AD54: =VLOOKUP(A54,'D5'!$B$10:$AZ$109,6,FALSE) -> 0 | AE54: =VLOOKUP(A54,'D5'!$B$10:$AZ$109,7,FALSE) -> 0 | AF54: 0 | AG54: =VLOOKUP(A54,'D6'!$B$10:$AZ$109,3,FALSE) -> 0 | AH54: =VLOOKUP(A54,'D6'!$B$10:$AZ$109,4,FALSE) -> 0 | AI54: =VLOOKUP(A54,'D6'!$B$10:$AZ$109,5,FALSE) -> 0 | AJ54: =VLOOKUP(A54,'D6'!$B$10:$AZ$109,6,FALSE) -> 0 | AK54: =VLOOKUP(A54,'D6'!$B$10:$AZ$109,7,FALSE) -> 0 | AL54: 0 | AM54: =VLOOKUP(A54,'D7'!$B$10:$AZ$109,3,FALSE) -> 0 | AN54: =VLOOKUP(A54,'D7'!$B$10:$AZ$109,4,FALSE) -> 0 | AO54: =VLOOKUP(A54,'D7'!$B$10:$AZ$109,5,FALSE) -> 0 | AP54: =VLOOKUP(A54,'D7'!$B$10:$AZ$109,6,FALSE) -> 0 | AQ54: =VLOOKUP(A54,'D7'!$B$10:$AZ$109,7,FALSE) -> 0 | AR54: 0 | AS54: =VLOOKUP(A54,'D8'!$B$10:$AZ$109,3,FALSE) -> 0 | AT54: =VLOOKUP(A54,'D8'!$B$10:$AZ$109,4,FALSE) -> 0 | AU54: =VLOOKUP(A54,'D8'!$B$10:$AZ$109,5,FALSE) -> 0 | AV54: =VLOOKUP(A54,'D8'!$B$10:$AZ$109,6,FALSE) -> 0 | AW54: =VLOOKUP(A54,'D8'!$B$10:$AZ$109,7,FALSE) -> 0 | AX54: 0 | AY54: 0 | AZ54: راسب | BA54: 0 | BC54: الثاني مكرر | BD54: =IFERROR(VLOOKUP(A54,A!$A$6:$M$99,6,FALSE),"") ->  | BE54: =IFERROR(VLOOKUP(A54,A!$A$6:$M$99,7,FALSE),"") ->  | BF54: =IFERROR(VLOOKUP(A54,A!$A$6:$M$99,9,FALSE),"") ->  | BG54: =IFERROR(VLOOKUP(A54,A!$A$6:$M$99,10,FALSE),"") ->  | BH54: =IFERROR(VLOOKUP(A54,A!$A$6:$M$99,11,FALSE),"") ->  | BI54: =IF(COUNTIF($AY$10:AY54,AY54)=1,AY54) -> FALSE | BJ54: 2 | BK54: =IF(COUNTIF($AY$10:AY54,AY54)>1," مكرر ","") -> مكرر | BL54: الثاني
A55: 46 | B55: =IFERROR(VLOOKUP(A55,A!$A$6:$M$99,2,FALSE),"") ->  | C55: =VLOOKUP(A55,'D1'!$B$10:$AZ$109,3,FALSE) -> 0 | D55: =VLOOKUP(A55,'D1'!$B$10:$AZ$109,4,FALSE) -> 0 | E55: =VLOOKUP(A55,'D1'!$B$10:$AZ$109,5,FALSE) -> 0 | F55: =VLOOKUP(A55,'D1'!$B$10:$AZ$109,6,FALSE) -> 0 | G55: =VLOOKUP(A55,'D1'!$B$10:$AZ$109,7,FALSE) -> 0 | H55: 0 | I55: =VLOOKUP(A55,'D2'!$B$10:$AZ$109,3,FALSE) -> 0 | J55: =VLOOKUP(A55,'D2'!$B$10:$AZ$109,4,FALSE) -> 0 | K55: =VLOOKUP(A55,'D2'!$B$10:$AZ$109,5,FALSE) -> 0 | L55: =VLOOKUP(A55,'D2'!$B$10:$AZ$109,6,FALSE) -> 0 | M55: =VLOOKUP(A55,'D2'!$B$10:$AZ$109,7,FALSE) -> 0 | N55: 0 | O55: =VLOOKUP(A55,'D3'!$B$10:$AZ$109,3,FALSE) -> 0 | P55: =VLOOKUP(A55,'D3'!$B$10:$AZ$109,4,FALSE) -> 0 | Q55: =VLOOKUP(A55,'D3'!$B$10:$AZ$109,5,FALSE) -> 0 | R55: =VLOOKUP(A55,'D3'!$B$10:$AZ$109,6,FALSE) -> 0 | S55: =VLOOKUP(A55,'D3'!$B$10:$AZ$109,7,FALSE) -> 0 | T55: 0 | U55: =VLOOKUP(A55,'D4'!$B$10:$AZ$109,3,FALSE) -> 0 | V55: =VLOOKUP(A55,'D4'!$B$10:$AZ$109,4,FALSE) -> 0 | W55: =VLOOKUP(A55,'D4'!$B$10:$AZ$109,5,FALSE) -> 0 | X55: =VLOOKUP(A55,'D4'!$B$10:$AZ$109,6,FALSE) -> 0 | Y55: =VLOOKUP(A55,'D4'!$B$10:$AZ$109,7,FALSE) -> 0 | Z55: 0 | AA55: =VLOOKUP(A55,'D5'!$B$10:$AZ$109,3,FALSE) -> 0 | AB55: =VLOOKUP(A55,'D5'!$B$10:$AZ$109,4,FALSE) -> 0 | AC55: =VLOOKUP(A55,'D5'!$B$10:$AZ$109,5,FALSE) -> 0 | AD55: =VLOOKUP(A55,'D5'!$B$10:$AZ$109,6,FALSE) -> 0 | AE55: =VLOOKUP(A55,'D5'!$B$10:$AZ$109,7,FALSE) -> 0 | AF55: 0 | AG55: =VLOOKUP(A55,'D6'!$B$10:$AZ$109,3,FALSE) -> 0 | AH55: =VLOOKUP(A55,'D6'!$B$10:$AZ$109,4,FALSE) -> 0 | AI55: =VLOOKUP(A55,'D6'!$B$10:$AZ$109,5,FALSE) -> 0 | AJ55: =VLOOKUP(A55,'D6'!$B$10:$AZ$109,6,FALSE) -> 0 | AK55: =VLOOKUP(A55,'D6'!$B$10:$AZ$109,7,FALSE) -> 0 | AL55: 0 | AM55: =VLOOKUP(A55,'D7'!$B$10:$AZ$109,3,FALSE) -> 0 | AN55: =VLOOKUP(A55,'D7'!$B$10:$AZ$109,4,FALSE) -> 0 | AO55: =VLOOKUP(A55,'D7'!$B$10:$AZ$109,5,FALSE) -> 0 | AP55: =VLOOKUP(A55,'D7'!$B$10:$AZ$109,6,FALSE) -> 0 | AQ55: =VLOOKUP(A55,'D7'!$B$10:$AZ$109,7,FALSE) -> 0 | AR55: 0 | AS55: =VLOOKUP(A55,'D8'!$B$10:$AZ$109,3,FALSE) -> 0 | AT55: =VLOOKUP(A55,'D8'!$B$10:$AZ$109,4,FALSE) -> 0 | AU55: =VLOOKUP(A55,'D8'!$B$10:$AZ$109,5,FALSE) -> 0 | AV55: =VLOOKUP(A55,'D8'!$B$10:$AZ$109,6,FALSE) -> 0 | AW55: =VLOOKUP(A55,'D8'!$B$10:$AZ$109,7,FALSE) -> 0 | AX55: 0 | AY55: 0 | AZ55: راسب | BA55: 0 | BC55: الثاني مكرر | BD55: =IFERROR(VLOOKUP(A55,A!$A$6:$M$99,6,FALSE),"") ->  | BE55: =IFERROR(VLOOKUP(A55,A!$A$6:$M$99,7,FALSE),"") ->  | BF55: =IFERROR(VLOOKUP(A55,A!$A$6:$M$99,9,FALSE),"") ->  | BG55: =IFERROR(VLOOKUP(A55,A!$A$6:$M$99,10,FALSE),"") ->  | BH55: =IFERROR(VLOOKUP(A55,A!$A$6:$M$99,11,FALSE),"") ->  | BI55: =IF(COUNTIF($AY$10:AY55,AY55)=1,AY55) -> FALSE | BJ55: 2 | BK55: =IF(COUNTIF($AY$10:AY55,AY55)>1," مكرر ","") -> مكرر | BL55: الثاني
A56: 47 | B56: =IFERROR(VLOOKUP(A56,A!$A$6:$M$99,2,FALSE),"") ->  | C56: =VLOOKUP(A56,'D1'!$B$10:$AZ$109,3,FALSE) -> 0 | D56: =VLOOKUP(A56,'D1'!$B$10:$AZ$109,4,FALSE) -> 0 | E56: =VLOOKUP(A56,'D1'!$B$10:$AZ$109,5,FALSE) -> 0 | F56: =VLOOKUP(A56,'D1'!$B$10:$AZ$109,6,FALSE) -> 0 | G56: =VLOOKUP(A56,'D1'!$B$10:$AZ$109,7,FALSE) -> 0 | H56: 0 | I56: =VLOOKUP(A56,'D2'!$B$10:$AZ$109,3,FALSE) -> 0 | J56: =VLOOKUP(A56,'D2'!$B$10:$AZ$109,4,FALSE) -> 0 | K56: =VLOOKUP(A56,'D2'!$B$10:$AZ$109,5,FALSE) -> 0 | L56: =VLOOKUP(A56,'D2'!$B$10:$AZ$109,6,FALSE) -> 0 | M56: =VLOOKUP(A56,'D2'!$B$10:$AZ$109,7,FALSE) -> 0 | N56: 0 | O56: =VLOOKUP(A56,'D3'!$B$10:$AZ$109,3,FALSE) -> 0 | P56: =VLOOKUP(A56,'D3'!$B$10:$AZ$109,4,FALSE) -> 0 | Q56: =VLOOKUP(A56,'D3'!$B$10:$AZ$109,5,FALSE) -> 0 | R56: =VLOOKUP(A56,'D3'!$B$10:$AZ$109,6,FALSE) -> 0 | S56: =VLOOKUP(A56,'D3'!$B$10:$AZ$109,7,FALSE) -> 0 | T56: 0 | U56: =VLOOKUP(A56,'D4'!$B$10:$AZ$109,3,FALSE) -> 0 | V56: =VLOOKUP(A56,'D4'!$B$10:$AZ$109,4,FALSE) -> 0 | W56: =VLOOKUP(A56,'D4'!$B$10:$AZ$109,5,FALSE) -> 0 | X56: =VLOOKUP(A56,'D4'!$B$10:$AZ$109,6,FALSE) -> 0 | Y56: =VLOOKUP(A56,'D4'!$B$10:$AZ$109,7,FALSE) -> 0 | Z56: 0 | AA56: =VLOOKUP(A56,'D5'!$B$10:$AZ$109,3,FALSE) -> 0 | AB56: =VLOOKUP(A56,'D5'!$B$10:$AZ$109,4,FALSE) -> 0 | AC56: =VLOOKUP(A56,'D5'!$B$10:$AZ$109,5,FALSE) -> 0 | AD56: =VLOOKUP(A56,'D5'!$B$10:$AZ$109,6,FALSE) -> 0 | AE56: =VLOOKUP(A56,'D5'!$B$10:$AZ$109,7,FALSE) -> 0 | AF56: 0 | AG56: =VLOOKUP(A56,'D6'!$B$10:$AZ$109,3,FALSE) -> 0 | AH56: =VLOOKUP(A56,'D6'!$B$10:$AZ$109,4,FALSE) -> 0 | AI56: =VLOOKUP(A56,'D6'!$B$10:$AZ$109,5,FALSE) -> 0 | AJ56: =VLOOKUP(A56,'D6'!$B$10:$AZ$109,6,FALSE) -> 0 | AK56: =VLOOKUP(A56,'D6'!$B$10:$AZ$109,7,FALSE) -> 0 | AL56: 0 | AM56: =VLOOKUP(A56,'D7'!$B$10:$AZ$109,3,FALSE) -> 0 | AN56: =VLOOKUP(A56,'D7'!$B$10:$AZ$109,4,FALSE) -> 0 | AO56: =VLOOKUP(A56,'D7'!$B$10:$AZ$109,5,FALSE) -> 0 | AP56: =VLOOKUP(A56,'D7'!$B$10:$AZ$109,6,FALSE) -> 0 | AQ56: =VLOOKUP(A56,'D7'!$B$10:$AZ$109,7,FALSE) -> 0 | AR56: 0 | AS56: =VLOOKUP(A56,'D8'!$B$10:$AZ$109,3,FALSE) -> 0 | AT56: =VLOOKUP(A56,'D8'!$B$10:$AZ$109,4,FALSE) -> 0 | AU56: =VLOOKUP(A56,'D8'!$B$10:$AZ$109,5,FALSE) -> 0 | AV56: =VLOOKUP(A56,'D8'!$B$10:$AZ$109,6,FALSE) -> 0 | AW56: =VLOOKUP(A56,'D8'!$B$10:$AZ$109,7,FALSE) -> 0 | AX56: 0 | AY56: 0 | AZ56: راسب | BA56: 0 | BC56: الثاني مكرر | BD56: =IFERROR(VLOOKUP(A56,A!$A$6:$M$99,6,FALSE),"") ->  | BE56: =IFERROR(VLOOKUP(A56,A!$A$6:$M$99,7,FALSE),"") ->  | BF56: =IFERROR(VLOOKUP(A56,A!$A$6:$M$99,9,FALSE),"") ->  | BG56: =IFERROR(VLOOKUP(A56,A!$A$6:$M$99,10,FALSE),"") ->  | BH56: =IFERROR(VLOOKUP(A56,A!$A$6:$M$99,11,FALSE),"") ->  | BI56: =IF(COUNTIF($AY$10:AY56,AY56)=1,AY56) -> FALSE | BJ56: 2 | BK56: =IF(COUNTIF($AY$10:AY56,AY56)>1," مكرر ","") -> مكرر | BL56: الثاني
A57: 48 | B57: =IFERROR(VLOOKUP(A57,A!$A$6:$M$99,2,FALSE),"") ->  | C57: =VLOOKUP(A57,'D1'!$B$10:$AZ$109,3,FALSE) -> 0 | D57: =VLOOKUP(A57,'D1'!$B$10:$AZ$109,4,FALSE) -> 0 | E57: =VLOOKUP(A57,'D1'!$B$10:$AZ$109,5,FALSE) -> 0 | F57: =VLOOKUP(A57,'D1'!$B$10:$AZ$109,6,FALSE) -> 0 | G57: =VLOOKUP(A57,'D1'!$B$10:$AZ$109,7,FALSE) -> 0 | H57: 0 | I57: =VLOOKUP(A57,'D2'!$B$10:$AZ$109,3,FALSE) -> 0 | J57: =VLOOKUP(A57,'D2'!$B$10:$AZ$109,4,FALSE) -> 0 | K57: =VLOOKUP(A57,'D2'!$B$10:$AZ$109,5,FALSE) -> 0 | L57: =VLOOKUP(A57,'D2'!$B$10:$AZ$109,6,FALSE) -> 0 | M57: =VLOOKUP(A57,'D2'!$B$10:$AZ$109,7,FALSE) -> 0 | N57: 0 | O57: =VLOOKUP(A57,'D3'!$B$10:$AZ$109,3,FALSE) -> 0 | P57: =VLOOKUP(A57,'D3'!$B$10:$AZ$109,4,FALSE) -> 0 | Q57: =VLOOKUP(A57,'D3'!$B$10:$AZ$109,5,FALSE) -> 0 | R57: =VLOOKUP(A57,'D3'!$B$10:$AZ$109,6,FALSE) -> 0 | S57: =VLOOKUP(A57,'D3'!$B$10:$AZ$109,7,FALSE) -> 0 | T57: 0 | U57: =VLOOKUP(A57,'D4'!$B$10:$AZ$109,3,FALSE) -> 0 | V57: =VLOOKUP(A57,'D4'!$B$10:$AZ$109,4,FALSE) -> 0 | W57: =VLOOKUP(A57,'D4'!$B$10:$AZ$109,5,FALSE) -> 0 | X57: =VLOOKUP(A57,'D4'!$B$10:$AZ$109,6,FALSE) -> 0 | Y57: =VLOOKUP(A57,'D4'!$B$10:$AZ$109,7,FALSE) -> 0 | Z57: 0 | AA57: =VLOOKUP(A57,'D5'!$B$10:$AZ$109,3,FALSE) -> 0 | AB57: =VLOOKUP(A57,'D5'!$B$10:$AZ$109,4,FALSE) -> 0 | AC57: =VLOOKUP(A57,'D5'!$B$10:$AZ$109,5,FALSE) -> 0 | AD57: =VLOOKUP(A57,'D5'!$B$10:$AZ$109,6,FALSE) -> 0 | AE57: =VLOOKUP(A57,'D5'!$B$10:$AZ$109,7,FALSE) -> 0 | AF57: 0 | AG57: =VLOOKUP(A57,'D6'!$B$10:$AZ$109,3,FALSE) -> 0 | AH57: =VLOOKUP(A57,'D6'!$B$10:$AZ$109,4,FALSE) -> 0 | AI57: =VLOOKUP(A57,'D6'!$B$10:$AZ$109,5,FALSE) -> 0 | AJ57: =VLOOKUP(A57,'D6'!$B$10:$AZ$109,6,FALSE) -> 0 | AK57: =VLOOKUP(A57,'D6'!$B$10:$AZ$109,7,FALSE) -> 0 | AL57: 0 | AM57: =VLOOKUP(A57,'D7'!$B$10:$AZ$109,3,FALSE) -> 0 | AN57: =VLOOKUP(A57,'D7'!$B$10:$AZ$109,4,FALSE) -> 0 | AO57: =VLOOKUP(A57,'D7'!$B$10:$AZ$109,5,FALSE) -> 0 | AP57: =VLOOKUP(A57,'D7'!$B$10:$AZ$109,6,FALSE) -> 0 | AQ57: =VLOOKUP(A57,'D7'!$B$10:$AZ$109,7,FALSE) -> 0 | AR57: 0 | AS57: =VLOOKUP(A57,'D8'!$B$10:$AZ$109,3,FALSE) -> 0 | AT57: =VLOOKUP(A57,'D8'!$B$10:$AZ$109,4,FALSE) -> 0 | AU57: =VLOOKUP(A57,'D8'!$B$10:$AZ$109,5,FALSE) -> 0 | AV57: =VLOOKUP(A57,'D8'!$B$10:$AZ$109,6,FALSE) -> 0 | AW57: =VLOOKUP(A57,'D8'!$B$10:$AZ$109,7,FALSE) -> 0 | AX57: 0 | AY57: 0 | AZ57: راسب | BA57: 0 | BC57: الثاني مكرر | BD57: =IFERROR(VLOOKUP(A57,A!$A$6:$M$99,6,FALSE),"") ->  | BE57: =IFERROR(VLOOKUP(A57,A!$A$6:$M$99,7,FALSE),"") ->  | BF57: =IFERROR(VLOOKUP(A57,A!$A$6:$M$99,9,FALSE),"") ->  | BG57: =IFERROR(VLOOKUP(A57,A!$A$6:$M$99,10,FALSE),"") ->  | BH57: =IFERROR(VLOOKUP(A57,A!$A$6:$M$99,11,FALSE),"") ->  | BI57: =IF(COUNTIF($AY$10:AY57,AY57)=1,AY57) -> FALSE | BJ57: 2 | BK57: =IF(COUNTIF($AY$10:AY57,AY57)>1," مكرر ","") -> مكرر | BL57: الثاني
A58: 49 | B58: =IFERROR(VLOOKUP(A58,A!$A$6:$M$99,2,FALSE),"") ->  | C58: =VLOOKUP(A58,'D1'!$B$10:$AZ$109,3,FALSE) -> 0 | D58: =VLOOKUP(A58,'D1'!$B$10:$AZ$109,4,FALSE) -> 0 | E58: =VLOOKUP(A58,'D1'!$B$10:$AZ$109,5,FALSE) -> 0 | F58: =VLOOKUP(A58,'D1'!$B$10:$AZ$109,6,FALSE) -> 0 | G58: =VLOOKUP(A58,'D1'!$B$10:$AZ$109,7,FALSE) -> 0 | H58: 0 | I58: =VLOOKUP(A58,'D2'!$B$10:$AZ$109,3,FALSE) -> 0 | J58: =VLOOKUP(A58,'D2'!$B$10:$AZ$109,4,FALSE) -> 0 | K58: =VLOOKUP(A58,'D2'!$B$10:$AZ$109,5,FALSE) -> 0 | L58: =VLOOKUP(A58,'D2'!$B$10:$AZ$109,6,FALSE) -> 0 | M58: =VLOOKUP(A58,'D2'!$B$10:$AZ$109,7,FALSE) -> 0 | N58: 0 | O58: =VLOOKUP(A58,'D3'!$B$10:$AZ$109,3,FALSE) -> 0 | P58: =VLOOKUP(A58,'D3'!$B$10:$AZ$109,4,FALSE) -> 0 | Q58: =VLOOKUP(A58,'D3'!$B$10:$AZ$109,5,FALSE) -> 0 | R58: =VLOOKUP(A58,'D3'!$B$10:$AZ$109,6,FALSE) -> 0 | S58: =VLOOKUP(A58,'D3'!$B$10:$AZ$109,7,FALSE) -> 0 | T58: 0 | U58: =VLOOKUP(A58,'D4'!$B$10:$AZ$109,3,FALSE) -> 0 | V58: =VLOOKUP(A58,'D4'!$B$10:$AZ$109,4,FALSE) -> 0 | W58: =VLOOKUP(A58,'D4'!$B$10:$AZ$109,5,FALSE) -> 0 | X58: =VLOOKUP(A58,'D4'!$B$10:$AZ$109,6,FALSE) -> 0 | Y58: =VLOOKUP(A58,'D4'!$B$10:$AZ$109,7,FALSE) -> 0 | Z58: 0 | AA58: =VLOOKUP(A58,'D5'!$B$10:$AZ$109,3,FALSE) -> 0 | AB58: =VLOOKUP(A58,'D5'!$B$10:$AZ$109,4,FALSE) -> 0 | AC58: =VLOOKUP(A58,'D5'!$B$10:$AZ$109,5,FALSE) -> 0 | AD58: =VLOOKUP(A58,'D5'!$B$10:$AZ$109,6,FALSE) -> 0 | AE58: =VLOOKUP(A58,'D5'!$B$10:$AZ$109,7,FALSE) -> 0 | AF58: 0 | AG58: =VLOOKUP(A58,'D6'!$B$10:$AZ$109,3,FALSE) -> 0 | AH58: =VLOOKUP(A58,'D6'!$B$10:$AZ$109,4,FALSE) -> 0 | AI58: =VLOOKUP(A58,'D6'!$B$10:$AZ$109,5,FALSE) -> 0 | AJ58: =VLOOKUP(A58,'D6'!$B$10:$AZ$109,6,FALSE) -> 0 | AK58: =VLOOKUP(A58,'D6'!$B$10:$AZ$109,7,FALSE) -> 0 | AL58: 0 | AM58: =VLOOKUP(A58,'D7'!$B$10:$AZ$109,3,FALSE) -> 0 | AN58: =VLOOKUP(A58,'D7'!$B$10:$AZ$109,4,FALSE) -> 0 | AO58: =VLOOKUP(A58,'D7'!$B$10:$AZ$109,5,FALSE) -> 0 | AP58: =VLOOKUP(A58,'D7'!$B$10:$AZ$109,6,FALSE) -> 0 | AQ58: =VLOOKUP(A58,'D7'!$B$10:$AZ$109,7,FALSE) -> 0 | AR58: 0 | AS58: =VLOOKUP(A58,'D8'!$B$10:$AZ$109,3,FALSE) -> 0 | AT58: =VLOOKUP(A58,'D8'!$B$10:$AZ$109,4,FALSE) -> 0 | AU58: =VLOOKUP(A58,'D8'!$B$10:$AZ$109,5,FALSE) -> 0 | AV58: =VLOOKUP(A58,'D8'!$B$10:$AZ$109,6,FALSE) -> 0 | AW58: =VLOOKUP(A58,'D8'!$B$10:$AZ$109,7,FALSE) -> 0 | AX58: 0 | AY58: 0 | AZ58: راسب | BA58: 0 | BC58: الثاني مكرر | BD58: =IFERROR(VLOOKUP(A58,A!$A$6:$M$99,6,FALSE),"") ->  | BE58: =IFERROR(VLOOKUP(A58,A!$A$6:$M$99,7,FALSE),"") ->  | BF58: =IFERROR(VLOOKUP(A58,A!$A$6:$M$99,9,FALSE),"") ->  | BG58: =IFERROR(VLOOKUP(A58,A!$A$6:$M$99,10,FALSE),"") ->  | BH58: =IFERROR(VLOOKUP(A58,A!$A$6:$M$99,11,FALSE),"") ->  | BI58: =IF(COUNTIF($AY$10:AY58,AY58)=1,AY58) -> FALSE | BJ58: 2 | BK58: =IF(COUNTIF($AY$10:AY58,AY58)>1," مكرر ","") -> مكرر | BL58: الثاني
A59: 50 | B59: =IFERROR(VLOOKUP(A59,A!$A$6:$M$99,2,FALSE),"") ->  | C59: =VLOOKUP(A59,'D1'!$B$10:$AZ$109,3,FALSE) -> 0 | D59: =VLOOKUP(A59,'D1'!$B$10:$AZ$109,4,FALSE) -> 0 | E59: =VLOOKUP(A59,'D1'!$B$10:$AZ$109,5,FALSE) -> 0 | F59: =VLOOKUP(A59,'D1'!$B$10:$AZ$109,6,FALSE) -> 0 | G59: =VLOOKUP(A59,'D1'!$B$10:$AZ$109,7,FALSE) -> 0 | H59: 0 | I59: =VLOOKUP(A59,'D2'!$B$10:$AZ$109,3,FALSE) -> 0 | J59: =VLOOKUP(A59,'D2'!$B$10:$AZ$109,4,FALSE) -> 0 | K59: =VLOOKUP(A59,'D2'!$B$10:$AZ$109,5,FALSE) -> 0 | L59: =VLOOKUP(A59,'D2'!$B$10:$AZ$109,6,FALSE) -> 0 | M59: =VLOOKUP(A59,'D2'!$B$10:$AZ$109,7,FALSE) -> 0 | N59: 0 | O59: =VLOOKUP(A59,'D3'!$B$10:$AZ$109,3,FALSE) -> 0 | P59: =VLOOKUP(A59,'D3'!$B$10:$AZ$109,4,FALSE) -> 0 | Q59: =VLOOKUP(A59,'D3'!$B$10:$AZ$109,5,FALSE) -> 0 | R59: =VLOOKUP(A59,'D3'!$B$10:$AZ$109,6,FALSE) -> 0 | S59: =VLOOKUP(A59,'D3'!$B$10:$AZ$109,7,FALSE) -> 0 | T59: 0 | U59: =VLOOKUP(A59,'D4'!$B$10:$AZ$109,3,FALSE) -> 0 | V59: =VLOOKUP(A59,'D4'!$B$10:$AZ$109,4,FALSE) -> 0 | W59: =VLOOKUP(A59,'D4'!$B$10:$AZ$109,5,FALSE) -> 0 | X59: =VLOOKUP(A59,'D4'!$B$10:$AZ$109,6,FALSE) -> 0 | Y59: =VLOOKUP(A59,'D4'!$B$10:$AZ$109,7,FALSE) -> 0 | Z59: 0 | AA59: =VLOOKUP(A59,'D5'!$B$10:$AZ$109,3,FALSE) -> 0 | AB59: =VLOOKUP(A59,'D5'!$B$10:$AZ$109,4,FALSE) -> 0 | AC59: =VLOOKUP(A59,'D5'!$B$10:$AZ$109,5,FALSE) -> 0 | AD59: =VLOOKUP(A59,'D5'!$B$10:$AZ$109,6,FALSE) -> 0 | AE59: =VLOOKUP(A59,'D5'!$B$10:$AZ$109,7,FALSE) -> 0 | AF59: 0 | AG59: =VLOOKUP(A59,'D6'!$B$10:$AZ$109,3,FALSE) -> 0 | AH59: =VLOOKUP(A59,'D6'!$B$10:$AZ$109,4,FALSE) -> 0 | AI59: =VLOOKUP(A59,'D6'!$B$10:$AZ$109,5,FALSE) -> 0 | AJ59: =VLOOKUP(A59,'D6'!$B$10:$AZ$109,6,FALSE) -> 0 | AK59: =VLOOKUP(A59,'D6'!$B$10:$AZ$109,7,FALSE) -> 0 | AL59: 0 | AM59: =VLOOKUP(A59,'D7'!$B$10:$AZ$109,3,FALSE) -> 0 | AN59: =VLOOKUP(A59,'D7'!$B$10:$AZ$109,4,FALSE) -> 0 | AO59: =VLOOKUP(A59,'D7'!$B$10:$AZ$109,5,FALSE) -> 0 | AP59: =VLOOKUP(A59,'D7'!$B$10:$AZ$109,6,FALSE) -> 0 | AQ59: =VLOOKUP(A59,'D7'!$B$10:$AZ$109,7,FALSE) -> 0 | AR59: 0 | AS59: =VLOOKUP(A59,'D8'!$B$10:$AZ$109,3,FALSE) -> 0 | AT59: =VLOOKUP(A59,'D8'!$B$10:$AZ$109,4,FALSE) -> 0 | AU59: =VLOOKUP(A59,'D8'!$B$10:$AZ$109,5,FALSE) -> 0 | AV59: =VLOOKUP(A59,'D8'!$B$10:$AZ$109,6,FALSE) -> 0 | AW59: =VLOOKUP(A59,'D8'!$B$10:$AZ$109,7,FALSE) -> 0 | AX59: 0 | AY59: 0 | AZ59: راسب | BA59: 0 | BC59: الثاني مكرر | BD59: =IFERROR(VLOOKUP(A59,A!$A$6:$M$99,6,FALSE),"") ->  | BE59: =IFERROR(VLOOKUP(A59,A!$A$6:$M$99,7,FALSE),"") ->  | BF59: =IFERROR(VLOOKUP(A59,A!$A$6:$M$99,9,FALSE),"") ->  | BG59: =IFERROR(VLOOKUP(A59,A!$A$6:$M$99,10,FALSE),"") ->  | BH59: =IFERROR(VLOOKUP(A59,A!$A$6:$M$99,11,FALSE),"") ->  | BI59: =IF(COUNTIF($AY$10:AY59,AY59)=1,AY59) -> FALSE | BJ59: 2 | BK59: =IF(COUNTIF($AY$10:AY59,AY59)>1," مكرر ","") -> مكرر | BL59: الثاني
A60: 51 | B60: =IFERROR(VLOOKUP(A60,A!$A$6:$M$99,2,FALSE),"") ->  | C60: =VLOOKUP(A60,'D1'!$B$10:$AZ$109,3,FALSE) -> 0 | D60: =VLOOKUP(A60,'D1'!$B$10:$AZ$109,4,FALSE) -> 0 | E60: =VLOOKUP(A60,'D1'!$B$10:$AZ$109,5,FALSE) -> 0 | F60: =VLOOKUP(A60,'D1'!$B$10:$AZ$109,6,FALSE) -> 0 | G60: =VLOOKUP(A60,'D1'!$B$10:$AZ$109,7,FALSE) -> 0 | H60: 0 | I60: =VLOOKUP(A60,'D2'!$B$10:$AZ$109,3,FALSE) -> 0 | J60: =VLOOKUP(A60,'D2'!$B$10:$AZ$109,4,FALSE) -> 0 | K60: =VLOOKUP(A60,'D2'!$B$10:$AZ$109,5,FALSE) -> 0 | L60: =VLOOKUP(A60,'D2'!$B$10:$AZ$109,6,FALSE) -> 0 | M60: =VLOOKUP(A60,'D2'!$B$10:$AZ$109,7,FALSE) -> 0 | N60: 0 | O60: =VLOOKUP(A60,'D3'!$B$10:$AZ$109,3,FALSE) -> 0 | P60: =VLOOKUP(A60,'D3'!$B$10:$AZ$109,4,FALSE) -> 0 | Q60: =VLOOKUP(A60,'D3'!$B$10:$AZ$109,5,FALSE) -> 0 | R60: =VLOOKUP(A60,'D3'!$B$10:$AZ$109,6,FALSE) -> 0 | S60: =VLOOKUP(A60,'D3'!$B$10:$AZ$109,7,FALSE) -> 0 | T60: 0 | U60: =VLOOKUP(A60,'D4'!$B$10:$AZ$109,3,FALSE) -> 0 | V60: =VLOOKUP(A60,'D4'!$B$10:$AZ$109,4,FALSE) -> 0 | W60: =VLOOKUP(A60,'D4'!$B$10:$AZ$109,5,FALSE) -> 0 | X60: =VLOOKUP(A60,'D4'!$B$10:$AZ$109,6,FALSE) -> 0 | Y60: =VLOOKUP(A60,'D4'!$B$10:$AZ$109,7,FALSE) -> 0 | Z60: 0 | AA60: =VLOOKUP(A60,'D5'!$B$10:$AZ$109,3,FALSE) -> 0 | AB60: =VLOOKUP(A60,'D5'!$B$10:$AZ$109,4,FALSE) -> 0 | AC60: =VLOOKUP(A60,'D5'!$B$10:$AZ$109,5,FALSE) -> 0 | AD60: =VLOOKUP(A60,'D5'!$B$10:$AZ$109,6,FALSE) -> 0 | AE60: =VLOOKUP(A60,'D5'!$B$10:$AZ$109,7,FALSE) -> 0 | AF60: 0 | AG60: =VLOOKUP(A60,'D6'!$B$10:$AZ$109,3,FALSE) -> 0 | AH60: =VLOOKUP(A60,'D6'!$B$10:$AZ$109,4,FALSE) -> 0 | AI60: =VLOOKUP(A60,'D6'!$B$10:$AZ$109,5,FALSE) -> 0 | AJ60: =VLOOKUP(A60,'D6'!$B$10:$AZ$109,6,FALSE) -> 0 | AK60: =VLOOKUP(A60,'D6'!$B$10:$AZ$109,7,FALSE) -> 0 | AL60: 0 | AM60: =VLOOKUP(A60,'D7'!$B$10:$AZ$109,3,FALSE) -> 0 | AN60: =VLOOKUP(A60,'D7'!$B$10:$AZ$109,4,FALSE) -> 0 | AO60: =VLOOKUP(A60,'D7'!$B$10:$AZ$109,5,FALSE) -> 0 | AP60: =VLOOKUP(A60,'D7'!$B$10:$AZ$109,6,FALSE) -> 0 | AQ60: =VLOOKUP(A60,'D7'!$B$10:$AZ$109,7,FALSE) -> 0 | AR60: 0 | AS60: =VLOOKUP(A60,'D8'!$B$10:$AZ$109,3,FALSE) -> 0 | AT60: =VLOOKUP(A60,'D8'!$B$10:$AZ$109,4,FALSE) -> 0 | AU60: =VLOOKUP(A60,'D8'!$B$10:$AZ$109,5,FALSE) -> 0 | AV60: =VLOOKUP(A60,'D8'!$B$10:$AZ$109,6,FALSE) -> 0 | AW60: =VLOOKUP(A60,'D8'!$B$10:$AZ$109,7,FALSE) -> 0 | AX60: 0 | AY60: 0 | AZ60: راسب | BA60: 0 | BC60: الثاني مكرر | BD60: =IFERROR(VLOOKUP(A60,A!$A$6:$M$99,6,FALSE),"") ->  | BE60: =IFERROR(VLOOKUP(A60,A!$A$6:$M$99,7,FALSE),"") ->  | BF60: =IFERROR(VLOOKUP(A60,A!$A$6:$M$99,9,FALSE),"") ->  | BG60: =IFERROR(VLOOKUP(A60,A!$A$6:$M$99,10,FALSE),"") ->  | BH60: =IFERROR(VLOOKUP(A60,A!$A$6:$M$99,11,FALSE),"") ->  | BI60: =IF(COUNTIF($AY$10:AY60,AY60)=1,AY60) -> FALSE | BJ60: 2 | BK60: =IF(COUNTIF($AY$10:AY60,AY60)>1," مكرر ","") -> مكرر | BL60: الثاني
A61: 52 | B61: =IFERROR(VLOOKUP(A61,A!$A$6:$M$99,2,FALSE),"") ->  | C61: =VLOOKUP(A61,'D1'!$B$10:$AZ$109,3,FALSE) -> 0 | D61: =VLOOKUP(A61,'D1'!$B$10:$AZ$109,4,FALSE) -> 0 | E61: =VLOOKUP(A61,'D1'!$B$10:$AZ$109,5,FALSE) -> 0 | F61: =VLOOKUP(A61,'D1'!$B$10:$AZ$109,6,FALSE) -> 0 | G61: =VLOOKUP(A61,'D1'!$B$10:$AZ$109,7,FALSE) -> 0 | H61: 0 | I61: =VLOOKUP(A61,'D2'!$B$10:$AZ$109,3,FALSE) -> 0 | J61: =VLOOKUP(A61,'D2'!$B$10:$AZ$109,4,FALSE) -> 0 | K61: =VLOOKUP(A61,'D2'!$B$10:$AZ$109,5,FALSE) -> 0 | L61: =VLOOKUP(A61,'D2'!$B$10:$AZ$109,6,FALSE) -> 0 | M61: =VLOOKUP(A61,'D2'!$B$10:$AZ$109,7,FALSE) -> 0 | N61: 0 | O61: =VLOOKUP(A61,'D3'!$B$10:$AZ$109,3,FALSE) -> 0 | P61: =VLOOKUP(A61,'D3'!$B$10:$AZ$109,4,FALSE) -> 0 | Q61: =VLOOKUP(A61,'D3'!$B$10:$AZ$109,5,FALSE) -> 0 | R61: =VLOOKUP(A61,'D3'!$B$10:$AZ$109,6,FALSE) -> 0 | S61: =VLOOKUP(A61,'D3'!$B$10:$AZ$109,7,FALSE) -> 0 | T61: 0 | U61: =VLOOKUP(A61,'D4'!$B$10:$AZ$109,3,FALSE) -> 0 | V61: =VLOOKUP(A61,'D4'!$B$10:$AZ$109,4,FALSE) -> 0 | W61: =VLOOKUP(A61,'D4'!$B$10:$AZ$109,5,FALSE) -> 0 | X61: =VLOOKUP(A61,'D4'!$B$10:$AZ$109,6,FALSE) -> 0 | Y61: =VLOOKUP(A61,'D4'!$B$10:$AZ$109,7,FALSE) -> 0 | Z61: 0 | AA61: =VLOOKUP(A61,'D5'!$B$10:$AZ$109,3,FALSE) -> 0 | AB61: =VLOOKUP(A61,'D5'!$B$10:$AZ$109,4,FALSE) -> 0 | AC61: =VLOOKUP(A61,'D5'!$B$10:$AZ$109,5,FALSE) -> 0 | AD61: =VLOOKUP(A61,'D5'!$B$10:$AZ$109,6,FALSE) -> 0 | AE61: =VLOOKUP(A61,'D5'!$B$10:$AZ$109,7,FALSE) -> 0 | AF61: 0 | AG61: =VLOOKUP(A61,'D6'!$B$10:$AZ$109,3,FALSE) -> 0 | AH61: =VLOOKUP(A61,'D6'!$B$10:$AZ$109,4,FALSE) -> 0 | AI61: =VLOOKUP(A61,'D6'!$B$10:$AZ$109,5,FALSE) -> 0 | AJ61: =VLOOKUP(A61,'D6'!$B$10:$AZ$109,6,FALSE) -> 0 | AK61: =VLOOKUP(A61,'D6'!$B$10:$AZ$109,7,FALSE) -> 0 | AL61: 0 | AM61: =VLOOKUP(A61,'D7'!$B$10:$AZ$109,3,FALSE) -> 0 | AN61: =VLOOKUP(A61,'D7'!$B$10:$AZ$109,4,FALSE) -> 0 | AO61: =VLOOKUP(A61,'D7'!$B$10:$AZ$109,5,FALSE) -> 0 | AP61: =VLOOKUP(A61,'D7'!$B$10:$AZ$109,6,FALSE) -> 0 | AQ61: =VLOOKUP(A61,'D7'!$B$10:$AZ$109,7,FALSE) -> 0 | AR61: 0 | AS61: =VLOOKUP(A61,'D8'!$B$10:$AZ$109,3,FALSE) -> 0 | AT61: =VLOOKUP(A61,'D8'!$B$10:$AZ$109,4,FALSE) -> 0 | AU61: =VLOOKUP(A61,'D8'!$B$10:$AZ$109,5,FALSE) -> 0 | AV61: =VLOOKUP(A61,'D8'!$B$10:$AZ$109,6,FALSE) -> 0 | AW61: =VLOOKUP(A61,'D8'!$B$10:$AZ$109,7,FALSE) -> 0 | AX61: 0 | AY61: 0 | AZ61: راسب | BA61: 0 | BC61: الثاني مكرر | BD61: =IFERROR(VLOOKUP(A61,A!$A$6:$M$99,6,FALSE),"") ->  | BE61: =IFERROR(VLOOKUP(A61,A!$A$6:$M$99,7,FALSE),"") ->  | BF61: =IFERROR(VLOOKUP(A61,A!$A$6:$M$99,9,FALSE),"") ->  | BG61: =IFERROR(VLOOKUP(A61,A!$A$6:$M$99,10,FALSE),"") ->  | BH61: =IFERROR(VLOOKUP(A61,A!$A$6:$M$99,11,FALSE),"") ->  | BI61: =IF(COUNTIF($AY$10:AY61,AY61)=1,AY61) -> FALSE | BJ61: 2 | BK61: =IF(COUNTIF($AY$10:AY61,AY61)>1," مكرر ","") -> مكرر | BL61: الثاني
B62: اقر واتعهد انا بصفتي مديرة للمدرسة ان جميع الأسماء والمعلومات والبيانات المدونة أعلاه هم جميعا من طلاب المدرسة ومنتظمين في الدراسة في صفوفهم الدراسية بحسب ما تنص عليه اللوائح والأدلة المنظمة لعملية القيد والتسجيل وعلى مسئوليتي صحة ما ورد في هذا الكشف من معلومات وبيانات اعلاه
B63: كتبه : أ / | D63: مديرة المدرسة | K63: رئيس قسم الاختبارات | U63: مدير إدارة التربية بالمديرية | AC63: مدير الإختبارات بالمحافظة | AM63: يعتمد مدير مكتب التربية والتعليم
B64: راجعه : أ / هناء الشميري | D64: أ/ فوزية باشا | K64: ناصر عتيق | U64: أ / حسن وهبان | AC64: أ / محمد العريقي | AM64: أ / عمر محمد عمر بحر
K66: ناجح | P66: راسب | V66: غائب
K67: =COUNTIF(AZ10:AZ64,"ناجح") -> 1 | P67: =COUNTIF(AZ10:AZ64,"راسب") -> 51 | V67: =COUNTIF(AZ10:AZ64,"غائب") -> 0

Sheet أغسطس
A1: بسم الله الرحمن الرحيم
AQ3: اسم المدرسة: | AT3: =الرئيسية!B12 -> 0
B4: وزارة التربية والتعليم | AQ4: الصف: | AT4: =الرئيسية!B13 -> خامس
B5: مكتب التربية والتعليم بمحافظة | C5: =الرئيسية!B14 -> الحديدة | H5: كشـف رصـد درجــات شهر أغسطس للمرحلـة الأساسيـة | AQ5: رقم الكشف ( 1 )
B6: مكتب التربية بمديرية : | C6: =الرئيسية!B15 -> الحالي | P6: للصف | T6: =الرئيسية!B13 -> خامس | W6: للعام الدراسي | AA6: =الرئيسية!B16 -> 2026 / 2027
A7: الرقم | B7: المواد الدراسية | C7: القرآن الكريم | I7: التربية إسلامية | O7: اللغة العربية | U7: اللغة الإنجليزية | AA7: الرياضيات | AG7: العلوم | AM7: الاجتماعيات | AS7: السلوك | AY7: المجموع الكلي | AZ7: النتيجة النهائية | BA7: النسبة / المعدل | BB7: التقدير العام | BC7: الترتيب | BD7: محل وتاريخ الميلاد
B8: اسم الطالب من واقع شهادة الميلاد | C8: الواجبات | D8: الشفوي | E8: المواظبة | F8: السلوك | G8: التحريري | H8: المجموع | I8: الواجبات | J8: الشفوي | K8: المواظبة | L8: السلوك | M8: التحريري | N8: المجموع | O8: الواجبات | P8: الشفوي | Q8: المواظبة | R8: السلوك | S8: التحريري | T8: المجموع | U8: الواجبات | V8: الشفوي | W8: المواظبة | X8: السلوك | Y8: التحريري | Z8: المجموع | AA8: الواجبات | AB8: الشفوي | AC8: المواظبة | AD8: السلوك | AE8: التحريري | AF8: المجموع | AG8: الواجبات | AH8: الشفوي | AI8: المواظبة | AJ8: السلوك | AK8: التحريري | AL8: المجموع | AM8: الواجبات | AN8: الشفوي | AO8: المواظبة | AP8: السلوك | AQ8: التحريري | AR8: المجموع | AS8: الواجبات | AT8: الشفوي | AU8: المواظبة | AV8: السلوك | AW8: التحريري | AX8: المجموع | BD8: المحافظة | BE8: المديرية | BF8: اليوم | BG8: الشهر | BH8: السنة
C9: 20 | D9: 20 | E9: 10 | F9: 10 | G9: 40 | H9: 100 | I9: 20 | J9: 20 | K9: 10 | L9: 10 | M9: 40 | N9: 100 | O9: 20 | P9: 20 | Q9: 10 | R9: 10 | S9: 40 | T9: 100 | U9: 20 | V9: 20 | W9: 10 | X9: 10 | Y9: 40 | Z9: 100 | AA9: 20 | AB9: 20 | AC9: 10 | AD9: 10 | AE9: 40 | AF9: 100 | AG9: 20 | AH9: 20 | AI9: 10 | AJ9: 10 | AK9: 40 | AL9: 100 | AM9: 20 | AN9: 20 | AO9: 10 | AP9: 10 | AQ9: 40 | AR9: 100 | AS9: 20 | AT9: 20 | AU9: 10 | AV9: 10 | AW9: 40 | AX9: 100
A10: 1 | B10: =IFERROR(VLOOKUP(A10,A!$A$6:$M$99,2,FALSE),"") ->  | C10: =VLOOKUP(A10,'D1'!$B$10:$AZ$109,10,FALSE) -> 10 | D10: =VLOOKUP(A10,'D1'!$B$10:$AZ$109,11,FALSE) -> 10 | E10: =VLOOKUP(A10,'D1'!$B$10:$AZ$109,12,FALSE) -> 5 | F10: =VLOOKUP(A10,'D1'!$B$10:$AZ$109,13,FALSE) -> 5 | G10: =VLOOKUP(A10,'D1'!$B$10:$AZ$109,14,FALSE) -> 20 | H10: =SUM(C10:G10) -> 50 | I10: =VLOOKUP(A10,'D2'!$B$10:$AZ$109,10,FALSE) -> 36 | J10: =VLOOKUP(A10,'D2'!$B$10:$AZ$109,11,FALSE) -> 37 | K10: =VLOOKUP(A10,'D2'!$B$10:$AZ$109,12,FALSE) -> 38 | L10: =VLOOKUP(A10,'D2'!$B$10:$AZ$109,13,FALSE) -> 39 | M10: =VLOOKUP(A10,'D2'!$B$10:$AZ$109,14,FALSE) -> 40 | N10: =SUM(I10:M10) -> 190 | O10: =VLOOKUP(A10,'D3'!$B$10:$AZ$109,10,FALSE) -> 96 | P10: =VLOOKUP(A10,'D3'!$B$10:$AZ$109,11,FALSE) -> 97 | Q10: =VLOOKUP(A10,'D3'!$B$10:$AZ$109,12,FALSE) -> 98 | R10: =VLOOKUP(A10,'D3'!$B$10:$AZ$109,13,FALSE) -> 99 | S10: =VLOOKUP(A10,'D3'!$B$10:$AZ$109,14,FALSE) -> 100 | T10: =SUM(O10:S10) -> 490 | U10: =VLOOKUP(A10,'D4'!$B$10:$AZ$109,10,FALSE) -> 96 | V10: =VLOOKUP(A10,'D4'!$B$10:$AZ$109,11,FALSE) -> 97 | W10: =VLOOKUP(A10,'D4'!$B$10:$AZ$109,12,FALSE) -> 98 | X10: =VLOOKUP(A10,'D4'!$B$10:$AZ$109,13,FALSE) -> 99 | Y10: =VLOOKUP(A10,'D4'!$B$10:$AZ$109,14,FALSE) -> 100 | Z10: =SUM(U10:Y10) -> 490 | AA10: =VLOOKUP(A10,'D5'!$B$10:$AZ$109,10,FALSE) -> 96 | AB10: =VLOOKUP(A10,'D5'!$B$10:$AZ$109,11,FALSE) -> 97 | AC10: =VLOOKUP(A10,'D5'!$B$10:$AZ$109,12,FALSE) -> 98 | AD10: =VLOOKUP(A10,'D5'!$B$10:$AZ$109,13,FALSE) -> 99 | AE10: =VLOOKUP(A10,'D5'!$B$10:$AZ$109,14,FALSE) -> 100 | AF10: =SUM(AA10:AE10) -> 490 | AG10: =VLOOKUP(A10,'D6'!$B$10:$AZ$109,10,FALSE) -> 96 | AH10: =VLOOKUP(A10,'D6'!$B$10:$AZ$109,11,FALSE) -> 97 | AI10: =VLOOKUP(A10,'D6'!$B$10:$AZ$109,12,FALSE) -> 98 | AJ10: =VLOOKUP(A10,'D6'!$B$10:$AZ$109,13,FALSE) -> 99 | AK10: =VLOOKUP(A10,'D6'!$B$10:$AZ$109,14,FALSE) -> 100 | AL10: =SUM(AG10:AK10) -> 490 | AM10: =VLOOKUP(A10,'D7'!$B$10:$AZ$109,10,FALSE) -> 96 | AN10: =VLOOKUP(A10,'D7'!$B$10:$AZ$109,11,FALSE) -> 97 | AO10: =VLOOKUP(A10,'D7'!$B$10:$AZ$109,12,FALSE) -> 98 | AP10: =VLOOKUP(A10,'D7'!$B$10:$AZ$109,13,FALSE) -> 99 | AQ10: =VLOOKUP(A10,'D7'!$B$10:$AZ$109,14,FALSE) -> 100 | AR10: =SUM(AM10:AQ10) -> 490 | AS10: =VLOOKUP(A10,'D8'!$B$10:$AZ$109,10,FALSE) -> 96 | AT10: =VLOOKUP(A10,'D8'!$B$10:$AZ$109,11,FALSE) -> 97 | AU10: =VLOOKUP(A10,'D8'!$B$10:$AZ$109,12,FALSE) -> 98 | AV10: =VLOOKUP(A10,'D8'!$B$10:$AZ$109,13,FALSE) -> 99 | AW10: =VLOOKUP(A10,'D8'!$B$10:$AZ$109,14,FALSE) -> 100 | AX10: =SUM(AS10:AW10) -> 490 | AY10: =AX10+AR10+AL10+AF10+Z10+T10+N10+H10 -> 3180 | AZ10: =IF(OR(H10="غ",N10="غ",T10="غ",AF10="غ",AL10="غ",AR10="غ",AX10="غ"),"غائب",IF(OR(H10<50,N10<50,T10<50,AF10<50,AL10<50,AR10<50,AX10<50),"راسب","ناجح")) -> ناجح | BA10: =ROUND((AY10/8),2) -> 397.5 | BB10: =IF(BA10>90,"ممتاز",IF(BA10>80,"جيد جداً",IF(BA10>60,"جيد",IF(BA10>=50,"مقبول","")))) -> ممتاز | BC10: =IF(BL10>"",BL10&BK10,"") -> الأول | BD10: =IFERROR(VLOOKUP(A10,A!$A$6:$M$99,6,FALSE),"") ->  | BE10: =IFERROR(VLOOKUP(A10,A!$A$6:$M$99,7,FALSE),"") ->  | BF10: =IFERROR(VLOOKUP(A10,A!$A$6:$M$99,9,FALSE),"") ->  | BG10: =IFERROR(VLOOKUP(A10,A!$A$6:$M$99,10,FALSE),"") ->  | BH10: =IFERROR(VLOOKUP(A10,A!$A$6:$M$99,11,FALSE),"") ->  | BI10: =IF(COUNTIF($AY$10:AY10,AY10)=1,AY10) -> 3180 | BJ10: =RANK(AY10,$BI$10:$BI$64) -> 1 | BK10: =IF(COUNTIF($AY$10:AY10,AY10)>1," مكرر ","") ->  | BL10: =IF(BJ10=1,"الأول",IF(BJ10=2,"الثاني",IF(BJ10=3,"الثالث",IF(BJ10=4,"الرابع",IF(BJ10=5,"الخامس",IF(BJ10=6,"السادس",IF(BJ10=7,"السابع",IF(BJ10=8,"الثامن",IF(BJ10=9,"التاسع",IF(BJ10=10,"العاشر","")))))))))) -> الأول
A11: 2 | B11: =IFERROR(VLOOKUP(A11,A!$A$6:$M$99,2,FALSE),"") ->  | C11: =VLOOKUP(A11,'D1'!$B$10:$AZ$109,10,FALSE) -> 0 | D11: =VLOOKUP(A11,'D1'!$B$10:$AZ$109,11,FALSE) -> 0 | E11: =VLOOKUP(A11,'D1'!$B$10:$AZ$109,12,FALSE) -> 0 | F11: =VLOOKUP(A11,'D1'!$B$10:$AZ$109,13,FALSE) -> 0 | G11: =VLOOKUP(A11,'D1'!$B$10:$AZ$109,14,FALSE) -> 0 | H11: =SUM(C11:G11) -> 0 | I11: =VLOOKUP(A11,'D2'!$B$10:$AZ$109,10,FALSE) -> 0 | J11: =VLOOKUP(A11,'D2'!$B$10:$AZ$109,11,FALSE) -> 0 | K11: =VLOOKUP(A11,'D2'!$B$10:$AZ$109,12,FALSE) -> 0 | L11: =VLOOKUP(A11,'D2'!$B$10:$AZ$109,13,FALSE) -> 0 | M11: =VLOOKUP(A11,'D2'!$B$10:$AZ$109,14,FALSE) -> 0 | N11: =SUM(I11:M11) -> 0 | O11: =VLOOKUP(A11,'D3'!$B$10:$AZ$109,10,FALSE) -> 0 | P11: =VLOOKUP(A11,'D3'!$B$10:$AZ$109,11,FALSE) -> 0 | Q11: =VLOOKUP(A11,'D3'!$B$10:$AZ$109,12,FALSE) -> 0 | R11: =VLOOKUP(A11,'D3'!$B$10:$AZ$109,13,FALSE) -> 0 | S11: =VLOOKUP(A11,'D3'!$B$10:$AZ$109,14,FALSE) -> 0 | T11: =SUM(O11:S11) -> 0 | U11: =VLOOKUP(A11,'D4'!$B$10:$AZ$109,10,FALSE) -> 0 | V11: =VLOOKUP(A11,'D4'!$B$10:$AZ$109,11,FALSE) -> 0 | W11: =VLOOKUP(A11,'D4'!$B$10:$AZ$109,12,FALSE) -> 0 | X11: =VLOOKUP(A11,'D4'!$B$10:$AZ$109,13,FALSE) -> 0 | Y11: =VLOOKUP(A11,'D4'!$B$10:$AZ$109,14,FALSE) -> 0 | Z11: =SUM(U11:Y11) -> 0 | AA11: =VLOOKUP(A11,'D5'!$B$10:$AZ$109,10,FALSE) -> 0 | AB11: =VLOOKUP(A11,'D5'!$B$10:$AZ$109,11,FALSE) -> 0 | AC11: =VLOOKUP(A11,'D5'!$B$10:$AZ$109,12,FALSE) -> 0 | AD11: =VLOOKUP(A11,'D5'!$B$10:$AZ$109,13,FALSE) -> 0 | AE11: =VLOOKUP(A11,'D5'!$B$10:$AZ$109,14,FALSE) -> 0 | AF11: =SUM(AA11:AE11) -> 0 | AG11: =VLOOKUP(A11,'D6'!$B$10:$AZ$109,10,FALSE) -> 0 | AH11: =VLOOKUP(A11,'D6'!$B$10:$AZ$109,11,FALSE) -> 0 | AI11: =VLOOKUP(A11,'D6'!$B$10:$AZ$109,12,FALSE) -> 0 | AJ11: =VLOOKUP(A11,'D6'!$B$10:$AZ$109,13,FALSE) -> 0 | AK11: =VLOOKUP(A11,'D6'!$B$10:$AZ$109,14,FALSE) -> 0 | AL11: =SUM(AG11:AK11) -> 0 | AM11: =VLOOKUP(A11,'D7'!$B$10:$AZ$109,10,FALSE) -> 0 | AN11: =VLOOKUP(A11,'D7'!$B$10:$AZ$109,11,FALSE) -> 0 | AO11: =VLOOKUP(A11,'D7'!$B$10:$AZ$109,12,FALSE) -> 0 | AP11: =VLOOKUP(A11,'D7'!$B$10:$AZ$109,13,FALSE) -> 0 | AQ11: =VLOOKUP(A11,'D7'!$B$10:$AZ$109,14,FALSE) -> 0 | AR11: =SUM(AM11:AQ11) -> 0 | AS11: =VLOOKUP(A11,'D8'!$B$10:$AZ$109,10,FALSE) -> 0 | AT11: =VLOOKUP(A11,'D8'!$B$10:$AZ$109,11,FALSE) -> 0 | AU11: =VLOOKUP(A11,'D8'!$B$10:$AZ$109,12,FALSE) -> 0 | AV11: =VLOOKUP(A11,'D8'!$B$10:$AZ$109,13,FALSE) -> 0 | AW11: =VLOOKUP(A11,'D8'!$B$10:$AZ$109,14,FALSE) -> 0 | AX11: =SUM(AS11:AW11) -> 0 | AY11: =AX11+AR11+AL11+AF11+Z11+T11+N11+H11 -> 0 | AZ11: =IF(OR(H11="غ",N11="غ",T11="غ",AF11="غ",AL11="غ",AR11="غ",AX11="غ"),"غائب",IF(OR(H11<50,N11<50,T11<50,AF11<50,AL11<50,AR11<50,AX11<50),"راسب","ناجح")) -> راسب | BA11: =ROUND((AY11/8),2) -> 0 | BB11: =IF(BA11>90,"ممتاز",IF(BA11>80,"جيد جداً",IF(BA11>60,"جيد",IF(BA11>=50,"مقبول","")))) ->  | BC11: =IF(BL11>"",BL11&BK11,"") -> الثاني | BD11: =IFERROR(VLOOKUP(A11,A!$A$6:$M$99,6,FALSE),"") ->  | BE11: =IFERROR(VLOOKUP(A11,A!$A$6:$M$99,7,FALSE),"") ->  | BF11: =IFERROR(VLOOKUP(A11,A!$A$6:$M$99,9,FALSE),"") ->  | BG11: =IFERROR(VLOOKUP(A11,A!$A$6:$M$99,10,FALSE),"") ->  | BH11: =IFERROR(VLOOKUP(A11,A!$A$6:$M$99,11,FALSE),"") ->  | BI11: =IF(COUNTIF($AY$10:AY11,AY11)=1,AY11) -> 0 | BJ11: =RANK(AY11,$BI$10:$BI$64) -> 2 | BK11: =IF(COUNTIF($AY$10:AY11,AY11)>1," مكرر ","") ->  | BL11: =IF(BJ11=1,"الأول",IF(BJ11=2,"الثاني",IF(BJ11=3,"الثالث",IF(BJ11=4,"الرابع",IF(BJ11=5,"الخامس",IF(BJ11=6,"السادس",IF(BJ11=7,"السابع",IF(BJ11=8,"الثامن",IF(BJ11=9,"التاسع",IF(BJ11=10,"العاشر","")))))))))) -> الثاني
A12: 3 | B12: =IFERROR(VLOOKUP(A12,A!$A$6:$M$99,2,FALSE),"") ->  | C12: =VLOOKUP(A12,'D1'!$B$10:$AZ$109,10,FALSE) -> 0 | D12: =VLOOKUP(A12,'D1'!$B$10:$AZ$109,11,FALSE) -> 0 | E12: =VLOOKUP(A12,'D1'!$B$10:$AZ$109,12,FALSE) -> 0 | F12: =VLOOKUP(A12,'D1'!$B$10:$AZ$109,13,FALSE) -> 0 | G12: =VLOOKUP(A12,'D1'!$B$10:$AZ$109,14,FALSE) -> 0 | H12: 0 | I12: =VLOOKUP(A12,'D2'!$B$10:$AZ$109,10,FALSE) -> 0 | J12: =VLOOKUP(A12,'D2'!$B$10:$AZ$109,11,FALSE) -> 0 | K12: =VLOOKUP(A12,'D2'!$B$10:$AZ$109,12,FALSE) -> 0 | L12: =VLOOKUP(A12,'D2'!$B$10:$AZ$109,13,FALSE) -> 0 | M12: =VLOOKUP(A12,'D2'!$B$10:$AZ$109,14,FALSE) -> 0 | N12: 0 | O12: =VLOOKUP(A12,'D3'!$B$10:$AZ$109,10,FALSE) -> 0 | P12: =VLOOKUP(A12,'D3'!$B$10:$AZ$109,11,FALSE) -> 0 | Q12: =VLOOKUP(A12,'D3'!$B$10:$AZ$109,12,FALSE) -> 0 | R12: =VLOOKUP(A12,'D3'!$B$10:$AZ$109,13,FALSE) -> 0 | S12: =VLOOKUP(A12,'D3'!$B$10:$AZ$109,14,FALSE) -> 0 | T12: 0 | U12: =VLOOKUP(A12,'D4'!$B$10:$AZ$109,10,FALSE) -> 0 | V12: =VLOOKUP(A12,'D4'!$B$10:$AZ$109,11,FALSE) -> 0 | W12: =VLOOKUP(A12,'D4'!$B$10:$AZ$109,12,FALSE) -> 0 | X12: =VLOOKUP(A12,'D4'!$B$10:$AZ$109,13,FALSE) -> 0 | Y12: =VLOOKUP(A12,'D4'!$B$10:$AZ$109,14,FALSE) -> 0 | Z12: 0 | AA12: =VLOOKUP(A12,'D5'!$B$10:$AZ$109,10,FALSE) -> 0 | AB12: =VLOOKUP(A12,'D5'!$B$10:$AZ$109,11,FALSE) -> 0 | AC12: =VLOOKUP(A12,'D5'!$B$10:$AZ$109,12,FALSE) -> 0 | AD12: =VLOOKUP(A12,'D5'!$B$10:$AZ$109,13,FALSE) -> 0 | AE12: =VLOOKUP(A12,'D5'!$B$10:$AZ$109,14,FALSE) -> 0 | AF12: 0 | AG12: =VLOOKUP(A12,'D6'!$B$10:$AZ$109,10,FALSE) -> 0 | AH12: =VLOOKUP(A12,'D6'!$B$10:$AZ$109,11,FALSE) -> 0 | AI12: =VLOOKUP(A12,'D6'!$B$10:$AZ$109,12,FALSE) -> 0 | AJ12: =VLOOKUP(A12,'D6'!$B$10:$AZ$109,13,FALSE) -> 0 | AK12: =VLOOKUP(A12,'D6'!$B$10:$AZ$109,14,FALSE) -> 0 | AL12: 0 | AM12: =VLOOKUP(A12,'D7'!$B$10:$AZ$109,10,FALSE) -> 0 | AN12: =VLOOKUP(A12,'D7'!$B$10:$AZ$109,11,FALSE) -> 0 | AO12: =VLOOKUP(A12,'D7'!$B$10:$AZ$109,12,FALSE) -> 0 | AP12: =VLOOKUP(A12,'D7'!$B$10:$AZ$109,13,FALSE) -> 0 | AQ12: =VLOOKUP(A12,'D7'!$B$10:$AZ$109,14,FALSE) -> 0 | AR12: 0 | AS12: =VLOOKUP(A12,'D8'!$B$10:$AZ$109,10,FALSE) -> 0 | AT12: =VLOOKUP(A12,'D8'!$B$10:$AZ$109,11,FALSE) -> 0 | AU12: =VLOOKUP(A12,'D8'!$B$10:$AZ$109,12,FALSE) -> 0 | AV12: =VLOOKUP(A12,'D8'!$B$10:$AZ$109,13,FALSE) -> 0 | AW12: =VLOOKUP(A12,'D8'!$B$10:$AZ$109,14,FALSE) -> 0 | AX12: 0 | AY12: 0 | AZ12: راسب | BA12: 0 | BC12: الثاني مكرر | BD12: =IFERROR(VLOOKUP(A12,A!$A$6:$M$99,6,FALSE),"") ->  | BE12: =IFERROR(VLOOKUP(A12,A!$A$6:$M$99,7,FALSE),"") ->  | BF12: =IFERROR(VLOOKUP(A12,A!$A$6:$M$99,9,FALSE),"") ->  | BG12: =IFERROR(VLOOKUP(A12,A!$A$6:$M$99,10,FALSE),"") ->  | BH12: =IFERROR(VLOOKUP(A12,A!$A$6:$M$99,11,FALSE),"") ->  | BI12: =IF(COUNTIF($AY$10:AY12,AY12)=1,AY12) -> FALSE | BJ12: 2 | BK12: =IF(COUNTIF($AY$10:AY12,AY12)>1," مكرر ","") -> مكرر | BL12: الثاني
A13: 4 | B13: =IFERROR(VLOOKUP(A13,A!$A$6:$M$99,2,FALSE),"") ->  | C13: =VLOOKUP(A13,'D1'!$B$10:$AZ$109,10,FALSE) -> 0 | D13: =VLOOKUP(A13,'D1'!$B$10:$AZ$109,11,FALSE) -> 0 | E13: =VLOOKUP(A13,'D1'!$B$10:$AZ$109,12,FALSE) -> 0 | F13: =VLOOKUP(A13,'D1'!$B$10:$AZ$109,13,FALSE) -> 0 | G13: =VLOOKUP(A13,'D1'!$B$10:$AZ$109,14,FALSE) -> 0 | H13: 0 | I13: =VLOOKUP(A13,'D2'!$B$10:$AZ$109,10,FALSE) -> 0 | J13: =VLOOKUP(A13,'D2'!$B$10:$AZ$109,11,FALSE) -> 0 | K13: =VLOOKUP(A13,'D2'!$B$10:$AZ$109,12,FALSE) -> 0 | L13: =VLOOKUP(A13,'D2'!$B$10:$AZ$109,13,FALSE) -> 0 | M13: =VLOOKUP(A13,'D2'!$B$10:$AZ$109,14,FALSE) -> 0 | N13: 0 | O13: =VLOOKUP(A13,'D3'!$B$10:$AZ$109,10,FALSE) -> 0 | P13: =VLOOKUP(A13,'D3'!$B$10:$AZ$109,11,FALSE) -> 0 | Q13: =VLOOKUP(A13,'D3'!$B$10:$AZ$109,12,FALSE) -> 0 | R13: =VLOOKUP(A13,'D3'!$B$10:$AZ$109,13,FALSE) -> 0 | S13: =VLOOKUP(A13,'D3'!$B$10:$AZ$109,14,FALSE) -> 0 | T13: 0 | U13: =VLOOKUP(A13,'D4'!$B$10:$AZ$109,10,FALSE) -> 0 | V13: =VLOOKUP(A13,'D4'!$B$10:$AZ$109,11,FALSE) -> 0 | W13: =VLOOKUP(A13,'D4'!$B$10:$AZ$109,12,FALSE) -> 0 | X13: =VLOOKUP(A13,'D4'!$B$10:$AZ$109,13,FALSE) -> 0 | Y13: =VLOOKUP(A13,'D4'!$B$10:$AZ$109,14,FALSE) -> 0 | Z13: 0 | AA13: =VLOOKUP(A13,'D5'!$B$10:$AZ$109,10,FALSE) -> 0 | AB13: =VLOOKUP(A13,'D5'!$B$10:$AZ$109,11,FALSE) -> 0 | AC13: =VLOOKUP(A13,'D5'!$B$10:$AZ$109,12,FALSE) -> 0 | AD13: =VLOOKUP(A13,'D5'!$B$10:$AZ$109,13,FALSE) -> 0 | AE13: =VLOOKUP(A13,'D5'!$B$10:$AZ$109,14,FALSE) -> 0 | AF13: 0 | AG13: =VLOOKUP(A13,'D6'!$B$10:$AZ$109,10,FALSE) -> 0 | AH13: =VLOOKUP(A13,'D6'!$B$10:$AZ$109,11,FALSE) -> 0 | AI13: =VLOOKUP(A13,'D6'!$B$10:$AZ$109,12,FALSE) -> 0 | AJ13: =VLOOKUP(A13,'D6'!$B$10:$AZ$109,13,FALSE) -> 0 | AK13: =VLOOKUP(A13,'D6'!$B$10:$AZ$109,14,FALSE) -> 0 | AL13: 0 | AM13: =VLOOKUP(A13,'D7'!$B$10:$AZ$109,10,FALSE) -> 0 | AN13: =VLOOKUP(A13,'D7'!$B$10:$AZ$109,11,FALSE) -> 0 | AO13: =VLOOKUP(A13,'D7'!$B$10:$AZ$109,12,FALSE) -> 0 | AP13: =VLOOKUP(A13,'D7'!$B$10:$AZ$109,13,FALSE) -> 0 | AQ13: =VLOOKUP(A13,'D7'!$B$10:$AZ$109,14,FALSE) -> 0 | AR13: 0 | AS13: =VLOOKUP(A13,'D8'!$B$10:$AZ$109,10,FALSE) -> 0 | AT13: =VLOOKUP(A13,'D8'!$B$10:$AZ$109,11,FALSE) -> 0 | AU13: =VLOOKUP(A13,'D8'!$B$10:$AZ$109,12,FALSE) -> 0 | AV13: =VLOOKUP(A13,'D8'!$B$10:$AZ$109,13,FALSE) -> 0 | AW13: =VLOOKUP(A13,'D8'!$B$10:$AZ$109,14,FALSE) -> 0 | AX13: 0 | AY13: 0 | AZ13: راسب | BA13: 0 | BC13: الثاني مكرر | BD13: =IFERROR(VLOOKUP(A13,A!$A$6:$M$99,6,FALSE),"") ->  | BE13: =IFERROR(VLOOKUP(A13,A!$A$6:$M$99,7,FALSE),"") ->  | BF13: =IFERROR(VLOOKUP(A13,A!$A$6:$M$99,9,FALSE),"") ->  | BG13: =IFERROR(VLOOKUP(A13,A!$A$6:$M$99,10,FALSE),"") ->  | BH13: =IFERROR(VLOOKUP(A13,A!$A$6:$M$99,11,FALSE),"") ->  | BI13: =IF(COUNTIF($AY$10:AY13,AY13)=1,AY13) -> FALSE | BJ13: 2 | BK13: =IF(COUNTIF($AY$10:AY13,AY13)>1," مكرر ","") -> مكرر | BL13: الثاني
A14: 5 | B14: =IFERROR(VLOOKUP(A14,A!$A$6:$M$99,2,FALSE),"") ->  | C14: =VLOOKUP(A14,'D1'!$B$10:$AZ$109,10,FALSE) -> 0 | D14: =VLOOKUP(A14,'D1'!$B$10:$AZ$109,11,FALSE) -> 0 | E14: =VLOOKUP(A14,'D1'!$B$10:$AZ$109,12,FALSE) -> 0 | F14: =VLOOKUP(A14,'D1'!$B$10:$AZ$109,13,FALSE) -> 0 | G14: =VLOOKUP(A14,'D1'!$B$10:$AZ$109,14,FALSE) -> 0 | H14: 0 | I14: =VLOOKUP(A14,'D2'!$B$10:$AZ$109,10,FALSE) -> 0 | J14: =VLOOKUP(A14,'D2'!$B$10:$AZ$109,11,FALSE) -> 0 | K14: =VLOOKUP(A14,'D2'!$B$10:$AZ$109,12,FALSE) -> 0 | L14: =VLOOKUP(A14,'D2'!$B$10:$AZ$109,13,FALSE) -> 0 | M14: =VLOOKUP(A14,'D2'!$B$10:$AZ$109,14,FALSE) -> 0 | N14: 0 | O14: =VLOOKUP(A14,'D3'!$B$10:$AZ$109,10,FALSE) -> 0 | P14: =VLOOKUP(A14,'D3'!$B$10:$AZ$109,11,FALSE) -> 0 | Q14: =VLOOKUP(A14,'D3'!$B$10:$AZ$109,12,FALSE) -> 0 | R14: =VLOOKUP(A14,'D3'!$B$10:$AZ$109,13,FALSE) -> 0 | S14: =VLOOKUP(A14,'D3'!$B$10:$AZ$109,14,FALSE) -> 0 | T14: 0 | U14: =VLOOKUP(A14,'D4'!$B$10:$AZ$109,10,FALSE) -> 0 | V14: =VLOOKUP(A14,'D4'!$B$10:$AZ$109,11,FALSE) -> 0 | W14: =VLOOKUP(A14,'D4'!$B$10:$AZ$109,12,FALSE) -> 0 | X14: =VLOOKUP(A14,'D4'!$B$10:$AZ$109,13,FALSE) -> 0 | Y14: =VLOOKUP(A14,'D4'!$B$10:$AZ$109,14,FALSE) -> 0 | Z14: 0 | AA14: =VLOOKUP(A14,'D5'!$B$10:$AZ$109,10,FALSE) -> 0 | AB14: =VLOOKUP(A14,'D5'!$B$10:$AZ$109,11,FALSE) -> 0 | AC14: =VLOOKUP(A14,'D5'!$B$10:$AZ$109,12,FALSE) -> 0 | AD14: =VLOOKUP(A14,'D5'!$B$10:$AZ$109,13,FALSE) -> 0 | AE14: =VLOOKUP(A14,'D5'!$B$10:$AZ$109,14,FALSE) -> 0 | AF14: 0 | AG14: =VLOOKUP(A14,'D6'!$B$10:$AZ$109,10,FALSE) -> 0 | AH14: =VLOOKUP(A14,'D6'!$B$10:$AZ$109,11,FALSE) -> 0 | AI14: =VLOOKUP(A14,'D6'!$B$10:$AZ$109,12,FALSE) -> 0 | AJ14: =VLOOKUP(A14,'D6'!$B$10:$AZ$109,13,FALSE) -> 0 | AK14: =VLOOKUP(A14,'D6'!$B$10:$AZ$109,14,FALSE) -> 0 | AL14: 0 | AM14: =VLOOKUP(A14,'D7'!$B$10:$AZ$109,10,FALSE) -> 0 | AN14: =VLOOKUP(A14,'D7'!$B$10:$AZ$109,11,FALSE) -> 0 | AO14: =VLOOKUP(A14,'D7'!$B$10:$AZ$109,12,FALSE) -> 0 | AP14: =VLOOKUP(A14,'D7'!$B$10:$AZ$109,13,FALSE) -> 0 | AQ14: =VLOOKUP(A14,'D7'!$B$10:$AZ$109,14,FALSE) -> 0 | AR14: 0 | AS14: =VLOOKUP(A14,'D8'!$B$10:$AZ$109,10,FALSE) -> 0 | AT14: =VLOOKUP(A14,'D8'!$B$10:$AZ$109,11,FALSE) -> 0 | AU14: =VLOOKUP(A14,'D8'!$B$10:$AZ$109,12,FALSE) -> 0 | AV14: =VLOOKUP(A14,'D8'!$B$10:$AZ$109,13,FALSE) -> 0 | AW14: =VLOOKUP(A14,'D8'!$B$10:$AZ$109,14,FALSE) -> 0 | AX14: 0 | AY14: 0 | AZ14: راسب | BA14: 0 | BC14: الثاني مكرر | BD14: =IFERROR(VLOOKUP(A14,A!$A$6:$M$99,6,FALSE),"") ->  | BE14: =IFERROR(VLOOKUP(A14,A!$A$6:$M$99,7,FALSE),"") ->  | BF14: =IFERROR(VLOOKUP(A14,A!$A$6:$M$99,9,FALSE),"") ->  | BG14: =IFERROR(VLOOKUP(A14,A!$A$6:$M$99,10,FALSE),"") ->  | BH14: =IFERROR(VLOOKUP(A14,A!$A$6:$M$99,11,FALSE),"") ->  | BI14: =IF(COUNTIF($AY$10:AY14,AY14)=1,AY14) -> FALSE | BJ14: 2 | BK14: =IF(COUNTIF($AY$10:AY14,AY14)>1," مكرر ","") -> مكرر | BL14: الثاني
A15: 6 | B15: =IFERROR(VLOOKUP(A15,A!$A$6:$M$99,2,FALSE),"") ->  | C15: =VLOOKUP(A15,'D1'!$B$10:$AZ$109,10,FALSE) -> 0 | D15: =VLOOKUP(A15,'D1'!$B$10:$AZ$109,11,FALSE) -> 0 | E15: =VLOOKUP(A15,'D1'!$B$10:$AZ$109,12,FALSE) -> 0 | F15: =VLOOKUP(A15,'D1'!$B$10:$AZ$109,13,FALSE) -> 0 | G15: =VLOOKUP(A15,'D1'!$B$10:$AZ$109,14,FALSE) -> 0 | H15: 0 | I15: =VLOOKUP(A15,'D2'!$B$10:$AZ$109,10,FALSE) -> 0 | J15: =VLOOKUP(A15,'D2'!$B$10:$AZ$109,11,FALSE) -> 0 | K15: =VLOOKUP(A15,'D2'!$B$10:$AZ$109,12,FALSE) -> 0 | L15: =VLOOKUP(A15,'D2'!$B$10:$AZ$109,13,FALSE) -> 0 | M15: =VLOOKUP(A15,'D2'!$B$10:$AZ$109,14,FALSE) -> 0 | N15: 0 | O15: =VLOOKUP(A15,'D3'!$B$10:$AZ$109,10,FALSE) -> 0 | P15: =VLOOKUP(A15,'D3'!$B$10:$AZ$109,11,FALSE) -> 0 | Q15: =VLOOKUP(A15,'D3'!$B$10:$AZ$109,12,FALSE) -> 0 | R15: =VLOOKUP(A15,'D3'!$B$10:$AZ$109,13,FALSE) -> 0 | S15: =VLOOKUP(A15,'D3'!$B$10:$AZ$109,14,FALSE) -> 0 | T15: 0 | U15: =VLOOKUP(A15,'D4'!$B$10:$AZ$109,10,FALSE) -> 0 | V15: =VLOOKUP(A15,'D4'!$B$10:$AZ$109,11,FALSE) -> 0 | W15: =VLOOKUP(A15,'D4'!$B$10:$AZ$109,12,FALSE) -> 0 | X15: =VLOOKUP(A15,'D4'!$B$10:$AZ$109,13,FALSE) -> 0 | Y15: =VLOOKUP(A15,'D4'!$B$10:$AZ$109,14,FALSE) -> 0 | Z15: 0 | AA15: =VLOOKUP(A15,'D5'!$B$10:$AZ$109,10,FALSE) -> 0 | AB15: =VLOOKUP(A15,'D5'!$B$10:$AZ$109,11,FALSE) -> 0 | AC15: =VLOOKUP(A15,'D5'!$B$10:$AZ$109,12,FALSE) -> 0 | AD15: =VLOOKUP(A15,'D5'!$B$10:$AZ$109,13,FALSE) -> 0 | AE15: =VLOOKUP(A15,'D5'!$B$10:$AZ$109,14,FALSE) -> 0 | AF15: 0 | AG15: =VLOOKUP(A15,'D6'!$B$10:$AZ$109,10,FALSE) -> 0 | AH15: =VLOOKUP(A15,'D6'!$B$10:$AZ$109,11,FALSE) -> 0 | AI15: =VLOOKUP(A15,'D6'!$B$10:$AZ$109,12,FALSE) -> 0 | AJ15: =VLOOKUP(A15,'D6'!$B$10:$AZ$109,13,FALSE) -> 0 | AK15: =VLOOKUP(A15,'D6'!$B$10:$AZ$109,14,FALSE) -> 0 | AL15: 0 | AM15: =VLOOKUP(A15,'D7'!$B$10:$AZ$109,10,FALSE) -> 0 | AN15: =VLOOKUP(A15,'D7'!$B$10:$AZ$109,11,FALSE) -> 0 | AO15: =VLOOKUP(A15,'D7'!$B$10:$AZ$109,12,FALSE) -> 0 | AP15: =VLOOKUP(A15,'D7'!$B$10:$AZ$109,13,FALSE) -> 0 | AQ15: =VLOOKUP(A15,'D7'!$B$10:$AZ$109,14,FALSE) -> 0 | AR15: 0 | AS15: =VLOOKUP(A15,'D8'!$B$10:$AZ$109,10,FALSE) -> 0 | AT15: =VLOOKUP(A15,'D8'!$B$10:$AZ$109,11,FALSE) -> 0 | AU15: =VLOOKUP(A15,'D8'!$B$10:$AZ$109,12,FALSE) -> 0 | AV15: =VLOOKUP(A15,'D8'!$B$10:$AZ$109,13,FALSE) -> 0 | AW15: =VLOOKUP(A15,'D8'!$B$10:$AZ$109,14,FALSE) -> 0 | AX15: 0 | AY15: 0 | AZ15: راسب | BA15: 0 | BC15: الثاني مكرر | BD15: =IFERROR(VLOOKUP(A15,A!$A$6:$M$99,6,FALSE),"") ->  | BE15: =IFERROR(VLOOKUP(A15,A!$A$6:$M$99,7,FALSE),"") ->  | BF15: =IFERROR(VLOOKUP(A15,A!$A$6:$M$99,9,FALSE),"") ->  | BG15: =IFERROR(VLOOKUP(A15,A!$A$6:$M$99,10,FALSE),"") ->  | BH15: =IFERROR(VLOOKUP(A15,A!$A$6:$M$99,11,FALSE),"") ->  | BI15: =IF(COUNTIF($AY$10:AY15,AY15)=1,AY15) -> FALSE | BJ15: 2 | BK15: =IF(COUNTIF($AY$10:AY15,AY15)>1," مكرر ","") -> مكرر | BL15: الثاني
A16: 7 | B16: =IFERROR(VLOOKUP(A16,A!$A$6:$M$99,2,FALSE),"") ->  | C16: =VLOOKUP(A16,'D1'!$B$10:$AZ$109,10,FALSE) -> 0 | D16: =VLOOKUP(A16,'D1'!$B$10:$AZ$109,11,FALSE) -> 0 | E16: =VLOOKUP(A16,'D1'!$B$10:$AZ$109,12,FALSE) -> 0 | F16: =VLOOKUP(A16,'D1'!$B$10:$AZ$109,13,FALSE) -> 0 | G16: =VLOOKUP(A16,'D1'!$B$10:$AZ$109,14,FALSE) -> 0 | H16: 0 | I16: =VLOOKUP(A16,'D2'!$B$10:$AZ$109,10,FALSE) -> 0 | J16: =VLOOKUP(A16,'D2'!$B$10:$AZ$109,11,FALSE) -> 0 | K16: =VLOOKUP(A16,'D2'!$B$10:$AZ$109,12,FALSE) -> 0 | L16: =VLOOKUP(A16,'D2'!$B$10:$AZ$109,13,FALSE) -> 0 | M16: =VLOOKUP(A16,'D2'!$B$10:$AZ$109,14,FALSE) -> 0 | N16: 0 | O16: =VLOOKUP(A16,'D3'!$B$10:$AZ$109,10,FALSE) -> 0 | P16: =VLOOKUP(A16,'D3'!$B$10:$AZ$109,11,FALSE) -> 0 | Q16: =VLOOKUP(A16,'D3'!$B$10:$AZ$109,12,FALSE) -> 0 | R16: =VLOOKUP(A16,'D3'!$B$10:$AZ$109,13,FALSE) -> 0 | S16: =VLOOKUP(A16,'D3'!$B$10:$AZ$109,14,FALSE) -> 0 | T16: 0 | U16: =VLOOKUP(A16,'D4'!$B$10:$AZ$109,10,FALSE) -> 0 | V16: =VLOOKUP(A16,'D4'!$B$10:$AZ$109,11,FALSE) -> 0 | W16: =VLOOKUP(A16,'D4'!$B$10:$AZ$109,12,FALSE) -> 0 | X16: =VLOOKUP(A16,'D4'!$B$10:$AZ$109,13,FALSE) -> 0 | Y16: =VLOOKUP(A16,'D4'!$B$10:$AZ$109,14,FALSE) -> 0 | Z16: 0 | AA16: =VLOOKUP(A16,'D5'!$B$10:$AZ$109,10,FALSE) -> 0 | AB16: =VLOOKUP(A16,'D5'!$B$10:$AZ$109,11,FALSE) -> 0 | AC16: =VLOOKUP(A16,'D5'!$B$10:$AZ$109,12,FALSE) -> 0 | AD16: =VLOOKUP(A16,'D5'!$B$10:$AZ$109,13,FALSE) -> 0 | AE16: =VLOOKUP(A16,'D5'!$B$10:$AZ$109,14,FALSE) -> 0 | AF16: 0 | AG16: =VLOOKUP(A16,'D6'!$B$10:$AZ$109,10,FALSE) -> 0 | AH16: =VLOOKUP(A16,'D6'!$B$10:$AZ$109,11,FALSE) -> 0 | AI16: =VLOOKUP(A16,'D6'!$B$10:$AZ$109,12,FALSE) -> 0 | AJ16: =VLOOKUP(A16,'D6'!$B$10:$AZ$109,13,FALSE) -> 0 | AK16: =VLOOKUP(A16,'D6'!$B$10:$AZ$109,14,FALSE) -> 0 | AL16: 0 | AM16: =VLOOKUP(A16,'D7'!$B$10:$AZ$109,10,FALSE) -> 0 | AN16: =VLOOKUP(A16,'D7'!$B$10:$AZ$109,11,FALSE) -> 0 | AO16: =VLOOKUP(A16,'D7'!$B$10:$AZ$109,12,FALSE) -> 0 | AP16: =VLOOKUP(A16,'D7'!$B$10:$AZ$109,13,FALSE) -> 0 | AQ16: =VLOOKUP(A16,'D7'!$B$10:$AZ$109,14,FALSE) -> 0 | AR16: 0 | AS16: =VLOOKUP(A16,'D8'!$B$10:$AZ$109,10,FALSE) -> 0 | AT16: =VLOOKUP(A16,'D8'!$B$10:$AZ$109,11,FALSE) -> 0 | AU16: =VLOOKUP(A16,'D8'!$B$10:$AZ$109,12,FALSE) -> 0 | AV16: =VLOOKUP(A16,'D8'!$B$10:$AZ$109,13,FALSE) -> 0 | AW16: =VLOOKUP(A16,'D8'!$B$10:$AZ$109,14,FALSE) -> 0 | AX16: 0 | AY16: 0 | AZ16: راسب | BA16: 0 | BC16: الثاني مكرر | BD16: =IFERROR(VLOOKUP(A16,A!$A$6:$M$99,6,FALSE),"") ->  | BE16: =IFERROR(VLOOKUP(A16,A!$A$6:$M$99,7,FALSE),"") ->  | BF16: =IFERROR(VLOOKUP(A16,A!$A$6:$M$99,9,FALSE),"") ->  | BG16: =IFERROR(VLOOKUP(A16,A!$A$6:$M$99,10,FALSE),"") ->  | BH16: =IFERROR(VLOOKUP(A16,A!$A$6:$M$99,11,FALSE),"") ->  | BI16: =IF(COUNTIF($AY$10:AY16,AY16)=1,AY16) -> FALSE | BJ16: 2 | BK16: =IF(COUNTIF($AY$10:AY16,AY16)>1," مكرر ","") -> مكرر | BL16: الثاني
A17: 8 | B17: =IFERROR(VLOOKUP(A17,A!$A$6:$M$99,2,FALSE),"") ->  | C17: =VLOOKUP(A17,'D1'!$B$10:$AZ$109,10,FALSE) -> 0 | D17: =VLOOKUP(A17,'D1'!$B$10:$AZ$109,11,FALSE) -> 0 | E17: =VLOOKUP(A17,'D1'!$B$10:$AZ$109,12,FALSE) -> 0 | F17: =VLOOKUP(A17,'D1'!$B$10:$AZ$109,13,FALSE) -> 0 | G17: =VLOOKUP(A17,'D1'!$B$10:$AZ$109,14,FALSE) -> 0 | H17: 0 | I17: =VLOOKUP(A17,'D2'!$B$10:$AZ$109,10,FALSE) -> 0 | J17: =VLOOKUP(A17,'D2'!$B$10:$AZ$109,11,FALSE) -> 0 | K17: =VLOOKUP(A17,'D2'!$B$10:$AZ$109,12,FALSE) -> 0 | L17: =VLOOKUP(A17,'D2'!$B$10:$AZ$109,13,FALSE) -> 0 | M17: =VLOOKUP(A17,'D2'!$B$10:$AZ$109,14,FALSE) -> 0 | N17: 0 | O17: =VLOOKUP(A17,'D3'!$B$10:$AZ$109,10,FALSE) -> 0 | P17: =VLOOKUP(A17,'D3'!$B$10:$AZ$109,11,FALSE) -> 0 | Q17: =VLOOKUP(A17,'D3'!$B$10:$AZ$109,12,FALSE) -> 0 | R17: =VLOOKUP(A17,'D3'!$B$10:$AZ$109,13,FALSE) -> 0 | S17: =VLOOKUP(A17,'D3'!$B$10:$AZ$109,14,FALSE) -> 0 | T17: 0 | U17: =VLOOKUP(A17,'D4'!$B$10:$AZ$109,10,FALSE) -> 0 | V17: =VLOOKUP(A17,'D4'!$B$10:$AZ$109,11,FALSE) -> 0 | W17: =VLOOKUP(A17,'D4'!$B$10:$AZ$109,12,FALSE) -> 0 | X17: =VLOOKUP(A17,'D4'!$B$10:$AZ$109,13,FALSE) -> 0 | Y17: =VLOOKUP(A17,'D4'!$B$10:$AZ$109,14,FALSE) -> 0 | Z17: 0 | AA17: =VLOOKUP(A17,'D5'!$B$10:$AZ$109,10,FALSE) -> 0 | AB17: =VLOOKUP(A17,'D5'!$B$10:$AZ$109,11,FALSE) -> 0 | AC17: =VLOOKUP(A17,'D5'!$B$10:$AZ$109,12,FALSE) -> 0 | AD17: =VLOOKUP(A17,'D5'!$B$10:$AZ$109,13,FALSE) -> 0 | AE17: =VLOOKUP(A17,'D5'!$B$10:$AZ$109,14,FALSE) -> 0 | AF17: 0 | AG17: =VLOOKUP(A17,'D6'!$B$10:$AZ$109,10,FALSE) -> 0 | AH17: =VLOOKUP(A17,'D6'!$B$10:$AZ$109,11,FALSE) -> 0 | AI17: =VLOOKUP(A17,'D6'!$B$10:$AZ$109,12,FALSE) -> 0 | AJ17: =VLOOKUP(A17,'D6'!$B$10:$AZ$109,13,FALSE) -> 0 | AK17: =VLOOKUP(A17,'D6'!$B$10:$AZ$109,14,FALSE) -> 0 | AL17: 0 | AM17: =VLOOKUP(A17,'D7'!$B$10:$AZ$109,10,FALSE) -> 0 | AN17: =VLOOKUP(A17,'D7'!$B$10:$AZ$109,11,FALSE) -> 0 | AO17: =VLOOKUP(A17,'D7'!$B$10:$AZ$109,12,FALSE) -> 0 | AP17: =VLOOKUP(A17,'D7'!$B$10:$AZ$109,13,FALSE) -> 0 | AQ17: =VLOOKUP(A17,'D7'!$B$10:$AZ$109,14,FALSE) -> 0 | AR17: 0 | AS17: =VLOOKUP(A17,'D8'!$B$10:$AZ$109,10,FALSE) -> 0 | AT17: =VLOOKUP(A17,'D8'!$B$10:$AZ$109,11,FALSE) -> 0 | AU17: =VLOOKUP(A17,'D8'!$B$10:$AZ$109,12,FALSE) -> 0 | AV17: =VLOOKUP(A17,'D8'!$B$10:$AZ$109,13,FALSE) -> 0 | AW17: =VLOOKUP(A17,'D8'!$B$10:$AZ$109,14,FALSE) -> 0 | AX17: 0 | AY17: 0 | AZ17: راسب | BA17: 0 | BC17: الثاني مكرر | BD17: =IFERROR(VLOOKUP(A17,A!$A$6:$M$99,6,FALSE),"") ->  | BE17: =IFERROR(VLOOKUP(A17,A!$A$6:$M$99,7,FALSE),"") ->  | BF17: =IFERROR(VLOOKUP(A17,A!$A$6:$M$99,9,FALSE),"") ->  | BG17: =IFERROR(VLOOKUP(A17,A!$A$6:$M$99,10,FALSE),"") ->  | BH17: =IFERROR(VLOOKUP(A17,A!$A$6:$M$99,11,FALSE),"") ->  | BI17: =IF(COUNTIF($AY$10:AY17,AY17)=1,AY17) -> FALSE | BJ17: 2 | BK17: =IF(COUNTIF($AY$10:AY17,AY17)>1," مكرر ","") -> مكرر | BL17: الثاني
A18: 9 | B18: =IFERROR(VLOOKUP(A18,A!$A$6:$M$99,2,FALSE),"") ->  | C18: =VLOOKUP(A18,'D1'!$B$10:$AZ$109,10,FALSE) -> 0 | D18: =VLOOKUP(A18,'D1'!$B$10:$AZ$109,11,FALSE) -> 0 | E18: =VLOOKUP(A18,'D1'!$B$10:$AZ$109,12,FALSE) -> 0 | F18: =VLOOKUP(A18,'D1'!$B$10:$AZ$109,13,FALSE) -> 0 | G18: =VLOOKUP(A18,'D1'!$B$10:$AZ$109,14,FALSE) -> 0 | H18: 0 | I18: =VLOOKUP(A18,'D2'!$B$10:$AZ$109,10,FALSE) -> 0 | J18: =VLOOKUP(A18,'D2'!$B$10:$AZ$109,11,FALSE) -> 0 | K18: =VLOOKUP(A18,'D2'!$B$10:$AZ$109,12,FALSE) -> 0 | L18: =VLOOKUP(A18,'D2'!$B$10:$AZ$109,13,FALSE) -> 0 | M18: =VLOOKUP(A18,'D2'!$B$10:$AZ$109,14,FALSE) -> 0 | N18: 0 | O18: =VLOOKUP(A18,'D3'!$B$10:$AZ$109,10,FALSE) -> 0 | P18: =VLOOKUP(A18,'D3'!$B$10:$AZ$109,11,FALSE) -> 0 | Q18: =VLOOKUP(A18,'D3'!$B$10:$AZ$109,12,FALSE) -> 0 | R18: =VLOOKUP(A18,'D3'!$B$10:$AZ$109,13,FALSE) -> 0 | S18: =VLOOKUP(A18,'D3'!$B$10:$AZ$109,14,FALSE) -> 0 | T18: 0 | U18: =VLOOKUP(A18,'D4'!$B$10:$AZ$109,10,FALSE) -> 0 | V18: =VLOOKUP(A18,'D4'!$B$10:$AZ$109,11,FALSE) -> 0 | W18: =VLOOKUP(A18,'D4'!$B$10:$AZ$109,12,FALSE) -> 0 | X18: =VLOOKUP(A18,'D4'!$B$10:$AZ$109,13,FALSE) -> 0 | Y18: =VLOOKUP(A18,'D4'!$B$10:$AZ$109,14,FALSE) -> 0 | Z18: 0 | AA18: =VLOOKUP(A18,'D5'!$B$10:$AZ$109,10,FALSE) -> 0 | AB18: =VLOOKUP(A18,'D5'!$B$10:$AZ$109,11,FALSE) -> 0 | AC18: =VLOOKUP(A18,'D5'!$B$10:$AZ$109,12,FALSE) -> 0 | AD18: =VLOOKUP(A18,'D5'!$B$10:$AZ$109,13,FALSE) -> 0 | AE18: =VLOOKUP(A18,'D5'!$B$10:$AZ$109,14,FALSE) -> 0 | AF18: 0 | AG18: =VLOOKUP(A18,'D6'!$B$10:$AZ$109,10,FALSE) -> 0 | AH18: =VLOOKUP(A18,'D6'!$B$10:$AZ$109,11,FALSE) -> 0 | AI18: =VLOOKUP(A18,'D6'!$B$10:$AZ$109,12,FALSE) -> 0 | AJ18: =VLOOKUP(A18,'D6'!$B$10:$AZ$109,13,FALSE) -> 0 | AK18: =VLOOKUP(A18,'D6'!$B$10:$AZ$109,14,FALSE) -> 0 | AL18: 0 | AM18: =VLOOKUP(A18,'D7'!$B$10:$AZ$109,10,FALSE) -> 0 | AN18: =VLOOKUP(A18,'D7'!$B$10:$AZ$109,11,FALSE) -> 0 | AO18: =VLOOKUP(A18,'D7'!$B$10:$AZ$109,12,FALSE) -> 0 | AP18: =VLOOKUP(A18,'D7'!$B$10:$AZ$109,13,FALSE) -> 0 | AQ18: =VLOOKUP(A18,'D7'!$B$10:$AZ$109,14,FALSE) -> 0 | AR18: 0 | AS18: =VLOOKUP(A18,'D8'!$B$10:$AZ$109,10,FALSE) -> 0 | AT18: =VLOOKUP(A18,'D8'!$B$10:$AZ$109,11,FALSE) -> 0 | AU18: =VLOOKUP(A18,'D8'!$B$10:$AZ$109,12,FALSE) -> 0 | AV18: =VLOOKUP(A18,'D8'!$B$10:$AZ$109,13,FALSE) -> 0 | AW18: =VLOOKUP(A18,'D8'!$B$10:$AZ$109,14,FALSE) -> 0 | AX18: 0 | AY18: 0 | AZ18: راسب | BA18: 0 | BC18: الثاني مكرر | BD18: =IFERROR(VLOOKUP(A18,A!$A$6:$M$99,6,FALSE),"") ->  | BE18: =IFERROR(VLOOKUP(A18,A!$A$6:$M$99,7,FALSE),"") ->  | BF18: =IFERROR(VLOOKUP(A18,A!$A$6:$M$99,9,FALSE),"") ->  | BG18: =IFERROR(VLOOKUP(A18,A!$A$6:$M$99,10,FALSE),"") ->  | BH18: =IFERROR(VLOOKUP(A18,A!$A$6:$M$99,11,FALSE),"") ->  | BI18: =IF(COUNTIF($AY$10:AY18,AY18)=1,AY18) -> FALSE | BJ18: 2 | BK18: =IF(COUNTIF($AY$10:AY18,AY18)>1," مكرر ","") -> مكرر | BL18: الثاني
A19: 10 | B19: =IFERROR(VLOOKUP(A19,A!$A$6:$M$99,2,FALSE),"") ->  | C19: =VLOOKUP(A19,'D1'!$B$10:$AZ$109,10,FALSE) -> 0 | D19: =VLOOKUP(A19,'D1'!$B$10:$AZ$109,11,FALSE) -> 0 | E19: =VLOOKUP(A19,'D1'!$B$10:$AZ$109,12,FALSE) -> 0 | F19: =VLOOKUP(A19,'D1'!$B$10:$AZ$109,13,FALSE) -> 0 | G19: =VLOOKUP(A19,'D1'!$B$10:$AZ$109,14,FALSE) -> 0 | H19: 0 | I19: =VLOOKUP(A19,'D2'!$B$10:$AZ$109,10,FALSE) -> 0 | J19: =VLOOKUP(A19,'D2'!$B$10:$AZ$109,11,FALSE) -> 0 | K19: =VLOOKUP(A19,'D2'!$B$10:$AZ$109,12,FALSE) -> 0 | L19: =VLOOKUP(A19,'D2'!$B$10:$AZ$109,13,FALSE) -> 0 | M19: =VLOOKUP(A19,'D2'!$B$10:$AZ$109,14,FALSE) -> 0 | N19: 0 | O19: =VLOOKUP(A19,'D3'!$B$10:$AZ$109,10,FALSE) -> 0 | P19: =VLOOKUP(A19,'D3'!$B$10:$AZ$109,11,FALSE) -> 0 | Q19: =VLOOKUP(A19,'D3'!$B$10:$AZ$109,12,FALSE) -> 0 | R19: =VLOOKUP(A19,'D3'!$B$10:$AZ$109,13,FALSE) -> 0 | S19: =VLOOKUP(A19,'D3'!$B$10:$AZ$109,14,FALSE) -> 0 | T19: 0 | U19: =VLOOKUP(A19,'D4'!$B$10:$AZ$109,10,FALSE) -> 0 | V19: =VLOOKUP(A19,'D4'!$B$10:$AZ$109,11,FALSE) -> 0 | W19: =VLOOKUP(A19,'D4'!$B$10:$AZ$109,12,FALSE) -> 0 | X19: =VLOOKUP(A19,'D4'!$B$10:$AZ$109,13,FALSE) -> 0 | Y19: =VLOOKUP(A19,'D4'!$B$10:$AZ$109,14,FALSE) -> 0 | Z19: 0 | AA19: =VLOOKUP(A19,'D5'!$B$10:$AZ$109,10,FALSE) -> 0 | AB19: =VLOOKUP(A19,'D5'!$B$10:$AZ$109,11,FALSE) -> 0 | AC19: =VLOOKUP(A19,'D5'!$B$10:$AZ$109,12,FALSE) -> 0 | AD19: =VLOOKUP(A19,'D5'!$B$10:$AZ$109,13,FALSE) -> 0 | AE19: =VLOOKUP(A19,'D5'!$B$10:$AZ$109,14,FALSE) -> 0 | AF19: 0 | AG19: =VLOOKUP(A19,'D6'!$B$10:$AZ$109,10,FALSE) -> 0 | AH19: =VLOOKUP(A19,'D6'!$B$10:$AZ$109,11,FALSE) -> 0 | AI19: =VLOOKUP(A19,'D6'!$B$10:$AZ$109,12,FALSE) -> 0 | AJ19: =VLOOKUP(A19,'D6'!$B$10:$AZ$109,13,FALSE) -> 0 | AK19: =VLOOKUP(A19,'D6'!$B$10:$AZ$109,14,FALSE) -> 0 | AL19: 0 | AM19: =VLOOKUP(A19,'D7'!$B$10:$AZ$109,10,FALSE) -> 0 | AN19: =VLOOKUP(A19,'D7'!$B$10:$AZ$109,11,FALSE) -> 0 | AO19: =VLOOKUP(A19,'D7'!$B$10:$AZ$109,12,FALSE) -> 0 | AP19: =VLOOKUP(A19,'D7'!$B$10:$AZ$109,13,FALSE) -> 0 | AQ19: =VLOOKUP(A19,'D7'!$B$10:$AZ$109,14,FALSE) -> 0 | AR19: 0 | AS19: =VLOOKUP(A19,'D8'!$B$10:$AZ$109,10,FALSE) -> 0 | AT19: =VLOOKUP(A19,'D8'!$B$10:$AZ$109,11,FALSE) -> 0 | AU19: =VLOOKUP(A19,'D8'!$B$10:$AZ$109,12,FALSE) -> 0 | AV19: =VLOOKUP(A19,'D8'!$B$10:$AZ$109,13,FALSE) -> 0 | AW19: =VLOOKUP(A19,'D8'!$B$10:$AZ$109,14,FALSE) -> 0 | AX19: 0 | AY19: 0 | AZ19: راسب | BA19: 0 | BC19: الثاني مكرر | BD19: =IFERROR(VLOOKUP(A19,A!$A$6:$M$99,6,FALSE),"") ->  | BE19: =IFERROR(VLOOKUP(A19,A!$A$6:$M$99,7,FALSE),"") ->  | BF19: =IFERROR(VLOOKUP(A19,A!$A$6:$M$99,9,FALSE),"") ->  | BG19: =IFERROR(VLOOKUP(A19,A!$A$6:$M$99,10,FALSE),"") ->  | BH19: =IFERROR(VLOOKUP(A19,A!$A$6:$M$99,11,FALSE),"") ->  | BI19: =IF(COUNTIF($AY$10:AY19,AY19)=1,AY19) -> FALSE | BJ19: 2 | BK19: =IF(COUNTIF($AY$10:AY19,AY19)>1," مكرر ","") -> مكرر | BL19: الثاني
A20: 11 | B20: =IFERROR(VLOOKUP(A20,A!$A$6:$M$99,2,FALSE),"") ->  | C20: =VLOOKUP(A20,'D1'!$B$10:$AZ$109,10,FALSE) -> 0 | D20: =VLOOKUP(A20,'D1'!$B$10:$AZ$109,11,FALSE) -> 0 | E20: =VLOOKUP(A20,'D1'!$B$10:$AZ$109,12,FALSE) -> 0 | F20: =VLOOKUP(A20,'D1'!$B$10:$AZ$109,13,FALSE) -> 0 | G20: =VLOOKUP(A20,'D1'!$B$10:$AZ$109,14,FALSE) -> 0 | H20: 0 | I20: =VLOOKUP(A20,'D2'!$B$10:$AZ$109,10,FALSE) -> 0 | J20: =VLOOKUP(A20,'D2'!$B$10:$AZ$109,11,FALSE) -> 0 | K20: =VLOOKUP(A20,'D2'!$B$10:$AZ$109,12,FALSE) -> 0 | L20: =VLOOKUP(A20,'D2'!$B$10:$AZ$109,13,FALSE) -> 0 | M20: =VLOOKUP(A20,'D2'!$B$10:$AZ$109,14,FALSE) -> 0 | N20: 0 | O20: =VLOOKUP(A20,'D3'!$B$10:$AZ$109,10,FALSE) -> 0 | P20: =VLOOKUP(A20,'D3'!$B$10:$AZ$109,11,FALSE) -> 0 | Q20: =VLOOKUP(A20,'D3'!$B$10:$AZ$109,12,FALSE) -> 0 | R20: =VLOOKUP(A20,'D3'!$B$10:$AZ$109,13,FALSE) -> 0 | S20: =VLOOKUP(A20,'D3'!$B$10:$AZ$109,14,FALSE) -> 0 | T20: 0 | U20: =VLOOKUP(A20,'D4'!$B$10:$AZ$109,10,FALSE) -> 0 | V20: =VLOOKUP(A20,'D4'!$B$10:$AZ$109,11,FALSE) -> 0 | W20: =VLOOKUP(A20,'D4'!$B$10:$AZ$109,12,FALSE) -> 0 | X20: =VLOOKUP(A20,'D4'!$B$10:$AZ$109,13,FALSE) -> 0 | Y20: =VLOOKUP(A20,'D4'!$B$10:$AZ$109,14,FALSE) -> 0 | Z20: 0 | AA20: =VLOOKUP(A20,'D5'!$B$10:$AZ$109,10,FALSE) -> 0 | AB20: =VLOOKUP(A20,'D5'!$B$10:$AZ$109,11,FALSE) -> 0 | AC20: =VLOOKUP(A20,'D5'!$B$10:$AZ$109,12,FALSE) -> 0 | AD20: =VLOOKUP(A20,'D5'!$B$10:$AZ$109,13,FALSE) -> 0 | AE20: =VLOOKUP(A20,'D5'!$B$10:$AZ$109,14,FALSE) -> 0 | AF20: 0 | AG20: =VLOOKUP(A20,'D6'!$B$10:$AZ$109,10,FALSE) -> 0 | AH20: =VLOOKUP(A20,'D6'!$B$10:$AZ$109,11,FALSE) -> 0 | AI20: =VLOOKUP(A20,'D6'!$B$10:$AZ$109,12,FALSE) -> 0 | AJ20: =VLOOKUP(A20,'D6'!$B$10:$AZ$109,13,FALSE) -> 0 | AK20: =VLOOKUP(A20,'D6'!$B$10:$AZ$109,14,FALSE) -> 0 | AL20: 0 | AM20: =VLOOKUP(A20,'D7'!$B$10:$AZ$109,10,FALSE) -> 0 | AN20: =VLOOKUP(A20,'D7'!$B$10:$AZ$109,11,FALSE) -> 0 | AO20: =VLOOKUP(A20,'D7'!$B$10:$AZ$109,12,FALSE) -> 0 | AP20: =VLOOKUP(A20,'D7'!$B$10:$AZ$109,13,FALSE) -> 0 | AQ20: =VLOOKUP(A20,'D7'!$B$10:$AZ$109,14,FALSE) -> 0 | AR20: 0 | AS20: =VLOOKUP(A20,'D8'!$B$10:$AZ$109,10,FALSE) -> 0 | AT20: =VLOOKUP(A20,'D8'!$B$10:$AZ$109,11,FALSE) -> 0 | AU20: =VLOOKUP(A20,'D8'!$B$10:$AZ$109,12,FALSE) -> 0 | AV20: =VLOOKUP(A20,'D8'!$B$10:$AZ$109,13,FALSE) -> 0 | AW20: =VLOOKUP(A20,'D8'!$B$10:$AZ$109,14,FALSE) -> 0 | AX20: 0 | AY20: 0 | AZ20: راسب | BA20: 0 | BC20: الثاني مكرر | BD20: =IFERROR(VLOOKUP(A20,A!$A$6:$M$99,6,FALSE),"") ->  | BE20: =IFERROR(VLOOKUP(A20,A!$A$6:$M$99,7,FALSE),"") ->  | BF20: =IFERROR(VLOOKUP(A20,A!$A$6:$M$99,9,FALSE),"") ->  | BG20: =IFERROR(VLOOKUP(A20,A!$A$6:$M$99,10,FALSE),"") ->  | BH20: =IFERROR(VLOOKUP(A20,A!$A$6:$M$99,11,FALSE),"") ->  | BI20: =IF(COUNTIF($AY$10:AY20,AY20)=1,AY20) -> FALSE | BJ20: 2 | BK20: =IF(COUNTIF($AY$10:AY20,AY20)>1," مكرر ","") -> مكرر | BL20: الثاني
A21: 12 | B21: =IFERROR(VLOOKUP(A21,A!$A$6:$M$99,2,FALSE),"") ->  | C21: =VLOOKUP(A21,'D1'!$B$10:$AZ$109,10,FALSE) -> 0 | D21: =VLOOKUP(A21,'D1'!$B$10:$AZ$109,11,FALSE) -> 0 | E21: =VLOOKUP(A21,'D1'!$B$10:$AZ$109,12,FALSE) -> 0 | F21: =VLOOKUP(A21,'D1'!$B$10:$AZ$109,13,FALSE) -> 0 | G21: =VLOOKUP(A21,'D1'!$B$10:$AZ$109,14,FALSE) -> 0 | H21: 0 | I21: =VLOOKUP(A21,'D2'!$B$10:$AZ$109,10,FALSE) -> 0 | J21: =VLOOKUP(A21,'D2'!$B$10:$AZ$109,11,FALSE) -> 0 | K21: =VLOOKUP(A21,'D2'!$B$10:$AZ$109,12,FALSE) -> 0 | L21: =VLOOKUP(A21,'D2'!$B$10:$AZ$109,13,FALSE) -> 0 | M21: =VLOOKUP(A21,'D2'!$B$10:$AZ$109,14,FALSE) -> 0 | N21: 0 | O21: =VLOOKUP(A21,'D3'!$B$10:$AZ$109,10,FALSE) -> 0 | P21: =VLOOKUP(A21,'D3'!$B$10:$AZ$109,11,FALSE) -> 0 | Q21: =VLOOKUP(A21,'D3'!$B$10:$AZ$109,12,FALSE) -> 0 | R21: =VLOOKUP(A21,'D3'!$B$10:$AZ$109,13,FALSE) -> 0 | S21: =VLOOKUP(A21,'D3'!$B$10:$AZ$109,14,FALSE) -> 0 | T21: 0 | U21: =VLOOKUP(A21,'D4'!$B$10:$AZ$109,10,FALSE) -> 0 | V21: =VLOOKUP(A21,'D4'!$B$10:$AZ$109,11,FALSE) -> 0 | W21: =VLOOKUP(A21,'D4'!$B$10:$AZ$109,12,FALSE) -> 0 | X21: =VLOOKUP(A21,'D4'!$B$10:$AZ$109,13,FALSE) -> 0 | Y21: =VLOOKUP(A21,'D4'!$B$10:$AZ$109,14,FALSE) -> 0 | Z21: 0 | AA21: =VLOOKUP(A21,'D5'!$B$10:$AZ$109,10,FALSE) -> 0 | AB21: =VLOOKUP(A21,'D5'!$B$10:$AZ$109,11,FALSE) -> 0 | AC21: =VLOOKUP(A21,'D5'!$B$10:$AZ$109,12,FALSE) -> 0 | AD21: =VLOOKUP(A21,'D5'!$B$10:$AZ$109,13,FALSE) -> 0 | AE21: =VLOOKUP(A21,'D5'!$B$10:$AZ$109,14,FALSE) -> 0 | AF21: 0 | AG21: =VLOOKUP(A21,'D6'!$B$10:$AZ$109,10,FALSE) -> 0 | AH21: =VLOOKUP(A21,'D6'!$B$10:$AZ$109,11,FALSE) -> 0 | AI21: =VLOOKUP(A21,'D6'!$B$10:$AZ$109,12,FALSE) -> 0 | AJ21: =VLOOKUP(A21,'D6'!$B$10:$AZ$109,13,FALSE) -> 0 | AK21: =VLOOKUP(A21,'D6'!$B$10:$AZ$109,14,FALSE) -> 0 | AL21: 0 | AM21: =VLOOKUP(A21,'D7'!$B$10:$AZ$109,10,FALSE) -> 0 | AN21: =VLOOKUP(A21,'D7'!$B$10:$AZ$109,11,FALSE) -> 0 | AO21: =VLOOKUP(A21,'D7'!$B$10:$AZ$109,12,FALSE) -> 0 | AP21: =VLOOKUP(A21,'D7'!$B$10:$AZ$109,13,FALSE) -> 0 | AQ21: =VLOOKUP(A21,'D7'!$B$10:$AZ$109,14,FALSE) -> 0 | AR21: 0 | AS21: =VLOOKUP(A21,'D8'!$B$10:$AZ$109,10,FALSE) -> 0 | AT21: =VLOOKUP(A21,'D8'!$B$10:$AZ$109,11,FALSE) -> 0 | AU21: =VLOOKUP(A21,'D8'!$B$10:$AZ$109,12,FALSE) -> 0 | AV21: =VLOOKUP(A21,'D8'!$B$10:$AZ$109,13,FALSE) -> 0 | AW21: =VLOOKUP(A21,'D8'!$B$10:$AZ$109,14,FALSE) -> 0 | AX21: 0 | AY21: 0 | AZ21: راسب | BA21: 0 | BC21: الثاني مكرر | BD21: =IFERROR(VLOOKUP(A21,A!$A$6:$M$99,6,FALSE),"") ->  | BE21: =IFERROR(VLOOKUP(A21,A!$A$6:$M$99,7,FALSE),"") ->  | BF21: =IFERROR(VLOOKUP(A21,A!$A$6:$M$99,9,FALSE),"") ->  | BG21: =IFERROR(VLOOKUP(A21,A!$A$6:$M$99,10,FALSE),"") ->  | BH21: =IFERROR(VLOOKUP(A21,A!$A$6:$M$99,11,FALSE),"") ->  | BI21: =IF(COUNTIF($AY$10:AY21,AY21)=1,AY21) -> FALSE | BJ21: 2 | BK21: =IF(COUNTIF($AY$10:AY21,AY21)>1," مكرر ","") -> مكرر | BL21: الثاني
A22: 13 | B22: =IFERROR(VLOOKUP(A22,A!$A$6:$M$99,2,FALSE),"") ->  | C22: =VLOOKUP(A22,'D1'!$B$10:$AZ$109,10,FALSE) -> 0 | D22: =VLOOKUP(A22,'D1'!$B$10:$AZ$109,11,FALSE) -> 0 | E22: =VLOOKUP(A22,'D1'!$B$10:$AZ$109,12,FALSE) -> 0 | F22: =VLOOKUP(A22,'D1'!$B$10:$AZ$109,13,FALSE) -> 0 | G22: =VLOOKUP(A22,'D1'!$B$10:$AZ$109,14,FALSE) -> 0 | H22: 0 | I22: =VLOOKUP(A22,'D2'!$B$10:$AZ$109,10,FALSE) -> 0 | J22: =VLOOKUP(A22,'D2'!$B$10:$AZ$109,11,FALSE) -> 0 | K22: =VLOOKUP(A22,'D2'!$B$10:$AZ$109,12,FALSE) -> 0 | L22: =VLOOKUP(A22,'D2'!$B$10:$AZ$109,13,FALSE) -> 0 | M22: =VLOOKUP(A22,'D2'!$B$10:$AZ$109,14,FALSE) -> 0 | N22: 0 | O22: =VLOOKUP(A22,'D3'!$B$10:$AZ$109,10,FALSE) -> 0 | P22: =VLOOKUP(A22,'D3'!$B$10:$AZ$109,11,FALSE) -> 0 | Q22: =VLOOKUP(A22,'D3'!$B$10:$AZ$109,12,FALSE) -> 0 | R22: =VLOOKUP(A22,'D3'!$B$10:$AZ$109,13,FALSE) -> 0 | S22: =VLOOKUP(A22,'D3'!$B$10:$AZ$109,14,FALSE) -> 0 | T22: 0 | U22: =VLOOKUP(A22,'D4'!$B$10:$AZ$109,10,FALSE) -> 0 | V22: =VLOOKUP(A22,'D4'!$B$10:$AZ$109,11,FALSE) -> 0 | W22: =VLOOKUP(A22,'D4'!$B$10:$AZ$109,12,FALSE) -> 0 | X22: =VLOOKUP(A22,'D4'!$B$10:$AZ$109,13,FALSE) -> 0 | Y22: =VLOOKUP(A22,'D4'!$B$10:$AZ$109,14,FALSE) -> 0 | Z22: 0 | AA22: =VLOOKUP(A22,'D5'!$B$10:$AZ$109,10,FALSE) -> 0 | AB22: =VLOOKUP(A22,'D5'!$B$10:$AZ$109,11,FALSE) -> 0 | AC22: =VLOOKUP(A22,'D5'!$B$10:$AZ$109,12,FALSE) -> 0 | AD22: =VLOOKUP(A22,'D5'!$B$10:$AZ$109,13,FALSE) -> 0 | AE22: =VLOOKUP(A22,'D5'!$B$10:$AZ$109,14,FALSE) -> 0 | AF22: 0 | AG22: =VLOOKUP(A22,'D6'!$B$10:$AZ$109,10,FALSE) -> 0 | AH22: =VLOOKUP(A22,'D6'!$B$10:$AZ$109,11,FALSE) -> 0 | AI22: =VLOOKUP(A22,'D6'!$B$10:$AZ$109,12,FALSE) -> 0 | AJ22: =VLOOKUP(A22,'D6'!$B$10:$AZ$109,13,FALSE) -> 0 | AK22: =VLOOKUP(A22,'D6'!$B$10:$AZ$109,14,FALSE) -> 0 | AL22: 0 | AM22: =VLOOKUP(A22,'D7'!$B$10:$AZ$109,10,FALSE) -> 0 | AN22: =VLOOKUP(A22,'D7'!$B$10:$AZ$109,11,FALSE) -> 0 | AO22: =VLOOKUP(A22,'D7'!$B$10:$AZ$109,12,FALSE) -> 0 | AP22: =VLOOKUP(A22,'D7'!$B$10:$AZ$109,13,FALSE) -> 0 | AQ22: =VLOOKUP(A22,'D7'!$B$10:$AZ$109,14,FALSE) -> 0 | AR22: 0 | AS22: =VLOOKUP(A22,'D8'!$B$10:$AZ$109,10,FALSE) -> 0 | AT22: =VLOOKUP(A22,'D8'!$B$10:$AZ$109,11,FALSE) -> 0 | AU22: =VLOOKUP(A22,'D8'!$B$10:$AZ$109,12,FALSE) -> 0 | AV22: =VLOOKUP(A22,'D8'!$B$10:$AZ$109,13,FALSE) -> 0 | AW22: =VLOOKUP(A22,'D8'!$B$10:$AZ$109,14,FALSE) -> 0 | AX22: 0 | AY22: 0 | AZ22: راسب | BA22: 0 | BC22: الثاني مكرر | BD22: =IFERROR(VLOOKUP(A22,A!$A$6:$M$99,6,FALSE),"") ->  | BE22: =IFERROR(VLOOKUP(A22,A!$A$6:$M$99,7,FALSE),"") ->  | BF22: =IFERROR(VLOOKUP(A22,A!$A$6:$M$99,9,FALSE),"") ->  | BG22: =IFERROR(VLOOKUP(A22,A!$A$6:$M$99,10,FALSE),"") ->  | BH22: =IFERROR(VLOOKUP(A22,A!$A$6:$M$99,11,FALSE),"") ->  | BI22: =IF(COUNTIF($AY$10:AY22,AY22)=1,AY22) -> FALSE | BJ22: 2 | BK22: =IF(COUNTIF($AY$10:AY22,AY22)>1," مكرر ","") -> مكرر | BL22: الثاني
A23: 14 | B23: =IFERROR(VLOOKUP(A23,A!$A$6:$M$99,2,FALSE),"") ->  | C23: =VLOOKUP(A23,'D1'!$B$10:$AZ$109,10,FALSE) -> 0 | D23: =VLOOKUP(A23,'D1'!$B$10:$AZ$109,11,FALSE) -> 0 | E23: =VLOOKUP(A23,'D1'!$B$10:$AZ$109,12,FALSE) -> 0 | F23: =VLOOKUP(A23,'D1'!$B$10:$AZ$109,13,FALSE) -> 0 | G23: =VLOOKUP(A23,'D1'!$B$10:$AZ$109,14,FALSE) -> 0 | H23: 0 | I23: =VLOOKUP(A23,'D2'!$B$10:$AZ$109,10,FALSE) -> 0 | J23: =VLOOKUP(A23,'D2'!$B$10:$AZ$109,11,FALSE) -> 0 | K23: =VLOOKUP(A23,'D2'!$B$10:$AZ$109,12,FALSE) -> 0 | L23: =VLOOKUP(A23,'D2'!$B$10:$AZ$109,13,FALSE) -> 0 | M23: =VLOOKUP(A23,'D2'!$B$10:$AZ$109,14,FALSE) -> 0 | N23: 0 | O23: =VLOOKUP(A23,'D3'!$B$10:$AZ$109,10,FALSE) -> 0 | P23: =VLOOKUP(A23,'D3'!$B$10:$AZ$109,11,FALSE) -> 0 | Q23: =VLOOKUP(A23,'D3'!$B$10:$AZ$109,12,FALSE) -> 0 | R23: =VLOOKUP(A23,'D3'!$B$10:$AZ$109,13,FALSE) -> 0 | S23: =VLOOKUP(A23,'D3'!$B$10:$AZ$109,14,FALSE) -> 0 | T23: 0 | U23: =VLOOKUP(A23,'D4'!$B$10:$AZ$109,10,FALSE) -> 0 | V23: =VLOOKUP(A23,'D4'!$B$10:$AZ$109,11,FALSE) -> 0 | W23: =VLOOKUP(A23,'D4'!$B$10:$AZ$109,12,FALSE) -> 0 | X23: =VLOOKUP(A23,'D4'!$B$10:$AZ$109,13,FALSE) -> 0 | Y23: =VLOOKUP(A23,'D4'!$B$10:$AZ$109,14,FALSE) -> 0 | Z23: 0 | AA23: =VLOOKUP(A23,'D5'!$B$10:$AZ$109,10,FALSE) -> 0 | AB23: =VLOOKUP(A23,'D5'!$B$10:$AZ$109,11,FALSE) -> 0 | AC23: =VLOOKUP(A23,'D5'!$B$10:$AZ$109,12,FALSE) -> 0 | AD23: =VLOOKUP(A23,'D5'!$B$10:$AZ$109,13,FALSE) -> 0 | AE23: =VLOOKUP(A23,'D5'!$B$10:$AZ$109,14,FALSE) -> 0 | AF23: 0 | AG23: =VLOOKUP(A23,'D6'!$B$10:$AZ$109,10,FALSE) -> 0 | AH23: =VLOOKUP(A23,'D6'!$B$10:$AZ$109,11,FALSE) -> 0 | AI23: =VLOOKUP(A23,'D6'!$B$10:$AZ$109,12,FALSE) -> 0 | AJ23: =VLOOKUP(A23,'D6'!$B$10:$AZ$109,13,FALSE) -> 0 | AK23: =VLOOKUP(A23,'D6'!$B$10:$AZ$109,14,FALSE) -> 0 | AL23: 0 | AM23: =VLOOKUP(A23,'D7'!$B$10:$AZ$109,10,FALSE) -> 0 | AN23: =VLOOKUP(A23,'D7'!$B$10:$AZ$109,11,FALSE) -> 0 | AO23: =VLOOKUP(A23,'D7'!$B$10:$AZ$109,12,FALSE) -> 0 | AP23: =VLOOKUP(A23,'D7'!$B$10:$AZ$109,13,FALSE) -> 0 | AQ23: =VLOOKUP(A23,'D7'!$B$10:$AZ$109,14,FALSE) -> 0 | AR23: 0 | AS23: =VLOOKUP(A23,'D8'!$B$10:$AZ$109,10,FALSE) -> 0 | AT23: =VLOOKUP(A23,'D8'!$B$10:$AZ$109,11,FALSE) -> 0 | AU23: =VLOOKUP(A23,'D8'!$B$10:$AZ$109,12,FALSE) -> 0 | AV23: =VLOOKUP(A23,'D8'!$B$10:$AZ$109,13,FALSE) -> 0 | AW23: =VLOOKUP(A23,'D8'!$B$10:$AZ$109,14,FALSE) -> 0 | AX23: 0 | AY23: 0 | AZ23: راسب | BA23: 0 | BC23: الثاني مكرر | BD23: =IFERROR(VLOOKUP(A23,A!$A$6:$M$99,6,FALSE),"") ->  | BE23: =IFERROR(VLOOKUP(A23,A!$A$6:$M$99,7,FALSE),"") ->  | BF23: =IFERROR(VLOOKUP(A23,A!$A$6:$M$99,9,FALSE),"") ->  | BG23: =IFERROR(VLOOKUP(A23,A!$A$6:$M$99,10,FALSE),"") ->  | BH23: =IFERROR(VLOOKUP(A23,A!$A$6:$M$99,11,FALSE),"") ->  | BI23: =IF(COUNTIF($AY$10:AY23,AY23)=1,AY23) -> FALSE | BJ23: 2 | BK23: =IF(COUNTIF($AY$10:AY23,AY23)>1," مكرر ","") -> مكرر | BL23: الثاني
A24: 15 | B24: =IFERROR(VLOOKUP(A24,A!$A$6:$M$99,2,FALSE),"") ->  | C24: =VLOOKUP(A24,'D1'!$B$10:$AZ$109,10,FALSE) -> 0 | D24: =VLOOKUP(A24,'D1'!$B$10:$AZ$109,11,FALSE) -> 0 | E24: =VLOOKUP(A24,'D1'!$B$10:$AZ$109,12,FALSE) -> 0 | F24: =VLOOKUP(A24,'D1'!$B$10:$AZ$109,13,FALSE) -> 0 | G24: =VLOOKUP(A24,'D1'!$B$10:$AZ$109,14,FALSE) -> 0 | H24: 0 | I24: =VLOOKUP(A24,'D2'!$B$10:$AZ$109,10,FALSE) -> 0 | J24: =VLOOKUP(A24,'D2'!$B$10:$AZ$109,11,FALSE) -> 0 | K24: =VLOOKUP(A24,'D2'!$B$10:$AZ$109,12,FALSE) -> 0 | L24: =VLOOKUP(A24,'D2'!$B$10:$AZ$109,13,FALSE) -> 0 | M24: =VLOOKUP(A24,'D2'!$B$10:$AZ$109,14,FALSE) -> 0 | N24: 0 | O24: =VLOOKUP(A24,'D3'!$B$10:$AZ$109,10,FALSE) -> 0 | P24: =VLOOKUP(A24,'D3'!$B$10:$AZ$109,11,FALSE) -> 0 | Q24: =VLOOKUP(A24,'D3'!$B$10:$AZ$109,12,FALSE) -> 0 | R24: =VLOOKUP(A24,'D3'!$B$10:$AZ$109,13,FALSE) -> 0 | S24: =VLOOKUP(A24,'D3'!$B$10:$AZ$109,14,FALSE) -> 0 | T24: 0 | U24: =VLOOKUP(A24,'D4'!$B$10:$AZ$109,10,FALSE) -> 0 | V24: =VLOOKUP(A24,'D4'!$B$10:$AZ$109,11,FALSE) -> 0 | W24: =VLOOKUP(A24,'D4'!$B$10:$AZ$109,12,FALSE) -> 0 | X24: =VLOOKUP(A24,'D4'!$B$10:$AZ$109,13,FALSE) -> 0 | Y24: =VLOOKUP(A24,'D4'!$B$10:$AZ$109,14,FALSE) -> 0 | Z24: 0 | AA24: =VLOOKUP(A24,'D5'!$B$10:$AZ$109,10,FALSE) -> 0 | AB24: =VLOOKUP(A24,'D5'!$B$10:$AZ$109,11,FALSE) -> 0 | AC24: =VLOOKUP(A24,'D5'!$B$10:$AZ$109,12,FALSE) -> 0 | AD24: =VLOOKUP(A24,'D5'!$B$10:$AZ$109,13,FALSE) -> 0 | AE24: =VLOOKUP(A24,'D5'!$B$10:$AZ$109,14,FALSE) -> 0 | AF24: 0 | AG24: =VLOOKUP(A24,'D6'!$B$10:$AZ$109,10,FALSE) -> 0 | AH24: =VLOOKUP(A24,'D6'!$B$10:$AZ$109,11,FALSE) -> 0 | AI24: =VLOOKUP(A24,'D6'!$B$10:$AZ$109,12,FALSE) -> 0 | AJ24: =VLOOKUP(A24,'D6'!$B$10:$AZ$109,13,FALSE) -> 0 | AK24: =VLOOKUP(A24,'D6'!$B$10:$AZ$109,14,FALSE) -> 0 | AL24: 0 | AM24: =VLOOKUP(A24,'D7'!$B$10:$AZ$109,10,FALSE) -> 0 | AN24: =VLOOKUP(A24,'D7'!$B$10:$AZ$109,11,FALSE) -> 0 | AO24: =VLOOKUP(A24,'D7'!$B$10:$AZ$109,12,FALSE) -> 0 | AP24: =VLOOKUP(A24,'D7'!$B$10:$AZ$109,13,FALSE) -> 0 | AQ24: =VLOOKUP(A24,'D7'!$B$10:$AZ$109,14,FALSE) -> 0 | AR24: 0 | AS24: =VLOOKUP(A24,'D8'!$B$10:$AZ$109,10,FALSE) -> 0 | AT24: =VLOOKUP(A24,'D8'!$B$10:$AZ$109,11,FALSE) -> 0 | AU24: =VLOOKUP(A24,'D8'!$B$10:$AZ$109,12,FALSE) -> 0 | AV24: =VLOOKUP(A24,'D8'!$B$10:$AZ$109,13,FALSE) -> 0 | AW24: =VLOOKUP(A24,'D8'!$B$10:$AZ$109,14,FALSE) -> 0 | AX24: 0 | AY24: 0 | AZ24: راسب | BA24: 0 | BC24: الثاني مكرر | BD24: =IFERROR(VLOOKUP(A24,A!$A$6:$M$99,6,FALSE),"") ->  | BE24: =IFERROR(VLOOKUP(A24,A!$A$6:$M$99,7,FALSE),"") ->  | BF24: =IFERROR(VLOOKUP(A24,A!$A$6:$M$99,9,FALSE),"") ->  | BG24: =IFERROR(VLOOKUP(A24,A!$A$6:$M$99,10,FALSE),"") ->  | BH24: =IFERROR(VLOOKUP(A24,A!$A$6:$M$99,11,FALSE),"") ->  | BI24: =IF(COUNTIF($AY$10:AY24,AY24)=1,AY24) -> FALSE | BJ24: 2 | BK24: =IF(COUNTIF($AY$10:AY24,AY24)>1," مكرر ","") -> مكرر | BL24: الثاني
A25: 16 | B25: =IFERROR(VLOOKUP(A25,A!$A$6:$M$99,2,FALSE),"") ->  | C25: =VLOOKUP(A25,'D1'!$B$10:$AZ$109,10,FALSE) -> 0 | D25: =VLOOKUP(A25,'D1'!$B$10:$AZ$109,11,FALSE) -> 0 | E25: =VLOOKUP(A25,'D1'!$B$10:$AZ$109,12,FALSE) -> 0 | F25: =VLOOKUP(A25,'D1'!$B$10:$AZ$109,13,FALSE) -> 0 | G25: =VLOOKUP(A25,'D1'!$B$10:$AZ$109,14,FALSE) -> 0 | H25: 0 | I25: =VLOOKUP(A25,'D2'!$B$10:$AZ$109,10,FALSE) -> 0 | J25: =VLOOKUP(A25,'D2'!$B$10:$AZ$109,11,FALSE) -> 0 | K25: =VLOOKUP(A25,'D2'!$B$10:$AZ$109,12,FALSE) -> 0 | L25: =VLOOKUP(A25,'D2'!$B$10:$AZ$109,13,FALSE) -> 0 | M25: =VLOOKUP(A25,'D2'!$B$10:$AZ$109,14,FALSE) -> 0 | N25: 0 | O25: =VLOOKUP(A25,'D3'!$B$10:$AZ$109,10,FALSE) -> 0 | P25: =VLOOKUP(A25,'D3'!$B$10:$AZ$109,11,FALSE) -> 0 | Q25: =VLOOKUP(A25,'D3'!$B$10:$AZ$109,12,FALSE) -> 0 | R25: =VLOOKUP(A25,'D3'!$B$10:$AZ$109,13,FALSE) -> 0 | S25: =VLOOKUP(A25,'D3'!$B$10:$AZ$109,14,FALSE) -> 0 | T25: 0 | U25: =VLOOKUP(A25,'D4'!$B$10:$AZ$109,10,FALSE) -> 0 | V25: =VLOOKUP(A25,'D4'!$B$10:$AZ$109,11,FALSE) -> 0 | W25: =VLOOKUP(A25,'D4'!$B$10:$AZ$109,12,FALSE) -> 0 | X25: =VLOOKUP(A25,'D4'!$B$10:$AZ$109,13,FALSE) -> 0 | Y25: =VLOOKUP(A25,'D4'!$B$10:$AZ$109,14,FALSE) -> 0 | Z25: 0 | AA25: =VLOOKUP(A25,'D5'!$B$10:$AZ$109,10,FALSE) -> 0 | AB25: =VLOOKUP(A25,'D5'!$B$10:$AZ$109,11,FALSE) -> 0 | AC25: =VLOOKUP(A25,'D5'!$B$10:$AZ$109,12,FALSE) -> 0 | AD25: =VLOOKUP(A25,'D5'!$B$10:$AZ$109,13,FALSE) -> 0 | AE25: =VLOOKUP(A25,'D5'!$B$10:$AZ$109,14,FALSE) -> 0 | AF25: 0 | AG25: =VLOOKUP(A25,'D6'!$B$10:$AZ$109,10,FALSE) -> 0 | AH25: =VLOOKUP(A25,'D6'!$B$10:$AZ$109,11,FALSE) -> 0 | AI25: =VLOOKUP(A25,'D6'!$B$10:$AZ$109,12,FALSE) -> 0 | AJ25: =VLOOKUP(A25,'D6'!$B$10:$AZ$109,13,FALSE) -> 0 | AK25: =VLOOKUP(A25,'D6'!$B$10:$AZ$109,14,FALSE) -> 0 | AL25: 0 | AM25: =VLOOKUP(A25,'D7'!$B$10:$AZ$109,10,FALSE) -> 0 | AN25: =VLOOKUP(A25,'D7'!$B$10:$AZ$109,11,FALSE) -> 0 | AO25: =VLOOKUP(A25,'D7'!$B$10:$AZ$109,12,FALSE) -> 0 | AP25: =VLOOKUP(A25,'D7'!$B$10:$AZ$109,13,FALSE) -> 0 | AQ25: =VLOOKUP(A25,'D7'!$B$10:$AZ$109,14,FALSE) -> 0 | AR25: 0 | AS25: =VLOOKUP(A25,'D8'!$B$10:$AZ$109,10,FALSE) -> 0 | AT25: =VLOOKUP(A25,'D8'!$B$10:$AZ$109,11,FALSE) -> 0 | AU25: =VLOOKUP(A25,'D8'!$B$10:$AZ$109,12,FALSE) -> 0 | AV25: =VLOOKUP(A25,'D8'!$B$10:$AZ$109,13,FALSE) -> 0 | AW25: =VLOOKUP(A25,'D8'!$B$10:$AZ$109,14,FALSE) -> 0 | AX25: 0 | AY25: 0 | AZ25: راسب | BA25: 0 | BC25: الثاني مكرر | BD25: =IFERROR(VLOOKUP(A25,A!$A$6:$M$99,6,FALSE),"") ->  | BE25: =IFERROR(VLOOKUP(A25,A!$A$6:$M$99,7,FALSE),"") ->  | BF25: =IFERROR(VLOOKUP(A25,A!$A$6:$M$99,9,FALSE),"") ->  | BG25: =IFERROR(VLOOKUP(A25,A!$A$6:$M$99,10,FALSE),"") ->  | BH25: =IFERROR(VLOOKUP(A25,A!$A$6:$M$99,11,FALSE),"") ->  | BI25: =IF(COUNTIF($AY$10:AY25,AY25)=1,AY25) -> FALSE | BJ25: 2 | BK25: =IF(COUNTIF($AY$10:AY25,AY25)>1," مكرر ","") -> مكرر | BL25: الثاني
A26: 17 | B26: =IFERROR(VLOOKUP(A26,A!$A$6:$M$99,2,FALSE),"") ->  | C26: =VLOOKUP(A26,'D1'!$B$10:$AZ$109,10,FALSE) -> 0 | D26: =VLOOKUP(A26,'D1'!$B$10:$AZ$109,11,FALSE) -> 0 | E26: =VLOOKUP(A26,'D1'!$B$10:$AZ$109,12,FALSE) -> 0 | F26: =VLOOKUP(A26,'D1'!$B$10:$AZ$109,13,FALSE) -> 0 | G26: =VLOOKUP(A26,'D1'!$B$10:$AZ$109,14,FALSE) -> 0 | H26: 0 | I26: =VLOOKUP(A26,'D2'!$B$10:$AZ$109,10,FALSE) -> 0 | J26: =VLOOKUP(A26,'D2'!$B$10:$AZ$109,11,FALSE) -> 0 | K26: =VLOOKUP(A26,'D2'!$B$10:$AZ$109,12,FALSE) -> 0 | L26: =VLOOKUP(A26,'D2'!$B$10:$AZ$109,13,FALSE) -> 0 | M26: =VLOOKUP(A26,'D2'!$B$10:$AZ$109,14,FALSE) -> 0 | N26: 0 | O26: =VLOOKUP(A26,'D3'!$B$10:$AZ$109,10,FALSE) -> 0 | P26: =VLOOKUP(A26,'D3'!$B$10:$AZ$109,11,FALSE) -> 0 | Q26: =VLOOKUP(A26,'D3'!$B$10:$AZ$109,12,FALSE) -> 0 | R26: =VLOOKUP(A26,'D3'!$B$10:$AZ$109,13,FALSE) -> 0 | S26: =VLOOKUP(A26,'D3'!$B$10:$AZ$109,14,FALSE) -> 0 | T26: 0 | U26: =VLOOKUP(A26,'D4'!$B$10:$AZ$109,10,FALSE) -> 0 | V26: =VLOOKUP(A26,'D4'!$B$10:$AZ$109,11,FALSE) -> 0 | W26: =VLOOKUP(A26,'D4'!$B$10:$AZ$109,12,FALSE) -> 0 | X26: =VLOOKUP(A26,'D4'!$B$10:$AZ$109,13,FALSE) -> 0 | Y26: =VLOOKUP(A26,'D4'!$B$10:$AZ$109,14,FALSE) -> 0 | Z26: 0 | AA26: =VLOOKUP(A26,'D5'!$B$10:$AZ$109,10,FALSE) -> 0 | AB26: =VLOOKUP(A26,'D5'!$B$10:$AZ$109,11,FALSE) -> 0 | AC26: =VLOOKUP(A26,'D5'!$B$10:$AZ$109,12,FALSE) -> 0 | AD26: =VLOOKUP(A26,'D5'!$B$10:$AZ$109,13,FALSE) -> 0 | AE26: =VLOOKUP(A26,'D5'!$B$10:$AZ$109,14,FALSE) -> 0 | AF26: 0 | AG26: =VLOOKUP(A26,'D6'!$B$10:$AZ$109,10,FALSE) -> 0 | AH26: =VLOOKUP(A26,'D6'!$B$10:$AZ$109,11,FALSE) -> 0 | AI26: =VLOOKUP(A26,'D6'!$B$10:$AZ$109,12,FALSE) -> 0 | AJ26: =VLOOKUP(A26,'D6'!$B$10:$AZ$109,13,FALSE) -> 0 | AK26: =VLOOKUP(A26,'D6'!$B$10:$AZ$109,14,FALSE) -> 0 | AL26: 0 | AM26: =VLOOKUP(A26,'D7'!$B$10:$AZ$109,10,FALSE) -> 0 | AN26: =VLOOKUP(A26,'D7'!$B$10:$AZ$109,11,FALSE) -> 0 | AO26: =VLOOKUP(A26,'D7'!$B$10:$AZ$109,12,FALSE) -> 0 | AP26: =VLOOKUP(A26,'D7'!$B$10:$AZ$109,13,FALSE) -> 0 | AQ26: =VLOOKUP(A26,'D7'!$B$10:$AZ$109,14,FALSE) -> 0 | AR26: 0 | AS26: =VLOOKUP(A26,'D8'!$B$10:$AZ$109,10,FALSE) -> 0 | AT26: =VLOOKUP(A26,'D8'!$B$10:$AZ$109,11,FALSE) -> 0 | AU26: =VLOOKUP(A26,'D8'!$B$10:$AZ$109,12,FALSE) -> 0 | AV26: =VLOOKUP(A26,'D8'!$B$10:$AZ$109,13,FALSE) -> 0 | AW26: =VLOOKUP(A26,'D8'!$B$10:$AZ$109,14,FALSE) -> 0 | AX26: 0 | AY26: 0 | AZ26: راسب | BA26: 0 | BC26: الثاني مكرر | BD26: =IFERROR(VLOOKUP(A26,A!$A$6:$M$99,6,FALSE),"") ->  | BE26: =IFERROR(VLOOKUP(A26,A!$A$6:$M$99,7,FALSE),"") ->  | BF26: =IFERROR(VLOOKUP(A26,A!$A$6:$M$99,9,FALSE),"") ->  | BG26: =IFERROR(VLOOKUP(A26,A!$A$6:$M$99,10,FALSE),"") ->  | BH26: =IFERROR(VLOOKUP(A26,A!$A$6:$M$99,11,FALSE),"") ->  | BI26: =IF(COUNTIF($AY$10:AY26,AY26)=1,AY26) -> FALSE | BJ26: 2 | BK26: =IF(COUNTIF($AY$10:AY26,AY26)>1," مكرر ","") -> مكرر | BL26: الثاني
A27: 18 | B27: =IFERROR(VLOOKUP(A27,A!$A$6:$M$99,2,FALSE),"") ->  | C27: =VLOOKUP(A27,'D1'!$B$10:$AZ$109,10,FALSE) -> 0 | D27: =VLOOKUP(A27,'D1'!$B$10:$AZ$109,11,FALSE) -> 0 | E27: =VLOOKUP(A27,'D1'!$B$10:$AZ$109,12,FALSE) -> 0 | F27: =VLOOKUP(A27,'D1'!$B$10:$AZ$109,13,FALSE) -> 0 | G27: =VLOOKUP(A27,'D1'!$B$10:$AZ$109,14,FALSE) -> 0 | H27: 0 | I27: =VLOOKUP(A27,'D2'!$B$10:$AZ$109,10,FALSE) -> 0 | J27: =VLOOKUP(A27,'D2'!$B$10:$AZ$109,11,FALSE) -> 0 | K27: =VLOOKUP(A27,'D2'!$B$10:$AZ$109,12,FALSE) -> 0 | L27: =VLOOKUP(A27,'D2'!$B$10:$AZ$109,13,FALSE) -> 0 | M27: =VLOOKUP(A27,'D2'!$B$10:$AZ$109,14,FALSE) -> 0 | N27: 0 | O27: =VLOOKUP(A27,'D3'!$B$10:$AZ$109,10,FALSE) -> 0 | P27: =VLOOKUP(A27,'D3'!$B$10:$AZ$109,11,FALSE) -> 0 | Q27: =VLOOKUP(A27,'D3'!$B$10:$AZ$109,12,FALSE) -> 0 | R27: =VLOOKUP(A27,'D3'!$B$10:$AZ$109,13,FALSE) -> 0 | S27: =VLOOKUP(A27,'D3'!$B$10:$AZ$109,14,FALSE) -> 0 | T27: 0 | U27: =VLOOKUP(A27,'D4'!$B$10:$AZ$109,10,FALSE) -> 0 | V27: =VLOOKUP(A27,'D4'!$B$10:$AZ$109,11,FALSE) -> 0 | W27: =VLOOKUP(A27,'D4'!$B$10:$AZ$109,12,FALSE) -> 0 | X27: =VLOOKUP(A27,'D4'!$B$10:$AZ$109,13,FALSE) -> 0 | Y27: =VLOOKUP(A27,'D4'!$B$10:$AZ$109,14,FALSE) -> 0 | Z27: 0 | AA27: =VLOOKUP(A27,'D5'!$B$10:$AZ$109,10,FALSE) -> 0 | AB27: =VLOOKUP(A27,'D5'!$B$10:$AZ$109,11,FALSE) -> 0 | AC27: =VLOOKUP(A27,'D5'!$B$10:$AZ$109,12,FALSE) -> 0 | AD27: =VLOOKUP(A27,'D5'!$B$10:$AZ$109,13,FALSE) -> 0 | AE27: =VLOOKUP(A27,'D5'!$B$10:$AZ$109,14,FALSE) -> 0 | AF27: 0 | AG27: =VLOOKUP(A27,'D6'!$B$10:$AZ$109,10,FALSE) -> 0 | AH27: =VLOOKUP(A27,'D6'!$B$10:$AZ$109,11,FALSE) -> 0 | AI27: =VLOOKUP(A27,'D6'!$B$10:$AZ$109,12,FALSE) -> 0 | AJ27: =VLOOKUP(A27,'D6'!$B$10:$AZ$109,13,FALSE) -> 0 | AK27: =VLOOKUP(A27,'D6'!$B$10:$AZ$109,14,FALSE) -> 0 | AL27: 0 | AM27: =VLOOKUP(A27,'D7'!$B$10:$AZ$109,10,FALSE) -> 0 | AN27: =VLOOKUP(A27,'D7'!$B$10:$AZ$109,11,FALSE) -> 0 | AO27: =VLOOKUP(A27,'D7'!$B$10:$AZ$109,12,FALSE) -> 0 | AP27: =VLOOKUP(A27,'D7'!$B$10:$AZ$109,13,FALSE) -> 0 | AQ27: =VLOOKUP(A27,'D7'!$B$10:$AZ$109,14,FALSE) -> 0 | AR27: 0 | AS27: =VLOOKUP(A27,'D8'!$B$10:$AZ$109,10,FALSE) -> 0 | AT27: =VLOOKUP(A27,'D8'!$B$10:$AZ$109,11,FALSE) -> 0 | AU27: =VLOOKUP(A27,'D8'!$B$10:$AZ$109,12,FALSE) -> 0 | AV27: =VLOOKUP(A27,'D8'!$B$10:$AZ$109,13,FALSE) -> 0 | AW27: =VLOOKUP(A27,'D8'!$B$10:$AZ$109,14,FALSE) -> 0 | AX27: 0 | AY27: 0 | AZ27: راسب | BA27: 0 | BC27: الثاني مكرر | BD27: =IFERROR(VLOOKUP(A27,A!$A$6:$M$99,6,FALSE),"") ->  | BE27: =IFERROR(VLOOKUP(A27,A!$A$6:$M$99,7,FALSE),"") ->  | BF27: =IFERROR(VLOOKUP(A27,A!$A$6:$M$99,9,FALSE),"") ->  | BG27: =IFERROR(VLOOKUP(A27,A!$A$6:$M$99,10,FALSE),"") ->  | BH27: =IFERROR(VLOOKUP(A27,A!$A$6:$M$99,11,FALSE),"") ->  | BI27: =IF(COUNTIF($AY$10:AY27,AY27)=1,AY27) -> FALSE | BJ27: 2 | BK27: =IF(COUNTIF($AY$10:AY27,AY27)>1," مكرر ","") -> مكرر | BL27: الثاني
A28: 19 | B28: =IFERROR(VLOOKUP(A28,A!$A$6:$M$99,2,FALSE),"") ->  | C28: =VLOOKUP(A28,'D1'!$B$10:$AZ$109,10,FALSE) -> 0 | D28: =VLOOKUP(A28,'D1'!$B$10:$AZ$109,11,FALSE) -> 0 | E28: =VLOOKUP(A28,'D1'!$B$10:$AZ$109,12,FALSE) -> 0 | F28: =VLOOKUP(A28,'D1'!$B$10:$AZ$109,13,FALSE) -> 0 | G28: =VLOOKUP(A28,'D1'!$B$10:$AZ$109,14,FALSE) -> 0 | H28: 0 | I28: =VLOOKUP(A28,'D2'!$B$10:$AZ$109,10,FALSE) -> 0 | J28: =VLOOKUP(A28,'D2'!$B$10:$AZ$109,11,FALSE) -> 0 | K28: =VLOOKUP(A28,'D2'!$B$10:$AZ$109,12,FALSE) -> 0 | L28: =VLOOKUP(A28,'D2'!$B$10:$AZ$109,13,FALSE) -> 0 | M28: =VLOOKUP(A28,'D2'!$B$10:$AZ$109,14,FALSE) -> 0 | N28: 0 | O28: =VLOOKUP(A28,'D3'!$B$10:$AZ$109,10,FALSE) -> 0 | P28: =VLOOKUP(A28,'D3'!$B$10:$AZ$109,11,FALSE) -> 0 | Q28: =VLOOKUP(A28,'D3'!$B$10:$AZ$109,12,FALSE) -> 0 | R28: =VLOOKUP(A28,'D3'!$B$10:$AZ$109,13,FALSE) -> 0 | S28: =VLOOKUP(A28,'D3'!$B$10:$AZ$109,14,FALSE) -> 0 | T28: 0 | U28: =VLOOKUP(A28,'D4'!$B$10:$AZ$109,10,FALSE) -> 0 | V28: =VLOOKUP(A28,'D4'!$B$10:$AZ$109,11,FALSE) -> 0 | W28: =VLOOKUP(A28,'D4'!$B$10:$AZ$109,12,FALSE) -> 0 | X28: =VLOOKUP(A28,'D4'!$B$10:$AZ$109,13,FALSE) -> 0 | Y28: =VLOOKUP(A28,'D4'!$B$10:$AZ$109,14,FALSE) -> 0 | Z28: 0 | AA28: =VLOOKUP(A28,'D5'!$B$10:$AZ$109,10,FALSE) -> 0 | AB28: =VLOOKUP(A28,'D5'!$B$10:$AZ$109,11,FALSE) -> 0 | AC28: =VLOOKUP(A28,'D5'!$B$10:$AZ$109,12,FALSE) -> 0 | AD28: =VLOOKUP(A28,'D5'!$B$10:$AZ$109,13,FALSE) -> 0 | AE28: =VLOOKUP(A28,'D5'!$B$10:$AZ$109,14,FALSE) -> 0 | AF28: 0 | AG28: =VLOOKUP(A28,'D6'!$B$10:$AZ$109,10,FALSE) -> 0 | AH28: =VLOOKUP(A28,'D6'!$B$10:$AZ$109,11,FALSE) -> 0 | AI28: =VLOOKUP(A28,'D6'!$B$10:$AZ$109,12,FALSE) -> 0 | AJ28: =VLOOKUP(A28,'D6'!$B$10:$AZ$109,13,FALSE) -> 0 | AK28: =VLOOKUP(A28,'D6'!$B$10:$AZ$109,14,FALSE) -> 0 | AL28: 0 | AM28: =VLOOKUP(A28,'D7'!$B$10:$AZ$109,10,FALSE) -> 0 | AN28: =VLOOKUP(A28,'D7'!$B$10:$AZ$109,11,FALSE) -> 0 | AO28: =VLOOKUP(A28,'D7'!$B$10:$AZ$109,12,FALSE) -> 0 | AP28: =VLOOKUP(A28,'D7'!$B$10:$AZ$109,13,FALSE) -> 0 | AQ28: =VLOOKUP(A28,'D7'!$B$10:$AZ$109,14,FALSE) -> 0 | AR28: 0 | AS28: =VLOOKUP(A28,'D8'!$B$10:$AZ$109,10,FALSE) -> 0 | AT28: =VLOOKUP(A28,'D8'!$B$10:$AZ$109,11,FALSE) -> 0 | AU28: =VLOOKUP(A28,'D8'!$B$10:$AZ$109,12,FALSE) -> 0 | AV28: =VLOOKUP(A28,'D8'!$B$10:$AZ$109,13,FALSE) -> 0 | AW28: =VLOOKUP(A28,'D8'!$B$10:$AZ$109,14,FALSE) -> 0 | AX28: 0 | AY28: 0 | AZ28: راسب | BA28: 0 | BC28: الثاني مكرر | BD28: =IFERROR(VLOOKUP(A28,A!$A$6:$M$99,6,FALSE),"") ->  | BE28: =IFERROR(VLOOKUP(A28,A!$A$6:$M$99,7,FALSE),"") ->  | BF28: =IFERROR(VLOOKUP(A28,A!$A$6:$M$99,9,FALSE),"") ->  | BG28: =IFERROR(VLOOKUP(A28,A!$A$6:$M$99,10,FALSE),"") ->  | BH28: =IFERROR(VLOOKUP(A28,A!$A$6:$M$99,11,FALSE),"") ->  | BI28: =IF(COUNTIF($AY$10:AY28,AY28)=1,AY28) -> FALSE | BJ28: 2 | BK28: =IF(COUNTIF($AY$10:AY28,AY28)>1," مكرر ","") -> مكرر | BL28: الثاني
